Workbook

Sheet START

Sheet Instructions
D2: 2020
X4: Yes
X5: No
W7: Type of Entities Range:
X8: Parent Municipality
X9: Consolidated Information
F14: START
F15: Instructions
F16: Template names
F17: Lookup and lists | W17: MTREF Range: | X17: 2013
F18: Org structure | X18: 2014
F19: Contacts | X19: 2015
F20: A1-Sum | X20: 2016
F21: A2-FinPerf SC | X21: 2017
F22: A2A | X22: 2018
F23: A3-FinPerf V | X23: 2019
F24: A3A | X24: 2020
F25: A4-FinPerf RE | X25: 2021
F26: A5-Capex | X26: 2022
F27: A5A | X27: 2023
F28: A6-FinPos | X28: 2024
F29: A7-CFlow | X29: 2025
F30: A8-ResRecon | X30: 2026
F31: A9-Asset | X31: 2027
F32: A10-SerDel
F33: SA1 | W33: MTREF Linked: | X33: 11
F34: SA2 | W34: MTREF: | X34: =INDEX(X17:X31,X33,1) -> 2023
F35: SA3
F36: SA4 | W36: Fin Year: | X36: =MTREF&"/"&RIGHT(MTREF,2)+1 -> 2023/24
F37: SA5
F38: SA6
F39: SA7
F40: SA8
F41: SA9
F42: SA10
F43: SA11
F44: SA12a
F45: SA12b
F46: SA13a
F47: SA13b
F48: SA14
F49: SA15
F50: SA16
F51: SA17
F52: SA18
F53: SA19
F54: SA20
F55: SA21
F56: SA22
F57: SA23
F58: SA24
F59: SA25
F60: SA26
F61: SA27
F62: SA28
F63: SA29
F64: SA30
F65: SA31
F66: SA32
F67: SA33
F68: SA34a
F69: SA34b
F70: SA34c
F71: SA34d
F72: SA34e
F73: SA35
F74: SA36
F75: SA37
F76: SA38
F77: LGDB_EXPORT

Sheet Template names (hidden)
A1: Common sheet headings
A2: Head1 | B2: =HLOOKUP(MTREF,Headings,2) -> 2021/22 | C2: Prior year -1
A3: Head1A | B3: =HLOOKUP(MTREF,Headings,3) -> 2020/21 | C3: Prior year -2
A4: Head1B | B4: =HLOOKUP(MTREF,Headings,4) -> 2019/20 | C4: Prior year -3
A5: Head2 | B5: =HLOOKUP(MTREF,Headings,5) -> Current Year 2022/23 | C5: Year in which budget is being prepared
A6: Head2A | B6: =HLOOKUP(MTREF,Headings,6) -> 2022/23 | C6: Year in which budget is being prepared
A7: Head3 | B7: =HLOOKUP(MTREF,Headings,7) -> 2023/24 Medium Term Revenue & Expenditure Framework | C7: MTREF name
A8: Head4 | B8: LTFS | C8: Long term financial strategy
A9: Head5 | B9: Audited Outcome
A10: Head5A | B10: Outcome
A11: Head5B | B11: Pre-audit outcome
A12: Head6 | B12: Original Budget
A13: Head7 | B13: Adjusted Budget
A14: Head8 | B14: Full Year Forecast
A15: Head9 | B15: =HLOOKUP(MTREF,Headings,8) -> Budget Year 2023/24 | C15: 1st year of MTREF | D15: Year1
A16: Head10 | B16: =HLOOKUP(MTREF,Headings,9) -> Budget Year +1 2024/25 | C16: 2nd year of MTREF | D16: Year2
A17: Head11 | B17: =HLOOKUP(MTREF,Headings,10) -> Budget Year +2 2025/26 | C17: 3rd year of MTREF | D17: Year3
A18: Head12 | B18: =HLOOKUP(MTREF,Headings,11) -> Forecast 2026/27 | C18: 1st yr of long term forecast | D18: Year4
A19: Head13 | B19: =HLOOKUP(MTREF,Headings,12) -> Forecast 2027/28 | C19: Next yr of long term forecast | D19: Year5
A20: Head14 | B20: =HLOOKUP(MTREF,Headings,13) -> Forecast 2028/29 | C20: Next yr of long term forecast | D20: Year6
A21: Head15 | B21: =HLOOKUP(MTREF,Headings,14) -> Forecast 2029/30 | C21: Next yr of long term forecast | D21: Year7
A22: Head16 | B22: =HLOOKUP(MTREF,Headings,15) -> Forecast 2030/31 | C22: Next yr of long term forecast | D22: Year8
A23: Head17 | B23: =HLOOKUP(MTREF,Headings,16) -> Forecast 2031/32 | C23: Next yr of long term forecast | D23: Year9
A24: Head18 | B24: =HLOOKUP(MTREF,Headings,17) -> Forecast 2032/33 | C24: Next yr of long term forecast | D24: Year10
A25: Head19 | B25: =HLOOKUP(MTREF,Headings,18) -> Forecast 2033/34 | C25: Next yr of long term forecast | D25: Year11
A26: Head20 | B26: =HLOOKUP(MTREF,Headings,19) -> Forecast 2034/35 | C26: Next yr of long term forecast | D26: Year12
A27: Head21 | B27: =HLOOKUP(MTREF,Headings,20) -> Forecast 2035/36 | C27: Next yr of long term forecast | D27: Year13
A28: Head22 | B28: =HLOOKUP(MTREF,Headings,21) -> Forecast 2036/37 | C28: Next yr of long term forecast | D28: Year14
A29: Head23 | B29: =HLOOKUP(MTREF,Headings,22) -> Forecast 2037/38 | C29: Next yr of long term forecast | D29: Year15
A30: Head24 | B30: Description
A31: Head25
A32: Head26 | B32: Vote Description
A33: Head27 | B33: Ref
A34: Head27a | B34: References
A35: Head28 | B35: Surplus/(Deficit) for the year | D35: Result
A36: Head29 | B36: =HLOOKUP(MTREF,Headings,23) -> Annual target 2023/24
A37: Head30 | B37: =HLOOKUP(MTREF,Headings,24) -> Revised target 2023/24
A38: Head31 | B38: Quarter ended 30 September
A39: Head32 | B39: Quarter ended 31 December
A40: Head33 | B40: Quarter ended 31 March
A41: Head34 | B41: Quarter ended 30 June
A42: Head35 | B42: Variance explanation
A43: Head36 | B43: YTD Actual 31 Dec
A44: Head37 | B44: YTD Budget 31 Dec
A45: Head38 | B45: Monthly actual
A46: Head39 | B46: YTD actual
A47: Head40 | B47: YTD budget
A48: Head41 | B48: YTD variance
A49: Head42 | B49: Surplus/ (Deficit) for the yr/period
A50: Head43 | B50: =Head3&" Summary" -> 2023/24 Medium Term Revenue & Expenditure Framework Summary
A51: Head44 | B51: 2001 Census
A52: Head45 | B52: 2011 Census
A53: Head46 | B53: - Adjustments Budget - January 2007
A54: Head47 | B54: Previous target year to complete
A55: Head48 | B55: Present value
A56: Head49
A57: Head50 | B57: Other Adjusts.
A58: Head51 | B58: Accum. Funds
A59: Head52 | B59: Multi-year capital
A60: Head53 | B60: Unfore. Unavoid.
A61: Head54 | B61: Prior Adjusted
A62: Head55 | B62: Nat. or Prov. Govt
A63: Head56 | B63: Total Adjusts.
A64: SFPerf1 | B64: Budgeted Financial Performance
A65: SFPerf2 | B65: Forecast Financial Performance
A66: SFPos1 | B66: Budgeted Financial Position
A67: SFPos2 | B67: Forecast Financial Position
A68: Cash1 | B68: Budget Cash Flow
A69: Cash2 | B69: Forecast Cash Flow
A70: RandM | B70: Expenditure includes repairs & maintenance of R'000
A71: Depart1 | B71: Department 1 - | D71: DEP1
A72: Depart2 | B72: Department 2 - | D72: DEP2
A73: Depart3 | B73: Department 3 - | D73: DEP3
A74: Depart4 | B74: Department 4 - | D74: DEP4
A75: Depart5 | B75: Department 5 - | D75: DEP5
A76: Depart6 | B76: Department 6 - | D76: DEP6
A77: Depart7 | B77: Department 7 - | D77: DEP7
A78: Depart8 | B78: Department 8 - | D78: DEP8
A79: Depart9 | B79: Department 9 - | D79: DEP9
A80: Depart10 | B80: Department 10 - | D80: DEP10
A81: Depart11 | B81: Department 11 - | D81: DEP11
A82: Depart12 | B82: Department 12 - | D82: DEP12
A83: Depart13 | B83: Department 13 - | D83: DEP13
A84: Depart14 | B84: Department 14 - | D84: DEP14
A87: Base year of forecast column selection names
A88: Choose | B88: ACT
B89: APP
B90: ADJ
A92: Standard nomenclature
A93: Muni | B93: ='Lookup and lists'!B28 -> LIM355 Lepelle-Nkumpi
A94: Municipal Entities | B94: 2 | C94: Type of report: | D94: 1
A95: =IF((MuniEntities=1)*(MuniType=2),"YES","NO") -> NO | B95: Does this municipality have entities (consolidated budget and entity budgets required)? YES/NO
A96: Entity 1 | B96: (Pty) Ltd Example 1 - Municipal entity - | D96: Ent1
A97: Entity 2 | B97: (Pty) Ltd Example 2 - Municipal entity - | D97: Ent2
A98: Entity 3 | B98: Municipal Entity Example 3 | D98: Ent3
A99: Budget approval tables | C99: Chart x-ref | D99: Sch/Tab/Ch | E99: Alternative for municipalities without entities | F99: Alternative for municipalities without entities
B100: =IF(Consolques="YES",E100,F100) -> Table A1 Budget Summary | D100: Table A1 | E100: =D100&"Consolidated Budget Summary" -> Table A1 Consolidated Budget Summary | F100: =D100&"Budget Summary" -> Table A1 Budget Summary
B101: Table A2 Budgeted Financial Performance (revenue and expenditure by functional classification) | C101: Charts 5, 6 | D101: Table A2 | E101: =D101&"Consolidated Budgeted Financial Performance (revenue and expenditure by functional classification)" -> Table A2 Consolidated Budgeted Financial Performance (revenue and expenditure by functional classification) | F101: =D101&"Budgeted Financial Performance (revenue and expenditure by functional classification)" -> Table A2 Budgeted Financial Performance (revenue and expenditure by functional classification)
B102: Table A3 Budgeted Financial Performance (revenue and expenditure by municipal vote) | D102: Table A3 | E102: =D102&"Consolidated Budgeted Financial Performance (revenue and expenditure by municipal vote)" -> Table A3 Consolidated Budgeted Financial Performance (revenue and expenditure by municipal vote) | F102: =D102&"Budgeted Financial Performance (revenue and expenditure by municipal vote)" -> Table A3 Budgeted Financial Performance (revenue and expenditure by municipal vote)
B103: Table A4 Budgeted Financial Performance (revenue and expenditure) | C103: Charts 1, 2, 3, 4 | D103: Table A4 | E103: =D103&"Consolidated Budgeted Financial Performance (revenue and expenditure)" -> Table A4 Consolidated Budgeted Financial Performance (revenue and expenditure) | F103: =D103&"Budgeted Financial Performance (revenue and expenditure)" -> Table A4 Budgeted Financial Performance (revenue and expenditure)
B104: Table A5 Budgeted Capital Expenditure by vote, functional classification and funding | C104: Charts 7, 8, 9, 10, 20 | D104: Table A5 | E104: =D104&"Consolidated Budgeted Capital Expenditure by vote, functional classification and funding" -> Table A5 Consolidated Budgeted Capital Expenditure by vote, functional classification and funding | F104: =D104&"Budgeted Capital Expenditure by vote, functional classification and funding" -> Table A5 Budgeted Capital Expenditure by vote, functional classification and funding
B105: Table A6 Budgeted Financial Position | D105: Table A6 | E105: =D105&"Consolidated Budgeted Financial Position" -> Table A6 Consolidated Budgeted Financial Position | F105: =D105&"Budgeted Financial Position" -> Table A6 Budgeted Financial Position
B106: Table A7 Budgeted Cash Flows | D106: Table A7 | E106: =D106&"Consolidated Budgeted Cash Flows" -> Table A7 Consolidated Budgeted Cash Flows | F106: =D106&"Budgeted Cash Flows" -> Table A7 Budgeted Cash Flows
B107: Table A8 Cash backed reserves/accumulated surplus reconciliation | D107: Table A8 | E107: =D107&"Consolidated Cash backed reserves/accumulated surplus reconciliation" -> Table A8 Consolidated Cash backed reserves/accumulated surplus reconciliation | F107: =D107&"Cash backed reserves/accumulated surplus reconciliation" -> Table A8 Cash backed reserves/accumulated surplus reconciliation
B108: Table A9 Asset Management | D108: Table A9 | E108: =D108&"Consolidated Asset Management" -> Table A9 Consolidated Asset Management | F108: =D108&"Asset Management" -> Table A9 Asset Management
B109: Table A10 Basic service delivery measurement | D109: Table A10 | E109: =D109&"Consolidated basic service delivery measurement" -> Table A10 Consolidated basic service delivery measurement | F109: =D109&"Basic service delivery measurement" -> Table A10 Basic service delivery measurement
A110: Supportinging Tables to the Budget Approval Tables | C110: =$C$99 -> Chart x-ref | D110: =$D$99 -> Sch/Tab/Ch
A111: Supporting Table SA1 | B111: =A111&" Supportinging detail to 'Budgeted Financial Performance'" -> Supporting Table SA1 Supportinging detail to 'Budgeted Financial Performance'
A112: Supporting Table SA2 | B112: =IF(Consolques="YES",E112,F112) -> Supporting Table SA2 Matrix Financial Performance Budget (revenue source/expenditure type and dept.) | E112: =A112&"Consolidated Matrix Financial Performance Budget (revenue source/expenditure type & dept.)" -> Supporting Table SA2 Consolidated Matrix Financial Performance Budget (revenue source/expenditure type & dept.) | F112: =A112&"Matrix Financial Performance Budget (revenue source/expenditure type and dept.)" -> Supporting Table SA2 Matrix Financial Performance Budget (revenue source/expenditure type and dept.)
A113: Supporting Table SA3 | B113: =A113&"Supportinging detail to 'Budgeted Financial Position'" -> Supporting Table SA3 Supportinging detail to 'Budgeted Financial Position'
A114: Supporting Table SA4 | B114: =A114&"Reconciliation of IDP strategic objectives and budget (revenue)" -> Supporting Table SA4 Reconciliation of IDP strategic objectives and budget (revenue) | C114: Chart 11
A115: Supporting Table SA5 | B115: =A115&"Reconciliation of IDP strategic objectives and budget (operating expenditure)" -> Supporting Table SA5 Reconciliation of IDP strategic objectives and budget (operating expenditure) | C115: Chart 12
A116: Supporting Table SA6 | B116: =A116&"Reconciliation of IDP strategic objectives and budget (capital expenditure)" -> Supporting Table SA6 Reconciliation of IDP strategic objectives and budget (capital expenditure) | C116: Chart 13
A117: Supporting Table SA7 | B117: =A117&" Measureable performance objectives" -> Supporting Table SA7 Measureable performance objectives
A118: Supporting Table SA8 | B118: =A118&" Performance indicators and benchmarks" -> Supporting Table SA8 Performance indicators and benchmarks | C118: Chts 15-19
A119: Supporting Table SA9 | B119: =A119&" Social, economic and demographic statistics and assumptions" -> Supporting Table SA9 Social, economic and demographic statistics and assumptions
A120: Supporting Table SA10 | B120: =A120&" Funding measurement" -> Supporting Table SA10 Funding measurement | C120: Chart 14
A121: Supporting Table SA11 | B121: =A121&" Property rates summary" -> Supporting Table SA11 Property rates summary
A122: Supporting Table SA12a | B122: =A122&" Property rates by category (current year)" -> Supporting Table SA12a Property rates by category (current year)
A123: Supporting Table SA12b | B123: =A123&" Property rates by category (budget year)" -> Supporting Table SA12b Property rates by category (budget year)
A124: Supporting Table SA13a | B124: =A124&" Service Tariffs by category" -> Supporting Table SA13a Service Tariffs by category
A125: Supporting Table SA13b | B125: =A125&" Service Tariffs by category - explanatory" -> Supporting Table SA13b Service Tariffs by category - explanatory
A126: Supporting Table SA14 | B126: =A126&" Household bills" -> Supporting Table SA14 Household bills
A127: Supporting Table SA15 | B127: =A127&" Investment particulars by type" -> Supporting Table SA15 Investment particulars by type
A128: Supporting Table SA16 | B128: =A128&" Investment particulars by maturity" -> Supporting Table SA16 Investment particulars by maturity
A129: Supporting Table SA17 | B129: =A129&" Borrowing" -> Supporting Table SA17 Borrowing
A130: Supporting Table SA18 | B130: =A130&" Transfers and grant receipts" -> Supporting Table SA18 Transfers and grant receipts
A131: Supporting Table SA19 | B131: =A131&" Expenditure on transfers and grant programme" -> Supporting Table SA19 Expenditure on transfers and grant programme
A132: Supporting Table SA20 | B132: =A132&" Reconciliation of transfers, grant receipts and unspent funds" -> Supporting Table SA20 Reconciliation of transfers, grant receipts and unspent funds
A133: Supporting Table SA21 | B133: =A133&" Transfers and grants made by the municipality" -> Supporting Table SA21 Transfers and grants made by the municipality
A134: Supporting Table SA22 | B134: =A134&" Summary councillor and staff benefits" -> Supporting Table SA22 Summary councillor and staff benefits
A135: Supporting Table SA23 | B135: =A135&" Salaries, allowances & benefits (political office bearers/councillors/senior managers)" -> Supporting Table SA23 Salaries, allowances & benefits (political office bearers/councillors/senior managers)
A136: Supporting Table SA24 | B136: =A136&" Summary of personnel numbers" -> Supporting Table SA24 Summary of personnel numbers
A137: Supporting Table SA25 | B137: =IF(Consolques="YES",E137,F137) -> Supporting Table SA25 Budgeted monthly revenue and expenditure | E137: =A137&" Consolidated budgeted monthly revenue and expenditure" -> Supporting Table SA25 Consolidated budgeted monthly revenue and expenditure | F137: =A137&" Budgeted monthly revenue and expenditure" -> Supporting Table SA25 Budgeted monthly revenue and expenditure
A138: Supporting Table SA26 | B138: Supporting Table SA26 Budgeted monthly revenue and expenditure (municipal vote) | E138: =A138&" Consolidated budgeted monthly revenue and expenditure (municipal vote)" -> Supporting Table SA26 Consolidated budgeted monthly revenue and expenditure (municipal vote) | F138: =A138&" Budgeted monthly revenue and expenditure (municipal vote)" -> Supporting Table SA26 Budgeted monthly revenue and expenditure (municipal vote)
A139: Supporting Table SA27 | B139: Supporting Table SA27 Budgeted monthly revenue and expenditure (functional classification) | E139: =A139&" Consolidated budgeted monthly revenue and expenditure (functional classification)" -> Supporting Table SA27 Consolidated budgeted monthly revenue and expenditure (functional classification) | F139: =A139&" Budgeted monthly revenue and expenditure (functional classification)" -> Supporting Table SA27 Budgeted monthly revenue and expenditure (functional classification)
A140: Supporting Table SA28 | B140: Supporting Table SA28 Budgeted monthly capital expenditure (municipal vote) | E140: =A140&" Consolidated budgeted monthly capital expenditure (municipal vote)" -> Supporting Table SA28 Consolidated budgeted monthly capital expenditure (municipal vote) | F140: =A140&" Budgeted monthly capital expenditure (municipal vote)" -> Supporting Table SA28 Budgeted monthly capital expenditure (municipal vote)
A141: Supporting Table SA29 | B141: Supporting Table SA29 Budgeted monthly capital expenditure (functional classification) | E141: =A141&" Consolidated budgeted monthly capital expenditure (functional classification)" -> Supporting Table SA29 Consolidated budgeted monthly capital expenditure (functional classification) | F141: =A141&" Budgeted monthly capital expenditure (functional classification)" -> Supporting Table SA29 Budgeted monthly capital expenditure (functional classification)
A142: Supporting Table SA30 | B142: Supporting Table SA30 Budgeted monthly cash flow | E142: =A142&" Consolidated budgeted monthly cash flow" -> Supporting Table SA30 Consolidated budgeted monthly cash flow | F142: =A142&" Budgeted monthly cash flow" -> Supporting Table SA30 Budgeted monthly cash flow
A143: Supporting Table SA31 | B143: NOT REQUIRED - municipality does not have entities | E143: =A143&" Aggregated entity budget" -> Supporting Table SA31 Aggregated entity budget | F143: NOT REQUIRED - municipality does not have entities
A144: Supporting Table SA32 | B144: =A144&" List of external mechanisms" -> Supporting Table SA32 List of external mechanisms
A145: Supporting Table SA33 | B145: =A145&" Contracts having future budgetary implications" -> Supporting Table SA33 Contracts having future budgetary implications
A146: Supporting Table SA34a | B146: =IF(Consolques="YES",E146,F146) -> Supporting Table SA34a Capital expenditure on new assets by asset class | E146: =A146&" Consolidated capital expenditure on new assets by asset class" -> Supporting Table SA34a Consolidated capital expenditure on new assets by asset class | F146: =A146&" Capital expenditure on new assets by asset class" -> Supporting Table SA34a Capital expenditure on new assets by asset class
A147: Supporting Table SA34b | B147: Supporting Table SA34b Capital expenditure on the renewal of existing assets by asset class | E147: =A147&" Consolidated capital expenditure on the renewal of existing assets by asset class" -> Supporting Table SA34b Consolidated capital expenditure on the renewal of existing assets by asset class | F147: =A147&" Capital expenditure on the renewal of existing assets by asset class" -> Supporting Table SA34b Capital expenditure on the renewal of existing assets by asset class
A148: Supporting Table SA34c | B148: Supporting Table SA34c Repairs and maintenance expenditure by asset class | E148: =A148&" Consolidated repairs and maintenance by asset class" -> Supporting Table SA34c Consolidated repairs and maintenance by asset class | F148: =A148&" Repairs and maintenance expenditure by asset class" -> Supporting Table SA34c Repairs and maintenance expenditure by asset class
A149: Supporting Table SA34d | B149: =IF(Consolques="YES",E149,F149) -> Supporting Table SA34d Depreciation by asset class | E149: =A149&" Consolidated Depreciation by asset class" -> Supporting Table SA34d Consolidated Depreciation by asset class | F149: =A149&" Depreciation by asset class" -> Supporting Table SA34d Depreciation by asset class
A150: Supporting Table SA34e | B150: =IF(Consolques="YES",E150,F150) -> Supporting Table SA34e Capital expenditure on the upgrading of existing assets by asset class | E150: =A150&" Consolidated capital expenditure on the upgrading of existing assets by asset class" -> Supporting Table SA34e Consolidated capital expenditure on the upgrading of existing assets by asset class | F150: =A150&" Capital expenditure on the upgrading of existing assets by asset class" -> Supporting Table SA34e Capital expenditure on the upgrading of existing assets by asset class
A151: Supporting Table SA35 | B151: Supporting Table SA35 Future financial implications of the capital budget | E151: =A151&" Consolidated future financial implications of the capital budget" -> Supporting Table SA35 Consolidated future financial implications of the capital budget | F151: =A151& " Future financial implications of the capital budget" -> Supporting Table SA35 Future financial implications of the capital budget
A152: Supporting Table SA36 | B152: Supporting Table SA36 Detailed capital budget | E152: =A152&" Consolidated detailed capital budget" -> Supporting Table SA36 Consolidated detailed capital budget | F152: =A152& " Detailed capital budget" -> Supporting Table SA36 Detailed capital budget
A153: Supporting Table SA37 | B153: Supporting Table SA37 Projects delayed from previous financial year/s | E153: =A153&" Consolidated projects delayed from previous financial year/s" -> Supporting Table SA37 Consolidated projects delayed from previous financial year/s | F153: =A153& " Projects delayed from previous financial year/s" -> Supporting Table SA37 Projects delayed from previous financial year/s
A154: Supporting Table SA38 | B154: =IF(Consolques="YES",E154,F154) -> Supporting Table SA38 Detailed operational projects | E154: =A154&" Consolidated detailed operational projects" -> Supporting Table SA38 Consolidated detailed operational projects | F154: =A154& " Detailed operational projects" -> Supporting Table SA38 Detailed operational projects
A156: Budget Charts | B156: Charts | C156: Cross reference
A157: Chart A1 | B157: =A157&"Revenue by Municipal Vote" -> Chart A1 Revenue by Municipal Vote
A158: Chart A2 | B158: =A158&"Expenditure by Municipal Vote" -> Chart A2 Expenditure by Municipal Vote
A159: Chart A3 | B159: =A159&"Revenue by Standard Classification" -> Chart A3 Revenue by Standard Classification | C159: A2
A160: Chart A4 | B160: =A160&"Expenditure by Standard Classification" -> Chart A4 Expenditure by Standard Classification | C160: A2
A161: Chart A5 | B161: =A161&"Revenue by Major Source (refer 'Minor' source for 'Other Revenue' allocation" -> Chart A5 Revenue by Major Source (refer 'Minor' source for 'Other Revenue' allocation | C161: A3
A162: Chart A6 | B162: =A162&"Revenue by Minor Source (Other)" -> Chart A6 Revenue by Minor Source (Other) | C162: A3
A163: Chart A7 | B163: =A163&"Expenditure by Major Type" -> Chart A7 Expenditure by Major Type | C163: A3
A164: Chart A8 | B164: =A164&"Expenditure by Minor Type (Other)" -> Chart A8 Expenditure by Minor Type (Other) | C164: A3
A165: Chart A9 | B165: =A165&"Capital Expenditure by Municipal Vote/Appropriation (Major)" -> Chart A9 Capital Expenditure by Municipal Vote/Appropriation (Major) | C165: A5
A166: Chart A10 | B166: =A166&"Capital Expenditure by Municipal Vote/Appropriation (Minor)" -> Chart A10 Capital Expenditure by Municipal Vote/Appropriation (Minor) | C166: A5
A167: Chart A11 | B167: =A166&"Capital Expenditure by Standard Classification" -> Chart A10 Capital Expenditure by Standard Classification | C167: A5
A168: Chart A12 | B168: =A168&"Capital expenditure performance trend" -> Chart A12 Capital expenditure performance trend | C168: A5
A169: Chart A13 | B169: =A169&"Capital funding by Source" -> Chart A13 Capital funding by Source | C169: A5
A170: Chart A14 | B170: =A170&"Cash flow trend" -> Chart A14 Cash flow trend | C170: A7
A171: Chart A15 | B171: =A171&"IDP Strategic Objective - Revenue" -> Chart A15 IDP Strategic Objective - Revenue | C171: Table A4
A172: Chart A16 | B172: =A172&"IDP Strategic Objective - Expenditure" -> Chart A16 IDP Strategic Objective - Expenditure | C172: Table A5
A173: Chart A17 | B173: =A173&"IDP Strategic Objective - Capital Expenditure" -> Chart A17 IDP Strategic Objective - Capital Expenditure | C173: Table A6
A174: Chart A18 | B174: =A174&"Debt (borrowing to Total Revenue)" -> Chart A18 Debt (borrowing to Total Revenue) | C174: Table A8
A175: Chart A19 | B175: =A175&"Debtors' trend analysis" -> Chart A19 Debtors' trend analysis | C175: Table A8
A176: Chart A20 | B176: =A176&"Distribution losses" -> Chart A20 Distribution losses | C176: Table A8
A177: Chart A21 | B177: =A177&"Borrowed funding of capital expenditure" -> Chart A21 Borrowed funding of capital expenditure | C177: Table A8
A178: Chart A22 | B178: =A178&"Expenditure analysis (% of Revenue)" -> Chart A22 Expenditure analysis (% of Revenue) | C178: Table A8
A179: Chart A23 | B179: =A179&"Increases in service charges" -> Chart A23 Increases in service charges | C179: Table A10

Sheet Lookup and lists (hidden)
A1: Description | B1: 2013 | C1: 2014 | D1: 2015 | E1: 2016 | F1: 2017 | G1: 2018 | H1: 2019 | I1: 2020 | J1: 2021 | K1: 2022 | L1: 2023 | M1: 2024 | N1: 2025 | O1: 2026 | Q1: Lists | Y1: Grants: | Z1: National - opex | AA1: Provincial - opex | AB1: National - capex | AC1: Provincial - capex
A2: ='Template names'!C2 -> Prior year -1 | B2: =B1-2&"/"&RIGHT(B1,2)-1 -> 2011/12 | C2: 2012/13 | D2: 2013/14 | E2: 2014/15 | F2: 2015/16 | G2: 2016/17 | H2: 2017/18 | I2: 2018/19 | J2: =J1-2&"/"&RIGHT(J1,2)-1 -> 2019/20 | K2: 2020/21 | L2: 2021/22 | M2: 2022/23 | N2: 2023/24 | O2: 2024/25 | Q2: Yes | R2: <1 | S2: <4 | T2: Market | U2: Land & impr. | V2: Yes | W2: Uniform | X2: Yrs | Z2: Local Government Equitable Share | AA2: Health subsidy | AB2: Municipal Infrastructure Grant (MIG) | AC2: Agriculture
A3: ='Template names'!C3 -> Prior year -2 | B3: =B1-3&"/"&RIGHT(B1,2)-2 -> 2010/11 | C3: 2011/12 | D3: 2012/13 | E3: 2013/14 | F3: 2014/15 | G3: 2015/16 | H3: 2016/17 | I3: 2017/18 | J3: =J1-3&"/"&RIGHT(J1,2)-2 -> 2018/19 | K3: 2019/20 | L3: 2020/21 | M3: 2021/22 | N3: 2022/23 | O3: 2023/24 | Q3: No | R3: 1 | S3: 4 | T3: Dep.Replace | U3: Land only | V3: No | W3: Variable | X3: Mths | Z3: RSC Levy Replacement | AA3: Ambulance subsidy | AB3: Public Transport and Systems | AC3: Education
A4: ='Template names'!C4 -> Prior year -3 | B4: =B1-4&"/"&RIGHT(B1,2)-3 -> 2009/10 | C4: 2010/11 | D4: 2011/12 | E4: 2012/13 | F4: 2013/14 | G4: 2014/15 | H4: 2015/16 | I4: 2016/17 | J4: =J1-4&"/"&RIGHT(J1,2)-3 -> 2017/18 | K4: 2018/19 | L4: 2019/20 | M4: 2020/21 | N4: 2021/22 | O4: 2022/23 | R4: 2 | S4: 5 | T4: Other | U4: Other | Z4: Finance Management | AA4: Housing | AB4: Rural Transport Services and Infrastructure | AC4: Health
A5: ='Template names'!C5 -> Year in which budget is being prepared | B5: ="Current Year "& B1-1&"/"&RIGHT(B1,2) -> Current Year 2012/13 | C5: Current Year 2013/14 | D5: Current Year 2014/15 | E5: Current Year 2015/16 | F5: Current Year 2016/17 | G5: Current Year 2017/18 | H5: Current Year 2018/19 | I5: Current Year 2019/20 | J5: ="Current Year "& J1-1&"/"&RIGHT(J1,2) -> Current Year 2020/21 | K5: Current Year 2021/22 | L5: Current Year 2022/23 | M5: Current Year 2023/24 | N5: Current Year 2024/25 | O5: Current Year 2025/26 | R5: 3 | S5: 6 | Z5: Municipal Systems Improvement | AA5: Sport and Recreation | AB5: Regional Bulk Infrastructure | AC5: Housing and Local Government
A6: ='Template names'!C6 -> Year in which budget is being prepared | B6: =B1-1&"/"&RIGHT(B1,2) -> 2012/13 | C6: 2013/14 | D6: 2014/15 | E6: 2015/16 | F6: 2016/17 | G6: 2017/18 | H6: 2018/19 | I6: 2019/20 | J6: =J1-1&"/"&RIGHT(J1,2) -> 2020/21 | K6: 2021/22 | L6: 2022/23 | M6: 2023/24 | N6: 2024/25 | O6: 2025/26 | R6: 4 | S6: 6-10 | Z6: Water Services Operating Subsidy | AB6: Rural Households Infrastructure | AC6: Other Departments
A7: ='Template names'!C7 -> MTREF name | B7: =B1&"/"&RIGHT(B1,2)+1&" Medium Term Revenue & Expenditure Framework" -> 2013/14 Medium Term Revenue & Expenditure Framework | C7: 2014/15 Medium Term Revenue & Expenditure Framework | D7: 2015/16 Medium Term Revenue & Expenditure Framework | E7: 2016/17 Medium Term Revenue & Expenditure Framework | F7: 2017/18 Medium Term Revenue & Expenditure Framework | G7: 2018/19 Medium Term Revenue & Expenditure Framework | H7: 2019/20 Medium Term Revenue & Expenditure Framework | I7: 2020/21 Medium Term Revenue & Expenditure Framework | J7: =J1&"/"&RIGHT(J1,2)+1&" Medium Term Revenue & Expenditure Framework" -> 2021/22 Medium Term Revenue & Expenditure Framework | K7: 2022/23 Medium Term Revenue & Expenditure Framework | L7: 2023/24 Medium Term Revenue & Expenditure Framework | M7: 2024/25 Medium Term Revenue & Expenditure Framework | N7: 2025/26 Medium Term Revenue & Expenditure Framework | O7: 2026/27 Medium Term Revenue & Expenditure Framework | R7: 5 | S7: >10 | Z7: Energy Efficiency and Demand Management | AB7: Neighbourhood Development Partnership | AC7: Public Works, Roads, Transport
A8: ='Template names'!C15 -> 1st year of MTREF | B8: ="Budget Year "&B1&"/"&RIGHT(B1,2)+1 -> Budget Year 2013/14 | C8: Budget Year 2014/15 | D8: Budget Year 2015/16 | E8: Budget Year 2016/17 | F8: Budget Year 2017/18 | G8: Budget Year 2018/19 | H8: Budget Year 2019/20 | I8: Budget Year 2020/21 | J8: ="Budget Year "&J1&"/"&RIGHT(J1,2)+1 -> Budget Year 2021/22 | K8: Budget Year 2022/23 | L8: Budget Year 2023/24 | M8: Budget Year 2024/25 | N8: Budget Year 2025/26 | O8: Budget Year 2026/27 | R8: >5 | Z8: Integrated National Electrification Programme | AB8: 2010 FIFA World Cup Stadiums Development | AC8: Sport and Recreation
A9: ='Template names'!C16 -> 2nd year of MTREF | B9: ="Budget Year +1 "&B1+1&"/"&RIGHT(B1,2)+2 -> Budget Year +1 2014/15 | C9: Budget Year +1 2015/16 | D9: Budget Year +1 2016/17 | E9: Budget Year +1 2017/18 | F9: Budget Year +1 2018/19 | G9: Budget Year +1 2019/20 | H9: Budget Year +1 2020/21 | I9: Budget Year +1 2021/22 | J9: ="Budget Year +1 "&J1+1&"/"&RIGHT(J1,2)+2 -> Budget Year +1 2022/23 | K9: Budget Year +1 2023/24 | L9: Budget Year +1 2024/25 | M9: Budget Year +1 2025/26 | N9: Budget Year +1 2026/27 | O9: Budget Year +1 2027/28 | Z9: Municipal Drought Relief
A10: ='Template names'!C17 -> 3rd year of MTREF | B10: ="Budget Year +2 "&B1+2&"/"&RIGHT(B1,2)+3 -> Budget Year +2 2015/16 | C10: Budget Year +2 2016/17 | D10: Budget Year +2 2017/18 | E10: Budget Year +2 2018/19 | F10: Budget Year +2 2019/20 | G10: Budget Year +2 2020/21 | H10: Budget Year +2 2021/22 | I10: Budget Year +2 2022/23 | J10: ="Budget Year +2 "&J1+2&"/"&RIGHT(J1,2)+3 -> Budget Year +2 2023/24 | K10: Budget Year +2 2024/25 | L10: Budget Year +2 2025/26 | M10: Budget Year +2 2026/27 | N10: Budget Year +2 2027/28 | O10: Budget Year +2 2028/29 | Z10: 2010 FIFA World Cup Operating
A11: ='Template names'!C18 -> 1st yr of long term forecast | B11: ="Forecast "&B1+3&"/"&RIGHT(B1,2)+4 -> Forecast 2016/17 | C11: Forecast 2017/18 | D11: Forecast 2018/19 | E11: Forecast 2019/20 | F11: Forecast 2020/21 | G11: Forecast 2021/22 | H11: Forecast 2022/23 | I11: Forecast 2023/24 | J11: ="Forecast "&J1+3&"/"&RIGHT(J1,2)+4 -> Forecast 2024/25 | K11: Forecast 2025/26 | L11: Forecast 2026/27 | M11: Forecast 2027/28 | N11: Forecast 2028/29 | O11: Forecast 2029/30 | Z11: Electricity Demand Side Management
A12: ='Template names'!C19 -> Next yr of long term forecast | B12: ="Forecast "&B1+4&"/"&RIGHT(B1,2)+5 -> Forecast 2017/18 | C12: Forecast 2018/19 | D12: Forecast 2019/20 | E12: Forecast 2020/21 | F12: Forecast 2021/22 | G12: Forecast 2022/23 | H12: Forecast 2023/24 | I12: Forecast 2024/25 | J12: ="Forecast "&J1+4&"/"&RIGHT(J1,2)+5 -> Forecast 2025/26 | K12: Forecast 2026/27 | L12: Forecast 2027/28 | M12: Forecast 2028/29 | N12: Forecast 2029/30 | O12: Forecast 2030/31 | Z12: EPWP Incentive
A13: ='Template names'!C20 -> Next yr of long term forecast | B13: ="Forecast "&B1+5&"/"&RIGHT(B1,2)+6 -> Forecast 2018/19 | C13: Forecast 2019/20 | D13: Forecast 2020/21 | E13: Forecast 2021/22 | F13: Forecast 2022/23 | G13: Forecast 2023/24 | H13: Forecast 2024/25 | I13: Forecast 2025/26 | J13: ="Forecast "&J1+5&"/"&RIGHT(J1,2)+6 -> Forecast 2026/27 | K13: Forecast 2027/28 | L13: Forecast 2028/29 | M13: Forecast 2029/30 | N13: Forecast 2030/31 | O13: Forecast 2031/32
A14: ='Template names'!C21 -> Next yr of long term forecast | B14: ="Forecast "&B1+6&"/"&RIGHT(B1,2)+7 -> Forecast 2019/20 | C14: Forecast 2020/21 | D14: Forecast 2021/22 | E14: Forecast 2022/23 | F14: Forecast 2023/24 | G14: Forecast 2024/25 | H14: Forecast 2025/26 | I14: Forecast 2026/27 | J14: ="Forecast "&J1+6&"/"&RIGHT(J1,2)+7 -> Forecast 2027/28 | K14: Forecast 2028/29 | L14: Forecast 2029/30 | M14: Forecast 2030/31 | N14: Forecast 2031/32 | O14: Forecast 2032/33 | Z14: Asset Class | AA14: Asset sub-class old | AB14: Asset sub-class | AC14: IUDF | AD14: MTSF
A15: ='Template names'!C22 -> Next yr of long term forecast | B15: ="Forecast "&B1+7&"/"&RIGHT(B1,2)+8 -> Forecast 2020/21 | C15: Forecast 2021/22 | D15: Forecast 2022/23 | E15: Forecast 2023/24 | F15: Forecast 2024/25 | G15: Forecast 2025/26 | H15: Forecast 2026/27 | I15: Forecast 2027/28 | J15: ="Forecast "&J1+7&"/"&RIGHT(J1,2)+8 -> Forecast 2028/29 | K15: Forecast 2029/30 | L15: Forecast 2030/31 | M15: Forecast 2031/32 | N15: Forecast 2032/33 | O15: Forecast 2033/34
A16: ='Template names'!C23 -> Next yr of long term forecast | B16: ="Forecast "&B1+8&"/"&RIGHT(B1,2)+9 -> Forecast 2021/22 | C16: Forecast 2022/23 | D16: Forecast 2023/24 | E16: Forecast 2024/25 | F16: Forecast 2025/26 | G16: Forecast 2026/27 | H16: Forecast 2027/28 | I16: Forecast 2028/29 | J16: ="Forecast "&J1+8&"/"&RIGHT(J1,2)+9 -> Forecast 2029/30 | K16: Forecast 2030/31 | L16: Forecast 2031/32 | M16: Forecast 2032/33 | N16: Forecast 2033/34 | O16: Forecast 2034/35 | Z16: Roads Infrastructure | AA16: Roads, Pavements & Bridges | AB16: Roads | AC16: Spatial integration | AD16: Quality basic education
A17: ='Template names'!C24 -> Next yr of long term forecast | B17: ="Forecast "&B1+9&"/"&RIGHT(B1,2)+10 -> Forecast 2022/23 | C17: Forecast 2023/24 | D17: Forecast 2024/25 | E17: Forecast 2025/26 | F17: Forecast 2026/27 | G17: Forecast 2027/28 | H17: Forecast 2028/29 | I17: Forecast 2029/30 | J17: ="Forecast "&J1+9&"/"&RIGHT(J1,2)+10 -> Forecast 2030/31 | K17: Forecast 2031/32 | L17: Forecast 2032/33 | M17: Forecast 2033/34 | N17: Forecast 2034/35 | O17: Forecast 2035/36 | Z17: Storm water Infrastructure | AA17: Storm water | AB17: Road Structures | AC17: Inclusion and access | AD17: A long and healthy life for all South Africans
A18: ='Template names'!C25 -> Next yr of long term forecast | B18: ="Forecast "&B1+10&"/"&RIGHT(B1,2)+11 -> Forecast 2023/24 | C18: Forecast 2024/25 | D18: Forecast 2025/26 | E18: Forecast 2026/27 | F18: Forecast 2027/28 | G18: Forecast 2028/29 | H18: Forecast 2029/30 | I18: Forecast 2030/31 | J18: ="Forecast "&J1+10&"/"&RIGHT(J1,2)+11 -> Forecast 2031/32 | K18: Forecast 2032/33 | L18: Forecast 2033/34 | M18: Forecast 2034/35 | N18: Forecast 2035/36 | O18: Forecast 2036/37 | Z18: Electrical Infrastructure | AA18: Generation | AB18: Road Furniture | AC18: Growth | AD18: All people in South Africa are and feel safe
A19: ='Template names'!C26 -> Next yr of long term forecast | B19: ="Forecast "&B1+11&"/"&RIGHT(B1,2)+12 -> Forecast 2024/25 | C19: Forecast 2025/26 | D19: Forecast 2026/27 | E19: Forecast 2027/28 | F19: Forecast 2028/29 | G19: Forecast 2029/30 | H19: Forecast 2030/31 | I19: Forecast 2031/32 | J19: ="Forecast "&J1+11&"/"&RIGHT(J1,2)+12 -> Forecast 2032/33 | K19: Forecast 2033/34 | L19: Forecast 2034/35 | M19: Forecast 2035/36 | N19: Forecast 2036/37 | O19: Forecast 2037/38 | Z19: Water Supply Infrastructure | AA19: Transmission & Reticulation | AB19: Capital Spares | AC19: Governance | AD19: Decent employment through inclusive growth
A20: ='Template names'!C27 -> Next yr of long term forecast | B20: ="Forecast "&B1+12&"/"&RIGHT(B1,2)+13 -> Forecast 2025/26 | C20: Forecast 2026/27 | D20: Forecast 2027/28 | E20: Forecast 2028/29 | F20: Forecast 2029/30 | G20: Forecast 2030/31 | H20: Forecast 2031/32 | I20: Forecast 2032/33 | J20: ="Forecast "&J1+12&"/"&RIGHT(J1,2)+13 -> Forecast 2033/34 | K20: Forecast 2034/35 | L20: Forecast 2035/36 | M20: Forecast 2036/37 | N20: Forecast 2037/38 | O20: Forecast 2038/39 | Z20: Sanitation Infrastructure | AA20: Street Lighting | AB20: Drainage Collection | AD20: A skilled and capable workforce to support an inclusive growth path
A21: ='Template names'!C28 -> Next yr of long term forecast | B21: ="Forecast "&B1+13&"/"&RIGHT(B1,2)+14 -> Forecast 2026/27 | C21: Forecast 2027/28 | D21: Forecast 2028/29 | E21: Forecast 2029/30 | F21: Forecast 2030/31 | G21: Forecast 2031/32 | H21: Forecast 2032/33 | I21: Forecast 2033/34 | J21: ="Forecast "&J1+13&"/"&RIGHT(J1,2)+14 -> Forecast 2034/35 | K21: Forecast 2035/36 | L21: Forecast 2036/37 | M21: Forecast 2037/38 | N21: Forecast 2038/39 | O21: Forecast 2039/40 | Z21: Solid Waste Infrastructure | AA21: Dams & Reservoirs | AB21: Storm water Conveyance | AD21: An efficient, competitive and responsive economic infrastructure network
A22: ='Template names'!C29 -> Next yr of long term forecast | B22: ="Forecast "&B1+14&"/"&RIGHT(B1,2)+15 -> Forecast 2027/28 | C22: Forecast 2028/29 | D22: Forecast 2029/30 | E22: Forecast 2030/31 | F22: Forecast 2031/32 | G22: Forecast 2032/33 | H22: Forecast 2033/34 | I22: Forecast 2034/35 | J22: ="Forecast "&J1+14&"/"&RIGHT(J1,2)+15 -> Forecast 2035/36 | K22: Forecast 2036/37 | L22: Forecast 2037/38 | M22: Forecast 2038/39 | N22: Forecast 2039/40 | O22: Forecast 2040/41 | Z22: Rail Infrastructure | AA22: Water purification | AB22: Attenuation | AD22: Vibrant, equitable, sustainable rural communities contributing towards food security for all
A23: Adjustments Budget | B23: ="Annual target " & B1&"/"&RIGHT(B1,2)+1 -> Annual target 2013/14 | C23: Annual target 2014/15 | D23: Annual target 2015/16 | E23: Annual target 2016/17 | F23: Annual target 2017/18 | G23: Annual target 2018/19 | H23: Annual target 2019/20 | I23: Annual target 2020/21 | J23: ="Annual target " & J1&"/"&RIGHT(J1,2)+1 -> Annual target 2021/22 | K23: Annual target 2022/23 | L23: Annual target 2023/24 | M23: Annual target 2024/25 | N23: Annual target 2025/26 | O23: Annual target 2026/27 | Z23: Coastal Infrastructure | AA23: Reticulation | AB23: Power Plants | AD23: Sustainable human settlements and improved quality of household life
A24: =A23 -> Adjustments Budget | B24: ="Revised target "& B1&"/"&RIGHT(B1,2)+1 -> Revised target 2013/14 | C24: Revised target 2014/15 | D24: Revised target 2015/16 | E24: Revised target 2016/17 | F24: Revised target 2017/18 | G24: Revised target 2018/19 | H24: Revised target 2019/20 | I24: Revised target 2020/21 | J24: ="Revised target "& J1&"/"&RIGHT(J1,2)+1 -> Revised target 2021/22 | K24: Revised target 2022/23 | L24: Revised target 2023/24 | M24: Revised target 2024/25 | N24: Revised target 2025/26 | O24: Revised target 2026/27 | Z24: Information and Communication Infrastructure | AA24: Sewerage purification | AB24: HV Substations | AD24: Responsive, accountable, effective and efficient local government
A25: NOTE: This sheet should not be directly amended - select headings from sheet 'S' | Z25: Community Facilities | AA25: Waste Management | AB25: HV Switching Station | AD25: Protect and enhance our environmental assets and natural resources
Z26: Sport and Recreation Facilities | AA26: Transportation | AB26: HV Transmission Conductors | AD26: Create a better South Africa and contribute to a better Africa and a better world
A27: Name link | B27: 143 | Z27: Heritage assets | AA27: Gas | AB27: MV Substations | AD27: An efficient, effective and development-oriented public service
A28: Name of Muni | B28: =INDEX(B29:B307,B27,1) -> LIM355 Lepelle-Nkumpi | Z28: Revenue Generating | AA28: Parks & gardens | AB28: MV Switching Stations | AD28: A comprehensive, responsive and sustainable social protection system
B29: Choose name from list | C29: Set name on 'Instructions' sheet | Z29: Non-revenue Generating | AA29: Sportsfields & stadia | AB29: MV Networks | AD29: A diverse, socially cohesive society with a common national identity
B30: BUF Buffalo City | C30: EC EASTERN CAPE | Z30: Operational Buildings | AA30: Swimming pools | AB30: LV Networks
B31: NMA Nelson Mandela Bay | C31: EC EASTERN CAPE | Z31: Housing | AA31: Community halls | AB31: Capital Spares
B32: EC101 Dr Beyers Naude | C32: EC EASTERN CAPE | Z32: Biological or Cultivated Assets | AA32: Libraries | AB32: Dams and Weirs
B33: EC102 Blue Crane Route | C33: EC EASTERN CAPE | Z33: Servitudes | AA33: Recreational facilities | AB33: Boreholes
B34: EC104 Makana | C34: EC EASTERN CAPE | Z34: Licences and Rights | AA34: Fire, safety & emergency | AB34: Reservoirs
B35: EC105 Ndlambe | C35: EC EASTERN CAPE | Z35: Computer Equipment | AA35: Security and policing | AB35: Pump Stations
B36: EC106 Sundays River Valley | C36: EC EASTERN CAPE | Z36: Furniture and Office Equipment | AA36: Buses | AB36: Water Treatment Works
B37: EC108 Kouga | C37: EC EASTERN CAPE | Z37: Machinery and Equipment | AA37: Clinics | AB37: Bulk Mains
B38: EC109 Kou-Kamma | C38: EC EASTERN CAPE | Z38: Transport Assets | AA38: Museums & Art Galleries | AB38: Distribution
B39: DC10 Sarah Baartman | C39: EC EASTERN CAPE | Z39: Land | AA39: Cemeteries | AB39: Distribution Points
B40: EC121 Mbhashe | C40: EC EASTERN CAPE | Z40: Zoo's, Marine and Non-biological Animals | AA40: Social rental housing | AB40: PRV Stations
B41: EC122 Mnquma | C41: EC EASTERN CAPE | AA41: Buildings | AB41: Capital Spares
B42: EC123 Great Kei | C42: EC EASTERN CAPE | AA42: Housing development | AB42: Pump Station
B43: EC124 Amahlathi | C43: EC EASTERN CAPE | AA43: General vehicles | AB43: Reticulation
B44: EC126 Ngqushwa | C44: EC EASTERN CAPE | AA44: Specialised vehicles - Refuse | AB44: Waste Water Treatment Works
B45: EC129 Raymond Mhlaba | C45: EC EASTERN CAPE | AA45: Specialised vehicles - Fire | AB45: Outfall Sewers
B46: DC12 Amathole | C46: EC EASTERN CAPE | AA46: Specialised vehicles - Conservancy | AB46: Toilet Facilities
B47: EC131 Inxuba Yethemba | C47: EC EASTERN CAPE | AA47: Specialised vehicles - Ambulances | AB47: Capital Spares
B48: EC135 Intsika Yethu | C48: EC EASTERN CAPE | AA48: Plant & equipment | AB48: Landfill Sites
B49: EC136 Emalahleni (Ec) | C49: EC EASTERN CAPE | AA49: Computers - hardware/equipment | AB49: Waste Transfer Stations
B50: EC137 Engcobo | C50: EC EASTERN CAPE | AA50: Furniture and other office equipment | AB50: Waste Processing Facilities
B51: EC138 Sakhisizwe | C51: EC EASTERN CAPE | AA51: Abattoirs | AB51: Waste Drop-off Points
B52: EC139 Enoch Mgijima | C52: EC EASTERN CAPE | AA52: Markets | AB52: Waste Separation Facilities
B53: DC13 Chris Hani | C53: EC EASTERN CAPE | AA53: Civic Land and Buildings | AB53: Electricity Generation Facilities
B54: EC141 Elundini | C54: EC EASTERN CAPE | AA54: Other Buildings | AB54: Capital Spares
B55: EC142 Senqu | C55: EC EASTERN CAPE | AA55: Other Land | AB55: Rail Lines
B56: EC145 Walter Sisulu | C56: EC EASTERN CAPE | AA56: Surplus Assets - (Investment or Inventory) | AB56: Rail Structures
B57: DC14 Joe Gqabi | C57: EC EASTERN CAPE | AA57: Computers - software & programming | AB57: Rail Furniture
B58: EC153 Ngquza Hills | C58: EC EASTERN CAPE | AA58: Other | AB58: Drainage Collection
B59: EC154 Port St Johns | C59: EC EASTERN CAPE | AB59: Storm water Conveyance
B60: EC155 Nyandeni | C60: EC EASTERN CAPE | Z60: SA16 - Investments | AB60: Attenuation
B61: EC156 Mhlontlo | C61: EC EASTERN CAPE | Z61: Security | AA61: Interest rate | AB61: MV Substations
B62: EC157 King Sabata Dalindyebo | C62: EC EASTERN CAPE | Z62: Yes | AA62: Fixed | AB62: LV Networks
B63: DC15 O .R. Tambo | C63: EC EASTERN CAPE | Z63: No | AA63: Variable | AB63: Capital Spares
B64: EC441 Matatiele | C64: EC EASTERN CAPE | AB64: Sand Pumps
B65: EC442 Umzimvubu | C65: EC EASTERN CAPE | AB65: Piers
B66: EC443 Winnie Madikizela Mandela | C66: EC EASTERN CAPE | Z66: SA36, SA37 - Capital projects | AB66: Revetments
B67: EC444 Ntabankulu | C67: EC EASTERN CAPE | Z67: Yes | AB67: Promenades
B68: DC44 Alfred Nzo | C68: EC EASTERN CAPE | Z68: No | AB68: Capital Spares
B69: MAN Mangaung | C69: FS FREE STATE | AB69: Data Centres
B70: FS161 Letsemeng | C70: FS FREE STATE | AB70: Core Layers
B71: FS162 Kopanong | C71: FS FREE STATE | AB71: Distribution Layers
B72: FS163 Mohokare | C72: FS FREE STATE | AB72: Capital Spares
B73: DC16 Xhariep | C73: FS FREE STATE | AB73: Halls
B74: FS181 Masilonyana | C74: FS FREE STATE | AB74: Centres
B75: FS182 Tokologo | C75: FS FREE STATE | AB75: Crèches
B76: FS183 Tswelopele | C76: FS FREE STATE | AB76: Clinics/Care Centres
B77: FS184 Matjhabeng | C77: FS FREE STATE | AB77: Fire/Ambulance Stations
B78: FS185 Nala | C78: FS FREE STATE | AB78: Testing Stations
B79: DC18 Lejweleputswa | C79: FS FREE STATE | AB79: Museums
B80: FS191 Setsoto | C80: FS FREE STATE | AB80: Galleries
B81: FS192 Dihlabeng | C81: FS FREE STATE | AB81: Theatres
B82: FS193 Nketoana | C82: FS FREE STATE | AB82: Libraries
B83: FS194 Maluti-a-Phofung | C83: FS FREE STATE | AB83: Cemeteries/Crematoria
B84: FS195 Phumelela | C84: FS FREE STATE | AB84: Police
B85: FS196 Mantsopa | C85: FS FREE STATE | AB85: Purls
B86: DC19 Thabo Mofutsanyana | C86: FS FREE STATE | AB86: Public Open Space
B87: FS201 Moqhaka | C87: FS FREE STATE | AB87: Nature Reserves
B88: FS203 Ngwathe | C88: FS FREE STATE | AB88: Public Ablution Facilities
B89: FS204 Metsimaholo | C89: FS FREE STATE | AB89: Markets
B90: FS205 Mafube | C90: FS FREE STATE | AB90: Stalls
B91: DC20 Fezile Dabi | C91: FS FREE STATE | AB91: Abattoirs
B92: EKU City of Ekurhuleni | C92: GT GAUTENG | AB92: Airports
B93: JHB City Of Johannesburg | C93: GT GAUTENG | AB93: Taxi Ranks/Bus Terminals
B94: TSH City Of Tshwane | C94: GT GAUTENG | AB94: Capital Spares
B95: GT421 Emfuleni | C95: GT GAUTENG | AB95: Indoor Facilities
B96: GT422 Midvaal | C96: GT GAUTENG | AB96: Outdoor Facilities
B97: GT423 Lesedi | C97: GT GAUTENG | AB97: Capital Spares
B98: DC42 Sedibeng | C98: GT GAUTENG | AB98: Monuments
B99: GT481 Mogale City | C99: GT GAUTENG | AB99: Historic Buildings
B100: GT484 Merafong City | C100: GT GAUTENG | AB100: Works of Art
B101: GT485 Rand West City | C101: GT GAUTENG | AB101: Conservation Areas
B102: DC48 West Rand | C102: GT GAUTENG | AB102: Other Heritage
B103: ETH eThekwini | C103: KZN KWAZULU-NATAL | AB103: Improved Property
B104: KZN212 Umdoni | C104: KZN KWAZULU-NATAL | AB104: Unimproved Property
B105: KZN213 Umzumbe | C105: KZN KWAZULU-NATAL | AB105: Municipal Offices
B106: KZN214 uMuziwabantu | C106: KZN KWAZULU-NATAL | AB106: Pay/Enquiry Points
B107: KZN216 Ray Nkonyeni | C107: KZN KWAZULU-NATAL | AB107: Building Plan Offices
B108: DC21 Ugu | C108: KZN KWAZULU-NATAL | AB108: Workshops
B109: KZN221 uMshwathi | C109: KZN KWAZULU-NATAL | AB109: Yards
B110: KZN222 uMngeni | C110: KZN KWAZULU-NATAL | AB110: Stores
B111: KZN223 Mpofana | C111: KZN KWAZULU-NATAL | AB111: Laboratories
B112: KZN224 Impendle | C112: KZN KWAZULU-NATAL | AB112: Training Centres
B113: KZN225 Msunduzi | C113: KZN KWAZULU-NATAL | AB113: Manufacturing Plant
B114: KZN226 Mkhambathini | C114: KZN KWAZULU-NATAL | AB114: Depots
B115: KZN227 Richmond | C115: KZN KWAZULU-NATAL | AB115: Capital Spares
B116: DC22 uMgungundlovu | C116: KZN KWAZULU-NATAL | AB116: Staff Housing
B117: KZN235 Okhahlamba | C117: KZN KWAZULU-NATAL | AB117: Social Housing
B118: KZN237 Inkosi Langalibalele | C118: KZN KWAZULU-NATAL | AB118: Capital Spares
B119: KZN238 Alfred Duma | C119: KZN KWAZULU-NATAL | AB119: Water Rights
B120: DC23 Uthukela | C120: KZN KWAZULU-NATAL | AB120: Effluent Licenses
B121: KZN241 Endumeni | C121: KZN KWAZULU-NATAL | AB121: Solid Waste Licenses
B122: KZN242 Nquthu | C122: KZN KWAZULU-NATAL | AB122: Computer Software and Applications
B123: KZN244 Msinga | C123: KZN KWAZULU-NATAL | AB123: Load Settlement Software Applications
B124: KZN245 Umvoti | C124: KZN KWAZULU-NATAL | AB124: Unspecified
B125: DC24 Umzinyathi | C125: KZN KWAZULU-NATAL
B126: KZN252 Newcastle | C126: KZN KWAZULU-NATAL
B127: KZN253 Emadlangeni | C127: KZN KWAZULU-NATAL
B128: KZN254 Dannhauser | C128: KZN KWAZULU-NATAL
B129: DC25 Amajuba | C129: KZN KWAZULU-NATAL
B130: KZN261 eDumbe | C130: KZN KWAZULU-NATAL
B131: KZN262 uPhongolo | C131: KZN KWAZULU-NATAL
B132: KZN263 Abaqulusi | C132: KZN KWAZULU-NATAL
B133: KZN265 Nongoma | C133: KZN KWAZULU-NATAL
B134: KZN266 Ulundi | C134: KZN KWAZULU-NATAL
B135: DC26 Zululand | C135: KZN KWAZULU-NATAL
B136: KZN271 Umhlabuyalingana | C136: KZN KWAZULU-NATAL
B137: KZN272 Jozini | C137: KZN KWAZULU-NATAL
B138: KZN275 Mtubatuba | C138: KZN KWAZULU-NATAL
B139: KZN276 Hlabisa Big Five | C139: KZN KWAZULU-NATAL
B140: DC27 Umkhanyakude | C140: KZN KWAZULU-NATAL
B141: KZN281 Mfolozi | C141: KZN KWAZULU-NATAL
B142: KZN282 uMhlathuze | C142: KZN KWAZULU-NATAL
B143: KZN284 uMlalazi | C143: KZN KWAZULU-NATAL
B144: KZN285 Mthonjaneni | C144: KZN KWAZULU-NATAL
B145: KZN286 Nkandla | C145: KZN KWAZULU-NATAL
B146: DC28 King Cetshwayo | C146: KZN KWAZULU-NATAL
B147: KZN291 Mandeni | C147: KZN KWAZULU-NATAL
B148: KZN292 KwaDukuza | C148: KZN KWAZULU-NATAL
B149: KZN293 Ndwedwe | C149: KZN KWAZULU-NATAL
B150: KZN294 Maphumulo | C150: KZN KWAZULU-NATAL
B151: DC29 iLembe | C151: KZN KWAZULU-NATAL
B152: KZN433 Greater Kokstad | C152: KZN KWAZULU-NATAL
B153: KZN434 Ubuhlebezwe | C153: KZN KWAZULU-NATAL
B154: KZN435 Umzimkhulu | C154: KZN KWAZULU-NATAL
B155: KZN436 Dr Nkosazana Dlamini Zuma | C155: KZN KWAZULU-NATAL
B156: DC43 Harry Gwala | C156: KZN KWAZULU-NATAL
B157: LIM331 Greater Giyani | C157: LIM LIMPOPO
B158: LIM332 Greater Letaba | C158: LIM LIMPOPO
B159: LIM333 Greater Tzaneen | C159: LIM LIMPOPO
B160: LIM334 Ba-Phalaborwa | C160: LIM LIMPOPO
B161: LIM335 Maruleng | C161: LIM LIMPOPO
B162: DC33 Mopani | C162: LIM LIMPOPO
B163: LIM341 Musina | C163: LIM LIMPOPO
B164: LIM343 Thulamela | C164: LIM LIMPOPO
B165: LIM344 Makhado | C165: LIM LIMPOPO
B166: LIM345 Collins Chabane | C166: LIM LIMPOPO
B167: DC34 Vhembe | C167: LIM LIMPOPO
B168: LIM351 Blouberg | C168: LIM LIMPOPO
B169: LIM353 Molemole | C169: LIM LIMPOPO
B170: LIM354 Polokwane | C170: LIM LIMPOPO
B171: LIM355 Lepelle-Nkumpi | C171: LIM LIMPOPO
B172: DC35 Capricorn | C172: LIM LIMPOPO
B173: LIM361 Thabazimbi | C173: LIM LIMPOPO
B174: LIM362 Lephalale | C174: LIM LIMPOPO
B175: LIM366 Bela Bela | C175: LIM LIMPOPO
B176: LIM367 Mogalakwena | C176: LIM LIMPOPO
B177: LIM368 Modimolle-Mookgopong | C177: LIM LIMPOPO
B178: DC36 Waterberg | C178: LIM LIMPOPO
B179: LIM471 Ephraim Mogale | C179: LIM LIMPOPO
B180: LIM472 Elias Motsoaledi | C180: LIM LIMPOPO
B181: LIM473 Makhuduthamaga | C181: LIM LIMPOPO
B182: LIM476 Tubatse Fetakgomo | C182: LIM LIMPOPO
B183: DC47 Sekhukhune | C183: LIM LIMPOPO
B184: MP301 Albert Luthuli | C184: MP MPUMALANGA
B185: MP302 Msukaligwa | C185: MP MPUMALANGA
B186: MP303 Mkhondo | C186: MP MPUMALANGA
B187: MP304 Pixley Ka Seme (MP) | C187: MP MPUMALANGA
B188: MP305 Lekwa | C188: MP MPUMALANGA
B189: MP306 Dipaleseng | C189: MP MPUMALANGA
B190: MP307 Govan Mbeki | C190: MP MPUMALANGA
B191: DC30 Gert Sibande | C191: MP MPUMALANGA
B192: MP311 Victor Khanye | C192: MP MPUMALANGA
B193: MP312 Emalahleni (Mp) | C193: MP MPUMALANGA
B194: MP313 Steve Tshwete | C194: MP MPUMALANGA
B195: MP314 Emakhazeni | C195: MP MPUMALANGA
B196: MP315 Thembisile Hani | C196: MP MPUMALANGA
B197: MP316 Dr J.S. Moroka | C197: MP MPUMALANGA
B198: DC31 Nkangala | C198: MP MPUMALANGA
B199: MP321 Thaba Chweu | C199: MP MPUMALANGA
B200: MP324 Nkomazi | C200: MP MPUMALANGA
... 87 more rows

Sheet Org structure
A1: Organisational Structure Votes | C1: Organisational Structure Sub-Votes | E1: Display Sub-Votes
A2: =B2&" - "&C2 -> Vote 01 - Executive And Council | B2: Vote 01 | C2: Executive And Council
A3: =B7&" - "&C7 -> Vote 02 - Municipal Manager | B3: 01.1 | C3: Mayor & Councillors | D3: =CONCATENATE(B3, " - ", C3) -> 01.1 - Mayor & Councillors | E3: 01.1 - Mayor & Councillors
A4: =B14&" - "&C14 -> Vote 03 - Corporate Services | B4: 01.2 | C4: Mayor & Council Support | D4: =CONCATENATE(B4, " - ", C4) -> 01.2 - Mayor & Council Support | E4: 01.2 - Mayor & Council Support
A5: =B22&" - "&C22 -> Vote 04 - Budget And Treasury | B5: 01.3 | C5: Board General Mayor | D5: =CONCATENATE(B5, " - ", C5) -> 01.3 - Board General Mayor | E5: 01.3 - Board General Mayor
A6: =B29&" - "&C29 -> Vote 05 - Community Services | B6: 01.4 | C6: Board General Speaker | D6: =CONCATENATE(B6, " - ", C6) -> 01.4 - Board General Speaker | E6: 01.4 - Board General Speaker
A7: =B40&" - "&C40 -> Vote 06 - Planning And Development | B7: Vote 02 | C7: Municipal Manager
A8: =B48&" - "&C48 -> Vote 07 - Infrastructure Development | B8: 02.1 | C8: Municipal Manager Administration | D8: =CONCATENATE(B8, " - ", C8) -> 02.1 - Municipal Manager Administration | E8: 02.1 - Municipal Manager Administration
A9: =B59&" - "&C59 -> Vote 08 - | B9: 02.2 | C9: Municipal Manager | D9: 02.2 - Municipal Manager | E9: 02.2 - Municipal Manager
A10: Vote 09 - | B10: 02.3 | C10: Municipal Manager Support | D10: 02.3 - Municipal Manager Support | E10: 02.3 - Municipal Manager Support
A11: Vote 10 - | B11: 02.4 | C11: Internal Audit | D11: 02.4 - Internal Audit | E11: 02.4 - Internal Audit
A12: Vote 11 - | B12: 02.5 | C12: Communications | D12: 02.5 - Communications | E12: 02.5 - Communications
A13: Vote 12 - | B13: 02.6 | C13: Risk Management | D13: 02.6 - Risk Management | E13: 02.6 - Risk Management
A14: Vote 13 - | B14: Vote 03 | C14: Corporate Services
A15: Vote 14 - | B15: 03.1 | C15: Executive Manager: Corporate Services | D15: =CONCATENATE(B15, " - ", C15) -> 03.1 - Executive Manager: Corporate Services | E15: 03.1 - Executive Manager: Corporate Services
A16: Vote 15 - Other | B16: 03.2 | C16: Human Resource Management & Development | D16: 03.2 - Human Resource Management & Development | E16: 03.2 - Human Resource Management & Development
B17: 03.3 | C17: Information Technology | D17: 03.3 - Information Technology | E17: 03.3 - Information Technology
B18: 03.4 | C18: Legal Services | D18: 03.4 - Legal Services | E18: 03.4 - Legal Services
B19: 03.5 | C19: Gen Adm_Sec_Fleet: General Administrat | D19: 03.5 - Gen Adm_Sec_Fleet: General Administrat | E19: 03.5 - Gen Adm_Sec_Fleet: General Administrat
B20: 03.6 | C20: Gen Adm_Sec_Fleet: Security Services | D20: 03.6 - Gen Adm_Sec_Fleet: Security Services | E20: 03.6 - Gen Adm_Sec_Fleet: Security Services
B21: 03.7 | C21: Gen Adm_Sec_Fleet: Fleet Management | D21: 03.7 - Gen Adm_Sec_Fleet: Fleet Management | E21: 03.7 - Gen Adm_Sec_Fleet: Fleet Management
B22: Vote 04 | C22: Budget And Treasury
B23: 04.1 | C23: Chief Financial Officer | D23: =CONCATENATE(B23, " - ", C23) -> 04.1 - Chief Financial Officer | E23: 04.1 - Chief Financial Officer
B24: 04.2 | C24: Budget Planning & Management | D24: 04.2 - Budget Planning & Management | E24: 04.2 - Budget Planning & Management
B25: 04.3 | C25: Expenditure Management | D25: 04.3 - Expenditure Management | E25: 04.3 - Expenditure Management
B26: 04.4 | C26: Revenue Management | D26: 04.4 - Revenue Management | E26: 04.4 - Revenue Management
B27: 04.5 | C27: Asset Management | D27: 04.5 - Asset Management | E27: 04.5 - Asset Management
B28: 04.6 | C28: Supply Chain Management | D28: 04.6 - Supply Chain Management | E28: 04.6 - Supply Chain Management
B29: Vote 05 | C29: Community Services
B30: 05.1 | C30: Executive Manager: Community Services | D30: =CONCATENATE(B30, " - ", C30) -> 05.1 - Executive Manager: Community Services | E30: 05.1 - Executive Manager: Community Services
B31: 05.2 | C31: Waste Management Services | D31: 05.2 - Waste Management Services | E31: 05.2 - Waste Management Services
B32: 05.3 | C32: Environmental Management Services | D32: 05.3 - Environmental Management Services | E32: 05.3 - Environmental Management Services
B33: 05.4 | C33: Road Traffic & Law Enforce: Traffic Serv | D33: 05.4 - Road Traffic & Law Enforce: Traffic Serv | E33: 05.4 - Road Traffic & Law Enforce: Traffic Serv
B34: 05.5 | C34: Road Traffic&Law Enforce: Licencing Serv | D34: 05.5 - Road Traffic&Law Enforce: Licencing Serv | E34: 05.5 - Road Traffic&Law Enforce: Licencing Serv
B35: 05.6 | C35: Road Traffic&Law Enforce: Pound | D35: 05.6 - Road Traffic&Law Enforce: Pound | E35: 05.6 - Road Traffic&Law Enforce: Pound
B36: 05.7 | C36: Institutional & Social Dev Management | D36: 05.7 - Institutional & Social Dev Management | E36: 05.7 - Institutional & Social Dev Management
B37: 05.8 | C37: Libraries And Archives | D37: 05.8 - Libraries And Archives | E37: 05.8 - Libraries And Archives
B38: 05.9 | C38: Community Halls And Facilities | D38: 05.9 - Community Halls And Facilities | E38: 05.9 - Community Halls And Facilities
B39: 05.10 | C39: Disaster Management | D39: 05.10 - Disaster Management | E39: 05.10 - Disaster Management
B40: Vote 06 | C40: Planning And Development
B41: 06.1 | C41: Executive Manager:Planning & Development | D41: =CONCATENATE(B41, " - ", C41) -> 06.1 - Executive Manager:Planning & Development | E41: 06.1 - Executive Manager:Planning & Development
B42: 06.2 | C42: Economic Development & Planning | D42: 06.2 - Economic Development & Planning | E42: 06.2 - Economic Development & Planning
B43: 06.3 | C43: Development & Town Planning | D43: 06.3 - Development & Town Planning | E43: 06.3 - Development & Town Planning
B44: 06.4 | C44: Property Management & Housing | D44: 06.4 - Property Management & Housing | E44: 06.4 - Property Management & Housing
B45: 06.5 | C45: Integrated Development Planning | D45: 06.5 - Integrated Development Planning | E45: 06.5 - Integrated Development Planning
B46: 06.6 | C46: Performance Management | D46: 06.6 - Performance Management | E46: 06.6 - Performance Management
B47: 06.7 | C47: Local Economic Development | D47: 06.7 - Local Economic Development | E47: 06.7 - Local Economic Development
B48: Vote 07 | C48: Infrastructure Development
B49: 07.1 | C49: Technical Services Administration | D49: =CONCATENATE(B49, " - ", C49) -> 07.1 - Technical Services Administration | E49: 07.1 - Technical Services Administration
B50: 07.2 | C50: Roads | D50: 07.2 - Roads | E50: 07.2 - Roads
B51: 07.3 | C51: Workshop | D51: 07.3 - Workshop | E51: 07.3 - Workshop
B52: 07.4 | C52: Sewerage Network | D52: 07.4 - Sewerage Network | E52: 07.4 - Sewerage Network
B53: 07.5 | C53: Sewerage Purification | D53: 07.5 - Sewerage Purification | E53: 07.5 - Sewerage Purification
B54: 07.6 | C54: Irrigation | D54: 07.6 - Irrigation | E54: 07.6 - Irrigation
B55: 07.7 | C55: Executive Manager: Infrastructure Dev | D55: 07.7 - Executive Manager: Infrastructure Dev | E55: 07.7 - Executive Manager: Infrastructure Dev
B56: 07.8 | C56: Road Construction & Maintenance | D56: 07.8 - Road Construction & Maintenance | E56: 07.8 - Road Construction & Maintenance
B57: 07.9 | C57: Electrical & Mechanical Works | D57: 07.9 - Electrical & Mechanical Works | E57: 07.9 - Electrical & Mechanical Works
B58: 07.10 | C58: Project Management | D58: 07.10 - Project Management | E58: 07.10 - Project Management
B59: Vote 08
B60: Vote 09
B61: Vote 10
B62: Vote 11
B63: Vote 12
B64: Vote 13
B65: Vote 14
B66: Vote 15 | C66: Other

Sheet Contacts
A1: =muni&" - "&" Contact Information" -> LIM355 Lepelle-Nkumpi - Contact Information
A3: A. GENERAL INFORMATION
A4: Municipality | B4: =muni -> LIM355 Lepelle-Nkumpi | C4: =IF(B4="Choose name from List","Set name on 'Instructions' sheet", "") -> 
A6: Grade | B6: 5 | C6: 1 Grade in terms of the Remuneration of Public Office Bearers Act.
A8: Province | B8: =IF(B4>" ",VLOOKUP(B4,'Lookup and lists'!B29:C307,2, FALSE)," ") -> LIM LIMPOPO
A10: Web Address | B10: www.lepelle-nkumpi.gov.za
A12: e-mail Address
A14: B. CONTACT INFORMATION
A15: Postal address:
A16: P.O. Box | B16: P/B X07
A17: City / Town | B17: Chuenespoort
A18: Postal Code | B18: 0745
A20: Street address
A21: Building | B21: 170 BA
A22: Street No. & Name | B22: civic center
A23: City / Town | B23: lebowakgomo
A24: Postal Code | B24: 0737
A26: General Contacts
A27: Telephone number | B27: 015 633 4500
A28: Fax number | B28: 015 633 6896
A30: C. POLITICAL LEADERSHIP
A31: Speaker: | C31: Secretary/PA to the Speaker:
A32: ID Number | B32: 7311190526081 | C32: ID Number | D32: 8809211020082
A33: Title | B33: Ms | C33: Title | D33: Ms
A34: Name | B34: Nkoabela N J | C34: Name | D34: Lebogang Kekana
A35: Telephone number | B35: 015 633 4525 | C35: Telephone number | D35: 015 633 4525
A36: Cell number | C36: Cell number | D36: 071 480 0336
A37: Fax number | B37: 015 633 6896 | C37: Fax number | D37: 015 633 6896
A38: E-mail address | B38: nkoabela.j@lepelle-nkumpi.onmicrosoft.com | C38: E-mail address | D38: lebogang.kekana@lepelle-nkumpi.gov.za
A40: Mayor/Executive Mayor: | C40: Secretary/PA to the Mayor/Executive Mayor:
A41: ID Number | B41: 6806060319088 | C41: ID Number | D41: 8510065530081
A42: Title | B42: Ms | C42: Title | D42: Ms
A43: Name | B43: MM Molala | C43: Name | D43: Thobejane T A
A44: Telephone number | B44: 015 633 4500 | C44: Telephone number | D44: 015 633 4525
A45: Cell number | B45: 0711042289 | C45: Cell number | D45: 082 660 0761
A46: Fax number | B46: 015 633 6896 | C46: Fax number | D46: 015 633 6896
A47: E-mail address | B47: merriam.molala@lepelle-nkumpi.gov.za | C47: E-mail address | D47: tswaledi.thobejane@lepelle-nkumpi.gov.za
A49: Deputy Mayor/Executive Mayor: | C49: Secretary/PA to the Deputy Mayor/Executive Mayor:
A50: ID Number | B50: 6806060319088 | C50: ID Number
A51: Title | B51: Ms | C51: Title
A52: Name | B52: MM Molala | C52: Name
A53: Telephone number | B53: 015 633 4520 | C53: Telephone number
A54: Cell number | B54: 0711042289 | C54: Cell number
A55: Fax number | B55: 015 633 6896 | C55: Fax number
A56: E-mail address | B56: merriam.molala@lepelle-nkumpi.gov.za | C56: E-mail address
A58: D. MANAGEMENT LEADERSHIP
A59: Municipal Manager: | C59: Secretary/PA to the Municipal Manager:
A60: ID Number | B60: 7109150418087 | C60: ID Number | D60: 8110230738089
A61: Title | B61: Ms | C61: Title | D61: Ms
A62: Name | B62: Monyepao Morongwe Adelaide | C62: Name | D62: Lekgau Theresho
A63: Telephone number | B63: 015 633 4539 | C63: Telephone number | D63: 015 633 4508
A64: Cell number | B64: 082 578 0095 | C64: Cell number | D64: 082 371 9768
A65: Fax number | B65: 015 633 6896 | C65: Fax number | D65: 015 633 6896
A66: E-mail address | B66: morongwe.monyepao@lepelle-nkumpi.gov.za | C66: E-mail address | D66: theresho.lekgau@lepelle-nkumpi.gov.za
A68: Chief Financial Officer | C68: Secretary/PA to the Chief Financial Officer
A69: ID Number | B69: 8902110838082 | C69: ID Number | D69: 8706271296083
A70: Title | B70: Ms | C70: Title | D70: Ms
A71: Name | B71: Khomotjo Mankga | C71: Name | D71: Agnes Lehomo
A72: Telephone number | B72: 015 633 4520 | C72: Telephone number | D72: 0156334537
A73: Cell number | C73: Cell number | D73: 071 371 9977
A74: Fax number | B74: 015 633 6896 | C74: Fax number | D74: 015 633 6896
A75: E-mail address | B75: khomotjo.mankga@lepelle-nkumpi.gov.za | C75: E-mail address | D75: agnes.lehomo@lepelle-nkumpi.gov.za
A77: Official responsible for submitting financial information | C77: Official responsible for submitting financial information
A78: ID Number | B78: 7809210399082 | C78: ID Number
A79: Title | B79: Ms | C79: Title
A80: Name | B80: DAPHNEY MOEMA | C80: Name
A81: Telephone number | B81: 015 633 4503 | C81: Telephone number
A82: Cell number | B82: 071 416 1345 | C82: Cell number
A83: Fax number | B83: 015 633 6896 | C83: Fax number
A84: E-mail address | B84: daphney.moroaswi@lepelle-nkumpi.gov.za | C84: E-mail address
A85: Official responsible for submitting financial information | C85: Official responsible for submitting financial information
A86: ID Number | C86: ID Number
A87: Title | C87: Title
A88: Name | C88: Name
A89: Telephone number | C89: Telephone number
A90: Cell number | C90: Cell number
A91: Fax number | C91: Fax number
A92: E-mail address | C92: E-mail address
A93: Official responsible for submitting financial information | C93: Official responsible for submitting financial information
A94: ID Number | C94: ID Number
A95: Title | C95: Title
A96: Name | C96: Name
A97: Telephone number | C97: Telephone number
A98: Cell number | C98: Cell number
A99: Fax number | C99: Fax number
A100: E-mail address | C100: E-mail address
A101: Official responsible for submitting financial information | C101: Official responsible for submitting financial information
A102: ID Number | C102: ID Number
A103: Title | C103: Title
A104: Name | C104: Name
A105: Telephone number | C105: Telephone number
A106: Cell number | C106: Cell number
A107: Fax number | C107: Fax number
A108: E-mail address | C108: E-mail address
A109: Official responsible for submitting financial information | C109: Official responsible for submitting financial information
A110: ID Number | C110: ID Number
A111: Title | C111: Title
A112: Name | C112: Name
A113: Telephone number | C113: Telephone number
A114: Cell number | C114: Cell number
A115: Fax number | C115: Fax number
A116: E-mail address | C116: E-mail address
A117: Official responsible for submitting financial information | C117: Official responsible for submitting financial information
A118: ID Number | C118: ID Number
A119: Title | C119: Title
A120: Name | C120: Name
A121: Telephone number | C121: Telephone number
A122: Cell number | C122: Cell number
A123: Fax number | C123: Fax number
A124: E-mail address | C124: E-mail address
A125: Official responsible for submitting financial information | C125: Official responsible for submitting financial information
A126: ID Number | C126: ID Number
A127: Title | C127: Title
A128: Name | C128: Name
A129: Telephone number | C129: Telephone number
A130: Cell number | C130: Cell number
A131: Fax number | C131: Fax number
A132: E-mail address | C132: E-mail address
A133: Official responsible for submitting financial information
A134: ID Number
A135: Title
A136: Name
A137: Telephone number
A138: Cell number
A139: Fax number
A140: E-mail address

Sheet A1-Sum
A1: =muni&" - "&Approve1 -> LIM355 Lepelle-Nkumpi - Table A1 Budget Summary
A2: =desc -> Description | B2: =head1b -> 2019/20 | C2: =head1A -> 2020/21 | D2: =Head1 -> 2021/22 | E2: =Head2 -> Current Year 2022/23 | I2: =Head3 -> 2023/24 Medium Term Revenue & Expenditure Framework
A3: R thousands | B3: =Head5 -> Audited Outcome | C3: =Head5 -> Audited Outcome | D3: =Head5 -> Audited Outcome | E3: =Head6 -> Original Budget | F3: =Head7 -> Adjusted Budget | G3: =Head8 -> Full Year Forecast | H3: =Head5b -> Pre-audit outcome | I3: =Head9 -> Budget Year 2023/24 | J3: =Head10 -> Budget Year +1 2024/25 | K3: =Head11 -> Budget Year +2 2025/26
A4: Financial Performance
A5: Property rates | B5: ='A4-FinPerf RE'!C21 -> 8369863.77 | C5: ='A4-FinPerf RE'!D21 -> 31750277.91 | D5: ='A4-FinPerf RE'!E21 -> 30520670.65 | E5: ='A4-FinPerf RE'!F21 -> 34373881 | F5: ='A4-FinPerf RE'!G21 -> 37473881 | G5: ='A4-FinPerf RE'!H21 -> 37473881 | H5: ='A4-FinPerf RE'!I21 -> 35660344.38 | I5: ='A4-FinPerf RE'!J21 -> 39459996 | J5: ='A4-FinPerf RE'!K21 -> 41393536 | K5: ='A4-FinPerf RE'!L21 -> 43339032
A6: Service charges | B6: =SUM('A4-FinPerf RE'!C6:C9) -> 23065489.82 | C6: =SUM('A4-FinPerf RE'!D6:D9) -> 6433333.48 | D6: =SUM('A4-FinPerf RE'!E6:E9) -> 2814398.78 | E6: =SUM('A4-FinPerf RE'!F6:F9) -> 7120609 | F6: =SUM('A4-FinPerf RE'!G6:G9) -> 7122609 | G6: =SUM('A4-FinPerf RE'!H6:H9) -> 7122609 | H6: =SUM('A4-FinPerf RE'!I6:I9) -> 6217375.19 | I6: =SUM('A4-FinPerf RE'!J6:J9) -> 7500107 | J6: =SUM('A4-FinPerf RE'!K6:K9) -> 7867612 | K6: =SUM('A4-FinPerf RE'!L6:L9) -> 8237390
A7: Investment revenue | B7: ='A4-FinPerf RE'!C14 -> 1202955.64 | C7: ='A4-FinPerf RE'!D14 -> 8578788.96 | D7: ='A4-FinPerf RE'!E14 -> 12812681.85 | E7: ='A4-FinPerf RE'!F14 -> 13169720 | F7: ='A4-FinPerf RE'!G14 -> 26169720 | G7: ='A4-FinPerf RE'!H14 -> 26169720 | H7: ='A4-FinPerf RE'!I14 -> 23346956.63 | I7: ='A4-FinPerf RE'!J14 -> 27556714 | J7: ='A4-FinPerf RE'!K14 -> 28906994 | K7: ='A4-FinPerf RE'!L14 -> 30265623
A8: Transfer and subsidies - Operational | B8: ='A4-FinPerf RE'!C25 -> 105855612.7 | C8: ='A4-FinPerf RE'!D25 -> 322418846.4 | D8: ='A4-FinPerf RE'!E25 -> 283498760.8 | E8: ='A4-FinPerf RE'!F25 -> 310408898 | F8: ='A4-FinPerf RE'!G25 -> 305408898 | G8: ='A4-FinPerf RE'!H25 -> 305408898 | H8: ='A4-FinPerf RE'!I25 -> 304304917.5 | I8: ='A4-FinPerf RE'!J25 -> 339638763 | J8: ='A4-FinPerf RE'!K25 -> 350717000 | K8: ='A4-FinPerf RE'!L25 -> 338583000
A9: Other own revenue | B9: ='A4-FinPerf RE'!C32-SUM(B5:B8) -> 4652584.03 | C9: ='A4-FinPerf RE'!D32-SUM(C5:C8) -> 64628408.8 | D9: ='A4-FinPerf RE'!E32-SUM(D5:D8) -> 81139049.13 | E9: ='A4-FinPerf RE'!F32-SUM(E5:E8) -> 200238788 | F9: ='A4-FinPerf RE'!G32-SUM(F5:F8) -> 207717264 | G9: ='A4-FinPerf RE'!H32-SUM(G5:G8) -> 207717264 | H9: ='A4-FinPerf RE'!I32-SUM(H5:H8) -> 9927139.81 | I9: ='A4-FinPerf RE'!J32-SUM(I5:I8) -> 299570261 | J9: ='A4-FinPerf RE'!K32-SUM(J5:J8) -> 260649315 | K9: ='A4-FinPerf RE'!L32-SUM(K5:K8) -> 256590098
A10: ='A4-FinPerf RE'!A32 -> Total Revenue (excluding capital transfers and contributions) | B10: =SUM(B5:B9) -> 143146505.9 | C10: =SUM(C5:C9) -> 433809655.5 | D10: 410785561.2 | E10: 565311896 | F10: 583892372 | G10: 583892372 | H10: 379456733.5 | I10: 713725841 | J10: 689534457 | K10: 677015143
A11: Employee costs | B11: ='A4-FinPerf RE'!C34 -> 25927135.45 | C11: ='A4-FinPerf RE'!D34 -> 96320163.65 | D11: ='A4-FinPerf RE'!E34 -> 92930048.43 | E11: ='A4-FinPerf RE'!F34 -> 134714216 | F11: ='A4-FinPerf RE'!G34 -> 118793372 | G11: ='A4-FinPerf RE'!H34 -> 118793372 | H11: ='A4-FinPerf RE'!I34 -> 90984275.91 | I11: ='A4-FinPerf RE'!J34 -> 142196313 | J11: ='A4-FinPerf RE'!K34 -> 149163916 | K11: ='A4-FinPerf RE'!L34 -> 156174628
A12: Remuneration of councillors | B12: ='A4-FinPerf RE'!C35 -> 3605569.71 | C12: ='A4-FinPerf RE'!D35 -> 22365273.38 | D12: ='A4-FinPerf RE'!E35 -> 22406928.87 | E12: ='A4-FinPerf RE'!F35 -> 22394173 | F12: ='A4-FinPerf RE'!G35 -> 22394173 | G12: ='A4-FinPerf RE'!H35 -> 22394173 | H12: ='A4-FinPerf RE'!I35 -> 21673452.79 | I12: ='A4-FinPerf RE'!J35 -> 23603450 | J12: ='A4-FinPerf RE'!K35 -> 24736531 | K12: ='A4-FinPerf RE'!L35 -> 25899147
A13: Depreciation and amortisation | B13: ='A4-FinPerf RE'!C39 -> 13577.88 | C13: ='A4-FinPerf RE'!D39 -> 30573634.62 | D13: ='A4-FinPerf RE'!E39 -> 28302993.82 | E13: ='A4-FinPerf RE'!F39 -> 37699942 | F13: ='A4-FinPerf RE'!G39 -> 37699942 | G13: ='A4-FinPerf RE'!H39 -> 37699942 | H13: ='A4-FinPerf RE'!I39 -> 25728724.51 | I13: ='A4-FinPerf RE'!J39 -> 39698037 | J13: ='A4-FinPerf RE'!K39 -> 41643244 | K13: ='A4-FinPerf RE'!L39 -> 43600473
A14: Interest | B14: ='A4-FinPerf RE'!C40 -> 0 | C14: ='A4-FinPerf RE'!D40 -> 0 | D14: ='A4-FinPerf RE'!E40 -> 0 | E14: ='A4-FinPerf RE'!F40 -> 153613 | F14: ='A4-FinPerf RE'!G40 -> 50000 | G14: ='A4-FinPerf RE'!H40 -> 50000 | H14: ='A4-FinPerf RE'!I40 -> 0 | I14: ='A4-FinPerf RE'!J40 -> 52650 | J14: ='A4-FinPerf RE'!K40 -> 55230 | K14: ='A4-FinPerf RE'!L40 -> 57826
A15: Inventory consumed and bulk purchases | B15: ='A4-FinPerf RE'!C36+'A4-FinPerf RE'!C37 -> 0 | C15: ='A4-FinPerf RE'!D36+'A4-FinPerf RE'!D37 -> 2854113 | D15: ='A4-FinPerf RE'!E36+'A4-FinPerf RE'!E37 -> 1111269 | E15: ='A4-FinPerf RE'!F36+'A4-FinPerf RE'!F37 -> 8167811 | F15: ='A4-FinPerf RE'!G36+'A4-FinPerf RE'!G37 -> 5796349 | G15: ='A4-FinPerf RE'!H36+'A4-FinPerf RE'!H37 -> 5796349 | H15: ='A4-FinPerf RE'!I36+'A4-FinPerf RE'!I37 -> 1273220.21 | I15: ='A4-FinPerf RE'!J36+'A4-FinPerf RE'!J37 -> 9328945 | J15: ='A4-FinPerf RE'!K36+'A4-FinPerf RE'!K37 -> 9639064 | K15: ='A4-FinPerf RE'!L36+'A4-FinPerf RE'!L37 -> 9959101
A16: Transfers and subsidies | B16: ='A4-FinPerf RE'!C42 -> 0 | C16: ='A4-FinPerf RE'!D42 -> 0 | D16: ='A4-FinPerf RE'!E42 -> 0 | E16: ='A4-FinPerf RE'!F42 -> 0 | F16: ='A4-FinPerf RE'!G42 -> 0 | G16: ='A4-FinPerf RE'!H42 -> 0 | H16: ='A4-FinPerf RE'!I42 -> 0 | I16: ='A4-FinPerf RE'!J42 -> 0 | J16: ='A4-FinPerf RE'!K42 -> 0 | K16: ='A4-FinPerf RE'!L42 -> 0
A17: Other expenditure | B17: ='A4-FinPerf RE'!C47-SUM(B11:B16) -> 16547043.5 | C17: ='A4-FinPerf RE'!D47-SUM(C11:C16) -> 382499871.5 | D17: ='A4-FinPerf RE'!E47-SUM(D11:D16) -> 185377689.2 | E17: ='A4-FinPerf RE'!F47-SUM(E11:E16) -> 235664393 | F17: ='A4-FinPerf RE'!G47-SUM(F11:F16) -> 228920396 | G17: ='A4-FinPerf RE'!H47-SUM(G11:G16) -> 228920396 | H17: ='A4-FinPerf RE'!I47-SUM(H11:H16) -> 117860931 | I17: ='A4-FinPerf RE'!J47-SUM(I11:I16) -> 263282120 | J17: ='A4-FinPerf RE'!K47-SUM(J11:J16) -> 272877766 | K17: ='A4-FinPerf RE'!L47-SUM(K11:K16) -> 282745937
A18: ='A4-FinPerf RE'!A47 -> Total Expenditure | B18: =SUM(B11:B17) -> 46093326.54 | C18: =SUM(C11:C17) -> 534613056.2 | D18: 330128929.3 | E18: 438794148 | F18: 413654232 | G18: 413654232 | H18: 257520604.4 | I18: 478161515 | J18: 498115751 | K18: 518437112
A19: ='A4-FinPerf RE'!A48 -> Surplus/(Deficit) | B19: =B10-B18 -> 97053179.4 | C19: =C10-C18 -> -100803400.6 | D19: 80656631.94 | E19: 126517748 | F19: 170238140 | G19: 170238140 | H19: 121936129.1 | I19: 235564326 | J19: 191418706 | K19: 158578031
A20: ='A4-FinPerf RE'!A49 -> Transfers and subsidies - capital (monetary allocations) | B20: ='A4-FinPerf RE'!C49 -> 3983727.73 | C20: ='A4-FinPerf RE'!D49 -> 35107765.51 | D20: ='A4-FinPerf RE'!E49 -> 50792084.59 | E20: ='A4-FinPerf RE'!F49 -> 61628000 | F20: ='A4-FinPerf RE'!G49 -> 61435087 | G20: ='A4-FinPerf RE'!H49 -> 61435087 | H20: ='A4-FinPerf RE'!I49 -> 31651884.09 | I20: ='A4-FinPerf RE'!J49 -> 64332000 | J20: ='A4-FinPerf RE'!K49 -> 67209000 | K20: ='A4-FinPerf RE'!L49 -> 70208000
A21: ='A4-FinPerf RE'!A50 -> Transfers and subsidies - capital (in-kind) | B21: ='A4-FinPerf RE'!C50 -> 0 | C21: ='A4-FinPerf RE'!D50 -> 0 | D21: ='A4-FinPerf RE'!E50 -> 0 | E21: ='A4-FinPerf RE'!F50 -> 0 | F21: ='A4-FinPerf RE'!G50 -> 0 | G21: ='A4-FinPerf RE'!H50 -> 0 | H21: ='A4-FinPerf RE'!I50 -> 0 | I21: ='A4-FinPerf RE'!J50 -> 0 | J21: ='A4-FinPerf RE'!K50 -> 0 | K21: ='A4-FinPerf RE'!L50 -> 0
A22: ='A4-FinPerf RE'!A51 -> Surplus/(Deficit) after capital transfers & contributions | B22: =B19+SUM(B20:B21) -> 101036907.1 | C22: =C19+SUM(C20:C21) -> -65695635.1 | D22: 131448716.5 | E22: 188145748 | F22: 231673227 | G22: 231673227 | H22: 153588013.2 | I22: 299896326 | J22: 258627706 | K22: 228786031
A23: ='A4-FinPerf RE'!A57 -> Share of Surplus/Deficit attributable to Associate | B23: ='A4-FinPerf RE'!C57 -> 0 | C23: ='A4-FinPerf RE'!D57 -> 0 | D23: ='A4-FinPerf RE'!E57 -> 0 | E23: ='A4-FinPerf RE'!F57 -> 0 | F23: ='A4-FinPerf RE'!G57 -> 0 | G23: ='A4-FinPerf RE'!H57 -> 0 | H23: ='A4-FinPerf RE'!I57 -> 0 | I23: ='A4-FinPerf RE'!J57 -> 0 | J23: ='A4-FinPerf RE'!K57 -> 0 | K23: ='A4-FinPerf RE'!L57 -> 0
A24: ='A4-FinPerf RE'!A59 -> Surplus/(Deficit) for the year | B24: =B22+B23 -> 101036907.1 | C24: =C22+C23 -> -65695635.1 | D24: 131448716.5 | E24: 188145748 | F24: 231673227 | G24: 231673227 | H24: 153588013.2 | I24: 299896326 | J24: 258627706 | K24: 228786031
A25: Capital expenditure & funds sources
A26: Capital expenditure | B26: ='A5-Capex'!C63 -> 13767567.82 | C26: ='A5-Capex'!D63 -> 45471036.76 | D26: ='A5-Capex'!E63 -> 56710454.62 | E26: ='A5-Capex'!F63 -> 191330136 | F26: ='A5-Capex'!G63 -> 231673222 | G26: ='A5-Capex'!H63 -> 231673222 | H26: ='A5-Capex'!I63 -> 42968120.27 | I26: ='A5-Capex'!J63 -> 299562774 | J26: ='A5-Capex'!K63 -> 258627706 | K26: ='A5-Capex'!L63 -> 228794031
A27: Transfers recognised - capital | B27: ='A5-Capex'!C70 -> 8736597.37 | C27: ='A5-Capex'!D70 -> 31531676.19 | D27: ='A5-Capex'!E70 -> 42548887.74 | E27: ='A5-Capex'!F70 -> 58546601 | F27: ='A5-Capex'!G70 -> 58353688 | G27: ='A5-Capex'!H70 -> 58353688 | H27: ='A5-Capex'!I70 -> 28275472.55 | I27: ='A5-Capex'!J70 -> 76015400 | J27: ='A5-Capex'!K70 -> 73252550 | K27: ='A5-Capex'!L70 -> 76522600
A29: ='A5-Capex'!A72 -> Borrowing | B29: ='A5-Capex'!C72 -> 0 | C29: ='A5-Capex'!D72 -> 0 | D29: ='A5-Capex'!E72 -> 0 | E29: ='A5-Capex'!F72 -> 0 | F29: ='A5-Capex'!G72 -> 0 | G29: ='A5-Capex'!H72 -> 0 | H29: ='A5-Capex'!I72 -> 0 | I29: ='A5-Capex'!J72 -> 0 | J29: ='A5-Capex'!K72 -> 0 | K29: ='A5-Capex'!L72 -> 0
A30: ='A5-Capex'!A73 -> Internally generated funds | B30: ='A5-Capex'!C73 -> 5030970.45 | C30: ='A5-Capex'!D73 -> 13939360.57 | D30: ='A5-Capex'!E73 -> 14161566.88 | E30: ='A5-Capex'!F73 -> 132783535 | F30: ='A5-Capex'!G73 -> 173319534 | G30: ='A5-Capex'!H73 -> 173319534 | H30: ='A5-Capex'!I73 -> 14692647.72 | I30: ='A5-Capex'!J73 -> 223547374 | J30: ='A5-Capex'!K73 -> 185375156 | K30: ='A5-Capex'!L73 -> 152271431
A31: Total sources of capital funds | B31: =+B27+B29+B30 -> 13767567.82 | C31: =+C27+C29+C30 -> 45471036.76 | D31: 56710454.62 | E31: 191330136 | F31: 231673222 | G31: 231673222 | H31: 42968120.27 | I31: 299562774 | J31: 258627706 | K31: 228794031
A32: Financial position
A33: ='A6-FinPos'!A13 -> Total current assets | B33: ='A6-FinPos'!C13 -> 104634109.1 | C33: ='A6-FinPos'!D13 -> -67131189.48 | D33: ='A6-FinPos'!E13 -> 530865965.2 | E33: ='A6-FinPos'!F13 -> 561094695 | F33: ='A6-FinPos'!G13 -> 548942195 | G33: ='A6-FinPos'!H13 -> 548942195 | H33: ='A6-FinPos'!I13 -> 815671061.7 | I33: ='A6-FinPos'!J13 -> 705214885 | J33: ='A6-FinPos'!K13 -> 736861224 | K33: ='A6-FinPos'!L13 -> 771336360
A34: ='A6-FinPos'!A25 -> Total non current assets | B34: ='A6-FinPos'!C25 -> 13767567.82 | C34: ='A6-FinPos'!D25 -> 959528414 | D34: ='A6-FinPos'!E25 -> 1004490363 | E34: ='A6-FinPos'!F25 -> 979162553 | F34: ='A6-FinPos'!G25 -> 1011735595 | G34: ='A6-FinPos'!H25 -> 1011735595 | H34: ='A6-FinPos'!I25 -> 1019372334 | I34: ='A6-FinPos'!J25 -> 1127544927 | J34: ='A6-FinPos'!K25 -> 1125250614 | K34: ='A6-FinPos'!L25 -> 1140095375
A35: ='A6-FinPos'!A37 -> Total current liabilities | B35: ='A6-FinPos'!C37 -> 18717977.87 | C35: ='A6-FinPos'!D37 -> 348146585.8 | D35: ='A6-FinPos'!E37 -> 285043264.9 | E35: ='A6-FinPos'!F37 -> -231360122 | F35: ='A6-FinPos'!G37 -> 114019449 | G35: ='A6-FinPos'!H37 -> 114019449 | H35: ='A6-FinPos'!I37 -> 434311152.9 | I35: ='A6-FinPos'!J37 -> 103337061 | J35: ='A6-FinPos'!K37 -> 109393349 | K35: ='A6-FinPos'!L37 -> 110536034
A36: ='A6-FinPos'!A43 -> Total non current liabilities | B36: ='A6-FinPos'!C43 -> 0 | C36: ='A6-FinPos'!D43 -> 238138.31 | D36: ='A6-FinPos'!E43 -> 238138.31 | E36: ='A6-FinPos'!F43 -> 238138 | F36: ='A6-FinPos'!G43 -> 3000000 | G36: ='A6-FinPos'!H43 -> 3000000 | H36: ='A6-FinPos'!I43 -> 238138.31 | I36: ='A6-FinPos'!J43 -> 7771737 | J36: ='A6-FinPos'!K43 -> 8152552 | K36: ='A6-FinPos'!L43 -> 8535722
A37: Community wealth/Equity | B37: ='A6-FinPos'!C50 -> 100898197 | C37: ='A6-FinPos'!D50 -> 1227901675 | D37: ='A6-FinPos'!E50 -> 1360337805 | E37: ='A6-FinPos'!F50 -> 1886405200 | F37: ='A6-FinPos'!G50 -> 1552574820 | G37: ='A6-FinPos'!H50 -> 1552574820 | H37: ='A6-FinPos'!I50 -> 1515728659 | I37: ='A6-FinPos'!J50 -> 1725645559 | J37: ='A6-FinPos'!K50 -> 1628164728 | K37: ='A6-FinPos'!L50 -> 1672640876
A38: Cash flows
A39: Net cash from (used) operating | B39: ='A7-CFlow'!C17 -> 0 | C39: ='A7-CFlow'!D17 -> 540756745 | D39: ='A7-CFlow'!E17 -> 204466471.9 | E39: ='A7-CFlow'!F17 -> 164603979 | F39: ='A7-CFlow'!G17 -> 353477007 | G39: ='A7-CFlow'!H17 -> 353477007 | H39: ='A7-CFlow'!I17 -> 373363575.9 | I39: ='A7-CFlow'!J17 -> 542397727 | J39: ='A7-CFlow'!K17 -> 526604837 | K39: ='A7-CFlow'!L17 -> 482393086
A40: Net cash from (used) investing | B40: ='A7-CFlow'!C26 -> 0 | C40: ='A7-CFlow'!D26 -> 113490996.7 | D40: ='A7-CFlow'!E26 -> -56710454.62 | E40: ='A7-CFlow'!F26 -> -341330136 | F40: ='A7-CFlow'!G26 -> -231673222 | G40: ='A7-CFlow'!H26 -> -231673222 | H40: ='A7-CFlow'!I26 -> -42968120.27 | I40: ='A7-CFlow'!J26 -> -299489064 | J40: ='A7-CFlow'!K26 -> -258550384 | K40: ='A7-CFlow'!L26 -> -228713075
A41: Net cash from (used) financing | B41: ='A7-CFlow'!C35 -> 0 | C41: ='A7-CFlow'!D35 -> 0 | D41: ='A7-CFlow'!E35 -> 0 | E41: ='A7-CFlow'!F35 -> 0 | F41: ='A7-CFlow'!G35 -> 238138 | G41: ='A7-CFlow'!H35 -> 238138 | H41: ='A7-CFlow'!I35 -> 0 | I41: ='A7-CFlow'!J35 -> 60970 | J41: ='A7-CFlow'!K35 -> 63836 | K41: ='A7-CFlow'!L35 -> 66964
A42: =LEFT('A7-CFlow'!A39,37) -> Cash/cash equivalents at the year end | B42: ='A7-CFlow'!C39 -> 160 | C42: ='A7-CFlow'!D39 -> 772203531.1 | D42: ='A7-CFlow'!E39 -> 442753532 | E42: ='A7-CFlow'!F39 -> 63351525 | F42: ='A7-CFlow'!G39 -> 526471087 | G42: ='A7-CFlow'!H39 -> 526471087 | H42: ='A7-CFlow'!I39 -> 330395455.7 | I42: ='A7-CFlow'!J39 -> 593610733 | J42: ='A7-CFlow'!K39 -> 861729022 | K42: ='A7-CFlow'!L39 -> 1115475997
A44: Cash backing/surplus reconciliation
A45: ='A8-ResRecon'!A4 -> Cash and investments available | B45: ='A8-ResRecon'!C8 -> 76336820.09 | C45: ='A8-ResRecon'!D8 -> -56167517.74 | D45: ='A8-ResRecon'!E8 -> 554426541.7 | E45: ='A8-ResRecon'!F8 -> 356576839 | F45: ='A8-ResRecon'!G8 -> 525436711 | G45: ='A8-ResRecon'!H8 -> 525436711 | H45: ='A8-ResRecon'!I8 -> 819329278.8 | I45: ='A8-ResRecon'!J8 -> 512724149 | J45: ='A8-ResRecon'!K8 -> 537847633 | K45: ='A8-ResRecon'!L8 -> 563126472
A46: ='A8-ResRecon'!A10 -> Application of cash and investments | B46: ='A8-ResRecon'!C18 -> 16250064.28 | C46: ='A8-ResRecon'!D18 -> 35966448.58 | D46: ='A8-ResRecon'!E18 -> 139714545.4 | E46: ='A8-ResRecon'!F18 -> -448107321 | F46: ='A8-ResRecon'!G18 -> 96670056 | G46: ='A8-ResRecon'!H18 -> 96670056 | H46: ='A8-ResRecon'!I18 -> 352744162.6 | I46: ='A8-ResRecon'!J18 -> 56692323 | J46: ='A8-ResRecon'!K18 -> 47839646 | K46: ='A8-ResRecon'!L18 -> 42831286
A47: Balance - surplus (shortfall) | B47: =B45-B46 -> 60086755.81 | C47: =C45-C46 -> -92133966.32 | D47: 414711996.3 | E47: 804684160 | F47: 428766655 | G47: 428766655 | H47: 466585116.2 | I47: 456031826 | J47: 490007987 | K47: 520295186
A48: Asset management
A49: Asset register summary (WDV) | B49: ='A9-Asset'!C180 -> 13767567.82 | C49: ='A9-Asset'!D180 -> 715924191.8 | D49: ='A9-Asset'!E180 -> 765090711.9 | E49: ='A9-Asset'!F180 -> 879268731 | F49: ='A9-Asset'!G180 -> 924693369 | G49: ='A9-Asset'!H180 -> 924693369 | I49: ='A9-Asset'!I180 -> 1023255777 | J49: ='A9-Asset'!J180 -> 1016059874 | K49: ='A9-Asset'!K180 -> 1025554289
A50: ='A9-Asset'!A183 -> Depreciation | B50: ='A9-Asset'!C183 -> 13577.88 | C50: ='A9-Asset'!D183 -> 30573634.62 | D50: ='A9-Asset'!E183 -> 28302993.82 | E50: ='A9-Asset'!F183 -> 37699942 | F50: ='A9-Asset'!G183 -> 37699942 | G50: ='A9-Asset'!H183 -> 37699942 | I50: ='A9-Asset'!I183 -> 39698037 | J50: ='A9-Asset'!J183 -> 41643244 | K50: ='A9-Asset'!K183 -> 43600473
A51: Renewal and Upgrading of Existing Assets | B51: ='A9-Asset'!C40+'A9-Asset'!C75 -> 720.11 | C51: ='A9-Asset'!D40+'A9-Asset'!D75 -> 6189219.5 | D51: ='A9-Asset'!E40+'A9-Asset'!E75 -> 13685690.67 | E51: ='A9-Asset'!F40+'A9-Asset'!F75 -> 63508001 | F51: ='A9-Asset'!G40+'A9-Asset'!G75 -> 67227105 | G51: ='A9-Asset'!H40+'A9-Asset'!H75 -> 67227105 | I51: ='A9-Asset'!I40+'A9-Asset'!I75 -> 80111543 | J51: ='A9-Asset'!J40+'A9-Asset'!J75 -> 98355436 | K51: ='A9-Asset'!K40+'A9-Asset'!K75 -> 48823036
A52: Repairs and Maintenance | B52: ='A9-Asset'!C184 -> 518223.44 | C52: ='A9-Asset'!D184 -> 2592196.89 | D52: ='A9-Asset'!E184 -> 1958381.25 | E52: ='A9-Asset'!F184 -> 17173996 | F52: ='A9-Asset'!G184 -> 16326126 | G52: ='A9-Asset'!H184 -> 16326126 | I52: ='A9-Asset'!J184 -> 42445333 | J52: ='A9-Asset'!K184 -> 44176764 | K52: ='A9-Asset'!L184 -> 0
I53: ='A9-Asset'!I184 -> 40597650
A54: Free services
A55: Cost of Free Basic Services provided | B55: ='A10-SerDel'!C60 -> 0 | C55: ='A10-SerDel'!D60 -> 0 | D55: ='A10-SerDel'!E60 -> 0 | E55: ='A10-SerDel'!F60 -> 20786 | F55: ='A10-SerDel'!G60 -> 20786 | G55: ='A10-SerDel'!H60 -> 20786 | I55: ='A10-SerDel'!I60 -> 21888 | J55: ='A10-SerDel'!J60 -> 22961 | K55: ='A10-SerDel'!K60 -> 24040
A56: Revenue cost of free services provided | B56: ='A10-SerDel'!C79 -> -4284699.39 | C56: ='A10-SerDel'!D79 -> 1067792.77 | D56: ='A10-SerDel'!E79 -> 1334986.08 | E56: ='A10-SerDel'!F79 -> 9466431 | F56: ='A10-SerDel'!G79 -> 9466431 | G56: ='A10-SerDel'!H79 -> 9466431 | I56: ='A10-SerDel'!I79 -> 9968152 | J56: ='A10-SerDel'!J79 -> 10456591 | K56: ='A10-SerDel'!K79 -> 10948051
A57: Households below minimum service level
A58: ='A10-SerDel'!A5 -> Water: | B58: ='A10-SerDel'!C14 -> 0 | C58: ='A10-SerDel'!D14 -> 0 | D58: ='A10-SerDel'!E14 -> 0 | E58: ='A10-SerDel'!F14 -> 0 | F58: ='A10-SerDel'!G14 -> 0 | G58: ='A10-SerDel'!H14 -> 0 | I58: ='A10-SerDel'!I14 -> 0 | J58: ='A10-SerDel'!J14 -> 0 | K58: ='A10-SerDel'!K14 -> 0
A59: ='A10-SerDel'!A16 -> Sanitation/sewerage: | B59: ='A10-SerDel'!C26 -> 0 | C59: ='A10-SerDel'!D26 -> 0 | D59: ='A10-SerDel'!E26 -> 0 | E59: ='A10-SerDel'!F26 -> 0 | F59: ='A10-SerDel'!G26 -> 0 | G59: ='A10-SerDel'!H26 -> 0 | I59: ='A10-SerDel'!I26 -> 0 | J59: ='A10-SerDel'!J26 -> 0 | K59: ='A10-SerDel'!K26 -> 0
A60: ='A10-SerDel'!A28 -> Energy: | B60: ='A10-SerDel'!C35 -> 0 | C60: ='A10-SerDel'!D35 -> 0 | D60: ='A10-SerDel'!E35 -> 0 | E60: ='A10-SerDel'!F35 -> 0 | F60: ='A10-SerDel'!G35 -> 0 | G60: ='A10-SerDel'!H35 -> 0 | I60: ='A10-SerDel'!I35 -> 0 | J60: ='A10-SerDel'!J35 -> 0 | K60: ='A10-SerDel'!K35 -> 0
A61: ='A10-SerDel'!A37 -> Refuse: | B61: ='A10-SerDel'!C45 -> 0 | C61: ='A10-SerDel'!D45 -> 0 | D61: ='A10-SerDel'!E45 -> 0 | E61: ='A10-SerDel'!F45 -> 0 | F61: ='A10-SerDel'!G45 -> 0 | G61: ='A10-SerDel'!H45 -> 0 | I61: ='A10-SerDel'!I45 -> 0 | J61: ='A10-SerDel'!J45 -> 0 | K61: ='A10-SerDel'!K45 -> 0

Sheet A2-FinPerf SC
A1: =muni&" - "&Approve3 -> LIM355 Lepelle-Nkumpi - Table A2 Budgeted Financial Performance (revenue and expenditure by functional classification)
A2: ="Functional Classification "&desc -> Functional Classification Description | B2: =head27 -> Ref | C2: =head1b -> 2019/20 | D2: =head1A -> 2020/21 | E2: =Head1 -> 2021/22 | F2: =Head2 -> Current Year 2022/23 | I2: =Head3 -> 2023/24 Medium Term Revenue & Expenditure Framework
A3: R thousand | B3: 1 | C3: =Head5 -> Audited Outcome | D3: =Head5 -> Audited Outcome | E3: =Head5 -> Audited Outcome | F3: =Head6 -> Original Budget | G3: =Head7 -> Adjusted Budget | H3: =Head8 -> Full Year Forecast | I3: =Head9 -> Budget Year 2023/24 | J3: =Head10 -> Budget Year +1 2024/25 | K3: =Head11 -> Budget Year +2 2025/26
A4: Revenue - Functional
A5: Governance and administration | C5: =SUM(C6:C8) -> 117989986.5 | D5: =SUM(D6:D8) -> 411290170.9 | E5: 383615942 | F5: 514790312 | G5: 534147766 | H5: 534147766 | I5: 645501143 | J5: 627480165 | K5: 612065287
A6: Executive and council | C6: =A2A!C6 -> 0 | D6: =A2A!D6 -> 0 | E6: =A2A!E6 -> 0 | F6: =A2A!F6 -> 0 | G6: =A2A!G6 -> 0 | H6: =A2A!H6 -> 0 | I6: =A2A!I6 -> 0 | J6: =A2A!J6 -> 0 | K6: =A2A!K6 -> 0
A7: Finance and administration | C7: =A2A!C9 -> 117989986.5 | D7: =A2A!D9 -> 411290170.9 | E7: =A2A!E9 -> 383615942 | F7: =A2A!F9 -> 514790312 | G7: =A2A!G9 -> 534147766 | H7: =A2A!H9 -> 534147766 | I7: =A2A!I9 -> 645501143 | J7: =A2A!J9 -> 627480165 | K7: =A2A!K9 -> 612065287
A8: Internal audit | C8: =A2A!C23 -> 0 | D8: =A2A!D23 -> 0 | E8: =A2A!E23 -> 0 | F8: =A2A!F23 -> 0 | G8: =A2A!G23 -> 0 | H8: =A2A!H23 -> 0 | I8: =A2A!I23 -> 0 | J8: =A2A!J23 -> 0 | K8: =A2A!K23 -> 0
A9: Community and public safety | C9: =SUM(C10:C14) -> -1295749.75 | D9: =SUM(D10:D14) -> 5807454.67 | E9: 7672907.45 | F9: 12430748 | G9: 12433248 | H9: 12433248 | I9: 13069850 | J9: 13395572 | K9: 14025165
A10: Community and social services | C10: =A2A!C26 -> 41217.36 | D10: =A2A!D26 -> 26226.41 | E10: =A2A!E26 -> 5662357.46 | F10: =A2A!F26 -> 376570 | G10: =A2A!G26 -> 376570 | H10: =A2A!H26 -> 376570 | I10: =A2A!I26 -> 374168 | J10: =A2A!J26 -> 77802 | K10: =A2A!K26 -> 81460
A11: Sport and recreation | C11: =A2A!C48 -> 0 | D11: =A2A!D48 -> 0 | E11: =A2A!E48 -> 0 | F11: =A2A!F48 -> 0 | G11: =A2A!G48 -> 0 | H11: =A2A!H48 -> 0 | I11: =A2A!I48 -> 0 | J11: =A2A!J48 -> 0 | K11: =A2A!K48 -> 0
A12: Public safety | C12: =A2A!C54 -> -1336967.11 | D12: =A2A!D54 -> 5781228.26 | E12: =A2A!E54 -> 2010549.99 | F12: =A2A!F54 -> 12054178 | G12: =A2A!G54 -> 12056678 | H12: =A2A!H54 -> 12056678 | I12: =A2A!I54 -> 12695682 | J12: =A2A!J54 -> 13317770 | K12: =A2A!K54 -> 13943705
A13: Housing | C13: =A2A!C63 -> 0 | D13: =A2A!D63 -> 0 | E13: =A2A!E63 -> 0 | F13: =A2A!F63 -> 0 | G13: =A2A!G63 -> 0 | H13: =A2A!H63 -> 0 | I13: =A2A!I63 -> 0 | J13: =A2A!J63 -> 0 | K13: =A2A!K63 -> 0
A14: Health | C14: =A2A!C66 -> 0 | D14: =A2A!D66 -> 0 | E14: =A2A!E66 -> 0 | F14: =A2A!F66 -> 0 | G14: =A2A!G66 -> 0 | H14: =A2A!H66 -> 0 | I14: =A2A!I66 -> 0 | J14: =A2A!J66 -> 0 | K14: =A2A!K66 -> 0
A15: Economic and environmental services | C15: =SUM(C16:C18) -> 27319908.58 | D15: =SUM(D16:D18) -> 43480462.06 | E15: 58621557.03 | F15: 86207364 | G15: 85232973 | H15: 85232973 | I15: 94635302 | J15: 98584108 | K15: 103057737
A16: Planning and development | C16: =A2A!C75 -> 6113750.03 | D16: =A2A!D75 -> 37610675.04 | E16: =A2A!E75 -> 55995842.63 | F16: =A2A!F75 -> 80157778 | G16: =A2A!G75 -> 75071865 | H16: =A2A!H75 -> 75071865 | I16: =A2A!I75 -> 83936527 | J16: =A2A!J75 -> 87378355 | K16: =A2A!K75 -> 91325313
A17: Road transport | C17: =A2A!C86 -> 21206158.55 | D17: =A2A!D86 -> 5869787.02 | E17: =A2A!E86 -> 2625714.4 | F17: =A2A!F86 -> 6033131 | G17: =A2A!G86 -> 10144653 | H17: =A2A!H86 -> 10144653 | I17: =A2A!I86 -> 10682320 | J17: =A2A!J86 -> 11205753 | K17: =A2A!K86 -> 11732424
A18: Environmental protection | C18: =A2A!C91 -> 0 | D18: =A2A!D91 -> 0 | E18: =A2A!E91 -> 0 | F18: =A2A!F91 -> 16455 | G18: =A2A!G91 -> 16455 | H18: =A2A!H91 -> 16455 | I18: =A2A!I91 -> 16455 | J18: =A2A!J91 -> 0 | K18: =A2A!K91 -> 0
A19: Trading services | C19: =SUM(C20:C23) -> 3116088.34 | D19: =SUM(D20:D23) -> 8339333.48 | E19: 11667239.34 | F19: 13511472 | G19: 13513472 | H19: 13513472 | I19: 24851546 | J19: =SUM(J20:J23) -> 17283612 | K19: 18074954
A20: Energy sources | C20: =A2A!C99 -> 0 | D20: =A2A!D99 -> 0 | E20: =A2A!E99 -> 3884000 | F20: =A2A!F99 -> 5000000 | G20: =A2A!G99 -> 5000000 | H20: =A2A!H99 -> 5000000 | I20: =A2A!I99 -> 14900000 | J20: =A2A!J99 -> 9404000 | K20: =A2A!K99 -> 9825000
A21: Water management | C21: =A2A!C103 -> 0 | D21: =A2A!D103 -> 0 | E21: =A2A!E103 -> 0 | F21: =A2A!F103 -> 0 | G21: =A2A!G103 -> 0 | H21: =A2A!H103 -> 0 | I21: =A2A!I103 -> 0 | J21: =A2A!J103 -> 0 | K21: =A2A!K103 -> 0
A22: Waste water management | C22: =A2A!C107 -> 0 | D22: =A2A!D107 -> 0 | E22: =A2A!E107 -> 0 | F22: =A2A!F107 -> 0 | G22: =A2A!G107 -> 0 | H22: =A2A!H107 -> 0 | I22: =A2A!I107 -> 0 | J22: =A2A!J107 -> 0 | K22: =A2A!K107 -> 0
A23: Waste management | C23: =A2A!C112 -> 3116088.34 | D23: =A2A!D112 -> 8339333.48 | E23: =A2A!E112 -> 7783239.34 | F23: =A2A!F112 -> 8511472 | G23: =A2A!G112 -> 8513472 | H23: =A2A!H112 -> 8513472 | I23: =A2A!I112 -> 9951546 | J23: =A2A!J112 -> 7879612 | K23: =A2A!K112 -> 8249954
A24: Other | B24: 4 | C24: =A2A!C117 -> 0 | D24: =A2A!D117 -> 0 | E24: =A2A!E117 -> 0 | F24: =A2A!F117 -> 0 | G24: =A2A!G117 -> 0 | H24: =A2A!H117 -> 0 | I24: =A2A!I117 -> 0 | J24: =A2A!J117 -> 0 | K24: =A2A!K117 -> 0
A25: ="Total "&A4 -> Total Revenue - Functional | B25: 2 | C25: =C5+C9+C15+C19+C24 -> 147130233.7 | D25: =D5+D9+D15+D19+D24 -> 468917421.1 | E25: =E5+E9+E15+E19+E24 -> 461577645.8 | F25: 626939896 | G25: 645327459 | H25: 645327459 | I25: =I5+I9+I15+I19+I24 -> 778057841 | J25: 756743457 | K25: 747223143
A27: Expenditure - Functional
A28: Governance and administration | C28: =SUM(C29:C31) -> 32400614.14 | D28: =SUM(D29:D31) -> 218454919.2 | E28: 241273627.8 | F28: 258843293 | G28: 283894030 | H28: 283894030 | I28: 313682238 | J28: 325736185 | K28: 338159347
A29: Executive and council | C29: =A2A!C128 -> 3772792.01 | D29: =A2A!D128 -> 28311530.28 | E29: =A2A!E128 -> 28757850.17 | F29: =A2A!F128 -> 36616655 | G29: =A2A!G128 -> 36431851 | H29: =A2A!H128 -> 36431851 | I29: =A2A!I128 -> 42334386 | J29: =A2A!J128 -> 44384912 | K29: =A2A!K128 -> 46470875
A30: Finance and administration | C30: =A2A!C131 -> 26971381.54 | D30: =A2A!D131 -> 183909679.2 | E30: =A2A!E131 -> 203828004.1 | F30: =A2A!F131 -> 212100946 | G30: =A2A!G131 -> 237638921 | H30: =A2A!H131 -> 237638921 | I30: =A2A!I131 -> 259373066 | J30: =A2A!J131 -> 268789844 | K30: =A2A!K131 -> 278536656
A31: Internal audit | C31: =A2A!C145 -> 1656440.59 | D31: =A2A!D145 -> 6233709.73 | E31: =A2A!E145 -> 8687773.5 | F31: =A2A!F145 -> 10125692 | G31: =A2A!G145 -> 9823258 | H31: =A2A!H145 -> 9823258 | I31: =A2A!I145 -> 11974786 | J31: =A2A!J145 -> 12561429 | K31: =A2A!K145 -> 13151816
A32: Community and public safety | C32: =SUM(C33:C37) -> 3193690.22 | D32: =SUM(D33:D37) -> 12717478.54 | E32: 21918479.88 | F32: 31124989 | G32: 29402124 | H32: 29402124 | I32: 34278467 | J32: 36265337 | K32: 37923042
A33: Community and social services | C33: =A2A!C148 -> 952011.43 | D33: =A2A!D148 -> 8513825.76 | E33: =A2A!E148 -> 11058400.45 | F33: =A2A!F148 -> 14823426 | G33: =A2A!G148 -> 14663888 | H33: =A2A!H148 -> 14663888 | I33: =A2A!I148 -> 17231907 | J33: =A2A!J148 -> 18383464 | K33: =A2A!K148 -> 19200488
A34: Sport and recreation | C34: =A2A!C170 -> 0 | D34: =A2A!D170 -> 0 | E34: =A2A!E170 -> 0 | F34: =A2A!F170 -> 0 | G34: =A2A!G170 -> 0 | H34: =A2A!H170 -> 0 | I34: =A2A!I170 -> 0 | J34: =A2A!J170 -> 0 | K34: =A2A!K170 -> 0
A35: Public safety | C35: =A2A!C176 -> 2241678.79 | D35: =A2A!D176 -> 4203652.78 | E35: =A2A!E176 -> 10860079.43 | F35: =A2A!F176 -> 16301563 | G35: =A2A!G176 -> 14738236 | H35: =A2A!H176 -> 14738236 | I35: =A2A!I176 -> 17046560 | J35: =A2A!J176 -> 17881873 | K35: =A2A!K176 -> 18722554
A36: Housing | C36: =A2A!C185 -> 0 | D36: =A2A!D185 -> 0 | E36: =A2A!E185 -> 0 | F36: =A2A!F185 -> 0 | G36: =A2A!G185 -> 0 | H36: =A2A!H185 -> 0 | I36: =A2A!I185 -> 0 | J36: =A2A!J185 -> 0 | K36: =A2A!K185 -> 0
A37: Health | C37: =A2A!C188 -> 0 | D37: =A2A!D188 -> 0 | E37: =A2A!E188 -> 0 | F37: =A2A!F188 -> 0 | G37: =A2A!G188 -> 0 | H37: =A2A!H188 -> 0 | I37: =A2A!I188 -> 0 | J37: =A2A!J188 -> 0 | K37: =A2A!K188 -> 0
A38: Economic and environmental services | C38: =SUM(C39:C41) -> 7036921.48 | D38: =SUM(D39:D41) -> 266413733.2 | E38: 42181978.3 | F38: 64640177 | G38: 61006289 | H38: 61006289 | I38: 86905436 | J38: 91427110 | K38: 95636085
A39: Planning and development | C39: =A2A!C197 -> 1717007.1 | D39: =A2A!D197 -> 241699945.9 | E39: =A2A!E197 -> 10088925.04 | F39: =A2A!F197 -> 16981128 | G39: =A2A!G197 -> 16799791 | H39: =A2A!H197 -> 16799791 | I39: =A2A!I197 -> 17805508 | J39: =A2A!J197 -> 19188677 | K39: =A2A!K197 -> 20082646
A40: Road transport | C40: =A2A!C208 -> 5078351.11 | D40: =A2A!D208 -> 24280976.58 | E40: =A2A!E208 -> 31423153.44 | F40: =A2A!F208 -> 46860170 | G40: =A2A!G208 -> 43402221 | H40: =A2A!H208 -> 43402221 | I40: =A2A!I208 -> 68124547 | J40: =A2A!J208 -> 71178113 | K40: =A2A!K208 -> 74447984
A41: Environmental protection | C41: =A2A!C213 -> 241563.27 | D41: =A2A!D213 -> 432810.67 | E41: =A2A!E213 -> 669899.82 | F41: =A2A!F213 -> 798879 | G41: =A2A!G213 -> 804277 | H41: =A2A!H213 -> 804277 | I41: =A2A!I213 -> 975381 | J41: =A2A!J213 -> 1060320 | K41: =A2A!K213 -> 1105455
A42: Trading services | C42: =SUM(C43:C46) -> 4676598.7 | D42: =SUM(D43:D46) -> 36605183.02 | E42: 25479875.42 | F42: =SUM(F43:F46) -> 81001301 | G42: 39351789 | H42: 39351789 | I42: 43312471 | J42: 44687119 | K42: =SUM(K43:K46) -> 46710638
A43: Energy sources | C43: =A2A!C221 -> 1860752.06 | D43: =A2A!D221 -> 11963931.42 | E43: =A2A!E221 -> 9577243.85 | F43: =A2A!F221 -> 58191507 | G43: =A2A!G221 -> 12832798 | H43: =A2A!H221 -> 12832798 | I43: =A2A!I221 -> 13597671 | J43: =A2A!J221 -> 15318125 | K43: =A2A!K221 -> 16022161
A44: Water management | C44: =A2A!C225 -> 0 | D44: =A2A!D225 -> 0 | E44: =A2A!E225 -> 0 | F44: =A2A!F225 -> 0 | G44: =A2A!G225 -> 0 | H44: =A2A!H225 -> 0 | I44: =A2A!I225 -> 0 | J44: =A2A!J225 -> 0 | K44: =A2A!K225 -> 0
A45: Waste water management | C45: =A2A!C229 -> 0 | D45: =A2A!D229 -> 0 | E45: =A2A!E229 -> 0 | F45: =A2A!F229 -> 0 | G45: =A2A!G229 -> 0 | H45: =A2A!H229 -> 0 | I45: =A2A!I229 -> 0 | J45: =A2A!J229 -> 0 | K45: =A2A!K229 -> 0
A46: Waste management | C46: =A2A!C234 -> 2815846.64 | D46: =A2A!D234 -> 24641251.6 | E46: =A2A!E234 -> 15902631.57 | F46: =A2A!F234 -> 22809794 | G46: =A2A!G234 -> 26518991 | H46: =A2A!H234 -> 26518991 | I46: =A2A!I234 -> 29714800 | J46: =A2A!J234 -> 29368994 | K46: =A2A!K234 -> 30688477
A47: Other | B47: 4 | C47: =A2A!C239 -> 0 | D47: =A2A!D239 -> 0 | E47: =A2A!E239 -> 0 | F47: =A2A!F239 -> 0 | G47: =A2A!G239 -> 0 | H47: =A2A!H239 -> 0 | I47: =A2A!I239 -> 0 | J47: =A2A!J239 -> 0 | K47: =A2A!K239 -> 0
A48: ="Total "&A27 -> Total Expenditure - Functional | B48: 3 | C48: =C28+C32+C38+C42+C47 -> 47307824.54 | D48: =D28+D32+D38+D42+D47 -> 534191313.9 | E48: =E28+E32+E38+E42+E47 -> 330853961.4 | F48: =F28+F32+F38+F42+F47 -> 435609760 | G48: 413654232 | H48: 413654232 | I48: 478178612 | J48: 498115751 | K48: 518429112
A49: =result -> Surplus/(Deficit) for the year | C49: =C25-C48 -> 99822409.13 | D49: =D25-D48 -> -65273892.88 | E49: 130723684.4 | F49: 191330136 | G49: 231673227 | H49: 231673227 | I49: 299879229 | J49: 258627706 | K49: 228794031
A50: =head27a -> References
A51: 1. Government Finance Statistics Functions and Sub-functions are standardised to assist the compilation of national and international accounts for comparison purposes
A52: 2. Total Revenue by functional classification must reconcile to Total Operating Revenue shown in Budgeted Financial Performance (revenue and expenditure)
A53: 3. Total Expenditure by Functional Classification must reconcile to Total Operating Expenditure shown in Budgeted Financial Performance (revenue and expenditure)
A54: 4. All amounts must be classified under a functional classification . The GFS function 'Other' is only for Abbatoirs, Air Transport, Forestry, Licensing and Regulation, Markets and Tourism - and if used must be supported by footnotes. Nothing else may be placed under 'Other'. Assign associate share to relevant classification.

Sheet A2A
A1: =muni&" - "&Approve3 -> LIM355 Lepelle-Nkumpi - Table A2 Budgeted Financial Performance (revenue and expenditure by functional classification)
A2: ="Functional Classification "&desc -> Functional Classification Description | B2: =head27 -> Ref | C2: =head1b -> 2019/20 | D2: =head1A -> 2020/21 | E2: =Head1 -> 2021/22 | F2: =Head2 -> Current Year 2022/23 | I2: =Head3 -> 2023/24 Medium Term Revenue & Expenditure Framework
A3: R thousand | B3: 1 | C3: =Head5 -> Audited Outcome | D3: =Head5 -> Audited Outcome | E3: =Head5 -> Audited Outcome | F3: =Head6 -> Original Budget | G3: =Head7 -> Adjusted Budget | H3: =Head8 -> Full Year Forecast | I3: =Head9 -> Budget Year 2023/24 | J3: =Head10 -> Budget Year +1 2024/25 | K3: =Head11 -> Budget Year +2 2025/26
A4: Revenue - Functional
A5: Municipal governance and administration | C5: =C6+C9+C23 -> 117989986.5 | D5: 411290170.9 | E5: 383615942 | F5: 514790312 | G5: 534147766 | H5: 534147766 | I5: 645501143 | J5: 627480165 | K5: 612065287
A6: Executive and council | C6: =SUM(C7:C8) -> 0 | D6: =SUM(D7:D8) -> 0 | E6: 0 | F6: 0 | G6: 0 | H6: 0 | I6: 0 | J6: 0 | K6: 0
A7: Mayor and Council
A8: Municipal Manager, Town Secretary and Chief Executive
A9: Finance and administration | C9: =SUM(C10:C22) -> 117989986.5 | D9: 411290170.9 | E9: 383615942 | F9: 514790312 | G9: 534147766 | H9: 534147766 | I9: 645501143 | J9: 627480165 | K9: 612065287
A10: Administrative and Corporate Support | C10: 16260.95 | D10: 177158.67 | E10: 134588.27 | F10: 187726 | G10: 187726 | H10: 187726 | I10: 197675 | J10: 207361 | K10: 217107
A11: Asset Management | C11: 0 | D11: 0 | E11: 1317806.7 | F11: 44133 | G11: 44133 | H11: 44133 | I11: 46472 | J11: 48750 | K11: 51041
A12: Finance | C12: 109334313.6 | D12: 378853865.9 | E12: 350960150.9 | F12: 479067874 | G12: 495299328 | H12: 495299328 | I12: 604593739 | J12: 584568296 | K12: 567136561
A13: Fleet Management
A14: Human Resources | C14: 0 | D14: 62075 | E14: 180584.57 | F14: 463020 | G14: 463020 | H14: 463020 | I14: 487560 | J14: 511451 | K14: 535489
A15: Information Technology | C15: 39940.2 | D15: 226024.48 | E15: 272366.15 | F15: 227574 | G15: 227574 | H15: 227574 | I15: 239636 | J15: 251378 | K15: 263193
A16: Legal Services
A17: Marketing, Customer Relations, Publicity and Media Co-ordination | C17: 0 | D17: 0 | E17: 0 | F17: 0 | G17: 0 | H17: 0 | I17: 0 | J17: 0 | K17: 0
A18: Property Services | C18: 8472818.65 | D18: 31966893.66 | E18: 30750445.39 | F18: 34729985 | G18: 37855985 | H18: 37855985 | I18: 39862351 | J18: 41815607 | K18: 43780940
A19: Risk Management
A20: Security Services | C20: 0 | D20: 0 | E20: 0 | F20: 70000 | G20: 70000 | H20: 70000 | I20: 73710 | J20: 77322 | K20: 80956
A21: Supply Chain Management | C21: 126653.14 | D21: 4153.11 | E21: 0 | F21: 0 | G21: 0 | H21: 0 | I21: 0 | J21: 0 | K21: 0
A22: Valuation Service
A23: Internal audit | C23: =SUM(C24:C24) -> 0 | D23: 0 | E23: 0 | F23: 0 | G23: 0 | H23: 0 | I23: 0 | J23: 0 | K23: 0
A24: Governance Function
A25: Community and public safety | C25: =C26+C48+C54+C63+C66 -> -1295749.75 | D25: 5807454.67 | E25: 7672907.45 | F25: 12430748 | G25: 12433248 | H25: 12433248 | I25: 13069850 | J25: 13395572 | K25: 14025165
A26: Community and social services | C26: =SUM(C27:C47) -> 41217.36 | D26: =SUM(D27:D47) -> 26226.41 | E26: 5662357.46 | F26: 376570 | G26: 376570 | H26: 376570 | I26: 374168 | J26: 77802 | K26: 81460
A27: Aged Care
A28: Agricultural
A29: Animal Care and Diseases
A30: Cemeteries, Funeral Parlours and Crematoriums
A31: Child Care Facilities
A32: Community Halls and Facilities | C32: 41217.36 | D32: 26226.41 | E32: 44956.45 | F32: 375481 | G32: 375481 | H32: 375481 | I32: 373021 | J32: 76599 | K32: 80200
A33: Consumer Protection
A34: Cultural Matters
A35: Disaster Management | C35: 0 | D35: 0 | E35: 5617401.01 | F35: 0 | G35: 0 | H35: 0 | I35: 0 | J35: 0 | K35: 0
A36: Education
A37: Indigenous and Customary Law
A38: Industrial Promotion
A39: Language Policy
A40: Libraries and Archives | C40: 0 | D40: 0 | E40: 0 | F40: 1089 | G40: 1089 | H40: 1089 | I40: 1147 | J40: 1203 | K40: 1260
A41: Literacy Programmes
A42: Media Services
A43: Museums and Art Galleries
A44: Population Development
A45: Provincial Cultural Matters
A46: Theatres
A47: Zoo's
A48: Sport and recreation | C48: =SUM(C49:C53) -> 0 | D48: =SUM(D49:D53) -> 0 | E48: 0 | F48: 0 | G48: 0 | H48: 0 | I48: 0 | J48: 0 | K48: 0
A49: Beaches and Jetties
A50: Casinos, Racing, Gambling, Wagering
A51: Community Parks (including Nurseries)
A52: Recreational Facilities
A53: Sports Grounds and Stadiums
A54: Public safety | C54: =SUM(C55:C62) -> -1336967.11 | D54: 5781228.26 | E54: 2010549.99 | F54: 12054178 | G54: 12056678 | H54: 12056678 | I54: 12695682 | J54: 13317770 | K54: 13943705
A55: Civil Defence
A56: Cleansing
A57: Control of Public Nuisances
A58: Fencing and Fences
A59: Fire Fighting and Protection
A60: Licensing and Control of Animals
A61: Police Forces, Traffic and Street Parking Control | C61: -1352688.84 | D61: 5779950 | E61: 1995950 | F61: 12052000 | G61: 12052000 | H61: 12052000 | I61: 12690756 | J61: 13312603 | K61: 13938295
A62: Pounds | C62: 15721.73 | D62: 1278.26 | E62: 14599.99 | F62: 2178 | G62: 4678 | H62: 4678 | I62: 4926 | J62: 5167 | K62: 5410
A63: Housing | C63: =SUM(C64:C65) -> 0 | D63: =SUM(D64:D65) -> 0 | E63: 0 | F63: 0 | G63: 0 | H63: 0 | I63: 0 | J63: 0 | K63: 0
A64: Housing
A65: Informal Settlements
A66: Health | C66: =SUM(C67:C73) -> 0 | D66: =SUM(D67:D73) -> 0 | E66: 0 | F66: 0 | G66: 0 | H66: 0 | I66: 0 | J66: 0 | K66: 0
A67: Ambulance
A68: Health Services
A69: Laboratory Services
A70: Food Control
A71: Health Surveillance and Prevention of Communicable Diseases including immunizations
A72: Vector Control
A73: Chemical Safety
A74: Economic and environmental services | C74: =C75+C86+C91 -> 27319908.58 | D74: 43480462.06 | E74: 58621557.03 | F74: 86207364 | G74: 85232973 | H74: 85232973 | I74: 94635302 | J74: 98584108 | K74: 103057737
A75: Planning and development | C75: =SUM(C76:C85) -> 6113750.03 | D75: =SUM(D76:D85) -> 37610675.04 | E75: 55995842.63 | F75: 80157778 | G75: 75071865 | H75: 75071865 | I75: 83936527 | J75: 87378355 | K75: 91325313
A76: Billboards
A77: Corporate Wide Strategic Planning (IDPs, LEDs) | C77: 0 | D77: 0 | E77: 0 | F77: 377308 | G77: 377308 | H77: 377308 | I77: 377308 | J77: 0 | K77: 0
A78: Central City Improvement District
A79: Development Facilitation
A80: Economic Development/Planning | C80: 916808.3 | D80: 1278.94 | E80: 2301.95 | F80: 6830 | G80: 6830 | H80: 6830 | I80: 7191 | J80: 7544 | K80: 7898
A81: Regional Planning and Development
A82: Town Planning, Building Regulations and Enforcement, and City Engineer | C82: 1213214 | D82: -364369.41 | E82: 4491187.89 | F82: 18145640 | G82: 18252640 | H82: 18252640 | I82: 19220028 | J82: 20161811 | K82: 21109415
A83: Project Management Unit | C83: 3983727.73 | D83: 37973765.51 | E83: 51502352.79 | F83: 61628000 | G83: 56435087 | H83: 56435087 | I83: 64332000 | J83: 67209000 | K83: 70208000
A84: Provincial Planning
A85: Support to Local Municipalities
A86: Road transport | C86: =SUM(C87:C90) -> 21206158.55 | D86: 5869787.02 | E86: 2625714.4 | F86: 6033131 | G86: 10144653 | H86: 10144653 | I86: 10682320 | J86: 11205753 | K86: 11732424
A87: Public Transport
A88: Road and Traffic Regulation | C88: 963757.07 | D88: 5869787.02 | E88: 5625554.96 | F88: 6033131 | G88: 10144653 | H88: 10144653 | I88: 10682320 | J88: 11205753 | K88: 11732424
A89: Roads | C89: 20242401.48 | D89: 0 | E89: -2999840.56 | F89: 0 | G89: 0 | H89: 0 | I89: 0 | J89: 0 | K89: 0
A90: Taxi Ranks
A91: Environmental protection | C91: =SUM(C92:C97) -> 0 | D91: =SUM(D92:D97) -> 0 | E91: 0 | F91: 16455 | G91: 16455 | H91: 16455 | I91: 16455 | J91: 0 | K91: 0
A92: Biodiversity and Landscape
A93: Coastal Protection
A94: Indigenous Forests
A95: Nature Conservation
A96: Pollution Control | C96: 0 | D96: 0 | E96: 0 | F96: 16455 | G96: 16455 | H96: 16455 | I96: 16455 | J96: 0 | K96: 0
A97: Soil Conservation
A98: Trading services | C98: =C99+C103+C107+C112 -> 3116088.34 | D98: =D99+D103+D107+D112 -> 8339333.48 | E98: 11667239.34 | F98: 13511472 | G98: 13513472 | H98: 13513472 | I98: 24851546 | J98: 17283612 | K98: =K99+K103+K107+K112 -> 18074954
A99: Energy sources | C99: =SUM(C100:C102) -> 0 | D99: =SUM(D100:D102) -> 0 | E99: 3884000 | F99: 5000000 | G99: 5000000 | H99: 5000000 | I99: 14900000 | J99: 9404000 | K99: 9825000
A100: Electricity | C100: 0 | D100: 0 | E100: 3884000 | F100: 5000000 | G100: 5000000 | H100: 5000000 | I100: 14900000 | J100: 9404000 | K100: 9825000
A101: Street Lighting and Signal Systems
A102: Nonelectric Energy
A103: Water management | C103: =SUM(C104:C106) -> 0 | D103: =SUM(D104:D106) -> 0 | E103: 0 | F103: 0 | G103: 0 | H103: 0 | I103: 0 | J103: 0 | K103: 0
A104: Water Treatment
A105: Water Distribution
A106: Water Storage
A107: Waste water management | C107: =SUM(C108:C111) -> 0 | D107: =SUM(D108:D111) -> 0 | E107: 0 | F107: 0 | G107: 0 | H107: 0 | I107: 0 | J107: 0 | K107: 0
A108: Public Toilets
A109: Sewerage
A110: Storm Water Management
A111: Waste Water Treatment
A112: Waste management | C112: =SUM(C113:C116) -> 3116088.34 | D112: =SUM(D113:D116) -> 8339333.48 | E112: 7783239.34 | F112: 8511472 | G112: 8513472 | H112: 8513472 | I112: 9951546 | J112: 7879612 | K112: 8249954
A113: Recycling
A114: Solid Waste Disposal (Landfill Sites)
A115: Solid Waste Removal | C115: 3116088.34 | D115: 8339333.48 | E115: 7783239.34 | F115: 8511472 | G115: 8513472 | H115: 8513472 | I115: 9951546 | J115: 7879612 | K115: 8249954
A116: Street Cleaning
A117: Other | C117: =SUM(C118:C123) -> 0 | D117: =SUM(D118:D123) -> 0 | E117: 0 | F117: 0 | G117: 0 | H117: 0 | I117: 0 | J117: 0 | K117: 0
A118: Abattoirs
A119: Air Transport
A120: Forestry
A121: Licensing and Regulation
A122: Markets
A123: Tourism
A124: ="Total "&A4 -> Total Revenue - Functional | B124: 2 | C124: =C5+C25+C74+C98+C117 -> 147130233.7 | D124: 468917421.1 | E124: 461577645.8 | F124: 626939896 | G124: 645327459 | H124: 645327459 | I124: 778057841 | J124: 756743457 | K124: 747223143
A126: Expenditure - Functional
A127: =A5 -> Municipal governance and administration | C127: =C128+C131+C145 -> 32400614.14 | D127: 218454919.2 | E127: 241273627.8 | F127: 258843293 | G127: 283894030 | H127: 283894030 | I127: 313682238 | J127: 325736185 | K127: 338159347
A128: Executive and council | C128: =SUM(C129:C130) -> 3772792.01 | D128: 28311530.28 | E128: 28757850.17 | F128: 36616655 | G128: 36431851 | H128: 36431851 | I128: 42334386 | J128: 44384912 | K128: 46470875
A129: Mayor and Council | C129: 3744580.79 | D129: 28288407.41 | E129: 28720509.25 | F129: 35096483 | G129: 35096483 | H129: 35096483 | I129: 40931683 | J129: 42913477 | K129: 44930282
A130: Municipal Manager, Town Secretary and Chief Executive | C130: 28211.22 | D130: 23122.87 | E130: 37340.92 | F130: 1520172 | G130: 1335368 | H130: 1335368 | I130: 1402703 | J130: 1471435 | K130: 1540593
A131: Finance and administration | C131: =SUM(C132:C144) -> 26971381.54 | D131: 183909679.2 | E131: 203828004.1 | F131: 212100946 | G131: 237638921 | H131: 237638921 | I131: 259373066 | J131: 268789844 | K131: 278536656
A132: Administrative and Corporate Support | C132: 12624353.63 | D132: 41089569.67 | E132: 35970963.74 | F132: 39133836 | G132: 32694312 | H132: 32694312 | I132: 44603147 | J132: 45681092 | K132: 47774517
A133: Asset Management | C133: 1492531.8 | D133: 5429761.95 | E133: 6289237.26 | F133: 7974731 | G133: 7868228 | H133: 7868228 | I133: 8484234 | J133: 8899847 | K133: 9318141
A134: Finance | C134: 3779667.25 | D134: 76969808.38 | E134: 105066508.8 | F134: 74347347 | G134: 108909228 | H134: 108909228 | I134: 108229705 | J134: 109078477 | K134: 111372909
A135: Fleet Management | C135: 595504.93 | D135: 11735717.12 | E135: 14331708.72 | F135: 15042705 | G135: 15388001 | H135: 15388001 | I135: 16338057 | J135: 17138546 | K135: 17944057
A136: Human Resources | C136: 2073196.74 | D136: 9539448.57 | E136: 9475455.52 | F136: 15059614 | G136: 14570499 | H136: 14570499 | I136: 18382494 | J136: 19782743 | K136: 20712344
A137: Information Technology | C137: 1063297.72 | D137: 4429152.07 | E137: 1747771.34 | F137: 8360811 | G137: 8107473 | H137: 8107473 | I137: 8610651 | J137: 9032495 | K137: 9457021
A138: Legal Services | C138: 1366637.65 | D138: 10847577.24 | E138: 11689661.17 | F138: 14129344 | G138: 14228442 | H138: 14228442 | I138: 11319982 | J138: 15744376 | K138: 16484362
A139: Marketing, Customer Relations, Publicity and Media Co-ordination | C139: 1000010.49 | D139: 10686072.21 | E139: 2353375.69 | F139: 4234070 | G139: 3920849 | H139: 3920849 | I139: 4523036 | J139: 3694566 | K139: 3867844
A140: Property Services | C140: 2025425.08 | D140: 9130081.55 | E140: 13940951.85 | F140: 11874016 | G140: 11733764 | H140: 11733764 | I140: 12722927 | J140: 13346234 | K140: 13973505
A141: Risk Management | C141: 350991.52 | D141: 3601462.25 | E141: 1090767.71 | F141: 2162951 | G141: 1986938 | H141: 1986938 | I141: 4195023 | J141: 3351471 | K141: 3508988
A142: Security Services | C142: 0 | D142: 0 | E142: 920905.15 | F142: 16116673 | G142: 15785519 | H142: 15785519 | I142: 17602892 | J142: 18465407 | K142: 19333282
A143: Supply Chain Management | C143: 599764.73 | D143: 451028.17 | E143: 950697.16 | F143: 3664848 | G143: 2445668 | H143: 2445668 | I143: 4360918 | J143: 4574590 | K143: 4789686
A144: Valuation Service
A145: Internal audit | C145: =SUM(C146:C146) -> 1656440.59 | D145: 6233709.73 | E145: 8687773.5 | F145: 10125692 | G145: 9823258 | H145: 9823258 | I145: 11974786 | J145: 12561429 | K145: 13151816
A146: Governance Function | C146: 1656440.59 | D146: 6233709.73 | E146: 8687773.5 | F146: 10125692 | G146: 9823258 | H146: 9823258 | I146: 11974786 | J146: 12561429 | K146: 13151816
A147: Community and public safety | C147: =C148+C170+C176+C185+C188 -> 3193690.22 | D147: 12717478.54 | E147: 21918479.88 | F147: 31124989 | G147: 29402124 | H147: 29402124 | I147: 34278467 | J147: 36265337 | K147: 37923042
A148: Community and social services | C148: =SUM(C149:C169) -> 952011.43 | D148: =SUM(D149:D169) -> 8513825.76 | E148: 11058400.45 | F148: 14823426 | G148: 14663888 | H148: 14663888 | I148: 17231907 | J148: 18383464 | K148: 19200488
A149: Aged Care
A150: Agricultural
A151: Animal Care and Diseases
A152: Cemeteries, Funeral Parlours and Crematoriums
A153: Child Care Facilities
A154: Community Halls and Facilities | C154: 512621.55 | D154: 7158402.81 | E154: 9348517.02 | F154: 12642772 | G154: 12675341 | H154: 12675341 | I154: 14654164 | J154: 15679468 | K154: 16369403
A155: Consumer Protection
A156: Cultural Matters
A157: Disaster Management | C157: 292926.61 | D157: 528960.27 | E157: 875399.02 | F157: 861007 | G157: 694722 | H157: 694722 | I157: 1205698 | J157: 1264743 | K157: 1324188
A158: Education
A159: =A37 -> Indigenous and Customary Law
A160: Industrial Promotion
A161: Language Policy
A162: Libraries and Archives | C162: 146463.27 | D162: 826462.68 | E162: 834484.41 | F162: 1319647 | G162: 1293825 | H162: 1293825 | I162: 1372045 | J162: 1439253 | K162: 1506897
A163: Literacy Programmes
A164: Media Services
A165: Museums and Art Galleries
A166: Population Development
A167: Provincial Cultural Matters
A168: Theatres
A169: Zoo's
A170: Sport and recreation | C170: =SUM(C171:C175) -> 0 | D170: 0 | E170: 0 | F170: 0 | G170: 0 | H170: 0 | I170: 0 | J170: 0 | K170: 0
A171: Beaches and Jetties
A172: Casinos, Racing, Gambling, Wagering
A173: Community Parks (including Nurseries)
A174: Recreational Facilities
A175: Sports Grounds and Stadiums
A176: Public safety | C176: =SUM(C177:C184) -> 2241678.79 | D176: 4203652.78 | E176: 10860079.43 | F176: 16301563 | G176: 14738236 | H176: 14738236 | I176: 17046560 | J176: 17881873 | K176: 18722554
A177: Civil Defence
A178: Cleansing
A179: =A57 -> Control of Public Nuisances
A180: Fencing and Fences
A181: Fire Fighting and Protection
A182: Licensing and Control of Animals
A183: Police Forces, Traffic and Street Parking Control | C183: 2021983.83 | D183: 3973273.97 | E183: 10278148.54 | F183: 15096931 | G183: 13900337 | H183: 13900337 | I183: 15978048 | J183: 16761033 | K183: 17549033
A184: Pounds | C184: 219694.96 | D184: 230378.81 | E184: 581930.89 | F184: 1204632 | G184: 837899 | H184: 837899 | I184: 1068512 | J184: 1120840 | K184: 1173521
A185: =A63 -> Housing | C185: =SUM(C186:C187) -> 0 | D185: 0 | E185: 0 | F185: 0 | G185: 0 | H185: 0 | I185: 0 | J185: 0 | K185: 0
A186: Housing
A187: Informal Settlements
A188: Health | C188: =SUM(C189:C195) -> 0 | D188: =SUM(D189:D195) -> 0 | E188: 0 | F188: 0 | G188: 0 | H188: 0 | I188: 0 | J188: 0 | K188: 0
A189: Ambulance
A190: Health Services
A191: Laboratory Services
A192: Food Control
A193: Health Surveillance and Prevention of Communicable Diseases including immunizations
A194: Vector Control
A195: Chemical Safety
A196: Economic and environmental services | C196: =C197+C208+C213 -> 7036921.48 | D196: 266413733.2 | E196: 42181978.3 | F196: 64640177 | G196: 61006289 | H196: 61006289 | I196: 86905436 | J196: 91427110 | K196: 95636085
A197: Planning and development | C197: =SUM(C198:C207) -> 1717007.1 | D197: =SUM(D198:D207) -> 241699945.9 | E197: 10088925.04 | F197: 16981128 | G197: 16799791 | H197: 16799791 | I197: 17805508 | J197: 19188677 | K197: 20082646
A198: Billboards
A199: Corporate Wide Strategic Planning (IDPs, LEDs) | C199: 479618.25 | D199: 1122244.67 | E199: 2220635.19 | F199: 4448282 | G199: 4545019 | H199: 4545019 | I199: 5440923 | J199: 5707468 | K199: 5975716
A200: Central City Improvement District
A201: Development Facilitation
... 51 more rows

Sheet A3-FinPerf V
A1: =muni&" - "&Approve2 -> LIM355 Lepelle-Nkumpi - Table A3 Budgeted Financial Performance (revenue and expenditure by municipal vote)
A2: =Vdesc -> Vote Description | B2: =head27 -> Ref | C2: =head1b -> 2019/20 | D2: =head1A -> 2020/21 | E2: =Head1 -> 2021/22 | F2: =Head2 -> Current Year 2022/23 | I2: =Head3 -> 2023/24 Medium Term Revenue & Expenditure Framework | L2: =Head4 -> LTFS
A3: R thousand | C3: =Head5 -> Audited Outcome | D3: =Head5 -> Audited Outcome | E3: =Head5 -> Audited Outcome | F3: =Head6 -> Original Budget | G3: =Head7 -> Adjusted Budget | H3: =Head8 -> Full Year Forecast | I3: =Head9 -> Budget Year 2023/24 | J3: =Head10 -> Budget Year +1 2024/25 | K3: =Head11 -> Budget Year +2 2025/26 | L3: =Head12 -> Forecast 2026/27 | M3: =Head13 -> Forecast 2027/28 | N3: =Head14 -> Forecast 2028/29 | O3: =Head15 -> Forecast 2029/30 | P3: =Head16 -> Forecast 2030/31 | Q3: =Head17 -> Forecast 2031/32 | R3: =Head18 -> Forecast 2032/33 | S3: =Head19 -> Forecast 2033/34 | T3: =Head20 -> Forecast 2034/35 | U3: =Head21 -> Forecast 2035/36 | V3: =Head22 -> Forecast 2036/37 | W3: =Head23 -> Forecast 2037/38
A4: Revenue by Vote | B4: 1
A5: =A3A!A5 -> Vote 01 - Executive And Council | C5: =A3A!C5 -> 0 | D5: =A3A!D5 -> 0 | E5: =A3A!E5 -> 0 | F5: =A3A!F5 -> 0 | G5: =A3A!G5 -> 0 | H5: =A3A!H5 -> 0 | I5: =A3A!I5 -> 0 | J5: =A3A!J5 -> 0 | K5: =A3A!K5 -> 0
A6: =A3A!A10 -> Vote 02 - Municipal Manager | C6: =A3A!C10 -> 0 | D6: =A3A!D10 -> 0 | E6: =A3A!E10 -> 0 | F6: =A3A!F10 -> 0 | G6: =A3A!G10 -> 0 | H6: =A3A!H10 -> 0 | I6: =A3A!I10 -> 0 | J6: =A3A!J10 -> 0 | K6: =A3A!K10 -> 0
A7: =A3A!A17 -> Vote 03 - Corporate Services | C7: =A3A!C17 -> 39940.2 | D7: =A3A!D17 -> 288099.48 | E7: =A3A!E17 -> 452950.72 | F7: =A3A!F17 -> 760594 | G7: =A3A!G17 -> 760594 | H7: =A3A!H17 -> 760594 | I7: =A3A!I17 -> 800906 | J7: =A3A!J17 -> 840151 | K7: =A3A!K17 -> 879638
A8: =A3A!A25 -> Vote 04 - Budget And Treasury | C8: =A3A!C25 -> 109460966.7 | D8: =A3A!D25 -> 378858019 | E8: =A3A!E25 -> 352277957.6 | F8: =A3A!F25 -> 479112007 | G8: =A3A!G25 -> 495343461 | H8: =A3A!H25 -> 495343461 | I8: =A3A!I25 -> 604640211 | J8: =A3A!J25 -> 584617046 | K8: =A3A!K25 -> 567187602
A9: =A3A!A32 -> Vote 05 - Community Services | C9: =A3A!C32 -> 2800356.61 | D9: =A3A!D32 -> 20193733.84 | E9: =A3A!E32 -> 21216290.02 | F9: =A3A!F32 -> 27179532 | G9: =A3A!G32 -> 31295554 | H9: =A3A!H32 -> 31295554 | I9: =A3A!I32 -> 33917846 | J9: =A3A!J32 -> 32688298 | K9: =A3A!K32 -> 34224650
A10: =A3A!A43 -> Vote 06 - Planning And Development | C10: =A3A!C43 -> 10602840.95 | D10: =A3A!D43 -> 31603803.19 | E10: =A3A!E43 -> 35243935.23 | F10: =A3A!F43 -> 53259763 | G10: =A3A!G43 -> 56492763 | H10: =A3A!H43 -> 56492763 | I10: =A3A!I43 -> 59466878 | J10: =A3A!J43 -> 61984962 | K10: =A3A!K43 -> 64898253
A11: =A3A!A51 -> Vote 07 - Infrastructure Development | C11: =A3A!C51 -> 24226129.21 | D11: =A3A!D51 -> 37973765.51 | E11: =A3A!E51 -> 52386512.23 | F11: =A3A!F51 -> 66628000 | G11: =A3A!G51 -> 61435087 | H11: =A3A!H51 -> 61435087 | I11: =A3A!I51 -> 79232000 | J11: =A3A!J51 -> 76613000 | K11: =A3A!K51 -> 80033000
A12: ='Org structure'!A9 -> Vote 08 - | C12: =A3A!C62 -> 0 | D12: =A3A!D62 -> 0 | E12: =A3A!E62 -> 0 | F12: =A3A!F62 -> 0 | G12: =A3A!G62 -> 0 | H12: =A3A!H62 -> 0 | I12: =A3A!I62 -> 0 | J12: =A3A!J62 -> 0 | K12: =A3A!K62 -> 0
A13: ='Org structure'!A10 -> Vote 09 - | C13: =A3A!C63 -> 0 | D13: =A3A!D63 -> 0 | E13: =A3A!E63 -> 0 | F13: =A3A!F63 -> 0 | G13: =A3A!G63 -> 0 | H13: =A3A!H63 -> 0 | I13: =A3A!I63 -> 0 | J13: =A3A!J63 -> 0 | K13: =A3A!K63 -> 0
A14: ='Org structure'!A11 -> Vote 10 - | C14: =A3A!C64 -> 0 | D14: =A3A!D64 -> 0 | E14: =A3A!E64 -> 0 | F14: =A3A!F64 -> 0 | G14: =A3A!G64 -> 0 | H14: =A3A!H64 -> 0 | I14: =A3A!I64 -> 0 | J14: =A3A!J64 -> 0 | K14: =A3A!K64 -> 0
A15: ='Org structure'!A12 -> Vote 11 - | C15: =A3A!C65 -> 0 | D15: =A3A!D65 -> 0 | E15: =A3A!E65 -> 0 | F15: =A3A!F65 -> 0 | G15: =A3A!G65 -> 0 | H15: =A3A!H65 -> 0 | I15: =A3A!I65 -> 0 | J15: =A3A!J65 -> 0 | K15: =A3A!K65 -> 0 | L15: =A5A!#REF! -> 
A16: ='Org structure'!A13 -> Vote 12 - | C16: =A3A!C66 -> 0 | D16: =A3A!D66 -> 0 | E16: =A3A!E66 -> 0 | F16: =A3A!F66 -> 0 | G16: =A3A!G66 -> 0 | H16: =A3A!H66 -> 0 | I16: =A3A!I66 -> 0 | J16: =A3A!J66 -> 0 | K16: =A3A!K66 -> 0 | L16: =A5A!#REF! -> 
A17: ='Org structure'!A14 -> Vote 13 - | C17: =A3A!C67 -> 0 | D17: =A3A!D67 -> 0 | E17: =A3A!E67 -> 0 | F17: =A3A!F67 -> 0 | G17: =A3A!G67 -> 0 | H17: =A3A!H67 -> 0 | I17: =A3A!I67 -> 0 | J17: =A3A!J67 -> 0 | K17: =A3A!K67 -> 0 | L17: =A5A!#REF! -> 
A18: ='Org structure'!A15 -> Vote 14 - | C18: =A3A!C68 -> 0 | D18: =A3A!D68 -> 0 | E18: =A3A!E68 -> 0 | F18: =A3A!F68 -> 0 | G18: =A3A!G68 -> 0 | H18: =A3A!H68 -> 0 | I18: =A3A!I68 -> 0 | J18: =A3A!J68 -> 0 | K18: =A3A!K68 -> 0 | L18: =A5A!#REF! -> 
A19: ='Org structure'!A16 -> Vote 15 - Other | C19: =A3A!C69 -> 0 | D19: =A3A!D69 -> 0 | E19: =A3A!E69 -> 0 | F19: =A3A!F69 -> 0 | G19: =A3A!G69 -> 0 | H19: =A3A!H69 -> 0 | I19: =A3A!I69 -> 0 | J19: =A3A!J69 -> 0 | K19: =A3A!K69 -> 0 | L19: =A5A!#REF! -> 
A20: Total Revenue by Vote | B20: 2 | C20: =SUM(C5:C19) -> 147130233.7 | D20: =SUM(D5:D19) -> 468917421.1 | E20: 461577645.8 | F20: 626939896 | G20: 645327459 | H20: 645327459 | I20: 778057841 | J20: 756743457 | K20: 747223143
A22: Expenditure by Vote to be appropriated | B22: 1
A23: =A3A!A73 -> Vote 01 - Executive And Council | C23: =A3A!C73 -> 5878017.43 | D23: =A3A!D73 -> 37073159.62 | E23: =A3A!E73 -> 34856652.99 | F23: =A3A!F73 -> 46461700 | G23: =A3A!G73 -> 45259109 | H23: =A3A!H73 -> 45259109 | I23: =A3A!I73 -> 57292591 | J23: =A3A!J73 -> 57109936 | K23: =A3A!K73 -> 59771497
A24: =A3A!A78 -> Vote 02 - Municipal Manager | C24: =A3A!C78 -> 3857393.6 | D24: =A3A!D78 -> 25508815.13 | E24: =A3A!E78 -> 12599168.41 | F24: =A3A!F78 -> 19716043 | G24: =A3A!G78 -> 18061385 | H24: =A3A!H78 -> 18061385 | I24: =A3A!I78 -> 23863767 | J24: =A3A!J78 -> 22933603 | K24: =A3A!K78 -> 24011112
A25: =A3A!A85 -> Vote 03 - Corporate Services | C25: =A3A!C85 -> 13061529.98 | D25: =A3A!D85 -> 59787950.14 | E25: =A3A!E85 -> 64199480.86 | F25: =A3A!F85 -> 85985241 | G25: =A3A!G85 -> 83246167 | H25: =A3A!H85 -> 83246167 | I25: =A3A!I85 -> 89885845 | J25: =A3A!J85 -> 100522879 | K25: =A3A!K85 -> 105220761
A26: =A3A!A93 -> Vote 04 - Budget And Treasury | C26: =A3A!C93 -> 5871963.78 | D26: =A3A!D93 -> 82850598.5 | E26: =A3A!E93 -> 112306443.3 | F26: =A3A!F93 -> 85986926 | G26: =A3A!G93 -> 119223124 | H26: =A3A!H93 -> 119223124 | I26: =A3A!I93 -> 121074857 | J26: =A3A!J93 -> 122552914 | K26: =A3A!K93 -> 125480736
A27: =A3A!A100 -> Vote 05 - Community Services | C27: =A3A!C100 -> 9934465.5 | D27: =A3A!D100 -> 44204820.52 | E27: =A3A!E100 -> 47370048.08 | F27: =A3A!F100 -> 68543373 | G27: =A3A!G100 -> 69069250 | H27: =A3A!H100 -> 69069250 | I27: =A3A!I100 -> 79060060 | J27: =A3A!J100 -> 81476302 | K27: =A3A!K100 -> 85193363
A28: =A3A!A111 -> Vote 06 - Planning And Development | C28: =A3A!C111 -> 4009975.23 | D28: =A3A!D111 -> 14821903.25 | E28: =A3A!E111 -> 23573797.51 | F28: =A3A!F111 -> 29012730 | G28: =A3A!G111 -> 27651423 | H28: =A3A!H111 -> 27651423 | I28: =A3A!I111 -> 30761383 | J28: =A3A!J111 -> 32788163 | K28: =A3A!K111 -> 34324693
A29: =A3A!A119 -> Vote 07 - Infrastructure Development | C29: =A3A!C119 -> 4694479.02 | D29: =A3A!D119 -> 269944066.8 | E29: =A3A!E119 -> 35948370.31 | F29: =A3A!F119 -> 99903747 | G29: =A3A!G119 -> 51143774 | H29: =A3A!H119 -> 51143774 | I29: =A3A!I119 -> 76240109 | J29: =A3A!J119 -> 80731954 | K29: =A3A!K119 -> 84426950
A30: ='Org structure'!A9 -> Vote 08 - | C30: =A3A!C130 -> 0 | D30: =A3A!D130 -> 0 | E30: =A3A!E130 -> 0 | F30: =A3A!F130 -> 0 | G30: =A3A!G130 -> 0 | H30: =A3A!H130 -> 0 | I30: =A3A!I130 -> 0 | J30: =A3A!J130 -> 0 | K30: =A3A!K130 -> 0
A31: ='Org structure'!A10 -> Vote 09 - | C31: =A3A!C131 -> 0 | D31: =A3A!D131 -> 0 | E31: =A3A!E131 -> 0 | F31: =A3A!F131 -> 0 | G31: =A3A!G131 -> 0 | H31: =A3A!H131 -> 0 | I31: =A3A!I131 -> 0 | J31: =A3A!J131 -> 0 | K31: =A3A!K131 -> 0
A32: ='Org structure'!A11 -> Vote 10 - | C32: =A3A!C132 -> 0 | D32: =A3A!D132 -> 0 | E32: =A3A!E132 -> 0 | F32: =A3A!F132 -> 0 | G32: =A3A!G132 -> 0 | H32: =A3A!H132 -> 0 | I32: =A3A!I132 -> 0 | J32: =A3A!J132 -> 0 | K32: =A3A!K132 -> 0
A33: ='Org structure'!A12 -> Vote 11 - | C33: =A3A!C133 -> 0 | D33: =A3A!D133 -> 0 | E33: =A3A!E133 -> 0 | F33: =A3A!F133 -> 0 | G33: =A3A!G133 -> 0 | H33: =A3A!H133 -> 0 | I33: =A3A!I133 -> 0 | J33: =A3A!J133 -> 0 | K33: =A3A!K133 -> 0 | L33: =A3A!#REF! -> 
A34: ='Org structure'!A13 -> Vote 12 - | C34: =A3A!C134 -> 0 | D34: =A3A!D134 -> 0 | E34: =A3A!E134 -> 0 | F34: =A3A!F134 -> 0 | G34: =A3A!G134 -> 0 | H34: =A3A!H134 -> 0 | I34: =A3A!I134 -> 0 | J34: =A3A!J134 -> 0 | K34: =A3A!K134 -> 0 | L34: =A3A!#REF! -> 
A35: ='Org structure'!A14 -> Vote 13 - | C35: =A3A!C135 -> 0 | D35: =A3A!D135 -> 0 | E35: =A3A!E135 -> 0 | F35: =A3A!F135 -> 0 | G35: =A3A!G135 -> 0 | H35: =A3A!H135 -> 0 | I35: =A3A!I135 -> 0 | J35: =A3A!J135 -> 0 | K35: =A3A!K135 -> 0 | L35: =A3A!#REF! -> 
A36: ='Org structure'!A15 -> Vote 14 - | C36: =A3A!C136 -> 0 | D36: =A3A!D136 -> 0 | E36: =A3A!E136 -> 0 | F36: =A3A!F136 -> 0 | G36: =A3A!G136 -> 0 | H36: =A3A!H136 -> 0 | I36: =A3A!I136 -> 0 | J36: =A3A!J136 -> 0 | K36: =A3A!K136 -> 0 | L36: =A3A!#REF! -> 
A37: ='Org structure'!A16 -> Vote 15 - Other | C37: =A3A!C137 -> 0 | D37: =A3A!D137 -> 0 | E37: =A3A!E137 -> 0 | F37: =A3A!F137 -> 0 | G37: =A3A!G137 -> 0 | H37: =A3A!H137 -> 0 | I37: =A3A!I137 -> 0 | J37: =A3A!J137 -> 0 | K37: =A3A!K137 -> 0 | L37: =A3A!#REF! -> 
A38: Total Expenditure by Vote | B38: 2 | C38: =SUM(C23:C37) -> 47307824.54 | D38: =SUM(D23:D37) -> 534191313.9 | E38: 330853961.4 | F38: 435609760 | G38: 413654232 | H38: 413654232 | I38: 478178612 | J38: 498115751 | K38: 518429112 | L38: =SUM(L23:L29) -> 0 | M38: 0 | N38: 0 | O38: 0 | P38: 0 | Q38: 0 | R38: 0 | S38: 0 | T38: 0 | U38: 0 | V38: 0 | W38: 0
A39: =result -> Surplus/(Deficit) for the year | B39: 2 | C39: =C20-C38 -> 99822409.13 | D39: -65273892.88 | E39: 130723684.4 | F39: 191330136 | G39: 231673227 | H39: 231673227 | I39: 299879229 | J39: 258627706 | K39: 228794031 | L39: 0 | M39: 0 | N39: 0 | O39: 0 | P39: 0 | Q39: 0 | R39: 0 | S39: 0 | T39: 0 | U39: 0 | V39: 0 | W39: 0
A40: =head27a -> References
A41: 1. Insert 'Vote'; e.g. department, if different to functional classification structure
A42: 2. Must reconcile to Budgeted Financial Performance (revenue and expenditure)
A43: 3. Assign share in 'associate' to relevant Vote

Sheet A3A
A1: =muni&" - "&Approve2&"A" -> LIM355 Lepelle-Nkumpi - Table A3 Budgeted Financial Performance (revenue and expenditure by municipal vote)A
A2: =Vdesc -> Vote Description | B2: =head27 -> Ref | C2: =head1b -> 2019/20 | D2: =head1A -> 2020/21 | E2: =Head1 -> 2021/22 | F2: =Head2 -> Current Year 2022/23 | I2: =Head3 -> 2023/24 Medium Term Revenue & Expenditure Framework | L2: =Head4 -> LTFS
A3: R thousand | C3: =Head5 -> Audited Outcome | D3: =Head5 -> Audited Outcome | E3: =Head5 -> Audited Outcome | F3: =Head6 -> Original Budget | G3: =Head7 -> Adjusted Budget | H3: =Head8 -> Full Year Forecast | I3: =Head9 -> Budget Year 2023/24 | J3: =Head10 -> Budget Year +1 2024/25 | K3: =Head11 -> Budget Year +2 2025/26 | L3: =Head12 -> Forecast 2026/27 | M3: =Head13 -> Forecast 2027/28 | N3: =Head14 -> Forecast 2028/29 | O3: =Head15 -> Forecast 2029/30 | P3: =Head16 -> Forecast 2030/31 | Q3: =Head17 -> Forecast 2031/32 | R3: =Head18 -> Forecast 2032/33 | S3: =Head19 -> Forecast 2033/34 | T3: =Head20 -> Forecast 2034/35 | U3: =Head21 -> Forecast 2035/36 | V3: =Head22 -> Forecast 2036/37 | W3: =Head23 -> Forecast 2037/38
A4: Revenue by Vote | B4: 1
A5: ='Org structure'!A2 -> Vote 01 - Executive And Council | C5: =SUM(C6:C9) -> 0 | D5: 0 | E5: 0 | F5: 0 | G5: 0 | H5: 0 | I5: 0 | J5: 0 | K5: 0
A6: ='Org structure'!E3 -> 01.1 - Mayor & Councillors | C6: 0 | D6: 0 | E6: 0 | F6: 0 | G6: 0 | H6: 0 | I6: 0 | J6: 0 | K6: 0
A7: ='Org structure'!E4 -> 01.2 - Mayor & Council Support | C7: 0 | D7: 0 | E7: 0 | F7: 0 | G7: 0 | H7: 0 | I7: 0 | J7: 0 | K7: 0
A8: ='Org structure'!E5 -> 01.3 - Board General Mayor | C8: 0 | D8: 0 | E8: 0 | F8: 0 | G8: 0 | H8: 0 | I8: 0 | J8: 0 | K8: 0
A9: ='Org structure'!E6 -> 01.4 - Board General Speaker | C9: 0 | D9: 0 | E9: 0 | F9: 0 | G9: 0 | H9: 0 | I9: 0 | J9: 0 | K9: 0
A10: ='Org structure'!A3 -> Vote 02 - Municipal Manager | C10: =SUM(C11:C16) -> 0 | D10: 0 | E10: 0 | F10: 0 | G10: 0 | H10: 0 | I10: 0 | J10: 0 | K10: 0
A11: ='Org structure'!E8 -> 02.1 - Municipal Manager Administration | C11: 0 | D11: 0 | E11: 0 | F11: 0 | G11: 0 | H11: 0 | I11: 0 | J11: 0 | K11: 0
A12: ='Org structure'!E9 -> 02.2 - Municipal Manager | C12: 0 | D12: 0 | E12: 0 | F12: 0 | G12: 0 | H12: 0 | I12: 0 | J12: 0 | K12: 0
A13: ='Org structure'!E10 -> 02.3 - Municipal Manager Support | C13: 0 | D13: 0 | E13: 0 | F13: 0 | G13: 0 | H13: 0 | I13: 0 | J13: 0 | K13: 0
A14: ='Org structure'!E11 -> 02.4 - Internal Audit | C14: 0 | D14: 0 | E14: 0 | F14: 0 | G14: 0 | H14: 0 | I14: 0 | J14: 0 | K14: 0
A15: ='Org structure'!E12 -> 02.5 - Communications | C15: 0 | D15: 0 | E15: 0 | F15: 0 | G15: 0 | H15: 0 | I15: 0 | J15: 0 | K15: 0
A16: ='Org structure'!E13 -> 02.6 - Risk Management | C16: 0 | D16: 0 | E16: 0 | F16: 0 | G16: 0 | H16: 0 | I16: 0 | J16: 0 | K16: 0
A17: ='Org structure'!A4 -> Vote 03 - Corporate Services | C17: =SUM(C18:C24) -> 39940.2 | D17: 288099.48 | E17: 452950.72 | F17: 760594 | G17: 760594 | H17: 760594 | I17: 800906 | J17: 840151 | K17: 879638
A18: ='Org structure'!E15 -> 03.1 - Executive Manager: Corporate Services | C18: 0 | D18: 0 | E18: 0 | F18: 0 | G18: 0 | H18: 0 | I18: 0 | J18: 0 | K18: 0
A19: ='Org structure'!E16 -> 03.2 - Human Resource Management & Development | C19: 0 | D19: 62075 | E19: 180584.57 | F19: 463020 | G19: 463020 | H19: 463020 | I19: 487560 | J19: 511451 | K19: 535489
A20: ='Org structure'!E17 -> 03.3 - Information Technology | C20: 39940.2 | D20: 226024.48 | E20: 272366.15 | F20: 227574 | G20: 227574 | H20: 227574 | I20: 239636 | J20: 251378 | K20: 263193
A21: ='Org structure'!E18 -> 03.4 - Legal Services | C21: 0 | D21: 0 | E21: 0 | F21: 0 | G21: 0 | H21: 0 | I21: 0 | J21: 0 | K21: 0
A22: ='Org structure'!E19 -> 03.5 - Gen Adm_Sec_Fleet: General Administrat | C22: 0 | D22: 0 | E22: 0 | F22: 0 | G22: 0 | H22: 0 | I22: 0 | J22: 0 | K22: 0
A23: ='Org structure'!E20 -> 03.6 - Gen Adm_Sec_Fleet: Security Services | C23: 0 | D23: 0 | E23: 0 | F23: 70000 | G23: 70000 | H23: 70000 | I23: 73710 | J23: 77322 | K23: 80956
A24: ='Org structure'!E21 -> 03.7 - Gen Adm_Sec_Fleet: Fleet Management | C24: 0 | D24: 0 | E24: 0 | F24: 0 | G24: 0 | H24: 0 | I24: 0 | J24: 0 | K24: 0
A25: ='Org structure'!A5 -> Vote 04 - Budget And Treasury | C25: =SUM(C26:C31) -> 109460966.7 | D25: 378858019 | E25: 352277957.6 | F25: 479112007 | G25: 495343461 | H25: 495343461 | I25: 604640211 | J25: 584617046 | K25: 567187602
A26: ='Org structure'!E23 -> 04.1 - Chief Financial Officer | C26: 0 | D26: 0 | E26: 0 | F26: 0 | G26: 0 | H26: 0 | I26: 0 | J26: 0 | K26: 0
A27: ='Org structure'!E24 -> 04.2 - Budget Planning & Management | C27: 104662677.7 | D27: 320512846.4 | E27: 277645760.8 | F27: 303329000 | G27: 303329000 | H27: 303329000 | I27: 321605000 | J27: 341313000 | K27: 328758000
A28: ='Org structure'!E25 -> 04.3 - Expenditure Management | C28: 0 | D28: 1379868.7 | E28: 223.1 | F28: 0 | G28: 0 | H28: 0 | I28: 0 | J28: 0 | K28: 0
A29: ='Org structure'!E26 -> 04.4 - Revenue Management | C29: 4671635.88 | D29: 56961150.83 | E29: 73314167 | F29: 175738874 | G29: 191970328 | H29: 191970328 | I29: 282988739 | J29: 243255296 | K29: 238378561
A30: ='Org structure'!E27 -> 04.5 - Asset Management | C30: 0 | D30: 0 | E30: 1317806.7 | F30: 44133 | G30: 44133 | H30: 44133 | I30: 46472 | J30: 48750 | K30: 51041
A31: ='Org structure'!E28 -> 04.6 - Supply Chain Management | C31: 126653.14 | D31: 4153.11 | E31: 0 | F31: 0 | G31: 0 | H31: 0 | I31: 0 | J31: 0 | K31: 0
A32: ='Org structure'!A6 -> Vote 05 - Community Services | C32: =SUM(C33:C42) -> 2800356.61 | D32: 20193733.84 | E32: 21216290.02 | F32: 27179532 | G32: 31295554 | H32: 31295554 | I32: 33917846 | J32: 32688298 | K32: 34224650
A33: ='Org structure'!E30 -> 05.1 - Executive Manager: Community Services | C33: 0 | D33: 0 | E33: 0 | F33: 0 | G33: 0 | H33: 0 | I33: 0 | J33: 0 | K33: 0
A34: ='Org structure'!E31 -> 05.2 - Waste Management Services | C34: 3116088.34 | D34: 8339333.48 | E34: 7783239.34 | F34: 8511472 | G34: 8513472 | H34: 8513472 | I34: 9951546 | J34: 7879612 | K34: 8249954
A35: ='Org structure'!E32 -> 05.3 - Environmental Management Services | C35: 0 | D35: 0 | E35: 0 | F35: 16455 | G35: 16455 | H35: 16455 | I35: 16455 | J35: 0 | K35: 0
A36: ='Org structure'!E33 -> 05.4 - Road Traffic & Law Enforce: Traffic Serv | C36: -1352688.84 | D36: 5779950 | E36: 1995950 | F36: 12052000 | G36: 12052000 | H36: 12052000 | I36: 12690756 | J36: 13312603 | K36: 13938295
A37: ='Org structure'!E34 -> 05.5 - Road Traffic&Law Enforce: Licencing Serv | C37: 963757.07 | D37: 5869787.02 | E37: 5625554.96 | F37: 6033131 | G37: 10144653 | H37: 10144653 | I37: 10682320 | J37: 11205753 | K37: 11732424
A38: ='Org structure'!E35 -> 05.6 - Road Traffic&Law Enforce: Pound | C38: 15721.73 | D38: 1278.26 | E38: 14599.99 | F38: 2178 | G38: 4678 | H38: 4678 | I38: 4926 | J38: 5167 | K38: 5410
A39: ='Org structure'!E36 -> 05.7 - Institutional & Social Dev Management | C39: 16260.95 | D39: 177158.67 | E39: 134588.27 | F39: 187726 | G39: 187726 | H39: 187726 | I39: 197675 | J39: 207361 | K39: 217107
A40: ='Org structure'!E37 -> 05.8 - Libraries And Archives | C40: 0 | D40: 0 | E40: 0 | F40: 1089 | G40: 1089 | H40: 1089 | I40: 1147 | J40: 1203 | K40: 1260
A41: ='Org structure'!E38 -> 05.9 - Community Halls And Facilities | C41: 41217.36 | D41: 26226.41 | E41: 44956.45 | F41: 375481 | G41: 375481 | H41: 375481 | I41: 373021 | J41: 76599 | K41: 80200
A42: ='Org structure'!E39 -> 05.10 - Disaster Management | C42: 0 | D42: 0 | E42: 5617401.01 | F42: 0 | G42: 0 | H42: 0 | I42: 0 | J42: 0 | K42: 0
A43: ='Org structure'!A7 -> Vote 06 - Planning And Development | C43: =SUM(C44:C50) -> 10602840.95 | D43: 31603803.19 | E43: 35243935.23 | F43: 53259763 | G43: 56492763 | H43: 56492763 | I43: 59466878 | J43: 61984962 | K43: 64898253
A44: ='Org structure'!E41 -> 06.1 - Executive Manager:Planning & Development | C44: 0 | D44: 0 | E44: 0 | F44: 0 | G44: 0 | H44: 0 | I44: 0 | J44: 0 | K44: 0
A45: ='Org structure'!E42 -> 06.2 - Economic Development & Planning | C45: 916808.3 | D45: 1278.94 | E45: 2301.95 | F45: 6830 | G45: 6830 | H45: 6830 | I45: 7191 | J45: 7544 | K45: 7898
A46: ='Org structure'!E43 -> 06.3 - Development & Town Planning | C46: 1213214 | D46: -364369.41 | E46: 4491187.89 | F46: 18145640 | G46: 18252640 | H46: 18252640 | I46: 19220028 | J46: 20161811 | K46: 21109415
A47: ='Org structure'!E44 -> 06.4 - Property Management & Housing | C47: 8472818.65 | D47: 31966893.66 | E47: 30750445.39 | F47: 34729985 | G47: 37855985 | H47: 37855985 | I47: 39862351 | J47: 41815607 | K47: 43780940
A48: ='Org structure'!E45 -> 06.5 - Integrated Development Planning | C48: 0 | D48: 0 | E48: 0 | F48: 377308 | G48: 377308 | H48: 377308 | I48: 377308 | J48: 0 | K48: 0
A49: ='Org structure'!E46 -> 06.6 - Performance Management | C49: 0 | D49: 0 | E49: 0 | F49: 0 | G49: 0 | H49: 0 | I49: 0 | J49: 0 | K49: 0
A50: ='Org structure'!E47 -> 06.7 - Local Economic Development | C50: 0 | D50: 0 | E50: 0 | F50: 0 | G50: 0 | H50: 0 | I50: 0 | J50: 0 | K50: 0
A51: ='Org structure'!A8 -> Vote 07 - Infrastructure Development | C51: =SUM(C52:C61) -> 24226129.21 | D51: 37973765.51 | E51: 52386512.23 | F51: 66628000 | G51: 61435087 | H51: 61435087 | I51: 79232000 | J51: 76613000 | K51: 80033000
A52: ='Org structure'!E49 -> 07.1 - Technical Services Administration | C52: 0 | D52: 0 | E52: 0 | F52: 0 | G52: 0 | H52: 0 | I52: 0 | J52: 0 | K52: 0
A53: ='Org structure'!E50 -> 07.2 - Roads | C53: 0 | D53: 0 | E53: 0 | F53: 0 | G53: 0 | H53: 0 | I53: 0 | J53: 0 | K53: 0
A54: ='Org structure'!E51 -> 07.3 - Workshop | C54: 0 | D54: 0 | E54: 0 | F54: 0 | G54: 0 | H54: 0 | I54: 0 | J54: 0 | K54: 0
A55: ='Org structure'!E52 -> 07.4 - Sewerage Network | C55: 0 | D55: 0 | E55: 0 | F55: 0 | G55: 0 | H55: 0 | I55: 0 | J55: 0 | K55: 0
A56: ='Org structure'!E53 -> 07.5 - Sewerage Purification | C56: 0 | D56: 0 | E56: 0 | F56: 0 | G56: 0 | H56: 0 | I56: 0 | J56: 0 | K56: 0
A57: ='Org structure'!E54 -> 07.6 - Irrigation | C57: 0 | D57: 0 | E57: 0 | F57: 0 | G57: 0 | H57: 0 | I57: 0 | J57: 0 | K57: 0
A58: ='Org structure'!E55 -> 07.7 - Executive Manager: Infrastructure Dev | C58: 0 | D58: 0 | E58: 0 | F58: 0 | G58: 0 | H58: 0 | I58: 0 | J58: 0 | K58: 0
A59: ='Org structure'!E56 -> 07.8 - Road Construction & Maintenance | C59: 20242401.48 | D59: 0 | E59: -2999840.56 | F59: 0 | G59: 0 | H59: 0 | I59: 0 | J59: 0 | K59: 0
A60: ='Org structure'!E57 -> 07.9 - Electrical & Mechanical Works | C60: 0 | D60: 0 | E60: 3884000 | F60: 5000000 | G60: 5000000 | H60: 5000000 | I60: 14900000 | J60: 9404000 | K60: 9825000
A61: ='Org structure'!E58 -> 07.10 - Project Management | C61: 3983727.73 | D61: 37973765.51 | E61: 51502352.79 | F61: 61628000 | G61: 56435087 | H61: 56435087 | I61: 64332000 | J61: 67209000 | K61: 70208000
A62: ='Org structure'!A9 -> Vote 08 - | C62: 0 | D62: 0 | E62: 0 | F62: 0 | G62: 0 | H62: 0 | I62: 0 | J62: 0 | K62: 0
A63: ='Org structure'!A10 -> Vote 09 - | C63: 0 | D63: 0 | E63: 0 | F63: 0 | G63: 0 | H63: 0 | I63: 0 | J63: 0 | K63: 0
A64: ='Org structure'!A11 -> Vote 10 - | C64: 0 | D64: 0 | E64: 0 | F64: 0 | G64: 0 | H64: 0 | I64: 0 | J64: 0 | K64: 0
A65: ='Org structure'!A12 -> Vote 11 - | C65: 0 | D65: 0 | E65: 0 | F65: 0 | G65: 0 | H65: 0 | I65: 0 | J65: 0 | K65: 0
A66: ='Org structure'!A13 -> Vote 12 - | C66: 0 | D66: 0 | E66: 0 | F66: 0 | G66: 0 | H66: 0 | I66: 0 | J66: 0 | K66: 0
A67: ='Org structure'!A14 -> Vote 13 - | C67: 0 | D67: 0 | E67: 0 | F67: 0 | G67: 0 | H67: 0 | I67: 0 | J67: 0 | K67: 0
A68: ='Org structure'!A15 -> Vote 14 - | C68: 0 | D68: 0 | E68: 0 | F68: 0 | G68: 0 | H68: 0 | I68: 0 | J68: 0 | K68: 0
A69: ='Org structure'!A16 -> Vote 15 - Other | C69: 0 | D69: 0 | E69: 0 | F69: 0 | G69: 0 | H69: 0 | I69: 0 | J69: 0 | K69: 0
A70: Total Revenue by Vote | B70: 2 | C70: =C5+C10+C17+C25+C32+C43+C51+C62+C63+C64+C65+C66+C67+C68+C69 -> 147130233.7 | D70: 468917421.1 | E70: 461577645.8 | F70: 626939896 | G70: 645327459 | H70: 645327459 | I70: 778057841 | J70: 756743457 | K70: 747223143 | L70: =SUM(L58:L61) -> 0 | M70: 0 | N70: 0 | O70: 0 | P70: 0 | Q70: 0 | R70: 0 | S70: 0 | T70: 0 | U70: 0 | V70: 0 | W70: 0
A72: Expenditure by Vote | B72: 1
A73: ='Org structure'!A2 -> Vote 01 - Executive And Council | C73: =SUM(C74:C77) -> 5878017.43 | D73: 37073159.62 | E73: 34856652.99 | F73: 46461700 | G73: 45259109 | H73: 45259109 | I73: 57292591 | J73: 57109936 | K73: 59771497
A74: ='Org structure'!E3 -> 01.1 - Mayor & Councillors | C74: 3744580.79 | D74: 28288407.41 | E74: 28720509.25 | F74: 35096483 | G74: 35096483 | H74: 35096483 | I74: 40931683 | J74: 42913477 | K74: 44930282
A75: ='Org structure'!E4 -> 01.2 - Mayor & Council Support | C75: 2133436.64 | D75: 8784752.21 | E75: 6136143.74 | F75: 11365217 | G75: 10162626 | H75: 10162626 | I75: 16360908 | J75: 14196459 | K75: 14841215
A76: ='Org structure'!E5 -> 01.3 - Board General Mayor | C76: 0 | D76: 0 | E76: 0 | F76: 0 | G76: 0 | H76: 0 | I76: 0 | J76: 0 | K76: 0
A77: ='Org structure'!E6 -> 01.4 - Board General Speaker | C77: 0 | D77: 0 | E77: 0 | F77: 0 | G77: 0 | H77: 0 | I77: 0 | J77: 0 | K77: 0
A78: ='Org structure'!A3 -> Vote 02 - Municipal Manager | C78: =SUM(C79:C84) -> 3857393.6 | D78: 25508815.13 | E78: 12599168.41 | F78: 19716043 | G78: 18061385 | H78: 18061385 | I78: 23863767 | J78: 22933603 | K78: 24011112
A79: ='Org structure'!E8 -> 02.1 - Municipal Manager Administration | C79: 0 | D79: 0 | E79: 0 | F79: 0 | G79: 0 | H79: 0 | I79: 0 | J79: 0 | K79: 0
A80: ='Org structure'!E9 -> 02.2 - Municipal Manager | C80: 28211.22 | D80: 23122.87 | E80: 37340.92 | F80: 1520172 | G80: 1335368 | H80: 1335368 | I80: 1402703 | J80: 1471435 | K80: 1540593
A81: ='Org structure'!E10 -> 02.3 - Municipal Manager Support | C81: 821739.78 | D81: 4964448.07 | E81: 429910.59 | F81: 1673158 | G81: 994972 | H81: 994972 | I81: 1768219 | J81: 1854702 | K81: 1941871
A82: ='Org structure'!E11 -> 02.4 - Internal Audit | C82: 1656440.59 | D82: 6233709.73 | E82: 8687773.5 | F82: 10125692 | G82: 9823258 | H82: 9823258 | I82: 11974786 | J82: 12561429 | K82: 13151816
A83: ='Org structure'!E12 -> 02.5 - Communications | C83: 1000010.49 | D83: 10686072.21 | E83: 2353375.69 | F83: 4234070 | G83: 3920849 | H83: 3920849 | I83: 4523036 | J83: 3694566 | K83: 3867844
A84: ='Org structure'!E13 -> 02.6 - Risk Management | C84: 350991.52 | D84: 3601462.25 | E84: 1090767.71 | F84: 2162951 | G84: 1986938 | H84: 1986938 | I84: 4195023 | J84: 3351471 | K84: 3508988
A85: ='Org structure'!A4 -> Vote 03 - Corporate Services | C85: =SUM(C86:C92) -> 13061529.98 | D85: 59787950.14 | E85: 64199480.86 | F85: 85985241 | G85: 83246167 | H85: 83246167 | I85: 89885845 | J85: 100522879 | K85: 105220761
A86: ='Org structure'!E15 -> 03.1 - Executive Manager: Corporate Services | C86: 0 | D86: 1157205.75 | E86: 1157605 | F86: 1259869 | G86: 1072004 | H86: 1072004 | I86: 1140550 | J86: 1196437 | K86: 1252670
A87: ='Org structure'!E16 -> 03.2 - Human Resource Management & Development | C87: 2073196.74 | D87: 9539448.57 | E87: 9475455.52 | F87: 15059614 | G87: 14570499 | H87: 14570499 | I87: 18382494 | J87: 19782743 | K87: 20712344
A88: ='Org structure'!E17 -> 03.3 - Information Technology | C88: 1063297.72 | D88: 4429152.07 | E88: 1747771.34 | F88: 8360811 | G88: 8107473 | H88: 8107473 | I88: 8610651 | J88: 9032495 | K88: 9457021
A89: ='Org structure'!E18 -> 03.4 - Legal Services | C89: 1366637.65 | D89: 10847577.24 | E89: 11689661.17 | F89: 14129344 | G89: 14228442 | H89: 14228442 | I89: 11319982 | J89: 15744376 | K89: 16484362
A90: ='Org structure'!E19 -> 03.5 - Gen Adm_Sec_Fleet: General Administrat | C90: 7962892.94 | D90: 22078849.39 | E90: 24876373.96 | F90: 16016225 | G90: 14094229 | H90: 14094229 | I90: 16491219 | J90: 19162875 | K90: 20037025
A91: ='Org structure'!E20 -> 03.6 - Gen Adm_Sec_Fleet: Security Services | C91: 0 | D91: 0 | E91: 920905.15 | F91: 16116673 | G91: 15785519 | H91: 15785519 | I91: 17602892 | J91: 18465407 | K91: 19333282
A92: ='Org structure'!E21 -> 03.7 - Gen Adm_Sec_Fleet: Fleet Management | C92: 595504.93 | D92: 11735717.12 | E92: 14331708.72 | F92: 15042705 | G92: 15388001 | H92: 15388001 | I92: 16338057 | J92: 17138546 | K92: 17944057
A93: ='Org structure'!A5 -> Vote 04 - Budget And Treasury | C93: =SUM(C94:C99) -> 5871963.78 | D93: 82850598.5 | E93: 112306443.3 | F93: 85986926 | G93: 119223124 | H93: 119223124 | I93: 121074857 | J93: 122552914 | K93: 125480736
A94: ='Org structure'!E23 -> 04.1 - Chief Financial Officer | C94: 0 | D94: 523141.4 | E94: 1054029 | F94: 1175606 | G94: 1175606 | H94: 1175606 | I94: 1133158 | J94: 1188683 | K94: 1244551
A95: ='Org structure'!E24 -> 04.2 - Budget Planning & Management | C95: 1366256.25 | D95: 17129964.18 | E95: 9431636.56 | F95: 17823930 | G95: 17925481 | H95: 17925481 | I95: 21682576 | J95: 23991873 | K95: 23716665
A96: ='Org structure'!E25 -> 04.3 - Expenditure Management | C96: 999064.07 | D96: 2711682.81 | E96: 4394590.04 | F96: 4349487 | G96: 3770475 | H96: 3770475 | I96: 4318514 | J96: 4530061 | K96: 4742976
A97: ='Org structure'!E26 -> 04.4 - Revenue Management | C97: 1414346.93 | D97: 56605019.99 | E97: 90186253.23 | F97: 50998324 | G97: 86037666 | H97: 86037666 | I97: 81095457 | J97: 79367860 | K97: 81668717
A98: ='Org structure'!E27 -> 04.5 - Asset Management | C98: 1492531.8 | D98: 5429761.95 | E98: 6289237.26 | F98: 7974731 | G98: 7868228 | H98: 7868228 | I98: 8484234 | J98: 8899847 | K98: 9318141
A99: ='Org structure'!E28 -> 04.6 - Supply Chain Management | C99: 599764.73 | D99: 451028.17 | E99: 950697.16 | F99: 3664848 | G99: 2445668 | H99: 2445668 | I99: 4360918 | J99: 4574590 | K99: 4789686
A100: ='Org structure'!A6 -> Vote 05 - Community Services | C100: =SUM(C101:C110) -> 9934465.5 | D100: 44204820.52 | E100: 47370048.08 | F100: 68543373 | G100: 69069250 | H100: 69069250 | I100: 79060060 | J100: 81476302 | K100: 85193363
A101: ='Org structure'!E30 -> 05.1 - Executive Manager: Community Services | C101: 0 | D101: 918447 | E101: 228523.04 | F101: 1167293 | G101: 393853 | H101: 393853 | I101: 1140550 | J101: 1196437 | K101: 1252670
A102: ='Org structure'!E31 -> 05.2 - Waste Management Services | C102: 2815846.64 | D102: 24641251.6 | E102: 15902631.57 | F102: 22809794 | G102: 26518991 | H102: 26518991 | I102: 29714800 | J102: 29368994 | K102: 30688477
A103: ='Org structure'!E32 -> 05.3 - Environmental Management Services | C103: 241563.27 | D103: 432810.67 | E103: 669899.82 | F103: 798879 | G103: 804277 | H103: 804277 | I103: 975381 | J103: 1060320 | K103: 1105455
A104: ='Org structure'!E33 -> 05.4 - Road Traffic & Law Enforce: Traffic Serv | C104: 2021983.83 | D104: 3973273.97 | E104: 10278148.54 | F104: 15096931 | G104: 13900337 | H104: 13900337 | I104: 15978048 | J104: 16761033 | K104: 17549033
A105: ='Org structure'!E34 -> 05.5 - Road Traffic&Law Enforce: Licencing Serv | C105: 2270181.16 | D105: 3095371.19 | E105: 7093069.44 | F105: 9446623 | G105: 8566498 | H105: 8566498 | I105: 9839259 | J105: 10321171 | K105: 10806265
A106: ='Org structure'!E35 -> 05.6 - Road Traffic&Law Enforce: Pound | C106: 219694.96 | D106: 230378.81 | E106: 581930.89 | F106: 1204632 | G106: 837899 | H106: 837899 | I106: 1068512 | J106: 1120840 | K106: 1173521
A107: ='Org structure'!E36 -> 05.7 - Institutional & Social Dev Management | C107: 1413184.21 | D107: 2399461.52 | E107: 1557444.33 | F107: 3195795 | G107: 3383507 | H107: 3383507 | I107: 3111603 | J107: 3264043 | K107: 3417454
A108: ='Org structure'!E37 -> 05.8 - Libraries And Archives | C108: 146463.27 | D108: 826462.68 | E108: 834484.41 | F108: 1319647 | G108: 1293825 | H108: 1293825 | I108: 1372045 | J108: 1439253 | K108: 1506897
A109: ='Org structure'!E38 -> 05.9 - Community Halls And Facilities | C109: 512621.55 | D109: 7158402.81 | E109: 9348517.02 | F109: 12642772 | G109: 12675341 | H109: 12675341 | I109: 14654164 | J109: 15679468 | K109: 16369403
A110: ='Org structure'!E39 -> 05.10 - Disaster Management | C110: 292926.61 | D110: 528960.27 | E110: 875399.02 | F110: 861007 | G110: 694722 | H110: 694722 | I110: 1205698 | J110: 1264743 | K110: 1324188
A111: ='Org structure'!A7 -> Vote 06 - Planning And Development | C111: =SUM(C112:C118) -> 4009975.23 | D111: 14821903.25 | E111: 23573797.51 | F111: 29012730 | G111: 27651423 | H111: 27651423 | I111: 30761383 | J111: 32788163 | K111: 34324693
A112: ='Org structure'!E41 -> 06.1 - Executive Manager:Planning & Development | C112: 0 | D112: 0 | E112: 261556.5 | F112: 1242293 | G112: 545764 | H112: 545764 | I112: 1219525 | J112: 1279282 | K112: 1339409
A113: ='Org structure'!E42 -> 06.2 - Economic Development & Planning | C113: 566638.86 | D113: 2898185.21 | E113: 2393441.55 | F113: 4242718 | G113: 4209578 | H113: 4209578 | I113: 4285320 | J113: 4495301 | K113: 4706580
A114: ='Org structure'!E43 -> 06.3 - Development & Town Planning | C114: 645192.98 | D114: 1174351.87 | E114: 3433805.84 | F114: 5158728 | G114: 4963794 | H114: 4963794 | I114: 4862665 | J114: 5625458 | K114: 5889950
A115: ='Org structure'!E44 -> 06.4 - Property Management & Housing | C115: 2025425.08 | D115: 9130081.55 | E115: 13940951.85 | F115: 11874016 | G115: 11733764 | H115: 11733764 | I115: 12722927 | J115: 13346234 | K115: 13973505
A116: ='Org structure'!E45 -> 06.5 - Integrated Development Planning | C116: 479618.25 | D116: 1122244.67 | E116: 2220635.19 | F116: 4448282 | G116: 4545019 | H116: 4545019 | I116: 5440923 | J116: 5707468 | K116: 5975716
A117: ='Org structure'!E46 -> 06.6 - Performance Management | C117: 293100.06 | D117: 497039.95 | E117: 1323406.58 | F117: 2046693 | G117: 1653504 | H117: 1653504 | I117: 2230023 | J117: 2334420 | K117: 2439533
A118: ='Org structure'!E47 -> 06.7 - Local Economic Development | C118: 0 | D118: 0 | E118: 0 | F118: 0 | G118: 0 | H118: 0 | I118: 0 | J118: 0 | K118: 0
A119: ='Org structure'!A8 -> Vote 07 - Infrastructure Development | C119: =SUM(C120:C129) -> 4694479.02 | D119: 269944066.8 | E119: 35948370.31 | F119: 99903747 | G119: 51143774 | H119: 51143774 | I119: 76240109 | J119: 80731954 | K119: 84426950
A120: ='Org structure'!E49 -> 07.1 - Technical Services Administration | C120: 0 | D120: 0 | E120: 0 | F120: 0 | G120: 0 | H120: 0 | I120: 0 | J120: 0 | K120: 0
A121: ='Org structure'!E50 -> 07.2 - Roads | C121: 0 | D121: 0 | E121: 0 | F121: 0 | G121: 0 | H121: 0 | I121: 0 | J121: 0 | K121: 0
A122: ='Org structure'!E51 -> 07.3 - Workshop | C122: 0 | D122: 0 | E122: 0 | F122: 0 | G122: 0 | H122: 0 | I122: 0 | J122: 0 | K122: 0
A123: ='Org structure'!E52 -> 07.4 - Sewerage Network | C123: 0 | D123: 0 | E123: 0 | F123: 0 | G123: 0 | H123: 0 | I123: 0 | J123: 0 | K123: 0
A124: ='Org structure'!E53 -> 07.5 - Sewerage Purification | C124: 0 | D124: 0 | E124: 0 | F124: 0 | G124: 0 | H124: 0 | I124: 0 | J124: 0 | K124: 0
A125: ='Org structure'!E54 -> 07.6 - Irrigation | C125: 0 | D125: 0 | E125: 0 | F125: 0 | G125: 0 | H125: 0 | I125: 0 | J125: 0 | K125: 0
A126: ='Org structure'!E55 -> 07.7 - Executive Manager: Infrastructure Dev | C126: 0 | D126: 289365.78 | E126: 0 | F126: 1167293 | G126: 393853 | H126: 393853 | I126: 1140550 | J126: 1196437 | K126: 1252670
A127: ='Org structure'!E56 -> 07.8 - Road Construction & Maintenance | C127: 2808169.95 | D127: 21185605.39 | E127: 24330084 | F127: 37413547 | G127: 34835723 | H127: 34835723 | I127: 58285288 | J127: 60856942 | K127: 63641719
A128: ='Org structure'!E57 -> 07.9 - Electrical & Mechanical Works | C128: 1860752.06 | D128: 11963931.42 | E128: 9577243.85 | F128: 58191507 | G128: 12832798 | H128: 12832798 | I128: 13597671 | J128: 15318125 | K128: 16022161
A129: ='Org structure'!E58 -> 07.10 - Project Management | C129: 25557.01 | D129: 236505164.2 | E129: 2041042.46 | F129: 3131400 | G129: 3081400 | H129: 3081400 | I129: 3216600 | J129: 3360450 | K129: 3510400
A130: ='Org structure'!A9 -> Vote 08 - | C130: 0 | D130: 0 | E130: 0 | F130: 0 | G130: 0 | H130: 0 | I130: 0 | J130: 0 | K130: 0
A131: ='Org structure'!A10 -> Vote 09 - | C131: 0 | D131: 0 | E131: 0 | F131: 0 | G131: 0 | H131: 0 | I131: 0 | J131: 0 | K131: 0
A132: ='Org structure'!A11 -> Vote 10 - | C132: 0 | D132: 0 | E132: 0 | F132: 0 | G132: 0 | H132: 0 | I132: 0 | J132: 0 | K132: 0
A133: ='Org structure'!A12 -> Vote 11 - | C133: 0 | D133: 0 | E133: 0 | F133: 0 | G133: 0 | H133: 0 | I133: 0 | J133: 0 | K133: 0
A134: ='Org structure'!A13 -> Vote 12 - | C134: 0 | D134: 0 | E134: 0 | F134: 0 | G134: 0 | H134: 0 | I134: 0 | J134: 0 | K134: 0
A135: ='Org structure'!A14 -> Vote 13 - | C135: 0 | D135: 0 | E135: 0 | F135: 0 | G135: 0 | H135: 0 | I135: 0 | J135: 0 | K135: 0
A136: ='Org structure'!A15 -> Vote 14 - | C136: 0 | D136: 0 | E136: 0 | F136: 0 | G136: 0 | H136: 0 | I136: 0 | J136: 0 | K136: 0
A137: ='Org structure'!A16 -> Vote 15 - Other | C137: 0 | D137: 0 | E137: 0 | F137: 0 | G137: 0 | H137: 0 | I137: 0 | J137: 0 | K137: 0
A138: Total Expenditure by Vote | B138: 2 | C138: =C73+C78+C85+C93+C100+C111+C119+C130+C131+C132+C133+C134+C135+C136+C137 -> 47307824.54 | D138: 534191313.9 | E138: 330853961.4 | F138: 435609760 | G138: 413654232 | H138: 413654232 | I138: 478178612 | J138: 498115751 | K138: 518429112 | L138: =SUM(L73:L129) -> 0 | M138: 0 | N138: 0 | O138: 0 | P138: 0 | Q138: 0 | R138: 0 | S138: 0 | T138: 0 | U138: 0 | V138: 0 | W138: 0
A140: =result -> Surplus/(Deficit) for the year | B140: 2 | C140: =C70-C138 -> 99822409.13 | D140: -65273892.88 | E140: 130723684.4 | F140: 191330136 | G140: 231673227 | H140: 231673227 | I140: 299879229 | J140: 258627706 | K140: 228794031 | L140: 0 | M140: 0 | N140: 0 | O140: 0 | P140: 0 | Q140: 0 | R140: 0 | S140: 0 | T140: 0 | U140: 0 | V140: 0 | W140: 0
A141: =head27a -> References
A142: 1. Insert 'Vote'; e.g. Department, if different to Functional structure
A143: 2. Must reconcile to Financial Performance ('Revenue and Expenditure by Functional Classification' and 'Revenue and Expenditure')
A144: 3. Assign share in 'associate' to relevant Vote

Sheet A4-FinPerf RE
A1: =muni&" - "&Approve4 -> LIM355 Lepelle-Nkumpi - Table A4 Budgeted Financial Performance (revenue and expenditure)
A2: =desc -> Description | B2: =head27 -> Ref | C2: =head1b -> 2019/20 | D2: =head1A -> 2020/21 | E2: =Head1 -> 2021/22 | F2: =Head2 -> Current Year 2022/23 | J2: =Head3 -> 2023/24 Medium Term Revenue & Expenditure Framework | M2: =Head4 -> LTFS
A3: R thousand | B3: 1 | C3: =Head5 -> Audited Outcome | D3: =Head5 -> Audited Outcome | E3: =Head5 -> Audited Outcome | F3: =Head6 -> Original Budget | G3: =Head7 -> Adjusted Budget | H3: =Head8 -> Full Year Forecast | I3: =Head5b -> Pre-audit outcome | J3: =Head9 -> Budget Year 2023/24 | K3: =Head10 -> Budget Year +1 2024/25 | L3: =Head11 -> Budget Year +2 2025/26 | M3: =Head12 -> Forecast 2026/27 | N3: =Head13 -> Forecast 2027/28 | O3: =Head14 -> Forecast 2028/29 | P3: =Head15 -> Forecast 2029/30 | Q3: =Head16 -> Forecast 2030/31 | R3: =Head17 -> Forecast 2031/32 | S3: =Head18 -> Forecast 2032/33 | T3: =Head19 -> Forecast 2033/34 | U3: =Head20 -> Forecast 2034/35 | V3: =Head21 -> Forecast 2035/36 | W3: =Head22 -> Forecast 2036/37 | X3: =Head23 -> Forecast 2037/38
A4: Revenue
A5: Exchange Revenue
A6: Service charges - Electricity | B6: 2 | C6: ='SA1'!C17 -> 0 | D6: ='SA1'!D17 -> 0 | E6: ='SA1'!E17 -> 0 | F6: ='SA1'!F17 -> 0 | G6: ='SA1'!G17 -> 0 | H6: ='SA1'!H17 -> 0 | I6: ='SA1'!I17 -> 0 | J6: ='SA1'!J17 -> 0 | K6: ='SA1'!K17 -> 0 | L6: ='SA1'!L17 -> 0
A7: Service charges - Water | B7: 2 | C7: ='SA1'!C23 -> 16512163.87 | D7: ='SA1'!D23 -> 0 | E7: ='SA1'!E23 -> -2754337.53 | F7: ='SA1'!F23 -> 0 | G7: ='SA1'!G23 -> 0 | H7: ='SA1'!H23 -> 0 | I7: ='SA1'!I23 -> 343.57 | J7: ='SA1'!J23 -> 0 | K7: ='SA1'!K23 -> 0 | L7: ='SA1'!L23 -> 0
A8: Service charges - Waste Water Management | B8: 2 | C8: ='SA1'!C29 -> 3730237.61 | D8: ='SA1'!D29 -> 0 | E8: ='SA1'!E29 -> -245503.03 | F8: ='SA1'!F29 -> 0 | G8: ='SA1'!G29 -> 0 | H8: ='SA1'!H29 -> 0 | I8: ='SA1'!I29 -> 0 | J8: ='SA1'!J29 -> 0 | K8: ='SA1'!K29 -> 0 | L8: ='SA1'!L29 -> 0
A9: Service charges - Waste Management | B9: 2 | C9: ='SA1'!C36 -> 2823088.34 | D9: ='SA1'!D36 -> 6433333.48 | E9: ='SA1'!E36 -> 5814239.34 | F9: ='SA1'!F36 -> 7120609 | G9: ='SA1'!G36 -> 7122609 | H9: ='SA1'!H36 -> 7122609 | I9: ='SA1'!I36 -> 6217031.62 | J9: ='SA1'!J36 -> 7500107 | K9: ='SA1'!K36 -> 7867612 | L9: ='SA1'!L36 -> 8237390
A10: Sale of Goods and Rendering of Services | C10: 197683.4 | D10: 295518.93 | E10: 492837.15 | F10: 112986603 | G10: 113093603 | H10: 113093603 | I10: 371350.75 | J10: 199931548 | K10: 156128301 | L10: 147156597
A11: Agency services | C11: 4455847.89 | D11: 37123860.1 | E11: 37876174.79 | F11: 40615498 | G11: 44727020 | H11: 44727020 | I11: -11073565.58 | J11: 47097552 | K11: 49405332 | L11: 51727383
A12: Interest
A13: Interest earned from Receivables | C13: 0 | D13: 3873550.63 | E13: 3569119.05 | F13: 3367178 | G13: 3867178 | H13: 3867178 | I13: 4020519.5 | J13: 4072138 | K13: 4271673 | L13: 4472442
A14: Interest earned from Current and Non Current Assets | C14: 1202955.64 | D14: 8578788.96 | E14: 12812681.85 | F14: 13169720 | G14: 26169720 | H14: 26169720 | I14: 23346956.63 | J14: 27556714 | K14: 28906994 | L14: 30265623
A15: Dividends | C15: 0 | D15: 0 | E15: 0 | F15: 0 | G15: 0 | H15: 0 | I15: 0 | J15: 0 | K15: 0 | L15: 0
A16: Rent on Land
A17: Rental from Fixed Assets | C17: 129468.43 | D17: 270634.19 | E17: 305268.62 | F17: 334006 | G17: 334006 | H17: 334006 | I17: 245682.31 | J17: 351708 | K17: 368942 | L17: 386283
A18: Licence and permits | C18: 13.04 | D18: 22.42 | E18: 41.08 | F18: 4734 | G18: 4734 | H18: 4734 | I18: 0 | J18: 4984 | K18: 5229 | L18: 5474
A19: Operational Revenue | C19: 1206289.38 | D19: 245338.9 | E19: 16334851.03 | F19: 18743479 | G19: 19000933 | H19: 19000933 | I19: 843471.68 | J19: 20007982 | K19: 20988376 | L19: 21974828
A20: Non-Exchange Revenue
A21: Property rates | B21: 2 | C21: 8369863.77 | D21: 31750277.91 | E21: 30520670.65 | F21: 34373881 | G21: 37473881 | H21: 37473881 | I21: 35660344.38 | J21: 39459996 | K21: 41393536 | L21: 43339032
A22: Surcharges and Taxes
A23: Fines, penalties and forfeits | C23: -1336967.11 | D23: 5781228.26 | E23: 2010549.99 | F23: 12061306 | G23: 12063806 | H23: 12063806 | I23: 76058.68 | J23: 12703188 | K23: 13325644 | L23: 13951949
A24: Licences or permits | C24: 249 | D24: 653.52 | E24: 686 | F24: 1633 | G24: 1633 | H24: 1633 | I24: 592 | J24: 1720 | K24: 1804 | L24: 1889
A25: Transfer and subsidies - Operational | C25: 105855612.7 | D25: 322418846.4 | E25: 283498760.8 | F25: 310408898 | G25: 305408898 | H25: 305408898 | I25: 304304917.5 | J25: 339638763 | K25: 350717000 | L25: 338583000
A26: Interest | C26: 0 | D26: 12791733.15 | E26: 14209575.13 | F26: 12054351 | G26: 14554351 | H26: 14554351 | I26: 15443030.47 | J26: 15325731 | K26: 16076692 | L26: 16832297
A27: Fuel Levy
A28: Operational Revenue
A29: Gains on disposal of Assets | C29: 0 | D29: 2866000 | E29: 6339723.19 | F29: 70000 | G29: 70000 | H29: 70000 | I29: 0 | J29: 73710 | K29: 77322 | L29: 80956
A30: Other Gains | C30: 0 | D30: 1379868.7 | E30: 223.1 | F30: 0 | G30: 0 | H30: 0 | I30: 0 | J30: 0 | K30: 0 | L30: 0
A31: Discontinued Operations
A32: Total Revenue (excluding capital transfers and contributions) | C32: =SUM(C6:C19)+SUM(C21:C31) -> 143146505.9 | D32: =SUM(D6:D19)+SUM(D21:D31) -> 433809655.5 | E32: 410785561.2 | F32: 565311896 | G32: 583892372 | H32: 583892372 | I32: 379456733.5 | J32: 713725841 | K32: 689534457 | L32: 677015143
A33: Expenditure
A34: Employee related costs | B34: 2 | C34: ='SA1'!C71 -> 25927135.45 | D34: ='SA1'!D71 -> 96320163.65 | E34: ='SA1'!E71 -> 92930048.43 | F34: ='SA1'!F71 -> 134714216 | G34: ='SA1'!G71 -> 118793372 | H34: ='SA1'!H71 -> 118793372 | I34: ='SA1'!I71 -> 90984275.91 | J34: ='SA1'!J71 -> 142196313 | K34: ='SA1'!K71 -> 149163916 | L34: ='SA1'!L71 -> 156174628 | M34: ='SA1'!M71 -> 0 | N34: ='SA1'!N71 -> 0 | O34: ='SA1'!O71 -> 0 | P34: ='SA1'!P71 -> 0 | Q34: ='SA1'!Q71 -> 0 | R34: ='SA1'!R71 -> 0 | S34: ='SA1'!S71 -> 0 | T34: ='SA1'!T71 -> 0
A35: Remuneration of councillors | C35: 3605569.71 | D35: 22365273.38 | E35: 22406928.87 | F35: 22394173 | G35: 22394173 | H35: 22394173 | I35: 21673452.79 | J35: 23603450 | K35: 24736531 | L35: 25899147
A36: Bulk purchases - electricity | B36: 2 | C36: ='SA1'!C88 -> 0 | D36: ='SA1'!D88 -> 0 | E36: ='SA1'!E88 -> 0 | F36: ='SA1'!F88 -> 0 | G36: ='SA1'!G88 -> 0 | H36: ='SA1'!H88 -> 0 | I36: ='SA1'!I88 -> 0 | J36: ='SA1'!J88 -> 0 | K36: ='SA1'!K88 -> 0 | L36: ='SA1'!L88 -> 0
A37: Inventory consumed | B37: 8 | C37: ='SA1'!C169 -> 0 | D37: ='SA1'!D169 -> 2854113 | E37: ='SA1'!E169 -> 1111269 | F37: ='SA1'!F169 -> 8167811 | G37: ='SA1'!G169 -> 5796349 | H37: ='SA1'!H169 -> 5796349 | I37: ='SA1'!I169 -> 1273220.21 | J37: ='SA1'!J169 -> 9328945 | K37: ='SA1'!K169 -> 9639064 | L37: ='SA1'!L169 -> 9959101
A38: Debt impairment | B38: 3 | C38: 1874168.48 | D38: 0 | E38: 0 | F38: 0 | G38: 0 | H38: 0 | I38: 0 | J38: 0 | K38: 0 | L38: 0
A39: Depreciation and amortisation | C39: ='SA1'!C83 -> 13577.88 | D39: ='SA1'!D83 -> 30573634.62 | E39: ='SA1'!E83 -> 28302993.82 | F39: ='SA1'!F83 -> 37699942 | G39: ='SA1'!G83 -> 37699942 | H39: ='SA1'!H83 -> 37699942 | I39: ='SA1'!I83 -> 25728724.51 | J39: ='SA1'!J83 -> 39698037 | K39: ='SA1'!K83 -> 41643244 | L39: ='SA1'!L83 -> 43600473
A40: Interest | C40: 0 | D40: 0 | E40: 0 | F40: 153613 | G40: 50000 | H40: 50000 | I40: 0 | J40: 52650 | K40: 55230 | L40: 57826
A41: Contracted services | C41: ='SA1'!C127 -> 8752569.03 | D41: ='SA1'!D127 -> 49270857.04 | E41: ='SA1'!E127 -> 50292234.14 | F41: ='SA1'!F127 -> 127041777 | G41: ='SA1'!G127 -> 82242576 | H41: ='SA1'!H127 -> 82242576 | I41: ='SA1'!I127 -> 41011538.84 | J41: ='SA1'!J127 -> 110885238 | K41: ='SA1'!K127 -> 122242212 | L41: ='SA1'!L127 -> 126455059
A42: Transfers and subsidies | C42: ='SA1'!C93 -> 0 | D42: ='SA1'!D93 -> 0 | E42: ='SA1'!E93 -> 0 | F42: ='SA1'!F93 -> 0 | G42: ='SA1'!G93 -> 0 | H42: ='SA1'!H93 -> 0 | I42: ='SA1'!I93 -> 0 | J42: ='SA1'!J93 -> 0 | K42: ='SA1'!K93 -> 0 | L42: ='SA1'!L93 -> 0
A43: Irrecoverable debts written off | C43: 0 | D43: 54425400.28 | E43: 85336204.48 | F43: 54242089 | G43: 92303581 | H43: 92303581 | I43: 28035370.82 | J43: 87043801 | K43: 85607698 | L43: 88201734
A44: Operational costs | C44: ='SA1'!C157 -> 5920305.99 | D44: ='SA1'!D157 -> 40766112.54 | E44: ='SA1'!E157 -> 46202147.06 | F44: ='SA1'!F157 -> 54380527 | G44: ='SA1'!G157 -> 54374239 | H44: ='SA1'!H157 -> 54374239 | I44: ='SA1'!I157 -> 48814021.33 | J44: ='SA1'!J157 -> 65353081 | K44: ='SA1'!K157 -> 65027856 | L44: ='SA1'!L157 -> 68089144
A45: Losses on disposal of Assets | C45: 0 | D45: 237113937.3 | E45: 3136404.67 | F45: 0 | G45: 0 | H45: 0 | I45: 0 | J45: 0 | K45: 0 | L45: 0
A46: Other Losses | C46: 0 | D46: 923564.34 | E46: 410698.8 | F46: 0 | G46: 0 | H46: 0 | I46: 0 | J46: 0 | K46: 0 | L46: 0
A47: Total Expenditure | C47: =SUM(C34:C46) -> 46093326.54 | D47: =SUM(D34:D46) -> 534613056.2 | E47: 330128929.3 | F47: 438794148 | G47: 413654232 | H47: 413654232 | I47: 257520604.4 | J47: 478161515 | K47: 498115751 | L47: 518437112 | M47: =SUM(M34:M46) -> 0 | N47: 0 | O47: 0 | P47: 0 | Q47: 0 | R47: 0 | S47: 0 | T47: 0 | U47: 0 | V47: 0 | W47: 0 | X47: 0
A48: Surplus/(Deficit) | C48: =C32-C47 -> 97053179.4 | D48: -100803400.6 | E48: 80656631.94 | F48: 126517748 | G48: 170238140 | H48: 170238140 | I48: 121936129.1 | J48: 235564326 | K48: 191418706 | L48: 158578031 | M48: =M32+M47 -> 0 | N48: 0 | O48: 0 | P48: 0 | Q48: 0 | R48: 0 | S48: 0 | T48: 0 | U48: 0 | V48: 0 | W48: 0 | X48: 0
A49: Transfers and subsidies - capital (monetary allocations) | B49: 6 | C49: 3983727.73 | D49: 35107765.51 | E49: 50792084.59 | F49: 61628000 | G49: 61435087 | H49: 61435087 | I49: 31651884.09 | J49: 64332000 | K49: 67209000 | L49: 70208000
A50: Transfers and subsidies - capital (in-kind) | B50: 6
A51: Surplus/(Deficit) after capital transfers & contributions | C51: =SUM(C48:C50) -> 101036907.1 | D51: -65695635.1 | E51: 131448716.5 | F51: 188145748 | G51: 231673227 | H51: 231673227 | I51: 153588013.2 | J51: 299896326 | K51: 258627706 | L51: 228786031
A52: Income Tax
A53: Surplus/(Deficit) after income tax | C53: =+C51-C52 -> 101036907.1 | D53: =+D51-D52 -> -65695635.1 | E53: 131448716.5 | F53: 188145748 | G53: 231673227 | H53: 231673227 | I53: 153588013.2 | J53: 299896326 | K53: 258627706 | L53: 228786031 | M53: 0 | N53: 0 | O53: 0 | P53: 0 | Q53: 0
A54: Share of Surplus/Deficit attributable to Joint Venture
A55: Share of Surplus/Deficit attributable to Minorities
A56: Surplus/(Deficit) attributable to municipality | C56: =SUM(C53:C55) -> 101036907.1 | D56: =SUM(D53:D55) -> -65695635.1 | E56: 131448716.5 | F56: 188145748 | G56: 231673227 | H56: 231673227 | I56: 153588013.2 | J56: 299896326 | K56: 258627706 | L56: 228786031 | M56: 0 | N56: 0 | O56: 0 | P56: 0 | Q56: 0
A57: Share of Surplus/Deficit attributable to Associate | B57: 7
A58: Intercompany/Parent subsidiary transactions
A59: =result -> Surplus/(Deficit) for the year | B59: 1 | C59: =SUM(C56:C58) -> 101036907.1 | D59: =SUM(D56:D58) -> -65695635.1 | E59: 131448716.5 | F59: 188145748 | G59: 231673227 | H59: 231673227 | I59: 153588013.2 | J59: 299896326 | K59: 258627706 | L59: 228786031 | M59: 0 | N59: 0 | O59: 0 | P59: 0 | Q59: 0 | R59: =R35+R58 -> 0 | S59: 0 | T59: 0 | U59: 0 | V59: 0 | W59: 0 | X59: 0
A60: References
A61: 1. Classifications are revenue sources and expenditure type
A62: 2. Detail to be provided in Table SA1 | O62: =O59-'A4-FinPerf RE'!J59 -> -299896326 | P62: =P59-'A4-FinPerf RE'!K59 -> -258627706 | Q62: =Q59-'A4-FinPerf RE'!L59 -> -228786031
A63: 3. Debt impairment includes Impairment and Reversal of Impairment Losses
A64: 4. Expenditure type components previously shown under repairs and maintenance should be allocated back to the originating expenditure group/item; e.g. employee costs
A65: 5. Repairs & maintenance detailed in Table A9 and Table SA34c
A66: 6. Contributions are funds provided by external organisations to assist with infrastructure development; e.g. developer contributions (detail to be provided in Table SA1)
A67: 7. Equity method ( Includes Joint Ventures)
A68: 8. All materials consumed including water consumed and materials used in operations.

Sheet A5-Capex
A2: =Vdesc -> Vote Description | B2: =head27 -> Ref | C2: =head1b -> 2019/20 | D2: =head1A -> 2020/21 | E2: =Head1 -> 2021/22 | F2: =Head2 -> Current Year 2022/23 | J2: =Head3 -> 2023/24 Medium Term Revenue & Expenditure Framework
A3: R thousand | B3: 1 | C3: =Head5 -> Audited Outcome | D3: =Head5 -> Audited Outcome | E3: =Head5 -> Audited Outcome | F3: =Head6 -> Original Budget | G3: =Head7 -> Adjusted Budget | H3: =Head8 -> Full Year Forecast | I3: =Head5b -> Pre-audit outcome | J3: =Head9 -> Budget Year 2023/24 | K3: =Head10 -> Budget Year +1 2024/25 | L3: =Head11 -> Budget Year +2 2025/26
A4: Capital expenditure - Vote
A5: Multi-year expenditure to be appropriated | B5: 2
A6: =A5A!A6 -> Vote 01 - Executive And Council | C6: =A5A!C6 -> 0 | D6: =A5A!D6 -> 0 | E6: =A5A!E6 -> 0 | F6: =A5A!F6 -> 0 | G6: =A5A!G6 -> 0 | H6: =A5A!H6 -> 0 | I6: =A5A!I6 -> 0 | J6: =A5A!J6 -> 0 | K6: =A5A!K6 -> 0 | L6: =A5A!L6 -> 0
A7: =A5A!A11 -> Vote 02 - Municipal Manager | C7: =A5A!C11 -> 0 | D7: =A5A!D11 -> 0 | E7: =A5A!E11 -> 0 | F7: =A5A!F11 -> 0 | G7: =A5A!G11 -> 0 | H7: =A5A!H11 -> 0 | I7: =A5A!I11 -> 0 | J7: =A5A!J11 -> 0 | K7: =A5A!K11 -> 0 | L7: =A5A!L11 -> 0
A8: =A5A!A18 -> Vote 03 - Corporate Services | C8: =A5A!C18 -> 0 | D8: =A5A!D18 -> 0 | E8: =A5A!E18 -> 0 | F8: =A5A!F18 -> 0 | G8: =A5A!G18 -> 0 | H8: =A5A!H18 -> 0 | I8: =A5A!I18 -> 0 | J8: =A5A!J18 -> 0 | K8: =A5A!K18 -> 0 | L8: =A5A!L18 -> 0
A9: =A5A!A26 -> Vote 04 - Budget And Treasury | C9: =A5A!C26 -> 0 | D9: =A5A!D26 -> 0 | E9: =A5A!E26 -> 0 | F9: =A5A!F26 -> 0 | G9: =A5A!G26 -> 0 | H9: =A5A!H26 -> 0 | I9: =A5A!I26 -> 0 | J9: =A5A!J26 -> 0 | K9: =A5A!K26 -> 0 | L9: =A5A!L26 -> 0
A10: =A5A!A33 -> Vote 05 - Community Services | C10: =A5A!C33 -> 0 | D10: =A5A!D33 -> 0 | E10: =A5A!E33 -> 0 | F10: =A5A!F33 -> 0 | G10: =A5A!G33 -> 0 | H10: =A5A!H33 -> 0 | I10: =A5A!I33 -> 0 | J10: =A5A!J33 -> 0 | K10: =A5A!K33 -> 0 | L10: =A5A!L33 -> 0
A11: =A5A!A44 -> Vote 06 - Planning And Development | C11: =A5A!C44 -> 0 | D11: =A5A!D44 -> 0 | E11: =A5A!E44 -> 0 | F11: =A5A!F44 -> 0 | G11: =A5A!G44 -> 0 | H11: =A5A!H44 -> 0 | I11: =A5A!I44 -> 0 | J11: =A5A!J44 -> 0 | K11: =A5A!K44 -> 0 | L11: =A5A!L44 -> 0
A12: =A5A!A52 -> Vote 07 - Infrastructure Development | C12: =A5A!C52 -> 0 | D12: =A5A!D52 -> 0 | E12: =A5A!E52 -> 0 | F12: =A5A!F52 -> 0 | G12: =A5A!G52 -> 0 | H12: =A5A!H52 -> 0 | I12: =A5A!I52 -> 0 | J12: =A5A!J52 -> 0 | K12: =A5A!K52 -> 0 | L12: =A5A!L52 -> 0
A13: ='Org structure'!A9 -> Vote 08 - | C13: =A5A!C63 -> 0 | D13: =A5A!D63 -> 0 | E13: =A5A!E63 -> 0 | F13: =A5A!F63 -> 0 | G13: =A5A!G63 -> 0 | H13: =A5A!H63 -> 0 | I13: =A5A!I63 -> 0 | J13: =A5A!J63 -> 0 | K13: =A5A!K63 -> 0 | L13: =A5A!L63 -> 0
A14: ='Org structure'!A10 -> Vote 09 - | C14: =A5A!C64 -> 0 | D14: =A5A!D64 -> 0 | E14: =A5A!E64 -> 0 | F14: =A5A!F64 -> 0 | G14: =A5A!G64 -> 0 | H14: =A5A!H64 -> 0 | I14: =A5A!I64 -> 0 | J14: =A5A!J64 -> 0 | K14: =A5A!K64 -> 0 | L14: =A5A!L64 -> 0
A15: ='Org structure'!A11 -> Vote 10 - | C15: =A5A!C65 -> 0 | D15: =A5A!D65 -> 0 | E15: =A5A!E65 -> 0 | F15: =A5A!F65 -> 0 | G15: =A5A!G65 -> 0 | H15: =A5A!H65 -> 0 | I15: =A5A!I65 -> 0 | J15: =A5A!J65 -> 0 | K15: =A5A!K65 -> 0 | L15: =A5A!L65 -> 0
A16: ='Org structure'!A12 -> Vote 11 - | C16: =A5A!C66 -> 0 | D16: =A5A!D66 -> 0 | E16: =A5A!E66 -> 0 | F16: =A5A!F66 -> 0 | G16: =A5A!G66 -> 0 | H16: =A5A!H66 -> 0 | I16: =A5A!I66 -> 0 | J16: =A5A!J66 -> 0 | K16: =A5A!K66 -> 0 | L16: =A5A!L66 -> 0
A17: ='Org structure'!A13 -> Vote 12 - | C17: =A5A!C67 -> 0 | D17: =A5A!D67 -> 0 | E17: =A5A!E67 -> 0 | F17: =A5A!F67 -> 0 | G17: =A5A!G67 -> 0 | H17: =A5A!H67 -> 0 | I17: =A5A!I67 -> 0 | J17: =A5A!J67 -> 0 | K17: =A5A!K67 -> 0 | L17: =A5A!L67 -> 0
A18: ='Org structure'!A14 -> Vote 13 - | C18: =A5A!C68 -> 0 | D18: =A5A!D68 -> 0 | E18: =A5A!E68 -> 0 | F18: =A5A!F68 -> 0 | G18: =A5A!G68 -> 0 | H18: =A5A!H68 -> 0 | I18: =A5A!I68 -> 0 | J18: =A5A!J68 -> 0 | K18: =A5A!K68 -> 0 | L18: =A5A!L68 -> 0
A19: ='Org structure'!A15 -> Vote 14 - | C19: =A5A!C69 -> 0 | D19: =A5A!D69 -> 0 | E19: =A5A!E69 -> 0 | F19: =A5A!F69 -> 0 | G19: =A5A!G69 -> 0 | H19: =A5A!H69 -> 0 | I19: =A5A!I69 -> 0 | J19: =A5A!J69 -> 0 | K19: =A5A!K69 -> 0 | L19: =A5A!L69 -> 0
A20: ='Org structure'!A16 -> Vote 15 - Other | C20: =A5A!C70 -> 0 | D20: =A5A!D70 -> 0 | E20: =A5A!E70 -> 0 | F20: =A5A!F70 -> 0 | G20: =A5A!G70 -> 0 | H20: =A5A!H70 -> 0 | I20: =A5A!I70 -> 0 | J20: =A5A!J70 -> 0 | K20: =A5A!K70 -> 0 | L20: =A5A!L70 -> 0
A21: Capital multi-year expenditure sub-total | B21: 7 | C21: =SUM(C6:C20) -> 0 | D21: =SUM(D6:D20) -> 0 | E21: 0 | F21: 0 | G21: 0 | H21: =SUM(H6:H20) -> 0 | I21: 0 | J21: 0 | K21: 0 | L21: 0
A23: Single-year expenditure to be appropriated | B23: 2
A24: =A5A!A75 -> Vote 01 - Executive And Council | C24: =A5A!C75 -> 24205 | D24: =A5A!D75 -> 0 | E24: =A5A!E75 -> 0 | F24: =A5A!F75 -> 0 | G24: =A5A!G75 -> 0 | H24: =A5A!H75 -> 0 | I24: =A5A!I75 -> 0 | J24: =A5A!J75 -> 0 | K24: =A5A!K75 -> 0 | L24: =A5A!L75 -> 0
A25: =A5A!A80 -> Vote 02 - Municipal Manager | C25: =A5A!C80 -> 0 | D25: =A5A!D80 -> 0 | E25: =A5A!E80 -> 0 | F25: =A5A!F80 -> 100000 | G25: =A5A!G80 -> 93000 | H25: =A5A!H80 -> 93000 | I25: =A5A!I80 -> 93000 | J25: =A5A!J80 -> 1800000 | K25: =A5A!K80 -> 850000 | L25: =A5A!L80 -> 850000
A26: =A5A!A87 -> Vote 03 - Corporate Services | C26: =A5A!C87 -> 0 | D26: =A5A!D87 -> 640217.56 | E26: =A5A!E87 -> 885778.48 | F26: =A5A!F87 -> 18405000 | G26: =A5A!G87 -> 18625000 | H26: =A5A!H87 -> 18625000 | I26: =A5A!I87 -> 8281321.79 | J26: =A5A!J87 -> 11580920 | K26: =A5A!K87 -> 9582646 | L26: =A5A!L87 -> 5349381
A27: =A5A!A95 -> Vote 04 - Budget And Treasury | C27: =A5A!C95 -> -565.22 | D27: =A5A!D95 -> 0 | E27: =A5A!E95 -> 0 | F27: =A5A!F95 -> 0 | G27: =A5A!G95 -> 0 | H27: =A5A!H95 -> 0 | I27: =A5A!I95 -> 0 | J27: =A5A!J95 -> 0 | K27: =A5A!K95 -> 0 | L27: =A5A!L95 -> 0
A28: =A5A!A102 -> Vote 05 - Community Services | C28: =A5A!C102 -> 0 | D28: =A5A!D102 -> 5737725.36 | E28: =A5A!E102 -> 8430999.14 | F28: =A5A!F102 -> 23200000 | G28: =A5A!G102 -> 23258323 | H28: =A5A!H102 -> 23258323 | I28: =A5A!I102 -> 0 | J28: =A5A!J102 -> 33516600 | K28: =A5A!K102 -> 15065000 | L28: =A5A!L102 -> 19020000
A29: =A5A!A113 -> Vote 06 - Planning And Development | C29: =A5A!C113 -> 0 | D29: =A5A!D113 -> 394025 | E29: =A5A!E113 -> 5844448.54 | F29: =A5A!F113 -> 3500000 | G29: =A5A!G113 -> 3000000 | H29: =A5A!H113 -> 3000000 | I29: =A5A!I113 -> 0 | J29: =A5A!J113 -> 12396000 | K29: =A5A!K113 -> 22000000 | L29: =A5A!L113 -> 45962068
A30: =A5A!A121 -> Vote 07 - Infrastructure Development | C30: =A5A!C121 -> 13743928.04 | D30: =A5A!D121 -> 38699068.84 | E30: =A5A!E121 -> 41549228.46 | F30: =A5A!F121 -> 146125136 | G30: =A5A!G121 -> 186696899 | H30: =A5A!H121 -> 186696899 | I30: =A5A!I121 -> 34593798.48 | J30: =A5A!J121 -> 240269254 | K30: =A5A!K121 -> 211130060 | L30: =A5A!L121 -> 157612582
A31: ='Org structure'!A9 -> Vote 08 - | C31: =A5A!C132 -> 0 | D31: =A5A!D132 -> 0 | E31: =A5A!E132 -> 0 | F31: =A5A!F132 -> 0 | G31: =A5A!G132 -> 0 | H31: =A5A!H132 -> 0 | I31: =A5A!I132 -> 0 | J31: =A5A!J132 -> 0 | K31: =A5A!K132 -> 0 | L31: =A5A!L132 -> 0
A32: ='Org structure'!A10 -> Vote 09 - | C32: =A5A!C133 -> 0 | D32: =A5A!D133 -> 0 | E32: =A5A!E133 -> 0 | F32: =A5A!F133 -> 0 | G32: =A5A!G133 -> 0 | H32: =A5A!H133 -> 0 | I32: =A5A!I133 -> 0 | J32: =A5A!J133 -> 0 | K32: =A5A!K133 -> 0 | L32: =A5A!L133 -> 0
A33: ='Org structure'!A11 -> Vote 10 - | C33: =A5A!C134 -> 0 | D33: =A5A!D134 -> 0 | E33: =A5A!E134 -> 0 | F33: =A5A!F134 -> 0 | G33: =A5A!G134 -> 0 | H33: =A5A!H134 -> 0 | I33: =A5A!I134 -> 0 | J33: =A5A!J134 -> 0 | K33: =A5A!K134 -> 0 | L33: =A5A!L134 -> 0
A34: ='Org structure'!A12 -> Vote 11 - | C34: =A5A!C135 -> 0 | D34: =A5A!D135 -> 0 | E34: =A5A!E135 -> 0 | F34: =A5A!F135 -> 0 | G34: =A5A!G135 -> 0 | H34: =A5A!H135 -> 0 | I34: =A5A!I135 -> 0 | J34: =A5A!J135 -> 0 | K34: =A5A!K135 -> 0 | L34: =A5A!L135 -> 0
A35: ='Org structure'!A13 -> Vote 12 - | C35: =A5A!C136 -> 0 | D35: =A5A!D136 -> 0 | E35: =A5A!E136 -> 0 | F35: =A5A!F136 -> 0 | G35: =A5A!G136 -> 0 | H35: =A5A!H136 -> 0 | I35: =A5A!I136 -> 0 | J35: =A5A!J136 -> 0 | K35: =A5A!K136 -> 0 | L35: =A5A!L136 -> 0
A36: ='Org structure'!A14 -> Vote 13 - | C36: =A5A!C137 -> 0 | D36: =A5A!D137 -> 0 | E36: =A5A!E137 -> 0 | F36: =A5A!F137 -> 0 | G36: =A5A!G137 -> 0 | H36: =A5A!H137 -> 0 | I36: =A5A!I137 -> 0 | J36: =A5A!J137 -> 0 | K36: =A5A!K137 -> 0 | L36: =A5A!L137 -> 0
A37: ='Org structure'!A15 -> Vote 14 - | C37: =A5A!C138 -> 0 | D37: =A5A!D138 -> 0 | E37: =A5A!E138 -> 0 | F37: =A5A!F138 -> 0 | G37: =A5A!G138 -> 0 | H37: =A5A!H138 -> 0 | I37: =A5A!I138 -> 0 | J37: =A5A!J138 -> 0 | K37: =A5A!K138 -> 0 | L37: =A5A!L138 -> 0
A38: ='Org structure'!A16 -> Vote 15 - Other | C38: =A5A!C139 -> 0 | D38: =A5A!D139 -> 0 | E38: =A5A!E139 -> 0 | F38: =A5A!F139 -> 0 | G38: =A5A!G139 -> 0 | H38: =A5A!H139 -> 0 | I38: =A5A!I139 -> 0 | J38: =A5A!J139 -> 0 | K38: =A5A!K139 -> 0 | L38: =A5A!L139 -> 0
A39: Capital single-year expenditure sub-total | C39: =SUM(C24:C38) -> 13767567.82 | D39: =SUM(D24:D38) -> 45471036.76 | E39: 56710454.62 | F39: 191330136 | G39: 231673222 | H39: 231673222 | I39: 42968120.27 | J39: 299562774 | K39: 258627706 | L39: 228794031
A40: Total Capital Expenditure - Vote | C40: =C39+C21 -> 13767567.82 | D40: =D39+D21 -> 45471036.76 | E40: 56710454.62 | F40: 191330136 | G40: 231673222 | H40: 231673222 | I40: 42968120.27 | J40: 299562774 | K40: 258627706 | L40: 228794031
A42: Capital Expenditure - Functional
A43: Governance and administration | C43: =SUM(C44:C46) -> 23639.78 | D43: =SUM(D44:D46) -> 640217.56 | E43: 885778.48 | F43: 18505000 | G43: 18718000 | H43: 18718000 | I43: 8374321.79 | J43: 13380920 | K43: 10432646 | L43: 6199381
A44: Executive and council
A45: Finance and administration | C45: 23639.78 | D45: 640217.56 | E45: 885778.48 | F45: 18505000 | G45: 18718000 | H45: 18718000 | I45: 8374321.79 | J45: 13380920 | K45: 10432646 | L45: 6199381
A46: Internal audit
A47: Community and public safety | C47: =SUM(C48:C52) -> 0 | D47: =SUM(D48:D52) -> 5737725.36 | E47: 8430999.14 | F47: 8360000 | G47: 8518323 | H47: 8518323 | I47: 0 | J47: 18216600 | K47: 5000000 | L47: 5000000
A48: Community and social services | C48: 0 | D48: 5540225.36 | E48: 8430999.14 | F48: 8200000 | G48: 8358323 | H48: 8358323 | I48: 0 | J48: 18216600 | K48: 5000000 | L48: 5000000
A49: Sport and recreation
A50: Public safety | C50: 0 | D50: 197500 | E50: 0 | F50: 160000 | G50: 160000 | H50: 160000 | I50: 0 | J50: 0 | K50: 0 | L50: 0
A51: Housing
A52: Health
A53: Economic and environmental services | C53: =SUM(C54:C56) -> 13632800.43 | D53: =SUM(D54:D56) -> 36351233.84 | E53: 47393677 | F53: 156325136 | G53: 150373899 | H53: 150373899 | I53: 33342348.36 | J53: 180831254 | K53: 203891060 | L53: 191749650
A54: Planning and development | C54: 8736597.37 | D54: 31925701.19 | E54: 43508639.75 | F54: 62046601 | G54: 56353688 | H54: 56353688 | I54: 28275472.55 | J54: 73511400 | K54: 85848550 | L54: 112659668
A55: Road transport | C55: 4896203.06 | D55: 4425532.65 | E55: 3885037.25 | F55: 93578535 | G55: 93420211 | H55: 93420211 | I55: 5066875.81 | J55: 106819854 | K55: 117977510 | L55: 79089982
A56: Environmental protection | C56: 0 | D56: 0 | E56: 0 | F56: 700000 | G56: 600000 | H56: 600000 | I56: 0 | J56: 500000 | K56: 65000 | L56: 0
A57: Trading services | C57: =SUM(C58:C61) -> 111127.61 | D57: =SUM(D58:D61) -> 2741860 | E57: 0 | F57: 8140000 | G57: 54063000 | H57: 54063000 | I57: 1251450.12 | J57: 87134000 | K57: 39304000 | L57: 25845000
A58: Energy sources | C58: 111127.61 | D58: 2741860 | E58: 0 | F58: 6000000 | G58: 51923000 | H58: 51923000 | I58: 1251450.12 | J58: 78334000 | K58: 35304000 | L58: 11825000
A59: Water management
A60: Waste water management
A61: Waste management | C61: 0 | D61: 0 | E61: 0 | F61: 2140000 | G61: 2140000 | H61: 2140000 | I61: 0 | J61: 8800000 | K61: 4000000 | L61: 14020000
A62: Other
A63: Total Capital Expenditure - Functional | B63: 3 | C63: =C43+C47+C53+C57+C62 -> 13767567.82 | D63: =D43+D47+D53+D57+D62 -> 45471036.76 | E63: 56710454.62 | F63: 191330136 | G63: 231673222 | H63: 231673222 | I63: 42968120.27 | J63: 299562774 | K63: 258627706 | L63: =L43+L47+L53+L57+L62 -> 228794031
A65: Funded by:
A66: National Government | C66: 8736597.37 | D66: 31531676.19 | E66: 42548887.74 | F66: 58546601 | G66: 58353688 | H66: 58353688 | I66: 28275472.55 | J66: 76015400 | K66: 73252550 | L66: 76522600
A67: Provincial Government | C67: 0 | D67: 0 | E67: 0 | F67: 0 | G67: 0 | H67: 0 | I67: 0 | J67: 0 | K67: 0 | L67: 0
A68: District Municipality
A69: Transfers and subsidies - capital (monetary allocations) (Nat / Prov Departm Agencies, Households, Non-profit Institutions, Private Enterprises, Public Corporatons, Higher Educ Institutions)
A70: Transfers recognised - capital | B70: 4 | C70: =SUM(C66:C69) -> 8736597.37 | D70: 31531676.19 | E70: 42548887.74 | F70: 58546601 | G70: 58353688 | H70: 58353688 | I70: 28275472.55 | J70: 76015400 | K70: 73252550 | L70: 76522600
A72: Borrowing | B72: 6
A73: Internally generated funds | C73: 5030970.45 | D73: 13939360.57 | E73: 14161566.88 | F73: 132783535 | G73: 173319534 | H73: 173319534 | I73: 14692647.72 | J73: 223547374 | K73: 185375156 | L73: 152271431
A74: Total Capital Funding | B74: 7 | C74: =+C70+C72+C73 -> 13767567.82 | D74: =+D70+D72+D73 -> 45471036.76 | E74: 56710454.62 | F74: 191330136 | G74: 231673222 | H74: 231673222 | I74: 42968120.27 | J74: 299562774 | K74: 258627706 | L74: 228794031
A75: =head27a -> References
A76: 1. Municipalities may choose to appropriate for capital expenditure for three years or for one year (if one year appropriation projected expenditure required for yr2 and yr3).
A77: 2. Include capital component of PPP unitary payment. Note that capital transfers are only appropriated to municipalities for the budget year
A78: 3. Capital expenditure by functional classification must reconcile to the appropriations by vote
A79: 4. Must reconcile to supporting table SA20 and to Budgeted Financial Performance (revenue and expenditure)
A81: 6. Include finance leases and PPP capital funding component of unitary payment - total borrowing/repayments to reconcile to changes in Table SA17
A82: 7. Total Capital Funding must balance with Total Capital Expenditure
A83: 8. Include any capitalised interest (MFMA section 46) as part of relevant capital budget

Sheet A5A
A1: =muni&" - "&Approve5 -> LIM355 Lepelle-Nkumpi - Table A5 Budgeted Capital Expenditure by vote, functional classification and funding
A2: =Vdesc -> Vote Description | B2: =head27 -> Ref | C2: =head1b -> 2019/20 | D2: =head1A -> 2020/21 | E2: =Head1 -> 2021/22 | F2: =Head2 -> Current Year 2022/23 | J2: =Head3 -> 2023/24 Medium Term Revenue & Expenditure Framework | N2: ="Multi-year appropriation for "&Head9& " in the "&Head2A&" Annual Budget" -> Multi-year appropriation for Budget Year 2023/24 in the 2022/23 Annual Budget | R2: ="Multi-year appropriation for "&RIGHT(Head10,7)& " in the "&Head2A&" Annual Budget" -> Multi-year appropriation for 2024/25 in the 2022/23 Annual Budget | V2: New multi-year appropriations (funds for new and existing projects)
A3: R thousand | B3: 1 | C3: =Head5 -> Audited Outcome | D3: =Head5 -> Audited Outcome | E3: =Head5 -> Audited Outcome | F3: =Head6 -> Original Budget | G3: =Head7 -> Adjusted Budget | H3: =Head8 -> Full Year Forecast | I3: =Head5b -> Pre-audit outcome | J3: =Head9 -> Budget Year 2023/24 | K3: =Head10 -> Budget Year +1 2024/25 | L3: =Head11 -> Budget Year +2 2025/26 | N3: ="Appropriation for "&RIGHT(Head9,7) -> Appropriation for 2023/24 | O3: ="Adjustments in "&Head2A -> Adjustments in 2022/23 | P3: ="Downward adjustments for "&RIGHT(Head9,7) -> Downward adjustments for 2023/24 | Q3: Appropriation carried forward | R3: ="Appropriation for "&RIGHT(Head9,7) -> Appropriation for 2023/24 | S3: ="Adjustments in "&Head2A -> Adjustments in 2022/23 | T3: ="Downward adjustments for "&RIGHT(Head9,7) -> Downward adjustments for 2023/24 | U3: Appropriation carried forward | V3: =Head9 -> Budget Year 2023/24 | W3: =Head10 -> Budget Year +1 2024/25 | X3: =Head11 -> Budget Year +2 2025/26
A4: Capital expenditure - Municipal Vote
A5: Multi-year expenditure appropriation | B5: 2
A6: ='Org structure'!A2 -> Vote 01 - Executive And Council | C6: =SUM(C7:C10) -> 0 | D6: 0 | E6: 0 | F6: 0 | G6: 0 | H6: 0 | I6: 0 | J6: 0 | K6: 0 | L6: 0 | N6: =SUM(N7:N10) -> 0 | O6: 0 | P6: 0 | Q6: 0 | R6: 0 | S6: 0 | T6: 0 | U6: 0 | V6: 0 | W6: 0 | X6: 0
A7: ='Org structure'!E3 -> 01.1 - Mayor & Councillors | C7: 0 | D7: 0 | E7: 0 | F7: 0 | G7: 0 | H7: 0 | I7: 0 | J7: =Q7+V7 -> 0 | K7: =U7+W7 -> 0 | L7: =X7 -> 0 | N7: 0 | O7: 0 | P7: 0 | Q7: =SUM(N7:P7) -> 0 | R7: 0 | S7: 0 | T7: 0 | U7: =SUM(R7:T7) -> 0 | V7: 0 | W7: 0 | X7: 0
A8: ='Org structure'!E4 -> 01.2 - Mayor & Council Support | C8: 0 | D8: 0 | E8: 0 | F8: 0 | G8: 0 | H8: 0 | I8: 0 | J8: =Q8+V8 -> 0 | K8: =U8+W8 -> 0 | L8: =X8 -> 0 | N8: 0 | O8: 0 | P8: 0 | Q8: =SUM(N8:P8) -> 0 | R8: 0 | S8: 0 | T8: 0 | U8: =SUM(R8:T8) -> 0 | V8: 0 | W8: 0 | X8: 0
A9: ='Org structure'!E5 -> 01.3 - Board General Mayor | C9: 0 | D9: 0 | E9: 0 | F9: 0 | G9: 0 | H9: 0 | I9: 0 | J9: =Q9+V9 -> 0 | K9: =U9+W9 -> 0 | L9: =X9 -> 0 | N9: 0 | O9: 0 | P9: 0 | Q9: =SUM(N9:P9) -> 0 | R9: 0 | S9: 0 | T9: 0 | U9: =SUM(R9:T9) -> 0 | V9: 0 | W9: 0 | X9: 0
A10: ='Org structure'!E6 -> 01.4 - Board General Speaker | C10: 0 | D10: 0 | E10: 0 | F10: 0 | G10: 0 | H10: 0 | I10: 0 | J10: =Q10+V10 -> 0 | K10: =U10+W10 -> 0 | L10: =X10 -> 0 | N10: 0 | O10: 0 | P10: 0 | Q10: =SUM(N10:P10) -> 0 | R10: 0 | S10: 0 | T10: 0 | U10: =SUM(R10:T10) -> 0 | V10: 0 | W10: 0 | X10: 0
A11: ='Org structure'!A3 -> Vote 02 - Municipal Manager | C11: =SUM(C12:C17) -> 0 | D11: 0 | E11: 0 | F11: 0 | G11: 0 | H11: 0 | I11: 0 | J11: 0 | K11: 0 | L11: 0 | N11: =SUM(N12:N17) -> 0 | O11: 0 | P11: 0 | Q11: 0 | R11: 0 | S11: 0 | T11: 0 | U11: 0 | V11: 0 | W11: 0 | X11: 0
A12: ='Org structure'!E8 -> 02.1 - Municipal Manager Administration | C12: 0 | D12: 0 | E12: 0 | F12: 0 | G12: 0 | H12: 0 | I12: 0 | J12: =Q12+V12 -> 0 | K12: =U12+W12 -> 0 | L12: =X12 -> 0 | N12: 0 | O12: 0 | P12: 0 | Q12: =SUM(N12:P12) -> 0 | R12: 0 | S12: 0 | T12: 0 | U12: =SUM(R12:T12) -> 0 | V12: 0 | W12: 0 | X12: 0
A13: ='Org structure'!E9 -> 02.2 - Municipal Manager | C13: 0 | D13: 0 | E13: 0 | F13: 0 | G13: 0 | H13: 0 | I13: 0 | J13: 0 | K13: 0 | L13: 0 | N13: 0 | O13: 0 | P13: 0 | Q13: 0 | R13: 0 | S13: 0 | T13: 0 | U13: 0 | V13: 0 | W13: 0 | X13: 0
A14: ='Org structure'!E10 -> 02.3 - Municipal Manager Support | C14: 0 | D14: 0 | E14: 0 | F14: 0 | G14: 0 | H14: 0 | I14: 0 | J14: 0 | K14: 0 | L14: 0 | N14: 0 | O14: 0 | P14: 0 | Q14: 0 | R14: 0 | S14: 0 | T14: 0 | U14: 0 | V14: 0 | W14: 0 | X14: 0
A15: ='Org structure'!E11 -> 02.4 - Internal Audit | C15: 0 | D15: 0 | E15: 0 | F15: 0 | G15: 0 | H15: 0 | I15: 0 | J15: 0 | K15: 0 | L15: 0 | N15: 0 | O15: 0 | P15: 0 | Q15: 0 | R15: 0 | S15: 0 | T15: 0 | U15: 0 | V15: 0 | W15: 0 | X15: 0
A16: ='Org structure'!E12 -> 02.5 - Communications | C16: 0 | D16: 0 | E16: 0 | F16: 0 | G16: 0 | H16: 0 | I16: 0 | J16: 0 | K16: 0 | L16: 0 | N16: 0 | O16: 0 | P16: 0 | Q16: 0 | R16: 0 | S16: 0 | T16: 0 | U16: 0 | V16: 0 | W16: 0 | X16: 0
A17: ='Org structure'!E13 -> 02.6 - Risk Management | C17: 0 | D17: 0 | E17: 0 | F17: 0 | G17: 0 | H17: 0 | I17: 0 | J17: 0 | K17: 0 | L17: 0 | N17: 0 | O17: 0 | P17: 0 | Q17: 0 | R17: 0 | S17: 0 | T17: 0 | U17: 0 | V17: 0 | W17: 0 | X17: 0
A18: ='Org structure'!A4 -> Vote 03 - Corporate Services | C18: =SUM(C19:C25) -> 0 | D18: 0 | E18: 0 | F18: 0 | G18: 0 | H18: 0 | I18: 0 | J18: 0 | K18: 0 | L18: 0 | N18: =SUM(N19:N25) -> 0 | O18: 0 | P18: 0 | Q18: 0 | R18: 0 | S18: 0 | T18: 0 | U18: 0 | V18: 0 | W18: 0 | X18: 0
A19: ='Org structure'!E15 -> 03.1 - Executive Manager: Corporate Services | C19: 0 | D19: 0 | E19: 0 | F19: 0 | G19: 0 | H19: 0 | I19: 0 | J19: =Q19+V19 -> 0 | K19: =U19+W19 -> 0 | L19: =X19 -> 0 | N19: 0 | O19: 0 | P19: 0 | Q19: =SUM(N19:P19) -> 0 | R19: 0 | S19: 0 | T19: 0 | U19: =SUM(R19:T19) -> 0 | V19: 0 | W19: 0 | X19: 0
A20: ='Org structure'!E16 -> 03.2 - Human Resource Management & Development | C20: 0 | D20: 0 | E20: 0 | F20: 0 | G20: 0 | H20: 0 | I20: 0 | J20: 0 | K20: 0 | L20: 0 | N20: 0 | O20: 0 | P20: 0 | Q20: 0 | R20: 0 | S20: 0 | T20: 0 | U20: 0 | V20: 0 | W20: 0 | X20: 0
A21: ='Org structure'!E17 -> 03.3 - Information Technology | C21: 0 | D21: 0 | E21: 0 | F21: 0 | G21: 0 | H21: 0 | I21: 0 | J21: 0 | K21: 0 | L21: 0 | N21: 0 | O21: 0 | P21: 0 | Q21: 0 | R21: 0 | S21: 0 | T21: 0 | U21: 0 | V21: 0 | W21: 0 | X21: 0
A22: ='Org structure'!E18 -> 03.4 - Legal Services | C22: 0 | D22: 0 | E22: 0 | F22: 0 | G22: 0 | H22: 0 | I22: 0 | J22: 0 | K22: 0 | L22: 0 | N22: 0 | O22: 0 | P22: 0 | Q22: 0 | R22: 0 | S22: 0 | T22: 0 | U22: 0 | V22: 0 | W22: 0 | X22: 0
A23: ='Org structure'!E19 -> 03.5 - Gen Adm_Sec_Fleet: General Administrat | C23: 0 | D23: 0 | E23: 0 | F23: 0 | G23: 0 | H23: 0 | I23: 0 | J23: 0 | K23: 0 | L23: 0 | N23: 0 | O23: 0 | P23: 0 | Q23: 0 | R23: 0 | S23: 0 | T23: 0 | U23: 0 | V23: 0 | W23: 0 | X23: 0
A24: ='Org structure'!E20 -> 03.6 - Gen Adm_Sec_Fleet: Security Services | C24: 0 | D24: 0 | E24: 0 | F24: 0 | G24: 0 | H24: 0 | I24: 0 | J24: 0 | K24: 0 | L24: 0 | N24: 0 | O24: 0 | P24: 0 | Q24: 0 | R24: 0 | S24: 0 | T24: 0 | U24: 0 | V24: 0 | W24: 0 | X24: 0
A25: ='Org structure'!E21 -> 03.7 - Gen Adm_Sec_Fleet: Fleet Management | C25: 0 | D25: 0 | E25: 0 | F25: 0 | G25: 0 | H25: 0 | I25: 0 | J25: 0 | K25: 0 | L25: 0 | N25: 0 | O25: 0 | P25: 0 | Q25: 0 | R25: 0 | S25: 0 | T25: 0 | U25: 0 | V25: 0 | W25: 0 | X25: 0
A26: ='Org structure'!A5 -> Vote 04 - Budget And Treasury | C26: =SUM(C27:C32) -> 0 | D26: 0 | E26: 0 | F26: 0 | G26: 0 | H26: 0 | I26: 0 | J26: 0 | K26: 0 | L26: 0 | N26: =SUM(N27:N32) -> 0 | O26: 0 | P26: 0 | Q26: 0 | R26: 0 | S26: 0 | T26: 0 | U26: 0 | V26: 0 | W26: 0 | X26: 0
A27: ='Org structure'!E23 -> 04.1 - Chief Financial Officer | C27: 0 | D27: 0 | E27: 0 | F27: 0 | G27: 0 | H27: 0 | I27: 0 | J27: =Q27+V27 -> 0 | K27: =U27+W27 -> 0 | L27: =X27 -> 0 | N27: 0 | O27: 0 | P27: 0 | Q27: =SUM(N27:P27) -> 0 | R27: 0 | S27: 0 | T27: 0 | U27: =SUM(R27:T27) -> 0 | V27: 0 | W27: 0 | X27: 0
A28: ='Org structure'!E24 -> 04.2 - Budget Planning & Management | C28: 0 | D28: 0 | E28: 0 | F28: 0 | G28: 0 | H28: 0 | I28: 0 | J28: 0 | K28: 0 | L28: 0 | N28: 0 | O28: 0 | P28: 0 | Q28: 0 | R28: 0 | S28: 0 | T28: 0 | U28: 0 | V28: 0 | W28: 0 | X28: 0
A29: ='Org structure'!E25 -> 04.3 - Expenditure Management | C29: 0 | D29: 0 | E29: 0 | F29: 0 | G29: 0 | H29: 0 | I29: 0 | J29: 0 | K29: 0 | L29: 0 | N29: 0 | O29: 0 | P29: 0 | Q29: 0 | R29: 0 | S29: 0 | T29: 0 | U29: 0 | V29: 0 | W29: 0 | X29: 0
A30: ='Org structure'!E26 -> 04.4 - Revenue Management | C30: 0 | D30: 0 | E30: 0 | F30: 0 | G30: 0 | H30: 0 | I30: 0 | J30: 0 | K30: 0 | L30: 0 | N30: 0 | O30: 0 | P30: 0 | Q30: 0 | R30: 0 | S30: 0 | T30: 0 | U30: 0 | V30: 0 | W30: 0 | X30: 0
A31: ='Org structure'!E27 -> 04.5 - Asset Management | C31: 0 | D31: 0 | E31: 0 | F31: 0 | G31: 0 | H31: 0 | I31: 0 | J31: 0 | K31: 0 | L31: 0 | N31: 0 | O31: 0 | P31: 0 | Q31: 0 | R31: 0 | S31: 0 | T31: 0 | U31: 0 | V31: 0 | W31: 0 | X31: 0
A32: ='Org structure'!E28 -> 04.6 - Supply Chain Management | C32: 0 | D32: 0 | E32: 0 | F32: 0 | G32: 0 | H32: 0 | I32: 0 | J32: 0 | K32: 0 | L32: 0 | N32: 0 | O32: 0 | P32: 0 | Q32: 0 | R32: 0 | S32: 0 | T32: 0 | U32: 0 | V32: 0 | W32: 0 | X32: 0
A33: ='Org structure'!A6 -> Vote 05 - Community Services | C33: =SUM(C34:C43) -> 0 | D33: 0 | E33: 0 | F33: 0 | G33: 0 | H33: 0 | I33: 0 | J33: 0 | K33: 0 | L33: 0 | N33: =SUM(N34:N43) -> 0 | O33: 0 | P33: 0 | Q33: 0 | R33: 0 | S33: 0 | T33: 0 | U33: 0 | V33: 0 | W33: 0 | X33: 0
A34: ='Org structure'!E30 -> 05.1 - Executive Manager: Community Services | C34: 0 | D34: 0 | E34: 0 | F34: 0 | G34: 0 | H34: 0 | I34: 0 | J34: =Q34+V34 -> 0 | K34: =U34+W34 -> 0 | L34: =X34 -> 0 | N34: 0 | O34: 0 | P34: 0 | Q34: =SUM(N34:P34) -> 0 | R34: 0 | S34: 0 | T34: 0 | U34: =SUM(R34:T34) -> 0 | V34: 0 | W34: 0 | X34: 0
A35: ='Org structure'!E31 -> 05.2 - Waste Management Services | C35: 0 | D35: 0 | E35: 0 | F35: 0 | G35: 0 | H35: 0 | I35: 0 | J35: 0 | K35: 0 | L35: 0 | N35: 0 | O35: 0 | P35: 0 | Q35: 0 | R35: 0 | S35: 0 | T35: 0 | U35: 0 | V35: 0 | W35: 0 | X35: 0
A36: ='Org structure'!E32 -> 05.3 - Environmental Management Services | C36: 0 | D36: 0 | E36: 0 | F36: 0 | G36: 0 | H36: 0 | I36: 0 | J36: 0 | K36: 0 | L36: 0 | N36: 0 | O36: 0 | P36: 0 | Q36: 0 | R36: 0 | S36: 0 | T36: 0 | U36: 0 | V36: 0 | W36: 0 | X36: 0
A37: ='Org structure'!E33 -> 05.4 - Road Traffic & Law Enforce: Traffic Serv | C37: 0 | D37: 0 | E37: 0 | F37: 0 | G37: 0 | H37: 0 | I37: 0 | J37: 0 | K37: 0 | L37: 0 | N37: 0 | O37: 0 | P37: 0 | Q37: 0 | R37: 0 | S37: 0 | T37: 0 | U37: 0 | V37: 0 | W37: 0 | X37: 0
A38: ='Org structure'!E34 -> 05.5 - Road Traffic&Law Enforce: Licencing Serv | C38: 0 | D38: 0 | E38: 0 | F38: 0 | G38: 0 | H38: 0 | I38: 0 | J38: 0 | K38: 0 | L38: 0 | N38: 0 | O38: 0 | P38: 0 | Q38: 0 | R38: 0 | S38: 0 | T38: 0 | U38: 0 | V38: 0 | W38: 0 | X38: 0
A39: ='Org structure'!E35 -> 05.6 - Road Traffic&Law Enforce: Pound | C39: 0 | D39: 0 | E39: 0 | F39: 0 | G39: 0 | H39: 0 | I39: 0 | J39: 0 | K39: 0 | L39: 0 | N39: 0 | O39: 0 | P39: 0 | Q39: 0 | R39: 0 | S39: 0 | T39: 0 | U39: 0 | V39: 0 | W39: 0 | X39: 0
A40: ='Org structure'!E36 -> 05.7 - Institutional & Social Dev Management | C40: 0 | D40: 0 | E40: 0 | F40: 0 | G40: 0 | H40: 0 | I40: 0 | J40: 0 | K40: 0 | L40: 0 | N40: 0 | O40: 0 | P40: 0 | Q40: 0 | R40: 0 | S40: 0 | T40: 0 | U40: 0 | V40: 0 | W40: 0 | X40: 0
A41: ='Org structure'!E37 -> 05.8 - Libraries And Archives | C41: 0 | D41: 0 | E41: 0 | F41: 0 | G41: 0 | H41: 0 | I41: 0 | J41: 0 | K41: 0 | L41: 0 | N41: 0 | O41: 0 | P41: 0 | Q41: 0 | R41: 0 | S41: 0 | T41: 0 | U41: 0 | V41: 0 | W41: 0 | X41: 0
A42: ='Org structure'!E38 -> 05.9 - Community Halls And Facilities | C42: 0 | D42: 0 | E42: 0 | F42: 0 | G42: 0 | H42: 0 | I42: 0 | J42: 0 | K42: 0 | L42: 0 | N42: 0 | O42: 0 | P42: 0 | Q42: 0 | R42: 0 | S42: 0 | T42: 0 | U42: 0 | V42: 0 | W42: 0 | X42: 0
A43: ='Org structure'!E39 -> 05.10 - Disaster Management | C43: 0 | D43: 0 | E43: 0 | F43: 0 | G43: 0 | H43: 0 | I43: 0 | J43: 0 | K43: 0 | L43: 0 | N43: 0 | O43: 0 | P43: 0 | Q43: 0 | R43: 0 | S43: 0 | T43: 0 | U43: 0 | V43: 0 | W43: 0 | X43: 0
A44: ='Org structure'!A7 -> Vote 06 - Planning And Development | C44: =SUM(C45:C51) -> 0 | D44: 0 | E44: 0 | F44: 0 | G44: 0 | H44: 0 | I44: 0 | J44: 0 | K44: 0 | L44: 0 | N44: =SUM(N45:N51) -> 0 | O44: 0 | P44: 0 | Q44: 0 | R44: 0 | S44: 0 | T44: 0 | U44: 0 | V44: 0 | W44: 0 | X44: 0
A45: ='Org structure'!E41 -> 06.1 - Executive Manager:Planning & Development | C45: 0 | D45: 0 | E45: 0 | F45: 0 | G45: 0 | H45: 0 | I45: 0 | J45: =Q45+V45 -> 0 | K45: =U45+W45 -> 0 | L45: =X45 -> 0 | N45: 0 | O45: 0 | P45: 0 | Q45: =SUM(N45:P45) -> 0 | R45: 0 | S45: 0 | T45: 0 | U45: =SUM(R45:T45) -> 0 | V45: 0 | W45: 0 | X45: 0
A46: ='Org structure'!E42 -> 06.2 - Economic Development & Planning | C46: 0 | D46: 0 | E46: 0 | F46: 0 | G46: 0 | H46: 0 | I46: 0 | J46: 0 | K46: 0 | L46: 0 | N46: 0 | O46: 0 | P46: 0 | Q46: 0 | R46: 0 | S46: 0 | T46: 0 | U46: 0 | V46: 0 | W46: 0 | X46: 0
A47: ='Org structure'!E43 -> 06.3 - Development & Town Planning | C47: 0 | D47: 0 | E47: 0 | F47: 0 | G47: 0 | H47: 0 | I47: 0 | J47: 0 | K47: 0 | L47: 0 | N47: 0 | O47: 0 | P47: 0 | Q47: 0 | R47: 0 | S47: 0 | T47: 0 | U47: 0 | V47: 0 | W47: 0 | X47: 0
A48: ='Org structure'!E44 -> 06.4 - Property Management & Housing | C48: 0 | D48: 0 | E48: 0 | F48: 0 | G48: 0 | H48: 0 | I48: 0 | J48: 0 | K48: 0 | L48: 0 | N48: 0 | O48: 0 | P48: 0 | Q48: 0 | R48: 0 | S48: 0 | T48: 0 | U48: 0 | V48: 0 | W48: 0 | X48: 0
A49: ='Org structure'!E45 -> 06.5 - Integrated Development Planning | C49: 0 | D49: 0 | E49: 0 | F49: 0 | G49: 0 | H49: 0 | I49: 0 | J49: 0 | K49: 0 | L49: 0 | N49: 0 | O49: 0 | P49: 0 | Q49: 0 | R49: 0 | S49: 0 | T49: 0 | U49: 0 | V49: 0 | W49: 0 | X49: 0
A50: ='Org structure'!E46 -> 06.6 - Performance Management | C50: 0 | D50: 0 | E50: 0 | F50: 0 | G50: 0 | H50: 0 | I50: 0 | J50: 0 | K50: 0 | L50: 0 | N50: 0 | O50: 0 | P50: 0 | Q50: 0 | R50: 0 | S50: 0 | T50: 0 | U50: 0 | V50: 0 | W50: 0 | X50: 0
A51: ='Org structure'!E47 -> 06.7 - Local Economic Development | C51: 0 | D51: 0 | E51: 0 | F51: 0 | G51: 0 | H51: 0 | I51: 0 | J51: 0 | K51: 0 | L51: 0 | N51: 0 | O51: 0 | P51: 0 | Q51: 0 | R51: 0 | S51: 0 | T51: 0 | U51: 0 | V51: 0 | W51: 0 | X51: 0
A52: ='Org structure'!A8 -> Vote 07 - Infrastructure Development | C52: =SUM(C53:C62) -> 0 | D52: 0 | E52: 0 | F52: 0 | G52: 0 | H52: 0 | I52: 0 | J52: 0 | K52: 0 | L52: 0 | N52: =SUM(N53:N62) -> 0 | O52: 0 | P52: 0 | Q52: 0 | R52: 0 | S52: 0 | T52: 0 | U52: 0 | V52: 0 | W52: 0 | X52: 0
A53: ='Org structure'!E49 -> 07.1 - Technical Services Administration | C53: 0 | D53: 0 | E53: 0 | F53: 0 | G53: 0 | H53: 0 | I53: 0 | J53: =Q53+V53 -> 0 | K53: =U53+W53 -> 0 | L53: =X53 -> 0 | N53: 0 | O53: 0 | P53: 0 | Q53: =SUM(N53:P53) -> 0 | R53: 0 | S53: 0 | T53: 0 | U53: =SUM(R53:T53) -> 0 | V53: 0 | W53: 0 | X53: 0
A54: ='Org structure'!E50 -> 07.2 - Roads | C54: 0 | D54: 0 | E54: 0 | F54: 0 | G54: 0 | H54: 0 | I54: 0 | J54: 0 | K54: 0 | L54: 0 | N54: 0 | O54: 0 | P54: 0 | Q54: 0 | R54: 0 | S54: 0 | T54: 0 | U54: 0 | V54: 0 | W54: 0 | X54: 0
A55: ='Org structure'!E51 -> 07.3 - Workshop | C55: 0 | D55: 0 | E55: 0 | F55: 0 | G55: 0 | H55: 0 | I55: 0 | J55: 0 | K55: 0 | L55: 0 | N55: 0 | O55: 0 | P55: 0 | Q55: 0 | R55: 0 | S55: 0 | T55: 0 | U55: 0 | V55: 0 | W55: 0 | X55: 0
A56: ='Org structure'!E52 -> 07.4 - Sewerage Network | C56: 0 | D56: 0 | E56: 0 | F56: 0 | G56: 0 | H56: 0 | I56: 0 | J56: 0 | K56: 0 | L56: 0 | N56: 0 | O56: 0 | P56: 0 | Q56: 0 | R56: 0 | S56: 0 | T56: 0 | U56: 0 | V56: 0 | W56: 0 | X56: 0
A57: ='Org structure'!E53 -> 07.5 - Sewerage Purification | C57: 0 | D57: 0 | E57: 0 | F57: 0 | G57: 0 | H57: 0 | I57: 0 | J57: 0 | K57: 0 | L57: 0 | N57: 0 | O57: 0 | P57: 0 | Q57: 0 | R57: 0 | S57: 0 | T57: 0 | U57: 0 | V57: 0 | W57: 0 | X57: 0
A58: ='Org structure'!E54 -> 07.6 - Irrigation | C58: 0 | D58: 0 | E58: 0 | F58: 0 | G58: 0 | H58: 0 | I58: 0 | J58: 0 | K58: 0 | L58: 0 | N58: 0 | O58: 0 | P58: 0 | Q58: 0 | R58: 0 | S58: 0 | T58: 0 | U58: 0 | V58: 0 | W58: 0 | X58: 0
A59: ='Org structure'!E55 -> 07.7 - Executive Manager: Infrastructure Dev | C59: 0 | D59: 0 | E59: 0 | F59: 0 | G59: 0 | H59: 0 | I59: 0 | J59: 0 | K59: 0 | L59: 0 | N59: 0 | O59: 0 | P59: 0 | Q59: 0 | R59: 0 | S59: 0 | T59: 0 | U59: 0 | V59: 0 | W59: 0 | X59: 0
A60: ='Org structure'!E56 -> 07.8 - Road Construction & Maintenance | C60: 0 | D60: 0 | E60: 0 | F60: 0 | G60: 0 | H60: 0 | I60: 0 | J60: 0 | K60: 0 | L60: 0 | N60: 0 | O60: 0 | P60: 0 | Q60: 0 | R60: 0 | S60: 0 | T60: 0 | U60: 0 | V60: 0 | W60: 0 | X60: 0
A61: ='Org structure'!E57 -> 07.9 - Electrical & Mechanical Works | C61: 0 | D61: 0 | E61: 0 | F61: 0 | G61: 0 | H61: 0 | I61: 0 | J61: 0 | K61: 0 | L61: 0 | N61: 0 | O61: 0 | P61: 0 | Q61: 0 | R61: 0 | S61: 0 | T61: 0 | U61: 0 | V61: 0 | W61: 0 | X61: 0
A62: ='Org structure'!E58 -> 07.10 - Project Management | C62: 0 | D62: 0 | E62: 0 | F62: 0 | G62: 0 | H62: 0 | I62: 0 | J62: 0 | K62: 0 | L62: 0 | N62: 0 | O62: 0 | P62: 0 | Q62: 0 | R62: 0 | S62: 0 | T62: 0 | U62: 0 | V62: 0 | W62: 0 | X62: 0
A63: ='Org structure'!A9 -> Vote 08 - | C63: 0 | D63: 0 | E63: 0 | F63: 0 | G63: 0 | H63: 0 | I63: 0 | J63: 0 | K63: 0 | L63: 0 | N63: 0 | O63: 0 | P63: 0 | Q63: 0 | R63: 0 | S63: 0 | T63: 0 | U63: 0 | V63: 0 | W63: 0
A64: ='Org structure'!A10 -> Vote 09 - | C64: 0 | D64: 0 | E64: 0 | F64: 0 | G64: 0 | H64: 0 | I64: 0 | J64: 0 | K64: 0 | L64: 0 | N64: 0 | O64: 0 | P64: 0 | Q64: 0 | R64: 0 | S64: 0 | T64: 0 | U64: 0 | V64: 0 | W64: 0
A65: ='Org structure'!A11 -> Vote 10 - | C65: 0 | D65: 0 | E65: 0 | F65: 0 | G65: 0 | H65: 0 | I65: 0 | J65: 0 | K65: 0 | L65: 0 | N65: 0 | O65: 0 | P65: 0 | Q65: 0 | R65: 0 | S65: 0 | T65: 0 | U65: 0 | V65: 0 | W65: 0
A66: ='Org structure'!A12 -> Vote 11 - | C66: 0 | D66: 0 | E66: 0 | F66: 0 | G66: 0 | H66: 0 | I66: 0 | J66: 0 | K66: 0 | L66: 0 | N66: 0 | O66: 0 | P66: 0 | Q66: 0 | R66: 0 | S66: 0 | T66: 0 | U66: 0 | V66: 0 | W66: 0
A67: ='Org structure'!A13 -> Vote 12 - | C67: 0 | D67: 0 | E67: 0 | F67: 0 | G67: 0 | H67: 0 | I67: 0 | J67: 0 | K67: 0 | L67: 0 | N67: 0 | O67: 0 | P67: 0 | Q67: 0 | R67: 0 | S67: 0 | T67: 0 | U67: 0 | V67: 0 | W67: 0
A68: ='Org structure'!A14 -> Vote 13 - | C68: 0 | D68: 0 | E68: 0 | F68: 0 | G68: 0 | H68: 0 | I68: 0 | J68: 0 | K68: 0 | L68: 0 | N68: 0 | O68: 0 | P68: 0 | Q68: 0 | R68: 0 | S68: 0 | T68: 0 | U68: 0 | V68: 0 | W68: 0
A69: ='Org structure'!A15 -> Vote 14 - | C69: 0 | D69: 0 | E69: 0 | F69: 0 | G69: 0 | H69: 0 | I69: 0 | J69: 0 | K69: 0 | L69: 0 | N69: 0 | O69: 0 | P69: 0 | Q69: 0 | R69: 0 | S69: 0 | T69: 0 | U69: 0 | V69: 0 | W69: 0
A70: ='Org structure'!A16 -> Vote 15 - Other | C70: 0 | D70: 0 | E70: 0 | F70: 0 | G70: 0 | H70: 0 | I70: 0 | J70: 0 | K70: 0 | L70: 0 | N70: 0 | O70: 0 | P70: 0 | Q70: 0 | R70: 0 | S70: 0 | T70: 0 | U70: 0 | V70: 0 | W70: 0
A71: Capital multi-year expenditure sub-total | C71: =C6+C11+C18+C26+C33+C44+C52+C63+C64+C65+C66+C67+C68+C69+C70 -> 0 | D71: 0 | E71: 0 | F71: 0 | G71: 0 | H71: 0 | I71: 0 | J71: 0 | K71: 0 | L71: 0 | N71: =N6+N11+N18+N26+N33+N44+N52+N63+N64+N65+N66+N67+N68+N69+N70 -> 0 | O71: 0 | P71: 0 | Q71: 0 | R71: 0 | S71: 0 | T71: 0 | U71: 0 | V71: 0 | W71: 0
A73: Capital expenditure - Municipal Vote
A74: Single-year expenditure appropriation | B74: 2
A75: ='Org structure'!A2 -> Vote 01 - Executive And Council | C75: =SUM(C76:C79) -> 24205 | D75: 0 | E75: 0 | F75: 0 | G75: 0 | H75: 0 | I75: 0 | J75: 0 | K75: 0 | L75: 0
A76: ='Org structure'!E3 -> 01.1 - Mayor & Councillors | C76: 0 | D76: 0 | E76: 0 | F76: 0 | G76: 0 | H76: 0 | I76: 0 | J76: 0 | K76: 0 | L76: 0
A77: ='Org structure'!E4 -> 01.2 - Mayor & Council Support | C77: 24205 | D77: 0 | E77: 0 | F77: 0 | G77: 0 | H77: 0 | I77: 0 | J77: 0 | K77: 0 | L77: 0
A78: ='Org structure'!E5 -> 01.3 - Board General Mayor | C78: 0 | D78: 0 | E78: 0 | F78: 0 | G78: 0 | H78: 0 | I78: 0 | J78: 0 | K78: 0 | L78: 0
A79: ='Org structure'!E6 -> 01.4 - Board General Speaker | C79: 0 | D79: 0 | E79: 0 | F79: 0 | G79: 0 | H79: 0 | I79: 0 | J79: 0 | K79: 0 | L79: 0
A80: ='Org structure'!A3 -> Vote 02 - Municipal Manager | C80: =SUM(C81:C86) -> 0 | D80: 0 | E80: 0 | F80: 100000 | G80: 93000 | H80: 93000 | I80: 93000 | J80: 1800000 | K80: 850000 | L80: 850000
A81: ='Org structure'!E8 -> 02.1 - Municipal Manager Administration | C81: 0 | D81: 0 | E81: 0 | F81: 0 | G81: 0 | H81: 0 | I81: 0 | J81: 0 | K81: 0 | L81: 0
A82: ='Org structure'!E9 -> 02.2 - Municipal Manager | C82: 0 | D82: 0 | E82: 0 | F82: 0 | G82: 0 | H82: 0 | I82: 0 | J82: 0 | K82: 0 | L82: 0
A83: ='Org structure'!E10 -> 02.3 - Municipal Manager Support | C83: 0 | D83: 0 | E83: 0 | F83: 0 | G83: 0 | H83: 0 | I83: 0 | J83: 0 | K83: 0 | L83: 0
A84: ='Org structure'!E11 -> 02.4 - Internal Audit | C84: 0 | D84: 0 | E84: 0 | F84: 0 | G84: 0 | H84: 0 | I84: 0 | J84: 0 | K84: 0 | L84: 0
A85: ='Org structure'!E12 -> 02.5 - Communications | C85: 0 | D85: 0 | E85: 0 | F85: 100000 | G85: 93000 | H85: 93000 | I85: 93000 | J85: 1800000 | K85: 850000 | L85: 850000
A86: ='Org structure'!E13 -> 02.6 - Risk Management | C86: 0 | D86: 0 | E86: 0 | F86: 0 | G86: 0 | H86: 0 | I86: 0 | J86: 0 | K86: 0 | L86: 0
A87: ='Org structure'!A4 -> Vote 03 - Corporate Services | C87: =SUM(C88:C94) -> 0 | D87: 640217.56 | E87: 885778.48 | F87: 18405000 | G87: 18625000 | H87: 18625000 | I87: 8281321.79 | J87: 11580920 | K87: 9582646 | L87: 5349381
A88: ='Org structure'!E15 -> 03.1 - Executive Manager: Corporate Services | C88: 0 | D88: 0 | E88: 0 | F88: 0 | G88: 0 | H88: 0 | I88: 0 | J88: 0 | K88: 0 | L88: 0
A89: ='Org structure'!E16 -> 03.2 - Human Resource Management & Development | C89: 0 | D89: 0 | E89: 0 | F89: 0 | G89: 0 | H89: 0 | I89: 0 | J89: 0 | K89: 0 | L89: 0
A90: ='Org structure'!E17 -> 03.3 - Information Technology | C90: 0 | D90: 450217.56 | E90: 819576 | F90: 5500000 | G90: 5500000 | H90: 5500000 | I90: 1714587.4 | J90: 2000000 | K90: 4500000 | L90: 2000000
A91: ='Org structure'!E18 -> 03.4 - Legal Services | C91: 0 | D91: 0 | E91: 0 | F91: 0 | G91: 0 | H91: 0 | I91: 0 | J91: 0 | K91: 0 | L91: 0
A92: ='Org structure'!E19 -> 03.5 - Gen Adm_Sec_Fleet: General Administrat | C92: 0 | D92: 190000 | E92: 66202.48 | F92: 12590000 | G92: 12810000 | H92: 12810000 | I92: 6566734.39 | J92: 8080920 | K92: 4582646 | L92: 3149381
A93: ='Org structure'!E20 -> 03.6 - Gen Adm_Sec_Fleet: Security Services | C93: 0 | D93: 0 | E93: 0 | F93: 315000 | G93: 315000 | H93: 315000 | I93: 0 | J93: 1500000 | K93: 500000 | L93: 200000
A94: ='Org structure'!E21 -> 03.7 - Gen Adm_Sec_Fleet: Fleet Management | C94: 0 | D94: 0 | E94: 0 | F94: 0 | G94: 0 | H94: 0 | I94: 0 | J94: 0 | K94: 0 | L94: 0
A95: ='Org structure'!A5 -> Vote 04 - Budget And Treasury | C95: =SUM(C96:C101) -> -565.22 | D95: 0 | E95: 0 | F95: 0 | G95: 0 | H95: 0 | I95: 0 | J95: 0 | K95: 0 | L95: 0
A96: ='Org structure'!E23 -> 04.1 - Chief Financial Officer | C96: 0 | D96: 0 | E96: 0 | F96: 0 | G96: 0 | H96: 0 | I96: 0 | J96: 0 | K96: 0 | L96: 0
A97: ='Org structure'!E24 -> 04.2 - Budget Planning & Management | C97: 0 | D97: 0 | E97: 0 | F97: 0 | G97: 0 | H97: 0 | I97: 0 | J97: 0 | K97: 0 | L97: 0
A98: ='Org structure'!E25 -> 04.3 - Expenditure Management | C98: 0 | D98: 0 | E98: 0 | F98: 0 | G98: 0 | H98: 0 | I98: 0 | J98: 0 | K98: 0 | L98: 0
A99: ='Org structure'!E26 -> 04.4 - Revenue Management | C99: -565.22 | D99: 0 | E99: 0 | F99: 0 | G99: 0 | H99: 0 | I99: 0 | J99: 0 | K99: 0 | L99: 0
A100: ='Org structure'!E27 -> 04.5 - Asset Management | C100: 0 | D100: 0 | E100: 0 | F100: 0 | G100: 0 | H100: 0 | I100: 0 | J100: 0 | K100: 0 | L100: 0
A101: ='Org structure'!E28 -> 04.6 - Supply Chain Management | C101: 0 | D101: 0 | E101: 0 | F101: 0 | G101: 0 | H101: 0 | I101: 0 | J101: 0 | K101: 0 | L101: 0
A102: ='Org structure'!A6 -> Vote 05 - Community Services | C102: =SUM(C103:C112) -> 0 | D102: 5737725.36 | E102: 8430999.14 | F102: 23200000 | G102: 23258323 | H102: 23258323 | I102: 0 | J102: 33516600 | K102: 15065000 | L102: 19020000
A103: ='Org structure'!E30 -> 05.1 - Executive Manager: Community Services | C103: 0 | D103: 0 | E103: 0 | F103: 0 | G103: 0 | H103: 0 | I103: 0 | J103: 0 | K103: 0 | L103: 0
A104: ='Org structure'!E31 -> 05.2 - Waste Management Services | C104: 0 | D104: 0 | E104: 0 | F104: 2140000 | G104: 2140000 | H104: 2140000 | I104: 0 | J104: 8800000 | K104: 4000000 | L104: 14020000
A105: ='Org structure'!E32 -> 05.3 - Environmental Management Services | C105: 0 | D105: 0 | E105: 0 | F105: 700000 | G105: 600000 | H105: 600000 | I105: 0 | J105: 500000 | K105: 65000 | L105: 0
A106: ='Org structure'!E33 -> 05.4 - Road Traffic & Law Enforce: Traffic Serv | C106: 0 | D106: 197500 | E106: 0 | F106: 160000 | G106: 160000 | H106: 160000 | I106: 0 | J106: 0 | K106: 0 | L106: 0
A107: ='Org structure'!E34 -> 05.5 - Road Traffic&Law Enforce: Licencing Serv | C107: 0 | D107: 0 | E107: 0 | F107: 12000000 | G107: 12000000 | H107: 12000000 | I107: 0 | J107: 6000000 | K107: 6000000 | L107: 0
A108: ='Org structure'!E35 -> 05.6 - Road Traffic&Law Enforce: Pound | C108: 0 | D108: 0 | E108: 0 | F108: 0 | G108: 0 | H108: 0 | I108: 0 | J108: 0 | K108: 0 | L108: 0
A109: ='Org structure'!E36 -> 05.7 - Institutional & Social Dev Management | C109: 0 | D109: 0 | E109: 0 | F109: 0 | G109: 0 | H109: 0 | I109: 0 | J109: 0 | K109: 0 | L109: 0
A110: ='Org structure'!E37 -> 05.8 - Libraries And Archives | C110: 0 | D110: 0 | E110: 0 | F110: 0 | G110: 0 | H110: 0 | I110: 0 | J110: 0 | K110: 0 | L110: 0
A111: ='Org structure'!E38 -> 05.9 - Community Halls And Facilities | C111: 0 | D111: 5540225.36 | E111: 3546302.61 | F111: 8200000 | G111: 8358323 | H111: 8358323 | I111: 0 | J111: 18216600 | K111: 5000000 | L111: 5000000
A112: ='Org structure'!E39 -> 05.10 - Disaster Management | C112: 0 | D112: 0 | E112: 4884696.53 | F112: 0 | G112: 0 | H112: 0 | I112: 0 | J112: 0 | K112: 0 | L112: 0
A113: ='Org structure'!A7 -> Vote 06 - Planning And Development | C113: =SUM(C114:C120) -> 0 | D113: 394025 | E113: 5844448.54 | F113: 3500000 | G113: 3000000 | H113: 3000000 | I113: 0 | J113: 12396000 | K113: 22000000 | L113: 45962068
A114: ='Org structure'!E41 -> 06.1 - Executive Manager:Planning & Development | C114: 0 | D114: 0 | E114: 0 | F114: 0 | G114: 0 | H114: 0 | I114: 0 | J114: 0 | K114: 0 | L114: 0
A115: ='Org structure'!E42 -> 06.2 - Economic Development & Planning | C115: 0 | D115: 0 | E115: 0 | F115: 2000000 | G115: 2000000 | H115: 2000000 | I115: 0 | J115: 0 | K115: 2000000 | L115: 0
A116: ='Org structure'!E43 -> 06.3 - Development & Town Planning | C116: 0 | D116: 394025 | E116: 5844448.54 | F116: 1500000 | G116: 1000000 | H116: 1000000 | I116: 0 | J116: 12396000 | K116: 20000000 | L116: 45962068
A117: ='Org structure'!E44 -> 06.4 - Property Management & Housing | C117: 0 | D117: 0 | E117: 0 | F117: 0 | G117: 0 | H117: 0 | I117: 0 | J117: 0 | K117: 0 | L117: 0
A118: ='Org structure'!E45 -> 06.5 - Integrated Development Planning | C118: 0 | D118: 0 | E118: 0 | F118: 0 | G118: 0 | H118: 0 | I118: 0 | J118: 0 | K118: 0 | L118: 0
A119: ='Org structure'!E46 -> 06.6 - Performance Management | C119: 0 | D119: 0 | E119: 0 | F119: 0 | G119: 0 | H119: 0 | I119: 0 | J119: 0 | K119: 0 | L119: 0
A120: ='Org structure'!E47 -> 06.7 - Local Economic Development | C120: 0 | D120: 0 | E120: 0 | F120: 0 | G120: 0 | H120: 0 | I120: 0 | J120: 0 | K120: 0 | L120: 0
A121: ='Org structure'!A8 -> Vote 07 - Infrastructure Development | C121: =SUM(C122:C131) -> 13743928.04 | D121: 38699068.84 | E121: 41549228.46 | F121: 146125136 | G121: 186696899 | H121: 186696899 | I121: 34593798.48 | J121: 240269254 | K121: 211130060 | L121: 157612582
A122: ='Org structure'!E49 -> 07.1 - Technical Services Administration | C122: 0 | D122: 0 | E122: 0 | F122: 0 | G122: 0 | H122: 0 | I122: 0 | J122: 0 | K122: 0 | L122: 0
A123: ='Org structure'!E50 -> 07.2 - Roads | C123: 0 | D123: 0 | E123: 0 | F123: 0 | G123: 0 | H123: 0 | I123: 0 | J123: 0 | K123: 0 | L123: 0
A124: ='Org structure'!E51 -> 07.3 - Workshop | C124: 0 | D124: 0 | E124: 0 | F124: 0 | G124: 0 | H124: 0 | I124: 0 | J124: 0 | K124: 0 | L124: 0
A125: ='Org structure'!E52 -> 07.4 - Sewerage Network | C125: 0 | D125: 0 | E125: 0 | F125: 0 | G125: 0 | H125: 0 | I125: 0 | J125: 0 | K125: 0 | L125: 0
A126: ='Org structure'!E53 -> 07.5 - Sewerage Purification | C126: 0 | D126: 0 | E126: 0 | F126: 0 | G126: 0 | H126: 0 | I126: 0 | J126: 0 | K126: 0 | L126: 0
A127: ='Org structure'!E54 -> 07.6 - Irrigation | C127: 0 | D127: 0 | E127: 0 | F127: 0 | G127: 0 | H127: 0 | I127: 0 | J127: 0 | K127: 0 | L127: 0
A128: ='Org structure'!E55 -> 07.7 - Executive Manager: Infrastructure Dev | C128: 0 | D128: 0 | E128: 0 | F128: 0 | G128: 0 | H128: 0 | I128: 0 | J128: 0 | K128: 0 | L128: 0
A129: ='Org structure'!E56 -> 07.8 - Road Construction & Maintenance | C129: 4896203.06 | D129: 4425532.65 | E129: 3885037.25 | F129: 81578535 | G129: 81420211 | H129: 81420211 | I129: 5066875.81 | J129: 100819854 | K129: 111977510 | L129: 79089982
A130: ='Org structure'!E57 -> 07.9 - Electrical & Mechanical Works | C130: 111127.61 | D130: 2741860 | E130: 0 | F130: 6000000 | G130: 51923000 | H130: 51923000 | I130: 1251450.12 | J130: 78334000 | K130: 35304000 | L130: 11825000
A131: ='Org structure'!E58 -> 07.10 - Project Management | C131: 8736597.37 | D131: 31531676.19 | E131: 37664191.21 | F131: 58546601 | G131: 53353688 | H131: 53353688 | I131: 28275472.55 | J131: 61115400 | K131: 63848550 | L131: 66697600
A132: ='Org structure'!A9 -> Vote 08 - | C132: 0 | D132: 0 | E132: 0 | F132: 0 | G132: 0 | H132: 0 | I132: 0 | J132: 0 | K132: 0 | L132: 0
A133: ='Org structure'!A10 -> Vote 09 - | C133: 0 | D133: 0 | E133: 0 | F133: 0 | G133: 0 | H133: 0 | I133: 0 | J133: 0 | K133: 0 | L133: 0
A134: ='Org structure'!A11 -> Vote 10 - | C134: 0 | D134: 0 | E134: 0 | F134: 0 | G134: 0 | H134: 0 | I134: 0 | J134: 0 | K134: 0 | L134: 0
A135: ='Org structure'!A12 -> Vote 11 - | C135: 0 | D135: 0 | E135: 0 | F135: 0 | G135: 0 | H135: 0 | I135: 0 | J135: 0 | K135: 0 | L135: 0
A136: ='Org structure'!A13 -> Vote 12 - | C136: 0 | D136: 0 | E136: 0 | F136: 0 | G136: 0 | H136: 0 | I136: 0 | J136: 0 | K136: 0 | L136: 0
A137: ='Org structure'!A14 -> Vote 13 - | C137: 0 | D137: 0 | E137: 0 | F137: 0 | G137: 0 | H137: 0 | I137: 0 | J137: 0 | K137: 0 | L137: 0
A138: ='Org structure'!A15 -> Vote 14 - | C138: 0 | D138: 0 | E138: 0 | F138: 0 | G138: 0 | H138: 0 | I138: 0 | J138: 0 | K138: 0 | L138: 0
A139: ='Org structure'!A16 -> Vote 15 - Other | C139: 0 | D139: 0 | E139: 0 | F139: 0 | G139: 0 | H139: 0 | I139: 0 | J139: 0 | K139: 0 | L139: 0
A140: Capital single-year expenditure sub-total | C140: =C75+C80+C87+C95+C102+C113+C121+C132+C133+C134+C135+C136+C137+C138+C139 -> 13767567.82 | D140: 45471036.76 | E140: 56710454.62 | F140: 191330136 | G140: 231673222 | H140: 231673222 | I140: 42968120.27 | J140: 299562774 | K140: 258627706 | L140: 228794031
A141: Total Capital Expenditure | C141: =C71+C140 -> 13767567.82 | D141: 45471036.76 | E141: 56710454.62 | F141: 191330136 | G141: 231673222 | H141: 231673222 | I141: 42968120.27 | J141: 299562774 | K141: 258627706 | L141: 228794031

Sheet A6-FinPos
A1: =muni&" - "&Approve6 -> LIM355 Lepelle-Nkumpi - Table A6 Budgeted Financial Position
A2: =desc -> Description | B2: =head27 -> Ref | C2: =head1b -> 2019/20 | D2: =head1A -> 2020/21 | E2: =Head1 -> 2021/22 | F2: =Head2 -> Current Year 2022/23 | J2: =Head3 -> 2023/24 Medium Term Revenue & Expenditure Framework
A3: R thousand | C3: =Head5 -> Audited Outcome | D3: =Head5 -> Audited Outcome | E3: =Head5 -> Audited Outcome | F3: =Head6 -> Original Budget | G3: =Head7 -> Adjusted Budget | H3: =Head8 -> Full Year Forecast | I3: =Head5b -> Pre-audit outcome | J3: =Head9 -> Budget Year 2023/24 | K3: =Head10 -> Budget Year +1 2024/25 | L3: =Head11 -> Budget Year +2 2025/26
A4: ASSETS
A5: Current assets
A6: Cash and cash equivalents | C6: 76336820.09 | D6: -206167517.7 | E6: 404426541.7 | F6: 356576839 | G6: 525436711 | H6: 525436711 | I6: 669329278.8 | J6: 512724149 | K6: 537847633 | L6: 563126472
A7: Trade and other receivables from exchange transactions | B7: 1 | C7: ='SA3'!C19 -> 21006264.14 | D7: ='SA3'!D19 -> 44089979.97 | E7: ='SA3'!E19 -> 38490534.77 | F7: ='SA3'!F19 -> 58908663 | G7: ='SA3'!G19 -> -27237556 | H7: ='SA3'!H19 -> -27237556 | I7: ='SA3'!I19 -> 22681942.29 | J7: ='SA3'!J19 -> 29000000 | K7: ='SA3'!K19 -> 30000000 | L7: ='SA3'!L19 -> 31000000
A8: Receivables from non-exchange transactions | B8: 1 | C8: ='SA3'!C28 -> 5672449.44 | D8: ='SA3'!D28 -> 81418559.35 | E8: ='SA3'!E28 -> 67182151.98 | F8: ='SA3'!F28 -> 114862554 | G8: ='SA3'!G28 -> 28807835 | H8: ='SA3'!H28 -> 28807835 | I8: ='SA3'!I28 -> 83390408 | J8: ='SA3'!J28 -> 35139398 | K8: ='SA3'!K28 -> 36803618 | L8: ='SA3'!L28 -> 38593705
A9: Current portion of non-current receivables
A10: Inventory | B10: 2 | C10: ='SA3'!C123 -> 369505 | D10: ='SA3'!D123 -> -3316446 | E10: ='SA3'!E123 -> -6763091 | F10: ='SA3'!F123 -> -13744574 | G10: ='SA3'!G123 -> -2051183 | H10: ='SA3'!H123 -> -2051183 | I10: ='SA3'!I123 -> -6578725.04 | J10: ='SA3'!J123 -> 118418008 | K10: ='SA3'!K123 -> 121826726 | L10: ='SA3'!L123 -> 127788237
A11: VAT | C11: 1250570.41 | D11: 15294705.57 | E11: 23195709.82 | F11: 38784078 | G11: 15494664 | H11: 15494664 | I11: 42852224.04 | J11: 9933330 | K11: 10383247 | L11: 10827946
A12: Other current assets | C12: -1500 | D12: 1549529.37 | E12: 4334117.89 | F12: 5707135 | G12: 8491724 | H12: 8491724 | I12: 3995933.62 | J12: 0 | K12: 0 | L12: 0
A13: Total current assets | C13: =SUM(C6:C12) -> 104634109.1 | D13: -67131189.48 | E13: 530865965.2 | F13: 561094695 | G13: 548942195 | H13: 548942195 | I13: 815671061.7 | J13: 705214885 | K13: 736861224 | L13: 771336360
A14: Non current assets
A15: Investments | C15: 0 | D15: 150000000 | E15: 150000000 | F15: 0 | G15: 0 | H15: 0 | I15: 150000000 | J15: 0 | K15: 0 | L15: 0
A16: Investment property | C16: 0 | D16: 93477975 | E16: 108452669.2 | F16: 103625000 | G16: 109452000 | H16: 109452000 | I16: 108452669.2 | J16: 119014500 | K16: 131629570 | L16: 163061486
A17: Property, plant and equipment | B17: 3 | C17: ='SA3'!C129 -> 13767567.82 | D17: ='SA3'!D129 -> 715712000.8 | E17: ='SA3'!E129 -> 745699255.8 | F17: ='SA3'!F129 -> 871699115 | G17: ='SA3'!G129 -> 898445287 | H17: ='SA3'!H129 -> 898445287 | I17: ='SA3'!I129 -> 760581226.6 | J17: ='SA3'!J129 -> 1002691989 | K17: ='SA3'!K129 -> 985282606 | L17: ='SA3'!L129 -> 968695451
A18: Biological assets
A19: Living and non-living resources
A20: Heritage assets | C20: 0 | D20: 183684.33 | E20: 183684.33 | F20: 183684 | G20: 183600 | H20: 183600 | I20: 183684.33 | J20: 183684 | K20: 183684 | L20: 183684
A21: Intangible assets | C21: 0 | D21: 154753.87 | E21: 154753.87 | F21: 3654754 | G21: 3654708 | H21: 3654708 | I21: 154753.87 | J21: 5654754 | K21: 8154754 | L21: 8154754
A22: Trade and other receivables from exchange transactions
A23: Non-current receivables from non-exchange transactions | C23: 0 | D23: 0 | E23: 0 | F23: 0 | G23: 0 | H23: 0 | I23: 0 | J23: 0 | K23: 0 | L23: 0
A24: Other non-current assets
A25: Total non current assets | C25: =SUM(C15:C24) -> 13767567.82 | D25: =SUM(D15:D24) -> 959528414 | E25: 1004490363 | F25: 979162553 | G25: 1011735595 | H25: 1011735595 | I25: 1019372334 | J25: 1127544927 | K25: 1125250614 | L25: 1140095375
A26: TOTAL ASSETS | C26: =C13+C25 -> 118401676.9 | D26: =D13+D25 -> 892397224.6 | E26: =E13+E25 -> 1535356328 | F26: =F13+F25 -> 1540257248 | G26: 1560677790 | H26: 1560677790 | I26: 1835043396 | J26: 1832759812 | K26: 1862111838 | L26: 1911431735
A27: LIABILITIES
A28: Current liabilities
A29: Bank overdraft
A30: Financial liabilities | C30: ='SA3'!C135 -> 0 | D30: ='SA3'!D135 -> -238137.84 | E30: ='SA3'!E135 -> -238137.84 | F30: ='SA3'!F135 -> -238138 | G30: ='SA3'!G135 -> 0 | H30: ='SA3'!H135 -> 0 | I30: ='SA3'!I135 -> -238137.84 | J30: ='SA3'!J135 -> 0 | K30: ='SA3'!K135 -> 0 | L30: ='SA3'!L135 -> 0
A31: Consumer deposits | C31: -5000 | D31: 2152077.13 | E31: 2197677.13 | F31: 2210477 | G31: 2100000 | H31: 2100000 | I31: 2256985.83 | J31: 2307738 | K31: 2416203 | L31: 2534596
A32: Trade and other payables from exchange transactions | B32: 4 | C32: 3374855.69 | D32: 290970484.4 | E32: 231194426.6 | F32: -325739219 | G32: 96848944 | H32: 96848944 | I32: 340498845.4 | J32: 76059825 | K32: 82769848 | L32: 82742488
A33: Trade and other payables from non-exchange transactions | B33: 5 | C33: 12875208.59 | D33: 20646964.2 | E33: 17959118.81 | F33: 70707898 | G33: 527112 | H33: 527112 | I33: 35215317.22 | J33: 24469498 | K33: 23683798 | L33: 24709798
A34: Provision | C34: 0 | D34: 21982833.92 | E34: 18856867.64 | F34: 21698860 | G34: 450000 | H34: 450000 | I34: 18856867.64 | J34: 500000 | K34: 523500 | L34: 549152
A35: VAT | C35: 2472913.59 | D35: 12632363.96 | E35: 15073312.51 | F35: 0 | G35: 14093393 | H35: 14093393 | I35: 37721274.69 | J35: 0 | K35: 0 | L35: 0
A36: Other current liabilities
A37: Total current liabilities | C37: =SUM(C29:C36) -> 18717977.87 | D37: 348146585.8 | E37: 285043264.9 | F37: -231360122 | G37: 114019449 | H37: 114019449 | I37: 434311152.9 | J37: 103337061 | K37: 109393349 | L37: 110536034
A38: Non current liabilities
A39: Financial liabilities | B39: 6 | C39: ='SA3'!C147 -> 0 | D39: ='SA3'!D147 -> 238138.31 | E39: ='SA3'!E147 -> 238138.31 | F39: ='SA3'!F147 -> 238138 | G39: ='SA3'!G147 -> 0 | H39: ='SA3'!H147 -> 0 | I39: ='SA3'!I147 -> 238138.31 | J39: ='SA3'!J147 -> 0 | K39: ='SA3'!K147 -> 0 | L39: ='SA3'!L147 -> 0
A40: Provision | B40: 7 | C40: ='SA3'!C154 -> 0 | D40: ='SA3'!D154 -> 0 | E40: ='SA3'!E154 -> 0 | F40: ='SA3'!F154 -> 0 | G40: ='SA3'!G154 -> 3000000 | H40: ='SA3'!H154 -> 3000000 | I40: ='SA3'!I154 -> 0 | J40: ='SA3'!J154 -> 7771737 | K40: ='SA3'!K154 -> 8152552 | L40: ='SA3'!L154 -> 8535722
A41: Long term portion of trade payables
A42: Other non-current liabilities
A43: Total non current liabilities | C43: =SUM(C39:C42) -> 0 | D43: 238138.31 | E43: 238138.31 | F43: 238138 | G43: 3000000 | H43: 3000000 | I43: 238138.31 | J43: 7771737 | K43: 8152552 | L43: 8535722
A44: TOTAL LIABILITIES | C44: =C37+C43 -> 18717977.87 | D44: =D37+D43 -> 348384724.1 | E44: =E37+E43 -> 285281403.2 | F44: =F37+F43 -> -231121984 | G44: 117019449 | H44: 117019449 | I44: 434549291.3 | J44: 111108798 | K44: =K37+K43 -> 117545901 | L44: 119071756
A45: NET ASSETS | C45: =C26-C44 -> 99683699.03 | D45: 544012500.5 | E45: 1250074925 | F45: 1771379232 | G45: 1443658341 | H45: 1443658341 | I45: 1400494104 | J45: 1721651014 | K45: 1744565937 | L45: 1792359979
A46: COMMUNITY WEALTH/EQUITY
A47: Accumulated surplus/(deficit) | B47: 8 | C47: ='SA3'!C166 -> 100898197 | D47: ='SA3'!D166 -> 1227901675 | E47: ='SA3'!E166 -> 1360337805 | F47: ='SA3'!F166 -> 1886405200 | G47: ='SA3'!G166 -> 1552574820 | H47: ='SA3'!H166 -> 1552574820 | I47: ='SA3'!I166 -> 1515728659 | J47: ='SA3'!J166 -> 1925645559 | K47: ='SA3'!K166 -> 1798164728 | L47: ='SA3'!L166 -> 1822640876
A48: Reserves and funds | B48: 9 | C48: ='SA3'!C173 -> 0 | D48: ='SA3'!D173 -> 0 | E48: ='SA3'!E173 -> 0 | F48: ='SA3'!F173 -> 0 | G48: ='SA3'!G173 -> 0 | H48: ='SA3'!H173 -> 0 | I48: ='SA3'!I173 -> 0 | J48: ='SA3'!J173 -> -200000000 | K48: ='SA3'!K173 -> -170000000 | L48: ='SA3'!L173 -> -150000000
A49: Other
A50: TOTAL COMMUNITY WEALTH/EQUITY | B50: 10 | C50: =SUM(C47:C49) -> 100898197 | D50: =SUM(D47:D49) -> 1227901675 | E50: 1360337805 | F50: 1886405200 | G50: 1552574820 | H50: 1552574820 | I50: 1515728659 | J50: 1725645559 | K50: 1628164728 | L50: 1672640876
A51: =head27a -> References
A52: 1. Detail breakdown in Table SA3 for Trade receivables from Exchange and Non-exchange transactions
A53: 2. Include completed low cost housing to be transferred to beneficiaries within 12 months detail provided in Table SA3
A54: 3. Include 'Construction-work-in-progress' (disclosed separately in annual financial statements) detail in SA3
A55: 4. Detail breakdown in Table SA3.
A56: 5. Detail breakdown in Table SA3.
A57: 6. Detail breakdown in Table SA3.
A58: 7 Detail breakdown in Table SA3.
A59: 8. Detail breakdown in Table SA3.
A60: 9. Detail breakdown in Table SA3. Includes reserves to be funded by statute.
A61: 10. Net assets must balance with Total Community Wealth/Equity

Sheet A7-CFlow
A1: =muni&" - "&Approve7 -> LIM355 Lepelle-Nkumpi - Table A7 Budgeted Cash Flows
A2: =desc -> Description | B2: =head27 -> Ref | C2: =head1b -> 2019/20 | D2: =head1A -> 2020/21 | E2: =Head1 -> 2021/22 | F2: =Head2 -> Current Year 2022/23 | J2: =Head3 -> 2023/24 Medium Term Revenue & Expenditure Framework
A3: R thousand | C3: =Head5 -> Audited Outcome | D3: =Head5 -> Audited Outcome | E3: =Head5 -> Audited Outcome | F3: =Head6 -> Original Budget | G3: =Head7 -> Adjusted Budget | H3: =Head8 -> Full Year Forecast | I3: =Head5b -> Pre-audit outcome | J3: =Head9 -> Budget Year 2023/24 | K3: =Head10 -> Budget Year +1 2024/25 | L3: =Head11 -> Budget Year +2 2025/26
A4: CASH FLOW FROM OPERATING ACTIVITIES
A5: Receipts
A6: Property rates | C6: 0 | D6: 9581781.18 | E6: 14460211.78 | F6: 13095531 | G6: 13095531 | H6: 13095531 | I6: 8584992.03 | J6: ='SA30'!N5 -> 13560677 | K6: ='SA30'!O5 -> 14198028 | L6: ='SA30'!P5 -> 14893732
A7: Service charges | C7: 0 | D7: 35961018.32 | E7: 20056695.46 | F7: 49376975 | G7: 2928147 | H7: 2928147 | I7: 25900115.98 | J7: ='SA30'!N6+'SA30'!N7+'SA30'!N8+'SA30'!N9 -> 3057017 | K7: ='SA30'!O6+'SA30'!O7+'SA30'!O8+'SA30'!O9 -> 3200705 | L7: ='SA30'!P6+'SA30'!P7+'SA30'!P8+'SA30'!P9 -> 3357531
A8: Other revenue | C8: 0 | D8: 548588528 | E8: 311785540.3 | F8: 550665189 | G8: 242897311 | H8: 242897311 | I8: 12071907.67 | J8: ='SA30'!N11+'SA30'!N15+'SA30'!N16+'SA30'!N17+'SA30'!N19 -> 206676834 | K8: ='SA30'!O11+'SA30'!O15+'SA30'!O16+'SA30'!O17+'SA30'!O19 -> 236274362 | L8: ='SA30'!P11+'SA30'!P15+'SA30'!P16+'SA30'!P17+'SA30'!P19 -> 247679535
A9: Transfers and Subsidies - Operational | B9: 1 | C9: 0 | D9: 0 | E9: 7803669.21 | F9: 5683443 | G9: 305408898 | H9: 305408898 | I9: 304709053 | J9: ='SA30'!N18 -> 324045000 | K9: ='SA30'!O18 -> 341313000 | L9: ='SA30'!P18 -> 328758000
A10: Transfers and Subsidies - Capital | B10: 1 | C10: 0 | D10: 0 | E10: 66710000 | F10: 61628000 | G10: 61628000 | H10: 61628000 | I10: 65735000 | J10: ='SA30'!N23+'SA30'!N24 -> 79232000 | K10: ='SA30'!O23+'SA30'!O24 -> 76613000 | L10: ='SA30'!P23+'SA30'!P24 -> 80033000
A11: Interest | C11: 0 | D11: 3061328.73 | E11: 12812681.85 | F11: 4188218 | G11: 26169720 | H11: 26169720 | I11: 23346956.63 | J11: ='SA30'!N12+'SA30'!N13 -> 27556714 | K11: ='SA30'!O12+'SA30'!O13 -> 28906994 | L11: ='SA30'!P12+'SA30'!P13 -> 30265623
A12: Dividends | C12: 0 | D12: 0 | E12: 0 | F12: 0 | G12: 0 | H12: 0 | I12: 0 | J12: ='SA30'!N14 -> 0 | K12: ='SA30'!O14 -> 0 | L12: ='SA30'!P14 -> 0
A13: Payments
A14: Suppliers and employees | C14: 0 | D14: -56435911.22 | E14: -229162326.7 | F14: -520033377 | G14: -298650600 | H14: -298650600 | I14: -66984449.36 | J14: =-('SA30'!N35+'SA30'!N36+'SA30'!N38+'SA30'!N39+'SA30'!N40+'SA30'!N41+'SA30'!N44+'SA30'!N50) -> -111730515 | K14: =-('SA30'!O35+'SA30'!O36+'SA30'!O38+'SA30'!O39+'SA30'!O40+'SA30'!O41+'SA30'!O44+'SA30'!O50) -> -173901252 | L14: =-('SA30'!P35+'SA30'!P36+'SA30'!P38+'SA30'!P39+'SA30'!P40+'SA30'!P41+'SA30'!P44+'SA30'!P50) -> -222594335
A15: Interest | J15: =-('SA30'!N37) -> 0 | K15: =-('SA30'!O37) -> 0 | L15: =-('SA30'!P37) -> 0
A16: Transfers and Subsidies | B16: 1 | J16: =-('SA30'!N42+'SA30'!N43) -> 0 | K16: =-('SA30'!O42+'SA30'!O43) -> 0 | L16: =-('SA30'!P42+'SA30'!P43) -> 0
A17: NET CASH FROM/(USED) OPERATING ACTIVITIES | C17: =SUM(C6:C12)+SUM(C14:C16) -> 0 | D17: 540756745 | E17: 204466471.9 | F17: 164603979 | G17: 353477007 | H17: 353477007 | I17: 373363575.9 | J17: 542397727 | K17: 526604837 | L17: 482393086
A18: CASH FLOWS FROM INVESTING ACTIVITIES
A19: Receipts
A20: Proceeds on disposal of PPE | C20: 0 | D20: 0 | E20: 0 | F20: 0 | G20: 0 | H20: 0 | I20: 0 | J20: ='SA30'!N25 -> 73710 | K20: ='SA30'!O25 -> 77322 | L20: ='SA30'!P25 -> 80956
A22: Decrease (increase) in non-current receivables | C22: 0 | D22: 0 | E22: 0 | F22: 0 | G22: 0 | H22: 0 | I22: 0 | J22: ='SA30'!N30 -> 0 | K22: ='SA30'!O30 -> 0 | L22: ='SA30'!P30 -> 0
A23: Decrease (increase) in non-current investments | C23: 0 | D23: 150000000 | E23: 0 | F23: -150000000 | G23: 0 | H23: 0 | I23: 0 | J23: ='SA30'!N31 -> 0 | K23: ='SA30'!O31 -> 0 | L23: ='SA30'!P31 -> 0
A24: Payments
A25: Capital assets | C25: 0 | D25: -36509003.32 | E25: -56710454.62 | F25: -191330136 | G25: -231673222 | H25: -231673222 | I25: -42968120.27 | J25: =-('SA30'!N48) -> -299562774 | K25: =-('SA30'!O48) -> -258627706 | L25: =-('SA30'!P48) -> -228794031
A26: NET CASH FROM/(USED) INVESTING ACTIVITIES | C26: =+C20+C22+C23+C25 -> 0 | D26: =+D20+D22+D23+D25 -> 113490996.7 | E26: -56710454.62 | F26: -341330136 | G26: -231673222 | H26: -231673222 | I26: -42968120.27 | J26: -299489064 | K26: -258550384 | L26: -228713075
A28: CASH FLOWS FROM FINANCING ACTIVITIES
A29: Receipts
A30: Short term loans | J30: ='SA30'!N26 -> 0 | K30: ='SA30'!O26 -> 0 | L30: ='SA30'!P26 -> 0
A31: Borrowing long term/refinancing | J31: ='SA30'!N27 -> 0 | K31: ='SA30'!O27 -> 0 | L31: ='SA30'!P27 -> 0
A32: Increase (decrease) in consumer deposits | C32: 0 | D32: 0 | E32: 0 | F32: 0 | G32: 0 | H32: 0 | I32: 0 | J32: ='SA30'!N28 -> 60970 | K32: ='SA30'!O28 -> 63836 | L32: ='SA30'!P28 -> 66964
A33: Payments
A34: Repayment of borrowing | C34: 0 | D34: 0 | E34: 0 | F34: 0 | G34: 238138 | H34: 238138 | I34: 0 | J34: =-('SA30'!N49) -> 0 | K34: =-('SA30'!O49) -> 0 | L34: =-('SA30'!P49) -> 0
A35: NET CASH FROM/(USED) FINANCING ACTIVITIES | C35: =SUM(C30:C32)+C34 -> 0 | D35: =SUM(D30:D32)+D34 -> 0 | E35: 0 | F35: 0 | G35: 238138 | H35: 238138 | I35: 0 | J35: 60970 | K35: 63836 | L35: 66964
A37: NET INCREASE/ (DECREASE) IN CASH HELD | C37: =C17+C26+C35 -> 0 | D37: 654247741.7 | E37: 147756017.3 | F37: -176726157 | G37: 122041923 | H37: 122041923 | I37: 330395455.7 | J37: 242969633 | K37: 268118289 | L37: 253746975
A38: Cash/cash equivalents at the year begin: | B38: 2 | C38: 160 | D38: 117955789.4 | E38: 294997514.7 | F38: 240077682 | G38: 404429164 | H38: 404429164 | I38: 0 | J38: ='SA30'!N54 -> 350641100 | K38: =J39 -> 593610733 | L38: =K39 -> 861729022
A39: Cash/cash equivalents at the year end: | B39: 2 | C39: =C37+C38 -> 160 | D39: =D37+D38 -> 772203531.1 | E39: =E37+E38 -> 442753532 | F39: =F37+F38 -> 63351525 | G39: 526471087 | H39: 526471087 | I39: 330395455.7 | J39: 593610733 | K39: 861729022 | L39: 1115475997
A40: =head27a -> References
A41: 1. Local/District municipalities to include transfers from/to District/Local Municipalities
A42: 2. Cash equivalents includes investments with maturities of 3 months or less
A43: 3. The MTREF is populated directly from SA30.
A44: Total receipts | C44: =SUM(C6:C12)+SUM(C20:C22) -> 0 | D44: 597192656.2 | E44: 433628798.6 | F44: 684637356 | G44: 652127607 | H44: 652127607 | I44: 440348025.3 | J44: 654201952 | K44: 700583411 | L44: 705068377
A45: Total payments | C45: =SUM(C14:C16)+C25 -> 0 | D45: -92944914.54 | E45: -285872781.3 | F45: -711363513 | G45: -530323822 | H45: -530323822 | I45: -109952569.6 | J45: -411293289 | K45: -432528958 | L45: -451388366
C46: =C44+C45 -> 0 | D46: =D44+D45 -> 504247741.7 | E46: 147756017.3 | F46: -26726157 | G46: 121803785 | H46: 121803785 | I46: 330395455.7 | J46: 242908663 | K46: 268054453 | L46: 253680011
A47: Borrowings & investments & c.deposits | C47: =C23+C31+C32 -> 0 | D47: =D23+D31+D32 -> 150000000 | E47: 0 | F47: -150000000 | G47: 0 | H47: 0 | I47: 0 | J47: 60970 | K47: 63836 | L47: 66964
A48: =A34 -> Repayment of borrowing | C48: =C34 -> 0 | D48: =D34 -> 0 | E48: 0 | F48: 0 | G48: 238138 | H48: 238138 | I48: =I34 -> 0 | J48: 0 | K48: 0 | L48: 0
C49: =C46+C47+C48 -> 0 | D49: =D46+D47+D48 -> 654247741.7 | E49: 147756017.3 | F49: -176726157 | G49: 122041923 | H49: 122041923 | I49: 330395455.7 | J49: 242969633 | K49: 268118289 | L49: 253746975
C50: =C37-C49 -> 0 | D50: 0 | E50: 0 | F50: 0 | G50: 0 | H50: 0 | I50: 0 | J50: 0 | K50: 0 | L50: 0

Sheet A8-ResRecon
A1: =muni&" - "&Approve8 -> LIM355 Lepelle-Nkumpi - Table A8 Cash backed reserves/accumulated surplus reconciliation
A2: =desc -> Description | B2: =head27 -> Ref | C2: =head1b -> 2019/20 | D2: =head1A -> 2020/21 | E2: =Head1 -> 2021/22 | F2: =Head2 -> Current Year 2022/23 | J2: =Head3 -> 2023/24 Medium Term Revenue & Expenditure Framework
A3: R thousand | C3: =Head5 -> Audited Outcome | D3: =Head5 -> Audited Outcome | E3: =Head5 -> Audited Outcome | F3: =Head6 -> Original Budget | G3: =Head7 -> Adjusted Budget | H3: =Head8 -> Full Year Forecast | I3: =Head5b -> Pre-audit outcome | J3: =Head9 -> Budget Year 2023/24 | K3: =Head10 -> Budget Year +1 2024/25 | L3: =Head11 -> Budget Year +2 2025/26
A4: Cash and investments available
A5: =LEFT('A7-CFlow'!A39,37) -> Cash/cash equivalents at the year end | B5: 1 | C5: ='A7-CFlow'!C39 -> 160 | D5: ='A7-CFlow'!D39 -> 772203531.1 | E5: ='A7-CFlow'!E39 -> 442753532 | F5: ='A7-CFlow'!F39 -> 63351525 | G5: ='A7-CFlow'!G39 -> 526471087 | H5: ='A7-CFlow'!H39 -> 526471087 | I5: ='A7-CFlow'!I39 -> 330395455.7 | J5: ='A7-CFlow'!J39 -> 593610733 | K5: ='A7-CFlow'!K39 -> 861729022 | L5: ='A7-CFlow'!L39 -> 1115475997
A6: Other current investments > 90 days | C6: ='A6-FinPos'!C6-'A6-FinPos'!C29-'A8-ResRecon'!C5 -> 76336660.09 | D6: ='A6-FinPos'!D6-'A6-FinPos'!D29-'A8-ResRecon'!D5 -> -978371048.8 | E6: ='A6-FinPos'!E6-'A6-FinPos'!E29-'A8-ResRecon'!E5 -> -38326990.29 | F6: ='A6-FinPos'!F6-'A6-FinPos'!F29-'A8-ResRecon'!F5 -> 293225314 | G6: ='A6-FinPos'!G6-'A6-FinPos'!G29-'A8-ResRecon'!G5 -> -1034376 | H6: ='A6-FinPos'!H6-'A6-FinPos'!H29-'A8-ResRecon'!H5 -> -1034376 | I6: ='A6-FinPos'!I6-'A6-FinPos'!I29-'A8-ResRecon'!I5 -> 338933823.1 | J6: ='A6-FinPos'!J6-'A6-FinPos'!J29-'A8-ResRecon'!J5 -> -80886584 | K6: ='A6-FinPos'!K6-'A6-FinPos'!K29-'A8-ResRecon'!K5 -> -323881389 | L6: ='A6-FinPos'!L6-'A6-FinPos'!L29-'A8-ResRecon'!L5 -> -552349525
A7: Non current Investments | B7: 1 | C7: ='A6-FinPos'!C15 -> 0 | D7: ='A6-FinPos'!D15 -> 150000000 | E7: ='A6-FinPos'!E15 -> 150000000 | F7: ='A6-FinPos'!F15 -> 0 | G7: ='A6-FinPos'!G15 -> 0 | H7: ='A6-FinPos'!H15 -> 0 | I7: ='A6-FinPos'!I15 -> 150000000 | J7: ='A6-FinPos'!J15 -> 0 | K7: ='A6-FinPos'!K15 -> 0 | L7: ='A6-FinPos'!L15 -> 0
A8: Cash and investments available: | C8: =SUM(C5:C7) -> 76336820.09 | D8: =SUM(D5:D7) -> -56167517.74 | E8: 554426541.7 | F8: 356576839 | G8: 525436711 | H8: 525436711 | I8: 819329278.8 | J8: 512724149 | K8: 537847633 | L8: 563126472
A10: Application of cash and investments
A11: Unspent conditional transfers | C11: ='SA3'!C140 -> 12875208.59 | D11: ='SA3'!D140 -> 20646964.2 | E11: ='SA3'!E140 -> 17959118.81 | F11: ='SA3'!F140 -> 70707898 | G11: ='SA3'!G140 -> 527112 | H11: ='SA3'!H140 -> 527112 | I11: ='SA3'!I140 -> 35215317.22 | J11: ='SA3'!J140 -> 24469498 | K11: ='SA3'!K140 -> 23683798 | L11: ='SA3'!L140 -> 24709798
A12: Unspent borrowing
A13: Statutory requirements | B13: 2
A14: Other working capital requirements | B14: 3 | C14: =-C32 -> 3374855.69 | D14: =-D32 -> 15319484.38 | E14: 121755426.6 | F14: =-F32 -> -518815219 | G14: 96142944 | H14: 96142944 | I14: 317528845.4 | J14: 32222825 | K14: 24155848 | L14: 18121488
A15: Other provisions
A16: Long term investments committed | B16: 4 | C16: =C42 -> 0 | D16: =D42 -> 0 | E16: 0 | F16: 0 | G16: 0 | H16: 0 | I16: 0 | J16: 0 | K16: 0 | L16: 0
A17: Reserves to be backed by cash/investments | B17: 5
A18: Total Application of cash and investments: | C18: =SUM(C11:C17) -> 16250064.28 | D18: =SUM(D11:D17) -> 35966448.58 | E18: 139714545.4 | F18: -448107321 | G18: 96670056 | H18: 96670056 | I18: 352744162.6 | J18: 56692323 | K18: 47839646 | L18: 42831286
A19: Surplus(shortfall) | C19: =C8-C18 -> 60086755.81 | D19: =D8-D18 -> -92133966.32 | E19: 414711996.3 | F19: 804684160 | G19: 428766655 | H19: 428766655 | I19: 466585116.2 | J19: 456031826 | K19: 490007987 | L19: 520295186
A20: =head27a -> References
A21: 1. Must reconcile with Budgeted Cash Flows
A22: 2. For example: VAT, taxation
A23: 3. Council approval for policy required - include sufficient working capital (e.g. allowing for a % of current debtors > 90 days as uncollectable)
A24: 4. For example: sinking fund requirements for borrowing
A25: 5. Council approval required for each reserve created and basis of cash backing of reserves - Total Reserves to be backed by cash/investments excl Valuation reserve
A28: Other working capital requirements
A29: Debtors | C29: =IF(ISERROR(ROUND(C35*C36,-3)),0,(ROUND(C35*C36,-3))) -> 0 | D29: =IF(ISERROR(ROUND(D35*D36,-3)),0,(ROUND(D35*D36,-3))) -> 275651000 | E29: 109439000 | F29: 193076000 | G29: 706000 | H29: 706000 | I29: 22970000 | J29: 43837000 | K29: 58614000 | L29: 64621000
A31: Creditors due | C31: ='SA3'!C138+'SA3'!C139 -> 3374855.69 | D31: ='SA3'!D138+'SA3'!D139 -> 290970484.4 | E31: ='SA3'!E138+'SA3'!E139 -> 231194426.6 | F31: ='SA3'!F138+'SA3'!F139 -> -325739219 | G31: ='SA3'!G138+'SA3'!G139 -> 96848944 | H31: ='SA3'!H138+'SA3'!H139 -> 96848944 | I31: ='SA3'!I138+'SA3'!I139 -> 340498845.4 | J31: ='SA3'!J138+'SA3'!J139 -> 76059825 | K31: ='SA3'!K138+'SA3'!K139 -> 82769848 | L31: ='SA3'!L138+'SA3'!L139 -> 82742488
A32: Total | C32: =C29-C31 -> -3374855.69 | D32: =D29-D31 -> -15319484.38 | E32: -121755426.6 | F32: 518815219 | G32: -96142944 | H32: -96142944 | I32: -317528845.4 | J32: -32222825 | K32: -24155848 | L32: -18121488
A34: Debtors collection assumptions
A35: Balance outstanding - debtors | C35: ='A6-FinPos'!C7+'A6-FinPos'!C8+'A6-FinPos'!C9+'A6-FinPos'!C22+'A6-FinPos'!C23+'A6-FinPos'!C24 -> 26678713.58 | D35: ='A6-FinPos'!D7+'A6-FinPos'!D8+'A6-FinPos'!D9+'A6-FinPos'!D22+'A6-FinPos'!D23+'A6-FinPos'!D24 -> 125508539.3 | E35: ='A6-FinPos'!E7+'A6-FinPos'!E8+'A6-FinPos'!E9+'A6-FinPos'!E22+'A6-FinPos'!E23+'A6-FinPos'!E24 -> 105672686.8 | F35: ='A6-FinPos'!F7+'A6-FinPos'!F8+'A6-FinPos'!F9+'A6-FinPos'!F22+'A6-FinPos'!F23+'A6-FinPos'!F24 -> 173771217 | G35: ='A6-FinPos'!G7+'A6-FinPos'!G8+'A6-FinPos'!G9+'A6-FinPos'!G22+'A6-FinPos'!G23+'A6-FinPos'!G24 -> 1570279 | H35: ='A6-FinPos'!H7+'A6-FinPos'!H8+'A6-FinPos'!H9+'A6-FinPos'!H22+'A6-FinPos'!H23+'A6-FinPos'!H24 -> 1570279 | I35: ='A6-FinPos'!I7+'A6-FinPos'!I8+'A6-FinPos'!I9+'A6-FinPos'!I22+'A6-FinPos'!I23+'A6-FinPos'!I24 -> 106072350.3 | J35: ='A6-FinPos'!J7+'A6-FinPos'!J8+'A6-FinPos'!J9+'A6-FinPos'!J22+'A6-FinPos'!J23+'A6-FinPos'!J24 -> 64139398 | K35: ='A6-FinPos'!K7+'A6-FinPos'!K8+'A6-FinPos'!K9+'A6-FinPos'!K22+'A6-FinPos'!K23+'A6-FinPos'!K24 -> 66803618 | L35: ='A6-FinPos'!L7+'A6-FinPos'!L8+'A6-FinPos'!L9+'A6-FinPos'!L22+'A6-FinPos'!L23+'A6-FinPos'!L24 -> 69593705
A36: Estimate of debtors collection rate | C36: =IF(ISERROR('SA10'!D10),0,('SA10'!D10)) -> 0 | D36: =IF(ISERROR('SA10'!E10),0,('SA10'!E10)) -> 2.196274119 | E36: =IF(ISERROR('SA10'!F10),0,('SA10'!F10)) -> 1.035642367 | F36: =IF(ISERROR('SA10'!G10),0,('SA10'!G10)) -> 1.111093025 | G36: =IF(ISERROR('SA10'!H10),0,('SA10'!H10)) -> 0.4493493201 | H36: =IF(ISERROR('SA10'!I10),0,('SA10'!I10)) -> 0.4493493201 | I36: =IF(ISERROR('SA10'!J10),0,('SA10'!J10)) -> 0.2165463128 | J36: =IF(ISERROR('SA10'!K10),0,('SA10'!K10)) -> 0.6834701288 | K36: =IF(ISERROR('SA10'!L10),0,('SA10'!L10)) -> 0.8774099 | L36: =IF(ISERROR('SA10'!M10),0,('SA10'!M10)) -> 0.9285470182
K39: `
A40: =A16 -> Long term investments committed
A41: Balance (Insert description; eg sinking fund)
C42: =SUM(C41:C41) -> 0 | D42: 0 | E42: 0 | F42: 0 | G42: 0 | H42: 0 | I42: 0 | J42: 0 | K42: 0 | L42: 0
A43: =A17 -> Reserves to be backed by cash/investments
A44: Housing Development Fund | C44: ='SA3'!C168 -> 0 | D44: ='SA3'!D168 -> 0 | E44: ='SA3'!E168 -> 0 | F44: ='SA3'!F168 -> 0 | G44: ='SA3'!G168 -> 0 | H44: ='SA3'!H168 -> 0 | I44: ='SA3'!I168 -> 0 | J44: ='SA3'!J168 -> 0 | K44: ='SA3'!K168 -> 0 | L44: ='SA3'!L168 -> 0
A45: Capital replacement | C45: ='SA3'!C169 -> 0 | D45: ='SA3'!D169 -> 0 | E45: ='SA3'!E169 -> 0 | F45: ='SA3'!F169 -> 0 | G45: ='SA3'!G169 -> 0 | H45: ='SA3'!H169 -> 0 | I45: ='SA3'!I169 -> 0 | J45: ='SA3'!J169 -> -200000000 | K45: ='SA3'!K169 -> -170000000 | L45: ='SA3'!L169 -> -150000000
A46: Self-insurance | C46: ='SA3'!C170 -> 0 | D46: ='SA3'!D170 -> 0 | E46: ='SA3'!E170 -> 0 | F46: ='SA3'!F170 -> 0 | G46: ='SA3'!G170 -> 0 | H46: ='SA3'!H170 -> 0 | I46: ='SA3'!I170 -> 0 | J46: ='SA3'!J170 -> 0 | K46: ='SA3'!K170 -> 0 | L46: ='SA3'!L170 -> 0
A47: Compensation for Occupational Injuries and Diseases
A48: Employee Benefit reserve
A49: Non-current Provisions reserve
A50: Valuation roll reserve
A51: Investment in associate account
A52: Capitalisation
B53: 6 | C53: =SUM(C44:C52) -> 0 | D53: 0 | E53: 0 | F53: 0 | G53: 0 | H53: 0 | I53: 0 | J53: -200000000 | K53: -170000000 | L53: -150000000
A54: Note:
A55: 6. Above reserves do not include Revaluation reserve. Revaluation reserve not required to be cash backed

Sheet A9-Asset
A1: =muni&" - "&Approve9 -> LIM355 Lepelle-Nkumpi - Table A9 Asset Management
A2: =desc -> Description | B2: =head27 -> Ref | C2: =head1b -> 2019/20 | D2: =head1A -> 2020/21 | E2: =Head1 -> 2021/22 | F2: =Head2 -> Current Year 2022/23 | I2: =Head3 -> 2023/24 Medium Term Revenue & Expenditure Framework
A3: R thousand | C3: =Head5 -> Audited Outcome | D3: =Head5 -> Audited Outcome | E3: =Head5 -> Audited Outcome | F3: =Head6 -> Original Budget | G3: =Head7 -> Adjusted Budget | H3: =Head8 -> Full Year Forecast | I3: =Head9 -> Budget Year 2023/24 | J3: =Head10 -> Budget Year +1 2024/25 | K3: =Head11 -> Budget Year +2 2025/26
A4: CAPITAL EXPENDITURE
A5: Total New Assets | B5: 1 | C5: =C15+C18+C19+C22+C25+C26+SUM(C29:C35)+C38 -> 13766847.71 | D5: =D15+D18+D19+D22+D25+D26+SUM(D29:D35)+D38 -> 39281817.26 | E5: 43024763.95 | F5: 127822135 | G5: 164446117 | H5: 164446117 | I5: 219451231 | J5: 160272270 | K5: 179970995
A6: Roads Infrastructure | C6: =SA34a!C7 -> 12576499.54 | D6: =SA34a!D7 -> 29272576.01 | E6: =SA34a!E7 -> 28792156.56 | F6: =SA34a!F7 -> 73992135 | G6: =SA34a!G7 -> 58569373 | H6: =SA34a!H7 -> 58569373 | I6: =SA34a!I7 -> 36044070 | J6: =SA34a!J7 -> 40568564 | K6: =SA34a!K7 -> 35341836
A7: Storm water Infrastructure | C7: =SA34a!C12 -> 0 | D7: =SA34a!D12 -> 0 | E7: =SA34a!E12 -> 0 | F7: =SA34a!F12 -> 2400000 | G7: =SA34a!G12 -> 6018541 | H7: =SA34a!H12 -> 6018541 | I7: =SA34a!I12 -> 6018541 | J7: =SA34a!J12 -> 28300000 | K7: =SA34a!K12 -> 11510400
A8: Electrical Infrastructure | C8: =SA34a!C16 -> 111127.61 | D8: =SA34a!D16 -> 2741860 | E8: =SA34a!E16 -> 0 | F8: =SA34a!F16 -> 5625000 | G8: =SA34a!G16 -> 51548000 | H8: =SA34a!H16 -> 51548000 | I8: =SA34a!I16 -> 77959000 | J8: =SA34a!J16 -> 35304000 | K8: =SA34a!K16 -> 11825000
A9: Water Supply Infrastructure | C9: =SA34a!C26 -> -565.22 | D9: =SA34a!D26 -> 0 | E9: =SA34a!E26 -> 0 | F9: =SA34a!F26 -> 0 | G9: =SA34a!G26 -> 0 | H9: =SA34a!H26 -> 0 | I9: =SA34a!I26 -> 0 | J9: =SA34a!J26 -> 0 | K9: =SA34a!K26 -> 0
A10: Sanitation Infrastructure | C10: =SA34a!C37 -> 0 | D10: =SA34a!D37 -> 0 | E10: =SA34a!E37 -> 0 | F10: =SA34a!F37 -> 0 | G10: =SA34a!G37 -> 0 | H10: =SA34a!H37 -> 0 | I10: =SA34a!I37 -> 0 | J10: =SA34a!J37 -> 0 | K10: =SA34a!K37 -> 0
A11: Solid Waste Infrastructure | C11: =SA34a!C44 -> 0 | D11: =SA34a!D44 -> 0 | E11: =SA34a!E44 -> 0 | F11: =SA34a!F44 -> 1600000 | G11: =SA34a!G44 -> 1600000 | H11: =SA34a!H44 -> 1600000 | I11: =SA34a!I44 -> 3500000 | J11: =SA34a!J44 -> 0 | K11: =SA34a!K44 -> 0
A12: Rail Infrastructure | C12: =SA34a!C52 -> 0 | D12: =SA34a!D52 -> 0 | E12: =SA34a!E52 -> 0 | F12: =SA34a!F52 -> 0 | G12: =SA34a!G52 -> 0 | H12: =SA34a!H52 -> 0 | I12: =SA34a!I52 -> 0 | J12: =SA34a!J52 -> 0 | K12: =SA34a!K52 -> 0
A13: Coastal Infrastructure | C13: =SA34a!C62 -> 0 | D13: =SA34a!D62 -> 0 | E13: =SA34a!E62 -> 0 | F13: =SA34a!F62 -> 0 | G13: =SA34a!G62 -> 0 | H13: =SA34a!H62 -> 0 | I13: =SA34a!I62 -> 0 | J13: =SA34a!J62 -> 0 | K13: =SA34a!K62 -> 0
A14: Information and Communication Infrastructure | C14: =SA34a!C68 -> 0 | D14: =SA34a!D68 -> 0 | E14: =SA34a!E68 -> 0 | F14: =SA34a!F68 -> 0 | G14: =SA34a!G68 -> 0 | H14: =SA34a!H68 -> 0 | I14: =SA34a!I68 -> 0 | J14: =SA34a!J68 -> 0 | K14: =SA34a!K68 -> 0
A15: Infrastructure | C15: =SUM(C6:C14) -> 12687061.93 | D15: =SUM(D6:D14) -> 32014436.01 | E15: 28792156.56 | F15: 83617135 | G15: 117735914 | H15: 117735914 | I15: 123521611 | J15: 104172564 | K15: 58677236
A16: Community Facilities | C16: =SA34a!C75 -> 1055580.78 | D16: =SA34a!D75 -> 5866638.69 | E16: =SA34a!E75 -> 0 | F16: =SA34a!F75 -> 16000000 | G16: =SA34a!G75 -> 16000000 | H16: =SA34a!H75 -> 16000000 | I16: =SA34a!I75 -> 18216600 | J16: =SA34a!J75 -> 8000000 | K16: =SA34a!K75 -> 0
A17: Sport and Recreation Facilities | C17: =SA34a!C98 -> 0 | D17: =SA34a!D98 -> 0 | E17: =SA34a!E98 -> 7182390.37 | F17: =SA34a!F98 -> 0 | G17: =SA34a!G98 -> 2785203 | H17: =SA34a!H98 -> 2785203 | I17: =SA34a!I98 -> 30994600 | J17: =SA34a!J98 -> 0 | K17: =SA34a!K98 -> 49743164
A18: Community Assets | C18: =SUM(C16:C17) -> 1055580.78 | D18: =SUM(D16:D17) -> 5866638.69 | E18: 7182390.37 | F18: 16000000 | G18: 18785203 | H18: 18785203 | I18: 49211200 | J18: 8000000 | K18: 49743164
A19: Heritage Assets | C19: =SA34a!C103 -> 0 | D19: =SA34a!D103 -> 0 | E19: =SA34a!E103 -> 0 | F19: =SA34a!F103 -> 0 | G19: =SA34a!G103 -> 0 | H19: =SA34a!H103 -> 0 | I19: =SA34a!I103 -> 0 | J19: =SA34a!J103 -> 0 | K19: =SA34a!K103 -> 0
A20: Revenue Generating | C20: =SA34a!C111 -> 0 | D20: =SA34a!D111 -> 0 | E20: =SA34a!E111 -> 0 | F20: =SA34a!F111 -> 0 | G20: =SA34a!G111 -> 0 | H20: =SA34a!H111 -> 0 | I20: =SA34a!I111 -> 0 | J20: =SA34a!J111 -> 0 | K20: =SA34a!K111 -> 0
A21: Non-revenue Generating | C21: =SA34a!C114 -> 0 | D21: =SA34a!D114 -> 394025 | E21: =SA34a!E114 -> 5844448.54 | F21: =SA34a!F114 -> 1500000 | G21: =SA34a!G114 -> 1000000 | H21: =SA34a!H114 -> 1000000 | I21: =SA34a!I114 -> 12396000 | J21: =SA34a!J114 -> 20000000 | K21: =SA34a!K114 -> 45962068
A22: Investment properties | C22: =SUM(C20:C21) -> 0 | D22: =SUM(D20:D21) -> 394025 | E22: 5844448.54 | F22: 1500000 | G22: 1000000 | H22: 1000000 | I22: 12396000 | J22: 20000000 | K22: 45962068
A23: Operational Buildings | C23: =SA34a!C119 -> 0 | D23: =SA34a!D119 -> 0 | E23: =SA34a!E119 -> 0 | F23: =SA34a!F119 -> 950000 | G23: =SA34a!G119 -> 1170000 | H23: =SA34a!H119 -> 1170000 | I23: =SA34a!I119 -> 2700000 | J23: =SA34a!J119 -> 3200000 | K23: =SA34a!K119 -> 2000000
A24: Housing | C24: =SA34a!C131 -> 0 | D24: =SA34a!D131 -> 0 | E24: =SA34a!E131 -> 0 | F24: =SA34a!F131 -> 0 | G24: =SA34a!G131 -> 0 | H24: =SA34a!H131 -> 0 | I24: =SA34a!I131 -> 0 | J24: =SA34a!J131 -> 0 | K24: =SA34a!K131 -> 0
A25: Other Assets | C25: =SUM(C23:C24) -> 0 | D25: =SUM(D23:D24) -> 0 | E25: 0 | F25: 950000 | G25: 1170000 | H25: 1170000 | I25: 2700000 | J25: 3200000 | K25: 2000000
A26: Biological or Cultivated Assets | C26: =SA34a!C136 -> 0 | D26: =SA34a!D136 -> 0 | E26: =SA34a!E136 -> 0 | F26: =SA34a!F136 -> 0 | G26: =SA34a!G136 -> 0 | H26: =SA34a!H136 -> 0 | I26: =SA34a!I136 -> 0 | J26: =SA34a!J136 -> 0 | K26: =SA34a!K136 -> 0
A27: Servitudes | C27: =SA34a!C140 -> 0 | D27: =SA34a!D140 -> 0 | E27: =SA34a!E140 -> 0 | F27: =SA34a!F140 -> 0 | G27: =SA34a!G140 -> 0 | H27: =SA34a!H140 -> 0 | I27: =SA34a!I140 -> 0 | J27: =SA34a!J140 -> 0 | K27: =SA34a!K140 -> 0
A28: Licences and Rights | C28: =SA34a!C141 -> 0 | D28: =SA34a!D141 -> 0 | E28: =SA34a!E141 -> 0 | F28: =SA34a!F141 -> 3500000 | G28: =SA34a!G141 -> 3500000 | H28: =SA34a!H141 -> 3500000 | I28: =SA34a!I141 -> 0 | J28: =SA34a!J141 -> 2500000 | K28: =SA34a!K141 -> 0
A29: Intangible Assets | C29: =SUM(C27:C28) -> 0 | D29: =SUM(D27:D28) -> 0 | E29: 0 | F29: 3500000 | G29: 3500000 | H29: 3500000 | I29: 0 | J29: 2500000 | K29: 0
A30: Computer Equipment | C30: =SA34a!C149 -> 0 | D30: =SA34a!D149 -> 450217.56 | E30: =SA34a!E149 -> 819576 | F30: =SA34a!F149 -> 2000000 | G30: =SA34a!G149 -> 2000000 | H30: =SA34a!H149 -> 2000000 | I30: =SA34a!I149 -> 2000000 | J30: =SA34a!J149 -> 2000000 | K30: =SA34a!K149 -> 2000000
A31: Furniture and Office Equipment | C31: =SA34a!C152 -> 0 | D31: =SA34a!D152 -> 0 | E31: =SA34a!E152 -> 1303.48 | F31: =SA34a!F152 -> 440000 | G31: =SA34a!G152 -> 440000 | H31: =SA34a!H152 -> 440000 | I31: =SA34a!I152 -> 1980920 | J31: =SA34a!J152 -> 1025646 | K31: =SA34a!K152 -> 774531
A32: Machinery and Equipment | C32: =SA34a!C155 -> 24205 | D32: =SA34a!D155 -> 556500 | E32: =SA34a!E155 -> 384889 | F32: =SA34a!F155 -> 16615000 | G32: =SA34a!G155 -> 16615000 | H32: =SA34a!H155 -> 16615000 | I32: =SA34a!I155 -> 19541500 | J32: =SA34a!J155 -> 19374060 | K32: =SA34a!K155 -> 20813996
A33: Transport Assets | C33: =SA34a!C158 -> 0 | D33: =SA34a!D158 -> 0 | E33: =SA34a!E158 -> 0 | F33: =SA34a!F158 -> 3200000 | G33: =SA34a!G158 -> 3200000 | H33: =SA34a!H158 -> 3200000 | I33: =SA34a!I158 -> 8100000 | J33: =SA34a!J158 -> 0 | K33: =SA34a!K158 -> 0
A34: Land | C34: =SA34a!C161 -> 0 | D34: =SA34a!D161 -> 0 | E34: =SA34a!E161 -> 0 | F34: =SA34a!F161 -> 0 | G34: =SA34a!G161 -> 0 | H34: =SA34a!H161 -> 0 | I34: =SA34a!I161 -> 0 | J34: =SA34a!J161 -> 0 | K34: =SA34a!K161 -> 0
A35: Zoo's, Marine and Non-biological Animals | C35: =SA34a!C164 -> 0 | D35: =SA34a!D164 -> 0 | E35: =SA34a!E164 -> 0 | F35: =SA34a!F164 -> 0 | G35: =SA34a!G164 -> 0 | H35: =SA34a!H164 -> 0 | I35: =SA34a!I164 -> 0 | J35: =SA34a!J164 -> 0 | K35: =SA34a!K164 -> 0
A36: Mature | C36: =SA34a!C168 -> 0 | D36: =SA34a!D168 -> 0 | E36: =SA34a!E168 -> 0 | F36: =SA34a!F168 -> 0 | G36: =SA34a!G168 -> 0 | H36: =SA34a!H168 -> 0 | I36: =SA34a!I168 -> 0 | J36: =SA34a!J168 -> 0 | K36: =SA34a!K168 -> 0
A37: Immature | C37: =SA34a!C171 -> 0 | D37: =SA34a!D171 -> 0 | E37: =SA34a!E171 -> 0 | F37: =SA34a!F171 -> 0 | G37: =SA34a!G171 -> 0 | H37: =SA34a!H171 -> 0 | I37: =SA34a!I171 -> 0 | J37: =SA34a!J171 -> 0 | K37: =SA34a!K171 -> 0
A38: Living Resources | C38: =SUM(C36:C37) -> 0 | D38: 0 | E38: 0 | F38: 0 | G38: 0 | H38: 0 | I38: 0 | J38: 0 | K38: 0
A40: Total Renewal of Existing Assets | B40: 2 | C40: =C50+C53+C54+C57+C60+C61+SUM(C64:C70)+C73 -> 0 | D40: =D50+D53+D54+D57+D60+D61+SUM(D64:D70)+D73 -> 123726.67 | E40: 11996046.39 | F40: 11175000 | G40: 12336271 | H40: 12336271 | I40: 20111543 | J40: 31915000 | K40: 29870000
A41: Roads Infrastructure | C41: =SA34b!C7 -> 0 | D41: =SA34b!D7 -> 0 | E41: =SA34b!E7 -> 8449743.78 | F41: =SA34b!F7 -> 5500000 | G41: =SA34b!G7 -> 7468271 | H41: =SA34b!H7 -> 7468271 | I41: =SA34b!I7 -> 5936542 | J41: =SA34b!J7 -> 20000000 | K41: =SA34b!K7 -> 10000000
A42: Storm water Infrastructure | C42: =SA34b!C12 -> 0 | D42: =SA34b!D12 -> 0 | E42: =SA34b!E12 -> 0 | F42: =SA34b!F12 -> 0 | G42: =SA34b!G12 -> 0 | H42: =SA34b!H12 -> 0 | I42: =SA34b!I12 -> 0 | J42: =SA34b!J12 -> 0 | K42: =SA34b!K12 -> 0
A43: Electrical Infrastructure | C43: =SA34b!C16 -> 0 | D43: =SA34b!D16 -> 0 | E43: =SA34b!E16 -> 0 | F43: =SA34b!F16 -> 375000 | G43: =SA34b!G16 -> 375000 | H43: =SA34b!H16 -> 375000 | I43: =SA34b!I16 -> 375000 | J43: =SA34b!J16 -> 0 | K43: =SA34b!K16 -> 0
A44: Water Supply Infrastructure | C44: =SA34b!C26 -> 0 | D44: =SA34b!D26 -> 0 | E44: =SA34b!E26 -> 0 | F44: =SA34b!F26 -> 0 | G44: =SA34b!G26 -> 0 | H44: =SA34b!H26 -> 0 | I44: =SA34b!I26 -> 0 | J44: =SA34b!J26 -> 0 | K44: =SA34b!K26 -> 0
A45: Sanitation Infrastructure | C45: =SA34b!C37 -> 0 | D45: =SA34b!D37 -> 0 | E45: =SA34b!E37 -> 0 | F45: =SA34b!F37 -> 0 | G45: =SA34b!G37 -> 0 | H45: =SA34b!H37 -> 0 | I45: =SA34b!I37 -> 0 | J45: =SA34b!J37 -> 4000000 | K45: =SA34b!K37 -> 14020000
A46: Solid Waste Infrastructure | C46: =SA34b!C44 -> 0 | D46: =SA34b!D44 -> 0 | E46: =SA34b!E44 -> 0 | F46: =SA34b!F44 -> 0 | G46: =SA34b!G44 -> 0 | H46: =SA34b!H44 -> 0 | I46: =SA34b!I44 -> 0 | J46: =SA34b!J44 -> 0 | K46: =SA34b!K44 -> 0
A47: Rail Infrastructure | C47: =SA34b!C52 -> 0 | D47: =SA34b!D52 -> 0 | E47: =SA34b!E52 -> 0 | F47: =SA34b!F52 -> 0 | G47: =SA34b!G52 -> 0 | H47: =SA34b!H52 -> 0 | I47: =SA34b!I52 -> 0 | J47: =SA34b!J52 -> 0 | K47: =SA34b!K52 -> 0
A48: Coastal Infrastructure | C48: =SA34b!C62 -> 0 | D48: =SA34b!D62 -> 0 | E48: =SA34b!E62 -> 0 | F48: =SA34b!F62 -> 0 | G48: =SA34b!G62 -> 0 | H48: =SA34b!H62 -> 0 | I48: =SA34b!I62 -> 0 | J48: =SA34b!J62 -> 0 | K48: =SA34b!K62 -> 0
A49: Information and Communication Infrastructure | C49: =SA34b!C68 -> 0 | D49: =SA34b!D68 -> 0 | E49: =SA34b!E68 -> 0 | F49: =SA34b!F68 -> 0 | G49: =SA34b!G68 -> 0 | H49: =SA34b!H68 -> 0 | I49: =SA34b!I68 -> 0 | J49: =SA34b!J68 -> 0 | K49: =SA34b!K68 -> 0
A50: Infrastructure | C50: =SUM(C41:C49) -> 0 | D50: =SUM(D41:D49) -> 0 | E50: 8449743.78 | F50: 5875000 | G50: 7843271 | H50: 7843271 | I50: 6311542 | J50: 24000000 | K50: 24020000
A51: Community Facilities | C51: =SA34b!C75 -> 0 | D51: =SA34b!D75 -> 0 | E51: =SA34b!E75 -> 0 | F51: =SA34b!F75 -> 0 | G51: =SA34b!G75 -> 0 | H51: =SA34b!H75 -> 0 | I51: =SA34b!I75 -> 8000001 | J51: =SA34b!J75 -> 2000000 | K51: =SA34b!K75 -> 0
A52: Sport and Recreation Facilities | C52: =SA34b!C98 -> 0 | D52: =SA34b!D98 -> 123726.67 | E52: =SA34b!E98 -> 3546302.61 | F52: =SA34b!F98 -> 5000000 | G52: =SA34b!G98 -> 4300000 | H52: =SA34b!H98 -> 4300000 | I52: =SA34b!I98 -> 4000000 | J52: =SA34b!J98 -> 5000000 | K52: =SA34b!K98 -> 5000000
A53: Community Assets | C53: =SUM(C51:C52) -> 0 | D53: =SUM(D51:D52) -> 123726.67 | E53: 3546302.61 | F53: 5000000 | G53: 4300000 | H53: 4300000 | I53: 12000001 | J53: 7000000 | K53: 5000000
A54: Heritage Assets | C54: =SA34b!C103 -> 0 | D54: =SA34b!D103 -> 0 | E54: =SA34b!E103 -> 0 | F54: =SA34b!F103 -> 0 | G54: =SA34b!G103 -> 0 | H54: =SA34b!H103 -> 0 | I54: =SA34b!I103 -> 0 | J54: =SA34b!J103 -> 0 | K54: =SA34b!K103 -> 0
A55: Revenue Generating | C55: =SA34b!C111 -> 0 | D55: =SA34b!D111 -> 0 | E55: =SA34b!E111 -> 0 | F55: =SA34b!F111 -> 0 | G55: =SA34b!G111 -> 0 | H55: =SA34b!H111 -> 0 | I55: =SA34b!I111 -> 0 | J55: =SA34b!J111 -> 0 | K55: =SA34b!K111 -> 0
A56: Non-revenue Generating | C56: =SA34b!C114 -> 0 | D56: =SA34b!D114 -> 0 | E56: =SA34b!E114 -> 0 | F56: =SA34b!F114 -> 0 | G56: =SA34b!G114 -> 0 | H56: =SA34b!H114 -> 0 | I56: =SA34b!I114 -> 0 | J56: =SA34b!J114 -> 0 | K56: =SA34b!K114 -> 0
A57: Investment properties | C57: =SUM(C55:C56) -> 0 | D57: =SUM(D55:D56) -> 0 | E57: 0 | F57: 0 | G57: 0 | H57: 0 | I57: 0 | J57: 0 | K57: 0
A58: Operational Buildings | C58: =SA34b!C119 -> 0 | D58: =SA34b!D119 -> 0 | E58: =SA34b!E119 -> 0 | F58: =SA34b!F119 -> 0 | G58: =SA34b!G119 -> 0 | H58: =SA34b!H119 -> 0 | I58: =SA34b!I119 -> 0 | J58: =SA34b!J119 -> 0 | K58: =SA34b!K119 -> 0
A59: Housing | C59: =SA34b!C131 -> 0 | D59: =SA34b!D131 -> 0 | E59: =SA34b!E131 -> 0 | F59: =SA34b!F131 -> 0 | G59: =SA34b!G131 -> 0 | H59: =SA34b!H131 -> 0 | I59: =SA34b!I131 -> 0 | J59: =SA34b!J131 -> 0 | K59: =SA34b!K131 -> 0
A60: Other Assets | C60: =SUM(C58:C59) -> 0 | D60: =SUM(D58:D59) -> 0 | E60: 0 | F60: 0 | G60: 0 | H60: 0 | I60: 0 | J60: 0 | K60: 0
A61: Biological or Cultivated Assets | C61: =SA34b!C136 -> 0 | D61: =SA34b!D136 -> 0 | E61: =SA34b!E136 -> 0 | F61: =SA34b!F136 -> 0 | G61: =SA34b!G136 -> 0 | H61: =SA34b!H136 -> 0 | I61: =SA34b!I136 -> 0 | J61: =SA34b!J136 -> 0 | K61: =SA34b!K136 -> 0
A62: Servitudes | C62: =SA34b!C140 -> 0 | D62: =SA34b!D140 -> 0 | E62: =SA34b!E140 -> 0 | F62: =SA34b!F140 -> 0 | G62: =SA34b!G140 -> 0 | H62: =SA34b!H140 -> 0 | I62: =SA34b!I140 -> 0 | J62: =SA34b!J140 -> 0 | K62: =SA34b!K140 -> 0
A63: Licences and Rights | C63: =SA34b!C141 -> 0 | D63: =SA34b!D141 -> 0 | E63: =SA34b!E141 -> 0 | F63: =SA34b!F141 -> 0 | G63: =SA34b!G141 -> 0 | H63: =SA34b!H141 -> 0 | I63: =SA34b!I141 -> 0 | J63: =SA34b!J141 -> 0 | K63: =SA34b!K141 -> 0
A64: Intangible Assets | C64: =SUM(C62:C63) -> 0 | D64: =SUM(D62:D63) -> 0 | E64: 0 | F64: 0 | G64: 0 | H64: 0 | I64: 0 | J64: 0 | K64: 0
A65: Computer Equipment | C65: =SA34b!C149 -> 0 | D65: =SA34b!D149 -> 0 | E65: =SA34b!E149 -> 0 | F65: =SA34b!F149 -> 0 | G65: =SA34b!G149 -> 0 | H65: =SA34b!H149 -> 0 | I65: =SA34b!I149 -> 0 | J65: =SA34b!J149 -> 0 | K65: =SA34b!K149 -> 0
A66: Furniture and Office Equipment | C66: =SA34b!C152 -> 0 | D66: =SA34b!D152 -> 0 | E66: =SA34b!E152 -> 0 | F66: =SA34b!F152 -> 300000 | G66: =SA34b!G152 -> 193000 | H66: =SA34b!H152 -> 193000 | I66: =SA34b!I152 -> 1800000 | J66: =SA34b!J152 -> 915000 | K66: =SA34b!K152 -> 850000
A67: Machinery and Equipment | C67: =SA34b!C155 -> 0 | D67: =SA34b!D155 -> 0 | E67: =SA34b!E155 -> 0 | F67: =SA34b!F155 -> 0 | G67: =SA34b!G155 -> 0 | H67: =SA34b!H155 -> 0 | I67: =SA34b!I155 -> 0 | J67: =SA34b!J155 -> 0 | K67: =SA34b!K155 -> 0
A68: Transport Assets | C68: =SA34b!C158 -> 0 | D68: =SA34b!D158 -> 0 | E68: =SA34b!E158 -> 0 | F68: =SA34b!F158 -> 0 | G68: =SA34b!G158 -> 0 | H68: =SA34b!H158 -> 0 | I68: =SA34b!I158 -> 0 | J68: =SA34b!J158 -> 0 | K68: =SA34b!K158 -> 0
A69: Land | C69: =SA34b!C161 -> 0 | D69: =SA34b!D161 -> 0 | E69: =SA34b!E161 -> 0 | F69: =SA34b!F161 -> 0 | G69: =SA34b!G161 -> 0 | H69: =SA34b!H161 -> 0 | I69: =SA34b!I161 -> 0 | J69: =SA34b!J161 -> 0 | K69: =SA34b!K161 -> 0
A70: Zoo's, Marine and Non-biological Animals | C70: =SA34b!C164 -> 0 | D70: =SA34b!D164 -> 0 | E70: =SA34b!E164 -> 0 | F70: =SA34b!F164 -> 0 | G70: =SA34b!G164 -> 0 | H70: =SA34b!H164 -> 0 | I70: =SA34b!I164 -> 0 | J70: =SA34b!J164 -> 0 | K70: =SA34b!K164 -> 0
A71: Mature | C71: =SA34b!C168 -> 0 | D71: =SA34b!D168 -> 0 | E71: =SA34b!E168 -> 0 | F71: =SA34b!F168 -> 0 | G71: =SA34b!G168 -> 0 | H71: =SA34b!H168 -> 0 | I71: =SA34b!I168 -> 0 | J71: =SA34b!J168 -> 0 | K71: =SA34b!K168 -> 0
A72: Immature | C72: =SA34b!C171 -> 0 | D72: =SA34b!D171 -> 0 | E72: =SA34b!E171 -> 0 | F72: =SA34b!F171 -> 0 | G72: =SA34b!G171 -> 0 | H72: =SA34b!H171 -> 0 | I72: =SA34b!I171 -> 0 | J72: =SA34b!J171 -> 0 | K72: =SA34b!K171 -> 0
A73: Living Resources | C73: =SUM(C71:C72) -> 0 | D73: 0 | E73: 0 | F73: 0 | G73: 0 | H73: 0 | I73: 0 | J73: 0 | K73: 0
A75: Total Upgrading of Existing Assets | B75: 6 | C75: =C85+C88+C89+C92+C95+C96+SUM(C99:C105)+C108 -> 720.11 | D75: =D85+D88+D89+D92+D95+D96+SUM(D99:D105)+D108 -> 6065492.83 | E75: 1689644.28 | F75: 52333001 | G75: 54890834 | H75: 54890834 | I75: 60000000 | J75: 66440436 | K75: 18953036
A76: Roads Infrastructure | C76: =SA34e!C7 -> 0 | D76: =SA34e!D7 -> 6065492.83 | E76: =SA34e!E7 -> 1689644.28 | F76: =SA34e!F7 -> 42233001 | G76: =SA34e!G7 -> 43790834 | H76: =SA34e!H7 -> 43790834 | I76: =SA34e!I7 -> 58500000 | J76: =SA34e!J7 -> 51100000 | K76: =SA34e!K7 -> 18953036
A77: Storm water Infrastructure | C77: =SA34e!C12 -> 720.11 | D77: =SA34e!D12 -> 0 | E77: =SA34e!E12 -> 0 | F77: =SA34e!F12 -> 500000 | G77: =SA34e!G12 -> 1500000 | H77: =SA34e!H12 -> 1500000 | I77: =SA34e!I12 -> 1500000 | J77: =SA34e!J12 -> 15340436 | K77: =SA34e!K12 -> 0
A78: Electrical Infrastructure | C78: =SA34e!C16 -> 0 | D78: =SA34e!D16 -> 0 | E78: =SA34e!E16 -> 0 | F78: =SA34e!F16 -> 0 | G78: =SA34e!G16 -> 0 | H78: =SA34e!H16 -> 0 | I78: =SA34e!I16 -> 0 | J78: =SA34e!J16 -> 0 | K78: =SA34e!K16 -> 0
A79: Water Supply Infrastructure | C79: =SA34e!C26 -> 0 | D79: =SA34e!D26 -> 0 | E79: =SA34e!E26 -> 0 | F79: =SA34e!F26 -> 0 | G79: =SA34e!G26 -> 0 | H79: =SA34e!H26 -> 0 | I79: =SA34e!I26 -> 0 | J79: =SA34e!J26 -> 0 | K79: =SA34e!K26 -> 0
A80: Sanitation Infrastructure | C80: =SA34e!C37 -> 0 | D80: =SA34e!D37 -> 0 | E80: =SA34e!E37 -> 0 | F80: =SA34e!F37 -> 0 | G80: =SA34e!G37 -> 0 | H80: =SA34e!H37 -> 0 | I80: =SA34e!I37 -> 0 | J80: =SA34e!J37 -> 0 | K80: =SA34e!K37 -> 0
A81: Solid Waste Infrastructure | C81: =SA34e!C44 -> 0 | D81: =SA34e!D44 -> 0 | E81: =SA34e!E44 -> 0 | F81: =SA34e!F44 -> 0 | G81: =SA34e!G44 -> 0 | H81: =SA34e!H44 -> 0 | I81: =SA34e!I44 -> 0 | J81: =SA34e!J44 -> 0 | K81: =SA34e!K44 -> 0
A82: Rail Infrastructure | C82: =SA34e!C52 -> 0 | D82: =SA34e!D52 -> 0 | E82: =SA34e!E52 -> 0 | F82: =SA34e!F52 -> 0 | G82: =SA34e!G52 -> 0 | H82: =SA34e!H52 -> 0 | I82: =SA34e!I52 -> 0 | J82: =SA34e!J52 -> 0 | K82: =SA34e!K52 -> 0
A83: Coastal Infrastructure | C83: =SA34e!C62 -> 0 | D83: =SA34e!D62 -> 0 | E83: =SA34e!E62 -> 0 | F83: =SA34e!F62 -> 0 | G83: =SA34e!G62 -> 0 | H83: =SA34e!H62 -> 0 | I83: =SA34e!I62 -> 0 | J83: =SA34e!J62 -> 0 | K83: =SA34e!K62 -> 0
A84: Information and Communication Infrastructure | C84: =SA34e!C68 -> 0 | D84: =SA34e!D68 -> 0 | E84: =SA34e!E68 -> 0 | F84: =SA34e!F68 -> 0 | G84: =SA34e!G68 -> 0 | H84: =SA34e!H68 -> 0 | I84: =SA34e!I68 -> 0 | J84: =SA34e!J68 -> 0 | K84: =SA34e!K68 -> 0
A85: Infrastructure | C85: =SUM(C76:C84) -> 720.11 | D85: 6065492.83 | E85: 1689644.28 | F85: 42733001 | G85: 45290834 | H85: 45290834 | I85: 60000000 | J85: 66440436 | K85: 18953036
A86: Community Facilities | C86: =SA34e!C75 -> 0 | D86: =SA34e!D75 -> 0 | E86: =SA34e!E75 -> 0 | F86: =SA34e!F75 -> 0 | G86: =SA34e!G75 -> 0 | H86: =SA34e!H75 -> 0 | I86: =SA34e!I75 -> 0 | J86: =SA34e!J75 -> 0 | K86: =SA34e!K75 -> 0
A87: Sport and Recreation Facilities | C87: =SA34e!C98 -> 0 | D87: =SA34e!D98 -> 0 | E87: =SA34e!E98 -> 0 | F87: =SA34e!F98 -> 0 | G87: =SA34e!G98 -> 0 | H87: =SA34e!H98 -> 0 | I87: =SA34e!I98 -> 0 | J87: =SA34e!J98 -> 0 | K87: =SA34e!K98 -> 0
A88: Community Assets | C88: =SUM(C86:C87) -> 0 | D88: 0 | E88: 0 | F88: 0 | G88: 0 | H88: 0 | I88: 0 | J88: 0 | K88: 0
A89: Heritage Assets | C89: =SA34e!C103 -> 0 | D89: =SA34e!D103 -> 0 | E89: =SA34e!E103 -> 0 | F89: =SA34e!F103 -> 0 | G89: =SA34e!G103 -> 0 | H89: =SA34e!H103 -> 0 | I89: =SA34e!I103 -> 0 | J89: =SA34e!J103 -> 0 | K89: =SA34e!K103 -> 0
A90: Revenue Generating | C90: =SA34e!C111 -> 0 | D90: =SA34e!D111 -> 0 | E90: =SA34e!E111 -> 0 | F90: =SA34e!F111 -> 0 | G90: =SA34e!G111 -> 0 | H90: =SA34e!H111 -> 0 | I90: =SA34e!I111 -> 0 | J90: =SA34e!J111 -> 0 | K90: =SA34e!K111 -> 0
A91: Non-revenue Generating | C91: =SA34e!C114 -> 0 | D91: =SA34e!D114 -> 0 | E91: =SA34e!E114 -> 0 | F91: =SA34e!F114 -> 0 | G91: =SA34e!G114 -> 0 | H91: =SA34e!H114 -> 0 | I91: =SA34e!I114 -> 0 | J91: =SA34e!J114 -> 0 | K91: =SA34e!K114 -> 0
A92: Investment properties | C92: =SUM(C90:C91) -> 0 | D92: 0 | E92: 0 | F92: 0 | G92: 0 | H92: 0 | I92: 0 | J92: 0 | K92: 0
A93: Operational Buildings | C93: =SA34e!C119 -> 0 | D93: =SA34e!D119 -> 0 | E93: =SA34e!E119 -> 0 | F93: =SA34e!F119 -> 9600000 | G93: =SA34e!G119 -> 9600000 | H93: =SA34e!H119 -> 9600000 | I93: =SA34e!I119 -> 0 | J93: =SA34e!J119 -> 0 | K93: =SA34e!K119 -> 0
A94: Housing | C94: =SA34e!C131 -> 0 | D94: =SA34e!D131 -> 0 | E94: =SA34e!E131 -> 0 | F94: =SA34e!F131 -> 0 | G94: =SA34e!G131 -> 0 | H94: =SA34e!H131 -> 0 | I94: =SA34e!I131 -> 0 | J94: =SA34e!J131 -> 0 | K94: =SA34e!K131 -> 0
A95: Other Assets | C95: =SUM(C93:C94) -> 0 | D95: 0 | E95: 0 | F95: 9600000 | G95: 9600000 | H95: 9600000 | I95: 0 | J95: 0 | K95: 0
A96: Biological or Cultivated Assets | C96: =SA34e!C136 -> 0 | D96: =SA34e!D136 -> 0 | E96: =SA34e!E136 -> 0 | F96: =SA34e!F136 -> 0 | G96: =SA34e!G136 -> 0 | H96: =SA34e!H136 -> 0 | I96: =SA34e!I136 -> 0 | J96: =SA34e!J136 -> 0 | K96: =SA34e!K136 -> 0
A97: Servitudes | C97: =SA34e!C140 -> 0 | D97: =SA34e!D140 -> 0 | E97: =SA34e!E140 -> 0 | F97: =SA34e!F140 -> 0 | G97: =SA34e!G140 -> 0 | H97: =SA34e!H140 -> 0 | I97: =SA34e!I140 -> 0 | J97: =SA34e!J140 -> 0 | K97: =SA34e!K140 -> 0
A98: Licences and Rights | C98: =SA34e!C141 -> 0 | D98: =SA34e!D141 -> 0 | E98: =SA34e!E141 -> 0 | F98: =SA34e!F141 -> 0 | G98: =SA34e!G141 -> 0 | H98: =SA34e!H141 -> 0 | I98: =SA34e!I141 -> 0 | J98: =SA34e!J141 -> 0 | K98: =SA34e!K141 -> 0
A99: Intangible Assets | C99: =SUM(C97:C98) -> 0 | D99: 0 | E99: 0 | F99: 0 | G99: 0 | H99: 0 | I99: 0 | J99: 0 | K99: 0
A100: Computer Equipment | C100: =SA34e!C149 -> 0 | D100: =SA34e!D149 -> 0 | E100: =SA34e!E149 -> 0 | F100: =SA34e!F149 -> 0 | G100: =SA34e!G149 -> 0 | H100: =SA34e!H149 -> 0 | I100: =SA34e!I149 -> 0 | J100: =SA34e!J149 -> 0 | K100: =SA34e!K149 -> 0
A101: Furniture and Office Equipment | C101: =SA34e!C152 -> 0 | D101: =SA34e!D152 -> 0 | E101: =SA34e!E152 -> 0 | F101: =SA34e!F152 -> 0 | G101: =SA34e!G152 -> 0 | H101: =SA34e!H152 -> 0 | I101: =SA34e!I152 -> 0 | J101: =SA34e!J152 -> 0 | K101: =SA34e!K152 -> 0
A102: Machinery and Equipment | C102: =SA34e!C155 -> 0 | D102: =SA34e!D155 -> 0 | E102: =SA34e!E155 -> 0 | F102: =SA34e!F155 -> 0 | G102: =SA34e!G155 -> 0 | H102: =SA34e!H155 -> 0 | I102: =SA34e!I155 -> 0 | J102: =SA34e!J155 -> 0 | K102: =SA34e!K155 -> 0
A103: Transport Assets | C103: =SA34e!C158 -> 0 | D103: =SA34e!D158 -> 0 | E103: =SA34e!E158 -> 0 | F103: =SA34e!F158 -> 0 | G103: =SA34e!G158 -> 0 | H103: =SA34e!H158 -> 0 | I103: =SA34e!I158 -> 0 | J103: =SA34e!J158 -> 0 | K103: =SA34e!K158 -> 0
A104: Land | C104: =SA34e!C161 -> 0 | D104: =SA34e!D161 -> 0 | E104: =SA34e!E161 -> 0 | F104: =SA34e!F161 -> 0 | G104: =SA34e!G161 -> 0 | H104: =SA34e!H161 -> 0 | I104: =SA34e!I161 -> 0 | J104: =SA34e!J161 -> 0 | K104: =SA34e!K161 -> 0
A105: Zoo's, Marine and Non-biological Animals | C105: =SA34e!C164 -> 0 | D105: =SA34e!D164 -> 0 | E105: =SA34e!E164 -> 0 | F105: =SA34e!F164 -> 0 | G105: =SA34e!G164 -> 0 | H105: =SA34e!H164 -> 0 | I105: =SA34e!I164 -> 0 | J105: =SA34e!J164 -> 0 | K105: =SA34e!K164 -> 0
A106: Mature | C106: =SA34e!C168 -> 0 | D106: =SA34e!D168 -> 0 | E106: =SA34e!E168 -> 0 | F106: =SA34e!F168 -> 0 | G106: =SA34e!G168 -> 0 | H106: =SA34e!H168 -> 0 | I106: =SA34e!I168 -> 0 | J106: =SA34e!J168 -> 0 | K106: =SA34e!K168 -> 0
A107: Immature | C107: =SA34b!C171 -> 0 | D107: =SA34b!D171 -> 0 | E107: =SA34b!E171 -> 0 | F107: =SA34b!F171 -> 0 | G107: =SA34b!G171 -> 0 | H107: =SA34b!H171 -> 0 | I107: =SA34b!I171 -> 0 | J107: =SA34b!J171 -> 0 | K107: =SA34b!K171 -> 0
A108: Living Resources | C108: =SUM(C106:C107) -> 0 | D108: 0 | E108: 0 | F108: 0 | G108: 0 | H108: 0 | I108: 0 | J108: 0 | K108: 0
A110: Total Capital Expenditure | B110: 4 | C110: =+C5+C40+C75 -> 13767567.82 | D110: 45471036.76 | E110: 56710454.62 | F110: 191330136 | G110: 231673222 | H110: 231673222 | I110: 299562774 | J110: 258627706 | K110: 228794031
A111: Roads Infrastructure | C111: =+C6+C41+C76 -> 12576499.54 | D111: 35338068.84 | E111: 38931544.62 | F111: 121725136 | G111: 109828478 | H111: 109828478 | I111: 100480612 | J111: 111668564 | K111: 64294872
A112: Storm water Infrastructure | C112: =+C7+C42+C77 -> 720.11 | D112: 0 | E112: 0 | F112: 2900000 | G112: 7518541 | H112: 7518541 | I112: 7518541 | J112: 43640436 | K112: 11510400
A113: Electrical Infrastructure | C113: =+C8+C43+C78 -> 111127.61 | D113: 2741860 | E113: 0 | F113: 6000000 | G113: 51923000 | H113: 51923000 | I113: 78334000 | J113: 35304000 | K113: 11825000
A114: Water Supply Infrastructure | C114: =+C9+C44+C79 -> -565.22 | D114: 0 | E114: 0 | F114: 0 | G114: 0 | H114: 0 | I114: 0 | J114: 0 | K114: 0
A115: Sanitation Infrastructure | C115: =+C10+C45+C80 -> 0 | D115: 0 | E115: 0 | F115: 0 | G115: 0 | H115: 0 | I115: 0 | J115: 4000000 | K115: 14020000
A116: Solid Waste Infrastructure | C116: =+C11+C46+C81 -> 0 | D116: 0 | E116: 0 | F116: 1600000 | G116: 1600000 | H116: 1600000 | I116: 3500000 | J116: 0 | K116: 0
A117: Rail Infrastructure | C117: =+C12+C47+C82 -> 0 | D117: 0 | E117: 0 | F117: 0 | G117: 0 | H117: 0 | I117: 0 | J117: 0 | K117: 0
A118: Coastal Infrastructure | C118: =+C13+C48+C83 -> 0 | D118: 0 | E118: 0 | F118: 0 | G118: 0 | H118: 0 | I118: 0 | J118: 0 | K118: 0
A119: Information and Communication Infrastructure | C119: =+C14+C49+C84 -> 0 | D119: 0 | E119: 0 | F119: 0 | G119: 0 | H119: 0 | I119: 0 | J119: 0 | K119: 0
A120: Infrastructure | C120: =SUM(C111:C119) -> 12687782.04 | D120: =SUM(D111:D119) -> 38079928.84 | E120: 38931544.62 | F120: 132225136 | G120: 170870019 | H120: 170870019 | I120: 189833153 | J120: 194613000 | K120: 101650272
A121: Community Facilities | C121: =+C16+C51+C86 -> 1055580.78 | D121: 5866638.69 | E121: 0 | F121: 16000000 | G121: 16000000 | H121: 16000000 | I121: 26216601 | J121: 10000000 | K121: 0
A122: Sport and Recreation Facilities | C122: =+C17+C52+C87 -> 0 | D122: 123726.67 | E122: 10728692.98 | F122: 5000000 | G122: 7085203 | H122: 7085203 | I122: 34994600 | J122: 5000000 | K122: 54743164
A123: Community Assets | C123: =SUM(C121:C122) -> 1055580.78 | D123: =SUM(D121:D122) -> 5990365.36 | E123: 10728692.98 | F123: 21000000 | G123: 23085203 | H123: 23085203 | I123: 61211201 | J123: 15000000 | K123: 54743164
A124: Heritage Assets | C124: =+C19+C54+C89 -> 0 | D124: 0 | E124: 0 | F124: 0 | G124: 0 | H124: 0 | I124: 0 | J124: 0 | K124: 0
A125: Revenue Generating | C125: =+C20+C55+C90 -> 0 | D125: 0 | E125: 0 | F125: 0 | G125: 0 | H125: 0 | I125: 0 | J125: 0 | K125: 0
A126: Non-revenue Generating | C126: =+C21+C56+C91 -> 0 | D126: 394025 | E126: 5844448.54 | F126: 1500000 | G126: 1000000 | H126: 1000000 | I126: 12396000 | J126: 20000000 | K126: 45962068
A127: Investment properties | C127: =SUM(C125:C126) -> 0 | D127: =SUM(D125:D126) -> 394025 | E127: 5844448.54 | F127: 1500000 | G127: 1000000 | H127: 1000000 | I127: 12396000 | J127: 20000000 | K127: 45962068
A128: Operational Buildings | C128: =+C23+C58+C93 -> 0 | D128: 0 | E128: 0 | F128: 10550000 | G128: 10770000 | H128: 10770000 | I128: 2700000 | J128: 3200000 | K128: 2000000
A129: Housing | C129: =+C24+C59+C94 -> 0 | D129: 0 | E129: 0 | F129: 0 | G129: 0 | H129: 0 | I129: 0 | J129: 0 | K129: 0
A130: Other Assets | C130: =SUM(C128:C129) -> 0 | D130: 0 | E130: 0 | F130: 10550000 | G130: 10770000 | H130: 10770000 | I130: 2700000 | J130: 3200000 | K130: 2000000
A131: Biological or Cultivated Assets | C131: =+C26+C61+C96 -> 0 | D131: 0 | E131: 0 | F131: 0 | G131: 0 | H131: 0 | I131: 0 | J131: 0 | K131: 0
A132: Servitudes | C132: =+C27+C62+C97 -> 0 | D132: 0 | E132: 0 | F132: 0 | G132: 0 | H132: 0 | I132: 0 | J132: 0 | K132: 0
A133: Licences and Rights | C133: =+C28+C63+C98 -> 0 | D133: 0 | E133: 0 | F133: 3500000 | G133: 3500000 | H133: 3500000 | I133: 0 | J133: 2500000 | K133: 0
A134: Intangible Assets | C134: =SUM(C132:C133) -> 0 | D134: =SUM(D132:D133) -> 0 | E134: 0 | F134: 3500000 | G134: 3500000 | H134: 3500000 | I134: 0 | J134: 2500000 | K134: 0
A135: Computer Equipment | C135: =+C30+C65+C100 -> 0 | D135: 450217.56 | E135: 819576 | F135: 2000000 | G135: 2000000 | H135: 2000000 | I135: 2000000 | J135: 2000000 | K135: 2000000
A136: Furniture and Office Equipment | C136: =+C31+C66+C101 -> 0 | D136: 0 | E136: 1303.48 | F136: 740000 | G136: 633000 | H136: 633000 | I136: 3780920 | J136: 1940646 | K136: 1624531
A137: Machinery and Equipment | C137: =+C32+C67+C102 -> 24205 | D137: 556500 | E137: 384889 | F137: 16615000 | G137: 16615000 | H137: 16615000 | I137: 19541500 | J137: 19374060 | K137: 20813996
A138: Transport Assets | C138: =+C33+C68+C103 -> 0 | D138: 0 | E138: 0 | F138: 3200000 | G138: 3200000 | H138: 3200000 | I138: 8100000 | J138: 0 | K138: 0
A139: Land | C139: =+C34+C69+C104 -> 0 | D139: 0 | E139: 0 | F139: 0 | G139: 0 | H139: 0 | I139: 0 | J139: 0 | K139: 0
A140: Zoo's, Marine and Non-biological Animals | C140: =+C35+C70+C105 -> 0 | D140: 0 | E140: 0 | F140: 0 | G140: 0 | H140: 0 | I140: 0 | J140: 0 | K140: 0
A141: Mature | C141: =+C36+C71+C106 -> 0 | D141: =+D36+D71+D106 -> 0 | E141: 0 | F141: 0 | G141: 0 | H141: 0 | I141: 0 | J141: 0 | K141: 0
A142: Immature | C142: =+C37+C72+C107 -> 0 | D142: =+D37+D72+D107 -> 0 | E142: 0 | F142: 0 | G142: 0 | H142: 0 | I142: 0 | J142: 0 | K142: 0
A143: Living Resources | C143: =SUM(C141:C142) -> 0 | D143: 0 | E143: 0 | F143: 0 | G143: 0 | H143: 0 | I143: 0 | J143: 0 | K143: 0
A144: TOTAL CAPITAL EXPENDITURE - Asset class | C144: =+C5+C40+C75 -> 13767567.82 | D144: 45471036.76 | E144: 56710454.62 | F144: 191330136 | G144: 231673222 | H144: 231673222 | I144: 299562774 | J144: 258627706 | K144: 228794031
A146: ASSET REGISTER SUMMARY - PPE (WDV) | B146: 5 | C146: =C156+C159+C160+C163+C166+C167+C170+C171+C172+C173+C174+C175+C176 -> 13767567.82 | D146: =D156+D159+D160+D163+D166+D167+D170+D171+D172+D173+D174+D175+D176 -> 715924191.8 | E146: 765090711.9 | F146: 879268731 | G146: 924693369 | H146: 924693369 | I146: 1023255777 | J146: 1016059874 | K146: 1025554289
A147: Roads Infrastructure | C147: 12576499.54 | D147: 325811716.4 | E147: 370813674.1 | F147: 435863807 | G147: 468969113 | H147: 468969113 | I147: 428441385 | J147: 455043493 | K147: 424495173
A148: Storm water Infrastructure | C148: 720.11 | D148: 0 | E148: 0 | F148: 2900000 | G148: 7518541 | H148: 7518541 | I148: 7518541 | J148: 43640436 | K148: 11510400
A149: Electrical Infrastructure | C149: 111127.61 | D149: 6135011.38 | E149: 9792416.94 | F149: 11165241 | G149: 60745647 | H149: 60745647 | I149: 83726512 | J149: 40949960 | K149: 17747612
A150: Water Supply Infrastructure | C150: -565.22 | D150: 0 | E150: 0 | F150: 0 | G150: 0 | H150: 0 | I150: 0 | J150: 0 | K150: 0
A151: Sanitation Infrastructure | C151: 0 | D151: 0 | E151: 0 | F151: 0 | G151: 0 | H151: 0 | I151: 0 | J151: 4000000 | K151: 14020000
A152: Solid Waste Infrastructure | C152: 0 | D152: 2148219.58 | E152: 1540925.54 | F152: 3748220 | G152: 3140926 | H152: 3140926 | I152: 5742742 | J152: 2348151 | K152: 2463210
A153: Rail Infrastructure
A154: Coastal Infrastructure
A155: Information and Communication Infrastructure | C155: 0 | D155: 0 | E155: 0 | F155: 0 | G155: 0 | H155: 0 | I155: 0 | J155: 0 | K155: 0
A156: Infrastructure | C156: =SUM(C147:C155) -> 12687782.04 | D156: =SUM(D147:D155) -> 334094947.4 | E156: 382147016.5 | F156: 453677268 | G156: 540374227 | H156: 540374227 | I156: 525429180 | J156: 545982040 | K156: 470236395
A159: Community Assets | C159: 1055580.78 | D159: 154096642.3 | E159: 153795908.3 | F159: 165849185 | G159: 167633654 | H159: 167633654 | I159: 212433750 | J159: 173330009 | K159: 220831343
A160: Heritage Assets | C160: 0 | D160: 183684.33 | E160: 183684.33 | F160: 183684 | G160: 183600 | H160: 183600 | I160: 183684 | J160: 183684 | K160: 183684
A163: Investment properties | C163: 0 | D163: 102125000 | E163: 108452669.2 | F163: 103625000 | G163: 109452000 | H163: 109452000 | I163: 119014500 | J163: 131629570 | K163: 163061486
A166: Other Assets | C166: 0 | D166: 124262446.4 | E166: 116844920.1 | F166: 128717122 | G166: 77237920 | H166: 77237920 | I166: 126066475 | J166: 132364700 | K166: 137493769
A167: Biological or Cultivated Assets
A170: Intangible Assets | C170: 0 | D170: 154753.87 | E170: 154753.87 | F170: 3654754 | G170: 3654708 | H170: 3654708 | I170: 5654754 | J170: 8154754 | K170: 8154754
A171: Computer Equipment | C171: 0 | D171: 450217.56 | E171: 1549281.62 | F171: 2450218 | G171: 3549282 | H171: 3549282 | I171: 2470028 | J171: 2492119 | K171: 2516233
A172: Furniture and Office Equipment | C172: 0 | D172: 0 | E172: 1290281.88 | F172: 740000 | G172: 1923282 | H172: 1923282 | I172: 3780920 | J172: 1940646 | K172: 1624531
A173: Machinery and Equipment | C173: 24205 | D173: 556500 | E173: 672196.03 | F173: 17171500 | G173: 17484696 | H173: 17484696 | I173: 20122486 | J173: 19982352 | K173: 21452094
A174: Transport Assets | C174: 0 | D174: 0 | E174: 0 | F174: 3200000 | G174: 3200000 | H174: 3200000 | I174: 8100000 | J174: 0 | K174: 0
A175: Land
A176: Zoo's, Marine and Non-biological Animals
A179: Living Resources
A180: TOTAL ASSET REGISTER SUMMARY - PPE (WDV) | B180: 5 | C180: =C156+C159+C160+C163+C166+C167+C170+C171+C172+C173+C174+C175+C176+C179 -> 13767567.82 | D180: 715924191.8 | E180: 765090711.9 | F180: =F156+F159+F160+F163+F166+F167+F170+F171+F172+F173+F174+F175+F176+F179 -> 879268731 | G180: =G156+G159+G160+G163+G166+G167+G170+G171+G172+G173+G174+G175+G176+G179 -> 924693369 | H180: 924693369 | I180: 1023255777 | J180: 1016059874 | K180: 1025554289
A182: EXPENDITURE OTHER ITEMS | C182: =SUM(C183:C184) -> 531801.32 | D182: =SUM(D183:D184) -> 33165831.51 | E182: 30261375.07 | F182: 54873938 | G182: 54026068 | H182: 54026068 | I182: 80295687 | J182: 84088577 | K182: 87777237
A183: Depreciation | B183: 7 | C183: =SA34d!C175 -> 13577.88 | D183: =SA34d!D175 -> 30573634.62 | E183: =SA34d!E175 -> 28302993.82 | F183: =SA34d!F175 -> 37699942 | G183: =SA34d!G175 -> 37699942 | H183: =SA34d!H175 -> 37699942 | I183: =SA34d!I175 -> 39698037 | J183: =SA34d!J175 -> 41643244 | K183: =SA34d!K175 -> 43600473
A184: Repairs and Maintenance by Asset Class | B184: 3 | C184: =C194+C197+C198+C201+C204+C205+SUM(C208:C214)+C217 -> 518223.44 | D184: 2592196.89 | E184: 1958381.25 | F184: 17173996 | G184: 16326126 | H184: 16326126 | I184: 40597650 | J184: 42445333 | K184: 44176764
A185: Roads Infrastructure | C185: =SA34c!C7 -> 487500 | D185: =SA34c!D7 -> 665004.94 | E185: =SA34c!E7 -> 1453792.56 | F185: =SA34c!F7 -> 7624039 | G185: =SA34c!G7 -> 7371169 | H185: =SA34c!H7 -> 7371169 | I185: =SA34c!I7 -> 28682069 | J185: =SA34c!J7 -> 30205491 | K185: =SA34c!K7 -> 31732149
A186: Storm water Infrastructure | C186: =SA34c!C12 -> 0 | D186: =SA34c!D12 -> 0 | E186: =SA34c!E12 -> 0 | F186: =SA34c!F12 -> 0 | G186: =SA34c!G12 -> 0 | H186: =SA34c!H12 -> 0 | I186: =SA34c!I12 -> 0 | J186: =SA34c!J12 -> 0 | K186: =SA34c!K12 -> 0
A187: Electrical Infrastructure | C187: =SA34c!C16 -> 0 | D187: =SA34c!D16 -> 1558118.63 | E187: =SA34c!E16 -> 236801.52 | F187: =SA34c!F16 -> 3100000 | G187: =SA34c!G16 -> 2705000 | H187: =SA34c!H16 -> 2705000 | I187: =SA34c!I16 -> 2966177 | J187: =SA34c!J16 -> 3093585 | K187: =SA34c!K16 -> 3238983
A188: Water Supply Infrastructure | C188: =SA34c!C26 -> 0 | D188: =SA34c!D26 -> 0 | E188: =SA34c!E26 -> 0 | F188: =SA34c!F26 -> 0 | G188: =SA34c!G26 -> 0 | H188: =SA34c!H26 -> 0 | I188: =SA34c!I26 -> 0 | J188: =SA34c!J26 -> 0 | K188: =SA34c!K26 -> 0
A189: Sanitation Infrastructure | C189: =SA34c!C37 -> 0 | D189: =SA34c!D37 -> 0 | E189: =SA34c!E37 -> 0 | F189: =SA34c!F37 -> 0 | G189: =SA34c!G37 -> 0 | H189: =SA34c!H37 -> 0 | I189: =SA34c!I37 -> 0 | J189: =SA34c!J37 -> 0 | K189: =SA34c!K37 -> 0
A190: Solid Waste Infrastructure | C190: =SA34c!C44 -> 0 | D190: =SA34c!D44 -> 0 | E190: =SA34c!E44 -> 0 | F190: =SA34c!F44 -> 0 | G190: =SA34c!G44 -> 0 | H190: =SA34c!H44 -> 0 | I190: =SA34c!I44 -> 0 | J190: =SA34c!J44 -> 0 | K190: =SA34c!K44 -> 0
A191: Rail Infrastructure | C191: =SA34c!C52 -> 0 | D191: =SA34c!D52 -> 0 | E191: =SA34c!E52 -> 0 | F191: =SA34c!F52 -> 0 | G191: =SA34c!G52 -> 0 | H191: =SA34c!H52 -> 0 | I191: =SA34c!I52 -> 0 | J191: =SA34c!J52 -> 0 | K191: =SA34c!K52 -> 0
A192: Coastal Infrastructure | C192: =SA34c!C62 -> 0 | D192: =SA34c!D62 -> 0 | E192: =SA34c!E62 -> 0 | F192: =SA34c!F62 -> 0 | G192: =SA34c!G62 -> 0 | H192: =SA34c!H62 -> 0 | I192: =SA34c!I62 -> 0 | J192: =SA34c!J62 -> 0 | K192: =SA34c!K62 -> 0
A193: Information and Communication Infrastructure | C193: =SA34c!C68 -> 0 | D193: =SA34c!D68 -> 0 | E193: =SA34c!E68 -> 0 | F193: =SA34c!F68 -> 0 | G193: =SA34c!G68 -> 0 | H193: =SA34c!H68 -> 0 | I193: =SA34c!I68 -> 0 | J193: =SA34c!J68 -> 0 | K193: =SA34c!K68 -> 0
A194: Infrastructure | C194: =SUM(C185:C193) -> 487500 | D194: =SUM(D185:D193) -> 2223123.57 | E194: 1690594.08 | F194: 10724039 | G194: 10076169 | H194: 10076169 | I194: 31648246 | J194: 33299076 | K194: 34971132
A195: Community Facilities | C195: =SA34c!C75 -> 0 | D195: =SA34c!D75 -> 0 | E195: =SA34c!E75 -> 0 | F195: =SA34c!F75 -> 1000000 | G195: =SA34c!G75 -> 800000 | H195: =SA34c!H75 -> 800000 | I195: =SA34c!I75 -> 2553000 | J195: =SA34c!J75 -> 2985429 | K195: =SA34c!K75 -> 3078744
A196: Sport and Recreation Facilities | C196: =SA34c!C98 -> 0 | D196: =SA34c!D98 -> 0 | E196: =SA34c!E98 -> 0 | F196: =SA34c!F98 -> 0 | G196: =SA34c!G98 -> 0 | H196: =SA34c!H98 -> 0 | I196: =SA34c!I98 -> 0 | J196: =SA34c!J98 -> 0 | K196: =SA34c!K98 -> 0
A197: Community Assets | C197: =SUM(C195:C196) -> 0 | D197: 0 | E197: 0 | F197: 1000000 | G197: 800000 | H197: 800000 | I197: 2553000 | J197: 2985429 | K197: 3078744
A198: Heritage Assets | C198: =SA34c!C103 -> 0 | D198: =SA34c!D103 -> 0 | E198: =SA34c!E103 -> 0 | F198: =SA34c!F103 -> 0 | G198: =SA34c!G103 -> 0 | H198: =SA34c!H103 -> 0 | I198: =SA34c!I103 -> 0 | J198: =SA34c!J103 -> 0 | K198: =SA34c!K103 -> 0
A199: Revenue Generating | C199: =SA34c!C111 -> 0 | D199: =SA34c!D111 -> 0 | E199: =SA34c!E111 -> 0 | F199: =SA34c!F111 -> 0 | G199: =SA34c!G111 -> 0 | H199: =SA34c!H111 -> 0 | I199: =SA34c!I111 -> 0 | J199: =SA34c!J111 -> 0 | K199: =SA34c!K111 -> 0
A200: Non-revenue Generating | C200: =SA34c!C114 -> 0 | D200: =SA34c!D114 -> 0 | E200: =SA34c!E114 -> 0 | F200: =SA34c!F114 -> 0 | G200: =SA34c!G114 -> 0 | H200: =SA34c!H114 -> 0 | I200: =SA34c!I114 -> 0 | J200: =SA34c!J114 -> 0 | K200: =SA34c!K114 -> 0
A201: Investment properties | C201: =SUM(C199:C200) -> 0 | D201: 0 | E201: 0 | F201: 0 | G201: 0 | H201: 0 | I201: 0 | J201: 0 | K201: 0
A202: Operational Buildings | C202: =SA34c!C119 -> 0 | D202: =SA34c!D119 -> 148229.96 | E202: =SA34c!E119 -> 44517.06 | F202: =SA34c!F119 -> 1000000 | G202: =SA34c!G119 -> 1000000 | H202: =SA34c!H119 -> 1000000 | I202: =SA34c!I119 -> 1710600 | J202: =SA34c!J119 -> 1245419 | K202: =SA34c!K119 -> 980455
A203: Housing | C203: =SA34c!C131 -> 0 | D203: =SA34c!D131 -> 0 | E203: =SA34c!E131 -> 0 | F203: =SA34c!F131 -> 0 | G203: =SA34c!G131 -> 0 | H203: =SA34c!H131 -> 0 | I203: =SA34c!I131 -> 0 | J203: =SA34c!J131 -> 0 | K203: =SA34c!K131 -> 0
A204: Other Assets | C204: =SUM(C202:C203) -> 0 | D204: 148229.96 | E204: 44517.06 | F204: 1000000 | G204: 1000000 | H204: 1000000 | I204: 1710600 | J204: 1245419 | K204: 980455
A205: Biological or Cultivated Assets | C205: =SA34c!C136 -> 0 | D205: =SA34c!D136 -> 0 | E205: =SA34c!E136 -> 0 | F205: =SA34c!F136 -> 0 | G205: =SA34c!G136 -> 0 | H205: =SA34c!H136 -> 0 | I205: =SA34c!I136 -> 0 | J205: =SA34c!J136 -> 0 | K205: =SA34c!K136 -> 0
A206: Servitudes | C206: =SA34c!C140 -> 0 | D206: =SA34c!D140 -> 0 | E206: =SA34c!E140 -> 0 | F206: =SA34c!F140 -> 0 | G206: =SA34c!G140 -> 0 | H206: =SA34c!H140 -> 0 | I206: =SA34c!I140 -> 0 | J206: =SA34c!J140 -> 0 | K206: =SA34c!K140 -> 0
A207: Licences and Rights | C207: =SA34c!C141 -> 0 | D207: =SA34c!D141 -> 0 | E207: =SA34c!E141 -> 0 | F207: =SA34c!F141 -> 0 | G207: =SA34c!G141 -> 0 | H207: =SA34c!H141 -> 0 | I207: =SA34c!I141 -> 0 | J207: =SA34c!J141 -> 0 | K207: =SA34c!K141 -> 0
A208: Intangible Assets | C208: =SUM(C206:C207) -> 0 | D208: 0 | E208: 0 | F208: 0 | G208: 0 | H208: 0 | I208: 0 | J208: 0 | K208: 0
A209: Computer Equipment | C209: =SA34c!C149 -> 0 | D209: =SA34c!D149 -> 0 | E209: =SA34c!E149 -> 0 | F209: =SA34c!F149 -> 0 | G209: =SA34c!G149 -> 0 | H209: =SA34c!H149 -> 0 | I209: =SA34c!I149 -> 0 | J209: =SA34c!J149 -> 0 | K209: =SA34c!K149 -> 0
A210: Furniture and Office Equipment | C210: =SA34c!C152 -> 0 | D210: =SA34c!D152 -> 0 | E210: =SA34c!E152 -> 0 | F210: =SA34c!F152 -> 0 | G210: =SA34c!G152 -> 0 | H210: =SA34c!H152 -> 0 | I210: =SA34c!I152 -> 0 | J210: =SA34c!J152 -> 0 | K210: =SA34c!K152 -> 0
A211: Machinery and Equipment | C211: =SA34c!C155 -> 0 | D211: =SA34c!D155 -> 0 | E211: =SA34c!E155 -> 78639.02 | F211: =SA34c!F155 -> 364800 | G211: =SA34c!G155 -> 364800 | H211: =SA34c!H155 -> 364800 | I211: =SA34c!I155 -> 384134 | J211: =SA34c!J155 -> 402957 | K211: =SA34c!K155 -> 421896
A212: Transport Assets | C212: =SA34c!C158 -> 30723.44 | D212: =SA34c!D158 -> 220843.36 | E212: =SA34c!E158 -> 144631.09 | F212: =SA34c!F158 -> 4085157 | G212: =SA34c!G158 -> 4085157 | H212: =SA34c!H158 -> 4085157 | I212: =SA34c!I158 -> 4301670 | J212: =SA34c!J158 -> 4512452 | K212: =SA34c!K158 -> 4724537
A213: Land | C213: =SA34c!C161 -> 0 | D213: =SA34c!D161 -> 0 | E213: =SA34c!E161 -> 0 | F213: =SA34c!F161 -> 0 | G213: =SA34c!G161 -> 0 | H213: =SA34c!H161 -> 0 | I213: =SA34c!I161 -> 0 | J213: =SA34c!J161 -> 0 | K213: =SA34c!K161 -> 0
A214: Zoo's, Marine and Non-biological Animals | C214: =SA34c!C164 -> 0 | D214: =SA34c!D164 -> 0 | E214: =SA34c!E164 -> 0 | F214: =SA34c!F164 -> 0 | G214: =SA34c!G164 -> 0 | H214: =SA34c!H164 -> 0 | I214: =SA34c!I164 -> 0 | J214: =SA34c!J164 -> 0 | K214: =SA34c!K164 -> 0
A215: Mature | C215: =SA34c!C168 -> 0 | D215: =SA34c!D168 -> 0 | E215: =SA34c!E168 -> 0 | F215: =SA34c!F168 -> 0 | G215: =SA34c!G168 -> 0 | H215: =SA34c!H168 -> 0 | I215: =SA34c!I168 -> 0 | J215: =SA34c!J168 -> 0 | K215: =SA34c!K168 -> 0
... 16 more rows

Sheet A10-SerDel
A1: =muni&" - "&Approve10 -> LIM355 Lepelle-Nkumpi - Table A10 Basic service delivery measurement
A2: =desc -> Description | B2: =head27 -> Ref | C2: =head1b -> 2019/20 | D2: =head1A -> 2020/21 | E2: =Head1 -> 2021/22 | F2: =Head2 -> Current Year 2022/23 | I2: =Head3 -> 2023/24 Medium Term Revenue & Expenditure Framework
C3: =Head5A -> Outcome | D3: =Head5A -> Outcome | E3: =Head5A -> Outcome | F3: =Head6 -> Original Budget | G3: =Head7 -> Adjusted Budget | H3: =Head8 -> Full Year Forecast | I3: =Head9 -> Budget Year 2023/24 | J3: =Head10 -> Budget Year +1 2024/25 | K3: =Head11 -> Budget Year +2 2025/26
A4: Household service targets | B4: 1
A5: Water:
A6: Piped water inside dwelling | C6: ='SA9'!E67 -> 0 | D6: ='SA9'!F67 -> 0 | E6: ='SA9'!G67 -> 0 | F6: ='SA9'!H67 -> 0 | G6: ='SA9'!I67 -> 0 | H6: ='SA9'!J67 -> 0 | I6: ='SA9'!K67 -> 0 | J6: ='SA9'!L67 -> 0 | K6: ='SA9'!M67 -> 0
A7: Piped water inside yard (but not in dwelling) | C7: ='SA9'!E68 -> 0 | D7: ='SA9'!F68 -> 0 | E7: ='SA9'!G68 -> 0 | F7: ='SA9'!H68 -> 0 | G7: ='SA9'!I68 -> 0 | H7: ='SA9'!J68 -> 0 | I7: ='SA9'!K68 -> 0 | J7: ='SA9'!L68 -> 0 | K7: ='SA9'!M68 -> 0
A8: Using public tap (at least min.service level) | B8: 2 | C8: ='SA9'!E69 -> 0 | D8: ='SA9'!F69 -> 0 | E8: ='SA9'!G69 -> 0 | F8: ='SA9'!H69 -> 0 | G8: ='SA9'!I69 -> 0 | H8: ='SA9'!J69 -> 0 | I8: ='SA9'!K69 -> 0 | J8: ='SA9'!L69 -> 0 | K8: ='SA9'!M69 -> 0
A9: Other water supply (at least min.service level) | B9: 4 | C9: ='SA9'!E70 -> 0 | D9: ='SA9'!F70 -> 0 | E9: ='SA9'!G70 -> 0 | F9: ='SA9'!H70 -> 0 | G9: ='SA9'!I70 -> 0 | H9: ='SA9'!J70 -> 0 | I9: ='SA9'!K70 -> 0 | J9: ='SA9'!L70 -> 0 | K9: ='SA9'!M70 -> 0
A10: Minimum Service Level and Above sub-total | C10: =SUM(C6:C9) -> 0 | D10: =SUM(D6:D9) -> 0 | E10: 0 | F10: 0 | G10: 0 | H10: 0 | I10: 0 | J10: 0 | K10: 0
A11: Using public tap (< min.service level) | B11: 3 | C11: ='SA9'!E72 -> 0 | D11: ='SA9'!F72 -> 0 | E11: ='SA9'!G72 -> 0 | F11: ='SA9'!H72 -> 0 | G11: ='SA9'!I72 -> 0 | H11: ='SA9'!J72 -> 0 | I11: ='SA9'!K72 -> 0 | J11: ='SA9'!L72 -> 0 | K11: ='SA9'!M72 -> 0
A12: Other water supply (< min.service level) | B12: =B9 -> 4 | C12: ='SA9'!E73 -> 0 | D12: ='SA9'!F73 -> 0 | E12: ='SA9'!G73 -> 0 | F12: ='SA9'!H73 -> 0 | G12: ='SA9'!I73 -> 0 | H12: ='SA9'!J73 -> 0 | I12: ='SA9'!K73 -> 0 | J12: ='SA9'!L73 -> 0 | K12: ='SA9'!M73 -> 0
A13: No water supply | C13: ='SA9'!E74 -> 0 | D13: ='SA9'!F74 -> 0 | E13: ='SA9'!G74 -> 0 | F13: ='SA9'!H74 -> 0 | G13: ='SA9'!I74 -> 0 | H13: ='SA9'!J74 -> 0 | I13: ='SA9'!K74 -> 0 | J13: ='SA9'!L74 -> 0 | K13: ='SA9'!M74 -> 0
A14: Below Minimum Service Level sub-total | C14: =SUM(C11:C13) -> 0 | D14: =SUM(D11:D13) -> 0 | E14: 0 | F14: 0 | G14: 0 | H14: 0 | I14: 0 | J14: 0 | K14: 0
A15: Total number of households | B15: 5 | C15: =C10+C14 -> 0 | D15: =D10+D14 -> 0 | E15: 0 | F15: 0 | G15: 0 | H15: 0 | I15: 0 | J15: 0 | K15: 0
A16: Sanitation/sewerage:
A17: Flush toilet (connected to sewerage) | C17: ='SA9'!E78 -> 0 | D17: ='SA9'!F78 -> 0 | E17: ='SA9'!G78 -> 0 | F17: ='SA9'!H78 -> 0 | G17: ='SA9'!I78 -> 0 | H17: ='SA9'!J78 -> 0 | I17: ='SA9'!K78 -> 0 | J17: ='SA9'!L78 -> 0 | K17: ='SA9'!M78 -> 0
A18: Flush toilet (with septic tank) | C18: ='SA9'!E79 -> 0 | D18: ='SA9'!F79 -> 0 | E18: ='SA9'!G79 -> 0 | F18: ='SA9'!H79 -> 0 | G18: ='SA9'!I79 -> 0 | H18: ='SA9'!J79 -> 0 | I18: ='SA9'!K79 -> 0 | J18: ='SA9'!L79 -> 0 | K18: ='SA9'!M79 -> 0
A19: Chemical toilet | C19: ='SA9'!E80 -> 0 | D19: ='SA9'!F80 -> 0 | E19: ='SA9'!G80 -> 0 | F19: ='SA9'!H80 -> 0 | G19: ='SA9'!I80 -> 0 | H19: ='SA9'!J80 -> 0 | I19: ='SA9'!K80 -> 0 | J19: ='SA9'!L80 -> 0 | K19: ='SA9'!M80 -> 0
A20: Pit toilet (ventilated) | C20: ='SA9'!E81 -> 0 | D20: ='SA9'!F81 -> 0 | E20: ='SA9'!G81 -> 0 | F20: ='SA9'!H81 -> 0 | G20: ='SA9'!I81 -> 0 | H20: ='SA9'!J81 -> 0 | I20: ='SA9'!K81 -> 0 | J20: ='SA9'!L81 -> 0 | K20: ='SA9'!M81 -> 0
A21: Other toilet provisions (> min.service level) | C21: ='SA9'!E82 -> 0 | D21: ='SA9'!F82 -> 0 | E21: ='SA9'!G82 -> 0 | F21: ='SA9'!H82 -> 0 | G21: ='SA9'!I82 -> 0 | H21: ='SA9'!J82 -> 0 | I21: ='SA9'!K82 -> 0 | J21: ='SA9'!L82 -> 0 | K21: ='SA9'!M82 -> 0
A22: =$A$10 -> Minimum Service Level and Above sub-total | C22: =SUM(C17:C21) -> 0 | D22: =SUM(D17:D21) -> 0 | E22: 0 | F22: 0 | G22: 0 | H22: 0 | I22: 0 | J22: 0 | K22: 0
A23: Bucket toilet | C23: ='SA9'!E84 -> 0 | D23: ='SA9'!F84 -> 0 | E23: ='SA9'!G84 -> 0 | F23: ='SA9'!H84 -> 0 | G23: ='SA9'!I84 -> 0 | H23: ='SA9'!J84 -> 0 | I23: ='SA9'!K84 -> 0 | J23: ='SA9'!L84 -> 0 | K23: ='SA9'!M84 -> 0
A24: Other toilet provisions (< min.service level) | C24: ='SA9'!E85 -> 0 | D24: ='SA9'!F85 -> 0 | E24: ='SA9'!G85 -> 0 | F24: ='SA9'!H85 -> 0 | G24: ='SA9'!I85 -> 0 | H24: ='SA9'!J85 -> 0 | I24: ='SA9'!K85 -> 0 | J24: ='SA9'!L85 -> 0 | K24: ='SA9'!M85 -> 0
A25: No toilet provisions | C25: ='SA9'!E86 -> 0 | D25: ='SA9'!F86 -> 0 | E25: ='SA9'!G86 -> 0 | F25: ='SA9'!H86 -> 0 | G25: ='SA9'!I86 -> 0 | H25: ='SA9'!J86 -> 0 | I25: ='SA9'!K86 -> 0 | J25: ='SA9'!L86 -> 0 | K25: ='SA9'!M86 -> 0
A26: =$A$14 -> Below Minimum Service Level sub-total | C26: =SUM(C23:C25) -> 0 | D26: =SUM(D23:D25) -> 0 | E26: 0 | F26: 0 | G26: 0 | H26: 0 | I26: 0 | J26: 0 | K26: 0
A27: =$A$15 -> Total number of households | B27: =$B$15 -> 5 | C27: =C22+C26 -> 0 | D27: =D22+D26 -> 0 | E27: 0 | F27: 0 | G27: 0 | H27: 0 | I27: 0 | J27: 0 | K27: 0
A28: Energy:
A29: Electricity (at least min.service level) | C29: ='SA9'!E90 -> 0 | D29: ='SA9'!F90 -> 0 | E29: ='SA9'!G90 -> 0 | F29: ='SA9'!H90 -> 0 | G29: ='SA9'!I90 -> 0 | H29: ='SA9'!J90 -> 0 | I29: ='SA9'!K90 -> 0 | J29: ='SA9'!L90 -> 0 | K29: ='SA9'!M90 -> 0
A30: Electricity - prepaid (min.service level) | C30: ='SA9'!E91 -> 0 | D30: ='SA9'!F91 -> 0 | E30: ='SA9'!G91 -> 0 | F30: ='SA9'!H91 -> 0 | G30: ='SA9'!I91 -> 0 | H30: ='SA9'!J91 -> 0 | I30: ='SA9'!K91 -> 0 | J30: ='SA9'!L91 -> 0 | K30: ='SA9'!M91 -> 0
A31: =$A$10 -> Minimum Service Level and Above sub-total | C31: =SUM(C29:C30) -> 0 | D31: =SUM(D29:D30) -> 0 | E31: 0 | F31: 0 | G31: 0 | H31: 0 | I31: 0 | J31: 0 | K31: 0
A32: Electricity (< min.service level) | C32: ='SA9'!E93 -> 0 | D32: ='SA9'!F93 -> 0 | E32: ='SA9'!G93 -> 0 | F32: ='SA9'!H93 -> 0 | G32: ='SA9'!I93 -> 0 | H32: ='SA9'!J93 -> 0 | I32: ='SA9'!K93 -> 0 | J32: ='SA9'!L93 -> 0 | K32: ='SA9'!M93 -> 0
A33: Electricity - prepaid (< min. service level) | C33: ='SA9'!E94 -> 0 | D33: ='SA9'!F94 -> 0 | E33: ='SA9'!G94 -> 0 | F33: ='SA9'!H94 -> 0 | G33: ='SA9'!I94 -> 0 | H33: ='SA9'!J94 -> 0 | I33: ='SA9'!K94 -> 0 | J33: ='SA9'!L94 -> 0 | K33: ='SA9'!M94 -> 0
A34: Other energy sources | C34: ='SA9'!E95 -> 0 | D34: ='SA9'!F95 -> 0 | E34: ='SA9'!G95 -> 0 | F34: ='SA9'!H95 -> 0 | G34: ='SA9'!I95 -> 0 | H34: ='SA9'!J95 -> 0 | I34: ='SA9'!K95 -> 0 | J34: ='SA9'!L95 -> 0 | K34: ='SA9'!M95 -> 0
A35: =$A$14 -> Below Minimum Service Level sub-total | C35: =SUM(C32:C34) -> 0 | D35: =SUM(D32:D34) -> 0 | E35: 0 | F35: 0 | G35: 0 | H35: 0 | I35: 0 | J35: 0 | K35: 0
A36: =$A$15 -> Total number of households | B36: =$B$15 -> 5 | C36: =C31+C35 -> 0 | D36: =D31+D35 -> 0 | E36: 0 | F36: 0 | G36: 0 | H36: 0 | I36: 0 | J36: 0 | K36: 0
A37: Refuse:
A38: Removed at least once a week | C38: ='SA9'!E99 -> 0 | D38: ='SA9'!F99 -> 0 | E38: ='SA9'!G99 -> 0 | F38: ='SA9'!H99 -> 0 | G38: ='SA9'!I99 -> 0 | H38: ='SA9'!J99 -> 0 | I38: ='SA9'!K99 -> 0 | J38: ='SA9'!L99 -> 0 | K38: ='SA9'!M99 -> 0
A39: =$A$10 -> Minimum Service Level and Above sub-total | C39: =SUM(C38) -> 0 | D39: =SUM(D38) -> 0 | E39: 0 | F39: 0 | G39: 0 | H39: 0 | I39: 0 | J39: 0 | K39: 0
A40: Removed less frequently than once a week | C40: ='SA9'!E101 -> 0 | D40: ='SA9'!F101 -> 0 | E40: ='SA9'!G101 -> 0 | F40: ='SA9'!H101 -> 0 | G40: ='SA9'!I101 -> 0 | H40: ='SA9'!J101 -> 0 | I40: ='SA9'!K101 -> 0 | J40: ='SA9'!L101 -> 0 | K40: ='SA9'!M101 -> 0
A41: Using communal refuse dump | C41: ='SA9'!E102 -> 0 | D41: ='SA9'!F102 -> 0 | E41: ='SA9'!G102 -> 0 | F41: ='SA9'!H102 -> 0 | G41: ='SA9'!I102 -> 0 | H41: ='SA9'!J102 -> 0 | I41: ='SA9'!K102 -> 0 | J41: ='SA9'!L102 -> 0 | K41: ='SA9'!M102 -> 0
A42: Using own refuse dump | C42: ='SA9'!E103 -> 0 | D42: ='SA9'!F103 -> 0 | E42: ='SA9'!G103 -> 0 | F42: ='SA9'!H103 -> 0 | G42: ='SA9'!I103 -> 0 | H42: ='SA9'!J103 -> 0 | I42: ='SA9'!K103 -> 0 | J42: ='SA9'!L103 -> 0 | K42: ='SA9'!M103 -> 0
A43: Other rubbish disposal | C43: ='SA9'!E104 -> 0 | D43: ='SA9'!F104 -> 0 | E43: ='SA9'!G104 -> 0 | F43: ='SA9'!H104 -> 0 | G43: ='SA9'!I104 -> 0 | H43: ='SA9'!J104 -> 0 | I43: ='SA9'!K104 -> 0 | J43: ='SA9'!L104 -> 0 | K43: ='SA9'!M104 -> 0
A44: No rubbish disposal | C44: ='SA9'!E105 -> 0 | D44: ='SA9'!F105 -> 0 | E44: ='SA9'!G105 -> 0 | F44: ='SA9'!H105 -> 0 | G44: ='SA9'!I105 -> 0 | H44: ='SA9'!J105 -> 0 | I44: ='SA9'!K105 -> 0 | J44: ='SA9'!L105 -> 0 | K44: ='SA9'!M105 -> 0
A45: =$A$14 -> Below Minimum Service Level sub-total | C45: =SUM(C40:C44) -> 0 | D45: 0 | E45: 0 | F45: 0 | G45: 0 | H45: 0 | I45: 0 | J45: 0 | K45: 0
A46: =$A$15 -> Total number of households | B46: =$B$15 -> 5 | C46: =C39+C45 -> 0 | D46: =D39+D45 -> 0 | E46: 0 | F46: 0 | G46: 0 | H46: 0 | I46: 0 | J46: 0 | K46: 0
A48: Households receiving Free Basic Service | B48: 7
A49: Water (6 kilolitres per household per month) | C49: ='SA9'!E263 -> 0 | D49: ='SA9'!F263 -> 0 | E49: ='SA9'!G263 -> 0 | F49: ='SA9'!H263 -> 0 | G49: ='SA9'!I263 -> 0 | H49: ='SA9'!J263 -> 0 | I49: ='SA9'!K263 -> 0 | J49: ='SA9'!L263 -> 0 | K49: ='SA9'!M263 -> 0
A50: Sanitation (free minimum level service) | C50: ='SA9'!E275 -> 0 | D50: ='SA9'!F275 -> 0 | E50: ='SA9'!G275 -> 0 | F50: ='SA9'!H275 -> 0 | G50: ='SA9'!I275 -> 0 | H50: ='SA9'!J275 -> 0 | I50: ='SA9'!K275 -> 0 | J50: ='SA9'!L275 -> 0 | K50: ='SA9'!M275 -> 0
A51: Electricity/other energy (50kwh per household per month) | C51: ='SA9'!E251 -> 0 | D51: ='SA9'!F251 -> 0 | E51: ='SA9'!G251 -> 0 | F51: ='SA9'!H251 -> 0 | G51: ='SA9'!I251 -> 0 | H51: ='SA9'!J251 -> 0 | I51: ='SA9'!K251 -> 0 | J51: ='SA9'!L251 -> 0 | K51: ='SA9'!M251 -> 0
A52: Refuse (removed at least once a week) | C52: ='SA9'!E287 -> 0 | D52: ='SA9'!F287 -> 0 | E52: ='SA9'!G287 -> 0 | F52: ='SA9'!H287 -> 0 | G52: ='SA9'!I287 -> 0 | H52: ='SA9'!J287 -> 0 | I52: ='SA9'!K287 -> 0 | J52: ='SA9'!L287 -> 0 | K52: ='SA9'!M287 -> 0
A53: Informal Settlements | C53: ='SA9'!E253+'SA9'!E255+'SA9'!E257+'SA9'!E259+'SA9'!E265+'SA9'!E2267+'SA9'!E269+'SA9'!E271+'SA9'!E277+'SA9'!E279+'SA9'!E281+'SA9'!E283+'SA9'!E289+'SA9'!E291+'SA9'!E293+'SA9'!E295 -> 0 | D53: ='SA9'!F253+'SA9'!F255+'SA9'!F257+'SA9'!F259+'SA9'!F265+'SA9'!F2267+'SA9'!F269+'SA9'!F271+'SA9'!F277+'SA9'!F279+'SA9'!F281+'SA9'!F283+'SA9'!F289+'SA9'!F291+'SA9'!F293+'SA9'!F295 -> 0 | E53: ='SA9'!G253+'SA9'!G255+'SA9'!G257+'SA9'!G259+'SA9'!G265+'SA9'!G2267+'SA9'!G269+'SA9'!G271+'SA9'!G277+'SA9'!G279+'SA9'!G281+'SA9'!G283+'SA9'!G289+'SA9'!G291+'SA9'!G293+'SA9'!G295 -> 0 | F53: ='SA9'!H253+'SA9'!H255+'SA9'!H257+'SA9'!H259+'SA9'!H265+'SA9'!H2267+'SA9'!H269+'SA9'!H271+'SA9'!H277+'SA9'!H279+'SA9'!H281+'SA9'!H283+'SA9'!H289+'SA9'!H291+'SA9'!H293+'SA9'!H295 -> 0 | G53: ='SA9'!I253+'SA9'!I255+'SA9'!I257+'SA9'!I259+'SA9'!I265+'SA9'!I2267+'SA9'!I269+'SA9'!I271+'SA9'!I277+'SA9'!I279+'SA9'!I281+'SA9'!I283+'SA9'!I289+'SA9'!I291+'SA9'!I293+'SA9'!I295 -> 0 | H53: ='SA9'!J253+'SA9'!J255+'SA9'!J257+'SA9'!J259+'SA9'!J265+'SA9'!J2267+'SA9'!J269+'SA9'!J271+'SA9'!J277+'SA9'!J279+'SA9'!J281+'SA9'!J283+'SA9'!J289+'SA9'!J291+'SA9'!J293+'SA9'!J295 -> 0 | I53: ='SA9'!K253+'SA9'!K255+'SA9'!K257+'SA9'!K259+'SA9'!K265+'SA9'!K2267+'SA9'!K269+'SA9'!K271+'SA9'!K277+'SA9'!K279+'SA9'!K281+'SA9'!K283+'SA9'!K289+'SA9'!K291+'SA9'!K293+'SA9'!K295 -> 0 | J53: ='SA9'!L253+'SA9'!L255+'SA9'!L257+'SA9'!L259+'SA9'!L265+'SA9'!L2267+'SA9'!L269+'SA9'!L271+'SA9'!L277+'SA9'!L279+'SA9'!L281+'SA9'!L283+'SA9'!L289+'SA9'!L291+'SA9'!L293+'SA9'!L295 -> 0 | K53: ='SA9'!M253+'SA9'!M255+'SA9'!M257+'SA9'!M259+'SA9'!M265+'SA9'!M2267+'SA9'!M269+'SA9'!M271+'SA9'!M277+'SA9'!M279+'SA9'!M281+'SA9'!M283+'SA9'!M289+'SA9'!M291+'SA9'!M293+'SA9'!M295 -> 0
A54: Cost of Free Basic Services provided - Formal Settlements (R'000)
A55: Water (6 kilolitres per indigent household per month) | C55: ='SA1'!C22 -> 0 | D55: ='SA1'!D22 -> 0 | E55: ='SA1'!E22 -> 0 | F55: ='SA1'!F22 -> 0 | G55: ='SA1'!G22 -> 0 | H55: ='SA1'!H22 -> 0 | I55: ='SA1'!J22 -> 0 | J55: ='SA1'!K22 -> 0 | K55: ='SA1'!L22 -> 0
A56: Sanitation (free sanitation service to indigent households) | C56: ='SA1'!C28 -> 0 | D56: ='SA1'!D28 -> 0 | E56: ='SA1'!E28 -> 0 | F56: ='SA1'!F28 -> 0 | G56: ='SA1'!G28 -> 0 | H56: ='SA1'!H28 -> 0 | I56: ='SA1'!J28 -> 0 | J56: ='SA1'!K28 -> 0 | K56: ='SA1'!L28 -> 0
A57: Electricity/other energy (50kwh per indigent household per month) | C57: ='SA1'!C16 -> 0 | D57: ='SA1'!D16 -> 0 | E57: ='SA1'!E16 -> 0 | F57: ='SA1'!F16 -> 0 | G57: ='SA1'!G16 -> 0 | H57: ='SA1'!H16 -> 0 | I57: ='SA1'!J16 -> 0 | J57: ='SA1'!K16 -> 0 | K57: ='SA1'!L16 -> 0
A58: Refuse (removed once a week for indigent households) | C58: ='SA1'!C35 -> 0 | D58: ='SA1'!D35 -> 0 | E58: ='SA1'!E35 -> 0 | F58: ='SA1'!F35 -> 20786 | G58: ='SA1'!G35 -> 20786 | H58: ='SA1'!H35 -> 20786 | I58: ='SA1'!J35 -> 21888 | J58: ='SA1'!K35 -> 22961 | K58: ='SA1'!L35 -> 24040
A59: Cost of Free Basic Services provided - Informal Formal Settlements (R'000) | C59: ='SA9'!E260+'SA9'!E272+'SA9'!E284+'SA9'!E296 -> 0 | D59: ='SA9'!F260+'SA9'!F272+'SA9'!F284+'SA9'!F296 -> 0 | E59: ='SA9'!G260+'SA9'!G272+'SA9'!G284+'SA9'!G296 -> 0 | F59: ='SA9'!H260+'SA9'!H272+'SA9'!H284+'SA9'!H296 -> 0 | G59: ='SA9'!I260+'SA9'!I272+'SA9'!I284+'SA9'!I296 -> 0 | H59: ='SA9'!J260+'SA9'!J272+'SA9'!J284+'SA9'!J296 -> 0 | I59: ='SA9'!K260+'SA9'!K272+'SA9'!K284+'SA9'!K296 -> 0 | J59: ='SA9'!L260+'SA9'!L272+'SA9'!L284+'SA9'!L296 -> 0 | K59: ='SA9'!M260+'SA9'!M272+'SA9'!M284+'SA9'!M296 -> 0
A60: Total cost of FBS provided | B60: 8 | C60: =SUM(C55:C59) -> 0 | D60: 0 | E60: 0 | F60: 20786 | G60: 20786 | H60: 20786 | I60: 21888 | J60: 22961 | K60: 24040
A62: Highest level of free service provided per household
A63: Property rates (R value threshold)
A64: Water (kilolitres per household per month)
A65: Sanitation (kilolitres per household per month)
A66: Sanitation (Rand per household per month)
A67: Electricity (kwh per household per month)
A68: Refuse (average litres per week)
A69: Revenue cost of subsidised services provided (R'000) | B69: 9
A70: Property rates (tariff adjustment) ( impermissable values per section 17 of MPRA)
A71: Property rates exemptions, reductions and rebates and impermissable values in excess of section 17 of MPRA) | C71: ='SA1'!C9 -> -4284699.39 | D71: ='SA1'!D9 -> 1067792.77 | E71: ='SA1'!E9 -> 1334986.08 | F71: ='SA1'!F9 -> 9466431 | G71: ='SA1'!G9 -> 9466431 | H71: ='SA1'!H9 -> 9466431 | I71: ='SA1'!J9 -> 9968152 | J71: ='SA1'!K9 -> 10456591 | K71: ='SA1'!L9 -> 10948051
A72: Water (in excess of 6 kilolitres per indigent household per month) | C72: ='SA1'!C21 -> 0 | D72: ='SA1'!D21 -> 0 | E72: ='SA1'!E21 -> 0 | F72: ='SA1'!F21 -> 0 | G72: ='SA1'!G21 -> 0 | H72: ='SA1'!H21 -> 0 | I72: ='SA1'!J21 -> 0 | J72: ='SA1'!K21 -> 0 | K72: ='SA1'!L21 -> 0
A73: Sanitation (in excess of free sanitation service to indigent households) | C73: ='SA1'!C27 -> 0 | D73: ='SA1'!D27 -> 0 | E73: ='SA1'!E27 -> 0 | F73: ='SA1'!F27 -> 0 | G73: ='SA1'!G27 -> 0 | H73: ='SA1'!H27 -> 0 | I73: ='SA1'!J27 -> 0 | J73: ='SA1'!K27 -> 0 | K73: ='SA1'!L27 -> 0
A74: Electricity/other energy (in excess of 50 kwh per indigent household per month) | C74: ='SA1'!C15 -> 0 | D74: ='SA1'!D15 -> 0 | E74: ='SA1'!E15 -> 0 | F74: ='SA1'!F15 -> 0 | G74: ='SA1'!G15 -> 0 | H74: ='SA1'!H15 -> 0 | I74: ='SA1'!J15 -> 0 | J74: ='SA1'!K15 -> 0 | K74: ='SA1'!L15 -> 0
A75: Refuse (in excess of one removal a week for indigent households) | C75: ='SA1'!C34 -> 0 | D75: ='SA1'!D34 -> 0 | E75: ='SA1'!E34 -> 0 | F75: ='SA1'!F34 -> 0 | G75: ='SA1'!G34 -> 0 | H75: ='SA1'!H34 -> 0 | I75: ='SA1'!J34 -> 0 | J75: ='SA1'!K34 -> 0 | K75: ='SA1'!L34 -> 0
A76: Municipal Housing - rental rebates
A77: Housing - top structure subsidies | B77: 6
A78: Other
A79: Total revenue cost of subsidised services provided | C79: =SUM(C70:C78) -> -4284699.39 | D79: =SUM(D70:D78) -> 1067792.77 | E79: 1334986.08 | F79: 9466431 | G79: 9466431 | H79: 9466431 | I79: 9968152 | J79: =SUM(J70:J78) -> 10456591 | K79: =SUM(K70:K78) -> 10948051
A80: =head27a -> References
A81: 1. Include services provided by another entity; e.g. Eskom
A82: 2. Stand distance <= 200m from dwelling
A83: 3. Stand distance > 200m from dwelling
A84: 4. Borehole, spring, rain-water tank etc.
A85: 5. Must agree to total number of households in municipal area (informal settlements receiving services must be included)
A86: 6. Include value of subsidy provided by municipality above provincial subsidy level
A87: 7. Show number of households receiving at least these levels of services completely free (informal settlements must be included)
A88: 8. Must reflect the cost to the municipality of providing the Free Basic Service
A89: 9. Reflect the cost of free or subsidised services in excess to the National policy that are not funded from the Free Basic Services component of the Equitable Share

Sheet SA1
A1: =muni&" - "&TableA1 -> LIM355 Lepelle-Nkumpi - Supporting Table SA1 Supportinging detail to 'Budgeted Financial Performance'
A2: =desc -> Description | B2: =head27 -> Ref | C2: =head1b -> 2019/20 | D2: =head1A -> 2020/21 | E2: =Head1 -> 2021/22 | F2: =Head2 -> Current Year 2022/23 | J2: =Head3 -> 2023/24 Medium Term Revenue & Expenditure Framework
C3: =Head5 -> Audited Outcome | D3: =Head5 -> Audited Outcome | E3: =Head5 -> Audited Outcome | F3: =Head6 -> Original Budget | G3: =Head7 -> Adjusted Budget | H3: =Head8 -> Full Year Forecast | I3: =Head5b -> Pre-audit outcome | J3: =Head9 -> Budget Year 2023/24 | K3: =Head10 -> Budget Year +1 2024/25 | L3: =Head11 -> Budget Year +2 2025/26
A4: R thousand
A5: REVENUE ITEMS:
A6: Non-exchange revenue by source
A7: ='A4-FinPerf RE'!A5 -> Exchange Revenue | B7: 6
A8: Total Property Rates | C8: 4085164.38 | D8: 32818070.68 | E8: 31855656.73 | F8: 43840312 | G8: 46940312 | H8: 46940312 | I8: 36896342.86 | J8: 49428148 | K8: 51850127 | L8: 54287083
A9: Less Revenue Foregone (exemptions, reductions and rebates and impermissable values in excess of section 17 of MPRA) | C9: -4284699.39 | D9: 1067792.77 | E9: 1334986.08 | F9: 9466431 | G9: 9466431 | H9: 9466431 | I9: 1235998.48 | J9: 9968152 | K9: 10456591 | L9: 10948051
A10: Net Property Rates | C10: =C8-C9 -> 8369863.77 | D10: =D8-D9 -> 31750277.91 | E10: 30520670.65 | F10: 34373881 | G10: 37473881 | H10: 37473881 | I10: 35660344.38 | J10: 39459996 | K10: 41393536 | L10: 43339032
A12: Exchange revenue service charges
A13: ='A4-FinPerf RE'!A6 -> Service charges - Electricity | B13: 6
A14: ="Total "&A13 -> Total Service charges - Electricity
A15: Less Revenue Foregone (in excess of 50 kwh per indigent household per month)
A16: Less Cost of Free Basis Services (50 kwh per indigent household per month) | C16: ='SA9'!E250 -> 0 | D16: ='SA9'!F250 -> 0 | E16: ='SA9'!G250 -> 0 | F16: ='SA9'!H250 -> 0 | G16: ='SA9'!I250 -> 0 | H16: ='SA9'!J250 -> 0 | J16: ='SA9'!K250 -> 0 | K16: ='SA9'!L250 -> 0 | L16: ='SA9'!M250 -> 0
A17: ="Net "& A13 -> Net Service charges - Electricity | C17: =C14-C15-C16 -> 0 | D17: =D14-D15-D16 -> 0 | E17: 0 | F17: 0 | G17: 0 | H17: 0 | I17: 0 | J17: 0 | K17: 0 | L17: 0
A19: ='A4-FinPerf RE'!A7 -> Service charges - Water | B19: 6
A20: ="Total "&A19 -> Total Service charges - Water | C20: 16512163.87 | D20: 0 | E20: -2754337.53 | F20: 0 | G20: 0 | H20: 0 | I20: 343.57 | J20: 0 | K20: 0 | L20: 0
A21: Less Revenue Foregone (in excess of 6 kilolitres per indigent household per month)
A22: Less Cost of Free Basis Services (6 kilolitres per indigent household per month) | C22: ='SA9'!E262 -> 0 | D22: ='SA9'!F262 -> 0 | E22: ='SA9'!G262 -> 0 | F22: ='SA9'!H262 -> 0 | G22: ='SA9'!I262 -> 0 | H22: ='SA9'!J262 -> 0 | J22: ='SA9'!K262 -> 0 | K22: ='SA9'!L262 -> 0 | L22: ='SA9'!M262 -> 0
A23: ="Net "& A19 -> Net Service charges - Water | C23: =C20-C21-C22 -> 16512163.87 | D23: =D20-D21-D22 -> 0 | E23: -2754337.53 | F23: 0 | G23: 0 | H23: 0 | I23: 343.57 | J23: 0 | K23: 0 | L23: 0
A25: ='A4-FinPerf RE'!A8 -> Service charges - Waste Water Management
A26: ="Total "&A25 -> Total Service charges - Waste Water Management | C26: 3730237.61 | D26: 0 | E26: -245503.03 | F26: 0 | G26: 0 | H26: 0 | I26: 0 | J26: 0 | K26: 0 | L26: 0
A27: Less Revenue Foregone (in excess of free sanitation service to indigent households)
A28: Less Cost of Free Basis Services (free sanitation service to indigent households) | C28: ='SA9'!E274 -> 0 | D28: ='SA9'!F274 -> 0 | E28: ='SA9'!G274 -> 0 | F28: ='SA9'!H274 -> 0 | G28: ='SA9'!I274 -> 0 | H28: ='SA9'!J274 -> 0 | J28: ='SA9'!K274 -> 0 | K28: ='SA9'!L274 -> 0 | L28: ='SA9'!M274 -> 0
A29: ="Net "& A25 -> Net Service charges - Waste Water Management | C29: =C26-C27-C28 -> 3730237.61 | D29: =D26-D27-D28 -> 0 | E29: -245503.03 | F29: 0 | G29: 0 | H29: 0 | I29: 0 | J29: 0 | K29: 0 | L29: 0
A31: ='A4-FinPerf RE'!A9 -> Service charges - Waste Management | B31: 6
A32: Total refuse removal revenue | C32: 2823088.34 | D32: 6433333.48 | E32: 5814239.34 | F32: 7141395 | G32: 7143395 | H32: 7143395 | I32: 6217031.62 | J32: 7521995 | K32: 7890573 | L32: 8261430
A33: Total landfill revenue
A34: Less Revenue Foregone (in excess of one removal a week to indigent households)
A35: Less Cost of Free Basis Services (removed once a week to indigent households) | C35: ='SA9'!E286 -> 0 | D35: ='SA9'!F286 -> 0 | E35: ='SA9'!G286 -> 0 | F35: ='SA9'!H286 -> 20786 | G35: ='SA9'!I286 -> 20786 | H35: ='SA9'!J286 -> 20786 | I35: 0 | J35: ='SA9'!K286 -> 21888 | K35: ='SA9'!L286 -> 22961 | L35: ='SA9'!M286 -> 24040
